Workbook

Sheet Table of Contents
C3: Sheet Tab | D3: Description | E3: Author
B4: 1 | C4: Table of Contents
B5: 2 | C5: Monthly Prices
B6: 3 | C6: Base Sheet
B7: 4 | C7: Offset Chart
B8: 5 | C8: Scatter
B9: 6 | C9: Distribution Chart
B10: 7 | C10: Distribution Chart 1
B11: 8 | C11: 12 Month Moving Volatility
B12: 9 | C12: Chart6
B13: 10 | C13: Volatility
B14: 11 | C14: Distributions
B15: 12 | C15: regression
B16: 13 | C16: Offset
B17: 14 | C17: Misc
B18: 15 | C18: Chart with NA Method
B20: File Name: | D20: C:\Users\Monika\Documents\Courses\Chapter 1. Models and Analysis\8. Data Retrivial\Commodity Price Analysis.xlsm
B22: Colour Codes
B24: Last Save Date
B25: Last Save By
B28: General Page | D28: http://www.worldbank.org/en/research/commodity-markets
B29: Current Download | D29: https://thedocs.worldbank.org/en/doc/5d903e848db1d1b83e0ec8f744e55570-0350012021/related/CMO-Historical-Data-Monthly.xlsx
D30: https://thedocs.worldbank.org/en/doc/5d903e848db1d1b83e0ec8f744e55570-0350012021/related/CMO-Historical-Data-Monthly.xlsx

Sheet Download Data
N2: Forecast URL | P2: 2 | Q2: =Q10 -> http://pubdocs.worldbank.org/en/497071555972921166/CMO-April-2019-forecasts.xlsx
B3: The monthly link is the primary page -- find the link and right click and then copy it to the monthly section below
Q4: http://pubdocs.worldbank.org/en/991591476804663190/CMO-October-2016-Forecasts.xlsx
Q5: http://pubdocs.worldbank.org/en/975201485188874357/CMO-January-2017-Forecasts.xlsx
B6: Monthly | C6: https://thedocs.worldbank.org/en/doc/74e8be41ceb20fa0da750cda2f6b9e4e-0050012026/related/CMO-Historical-Data-Monthly.xlsx | Q6: http://pubdocs.worldbank.org/en/224591469470606338/CMO-2016-Jan-Forecasts.xlsx
B7: Annual | C7: https://thedocs.worldbank.org/en/doc/5d903e848db1d1b83e0ec8f744e55570-0350012021/related/CMO-Historical-Data-Annual.xlsx | Q7: http://pubdocs.worldbank.org/en/590041469470605429/CMO-2015-Oct-Forecasts.xlsx
B8: Forecast | Q8: http://pubdocs.worldbank.org/en/406591469470604511/CMO-2015-July-Forecasts.xlsx
Q9: http://pubdocs.worldbank.org/en/524241493046966255/CMO-April-2017-Forecasts.xlsx
B10: Supplements | Q10: http://pubdocs.worldbank.org/en/497071555972921166/CMO-April-2019-forecasts.xlsx
B12: Website where you can find the link above
C13: https://www.worldbank.org/en/research/commodity-markets#1
C14: h+C42ttp://www.worldbank.org/en/research/commodity-markets
F17: http://www.worldbank.org/en/research/commodity-markets#3 | G17: Forecast Achive
F18: http://www.worldbank.org/en/research/commodity-markets | G18: Pink Data Sheet
F19: http://www.worldbank.org/en/research/commodity-markets | G19: General Page
B22: To Find Forecasts in PDF, Go to Website and get PDF
B24: Website | C24: http://www.worldbank.org/en/research/commodity-markets
B26: Use PDF to Excel to Convert

Sheet Monthly Historic Chart
M1: Series 1
M2: Series 2
M4: Start
M6: End

Sheet Prices for Graph
G3: Index Num | T3: Offset Parameters
C4: First Series | G4: 1 | I4: =INDEX('Monthly Prices'!B5:CB5,$G$4)&" "&INDEX('Monthly Prices'!B6:CE6,G4) -> Crude oil, average ($/bbl) | K4: Begin | M4: 108 | N4: =INDEX($D$20:$D$766,M4) -> 1968-12-01 | U4: =INDEX('Monthly Prices'!$B$5:$CB$5,G4) -> Crude oil, average | V4: =INDEX('Monthly Prices'!$B$5:$CB$5,G5) -> Crude oil, Brent
C5: Second Series | G5: 2 | I5: =INDEX('Monthly Prices'!B5:CB5,$G$5)&" "&INDEX('Monthly Prices'!B6:CE6,G5) -> Crude oil, Brent ($/bbl) | K5: End | M5: 796 | N5: =INDEX($D$20:$D$1000,M5) -> 2026-04-01 | U5: First | V5: Second
T6: Row | U6: =M4 -> 108 | V6: =U6 -> 108
T7: Column | U7: =G4 -> 1 | V7: =G5 -> 2
C8: Correlation | E8: =CORREL(First,Second) -> 0.999256971 | T8: Height | U8: =M5-M4+1 -> 689 | V8: =U8 -> 689
T9: Width | U9: 1 | V9: 1
C10: Number Analysed | E10: =COUNTIF(H20:H664,TRUE) -> 538
C12: Last Row | E12: =MATCH(N5,D20:D815,0) -> 796 | K12: =INDEX(B$3:B$16,K13) ->  | N12: =INDEX(B$3:B$16,N13) ->  | T12: Graph Titles
C13: ="Last Value of "&J18 -> Last Value of Crude oil, average | E13: =INDEX(K20:K815,E12) -> 100.43 | K13: =MATCH(TRUE,J$3:J$16,0) ->  | N13: =MATCH(TRUE,M$3:M$16) -> 
C14: ="Last Value of "&M18 -> Last Value of Crude oil, Brent | E14: =INDEX(N20:N815,E12-1) -> 121.1907335 | T14: =I4 -> Crude oil, average ($/bbl) | V14: Volatility | W14: =V17 -> 0.3326060729 | X14: US CPI Rate | AA14: =CHAR(13) ->  | AE14: =I5 -> Crude oil, Brent ($/bbl) | AG14: Volatility | AH14: =W17 -> 0.338750482 | AJ14: Correlation | AL14: =E8 -> 0.999256971 | AM14: =CHAR(13) ->  | AN14: =C13 -> Last Value of Crude oil, average | AP14: =E13 -> 100.43 | AQ14: =C14 -> Last Value of Crude oil, Brent | AR14: =E14 -> 121.1907335
AC16: =MAX(AC20:AC815) -> 2026-04-01 | AD16: =MATCH(AC16,AC20:AC815,0) -> 796
C17: Apply Real | E17: TRUE | V17: =_xlfn.STDEV.S(V21:V815)*(12^0.5) -> 0.3326060729 | W17: =_xlfn.STDEV.S(W21:W815)*(12^0.5) -> 0.338750482 | AC17: Last infl | AD17: =INDEX(AA20:AA815,AD16) -> 11.31790943
C18: Date | D18: Date | E18: Number | F18: First Date Switch | G18: Last Date Switch | H18: Combined Date Switch | I18: Date NA | J18: =U4 -> Crude oil, average | K18: =I4& " N/A" -> Crude oil, average ($/bbl) N/A | L18: Number Test | M18: =V4 -> Crude oil, Brent | N18: =I5 -> Crude oil, Brent ($/bbl) | O18: Number Test | P18: Year | Q18: Nominal Oil Price | R18: Nominal Annual | S18: Real Oil Price | T18: Inflation Index | U18: Inflation Rate Applied | V18: =K18& " Pct Change" -> Crude oil, average ($/bbl) N/A Pct Change | W18: =N18&" Pct Change" -> Crude oil, Brent ($/bbl) Pct Change | X18: USD CPI Index | Y18: Adjusted CPI Index | Z18: US CPI Monthly | AA18: Deflator Index | AB18: Date Text Length | AC18: Date without Blanks | AD18: Inflation Recripricoal
U19: =E17 -> TRUE | AA19: 1
C20: ='Monthly Prices'!A8 -> 1960M02 | D20: 1960-01-01 | E20: 1 | F20: =AND(E20>=$M$4,L20) -> FALSE | G20: =AND(E20<=$M$5,O20) -> TRUE | H20: =AND(F20:G20) -> FALSE | I20: =IF(H20,D20,NA) ->  | J20: =INDEX('Monthly Prices'!B8:CB8,$G$4) -> 1.63 | K20: =IF(H20,INDEX('Monthly Prices'!B8:CB8,$G$4)*U20,FALSE) -> FALSE | L20: =AND(ISNUMBER(J20),J20>0) -> TRUE | M20: =INDEX('Monthly Prices'!B8:CB8,$G$5) -> 1.63 | N20: =IF(H20,INDEX('Monthly Prices'!B8:CB8,$G$5)*U20,FALSE) -> FALSE | O20: =AND(ISNUMBER(M20),M20>0) -> TRUE | P20: =YEAR(D20) -> 1960 | Q20: ='Monthly Prices'!B8 -> 1.63 | R20: =AVERAGEIF(P:P,P20,Q:Q) -> 1.625 | S20: =_xlfn.XLOOKUP(P20,'Annual Real'!A:A,'Annual Real'!B:B,0,0) -> 8.514978123 | T20: =AD20 -> 11.31790943 | U20: =IF($U$19,T20,1) -> 11.31790943 | X20: =LOOKUP(D20,INDIRECT("'"&$X$14&"'!A:A"),INDIRECT("'"&$X$14&"'!B:B"))/100 -> 0.2937 | Y20: =IFERROR(X20,X19) -> 0.2937 | AA20: =AA19*(1+Z20) -> 1 | AB20: =LEN(C20) -> 7 | AC20: =IF(AB20>2,D20,0) -> 1960-01-01 | AD20: =$AD$17/AA20 -> 11.31790943 | AF20: 12 Month Rolling Volatility | AI20: =T14 -> Crude oil, average ($/bbl) | AL20: Volatility over Period | AN20: =#REF! ->  | AO20: Annual Volatilty | AQ20: =#REF! -> 
C21: ='Monthly Prices'!A9 -> 1960M03 | D21: =EDATE(D20,1) -> 1960-02-01 | E21: =E20+1 -> 2 | F21: FALSE | G21: TRUE | H21: FALSE | J21: =INDEX('Monthly Prices'!B9:CB9,$G$4) -> 1.63 | K21: =IF(H21,INDEX('Monthly Prices'!B9:CB9,$G$4)*U21,FALSE) -> FALSE | L21: =ISNUMBER(J21) -> TRUE | M21: =INDEX('Monthly Prices'!B9:CB9,$G$5) -> 1.63 | N21: =IF(H21,INDEX('Monthly Prices'!B9:CB9,$G$5)*U21,FALSE) -> FALSE | O21: TRUE | P21: =YEAR(D21) -> 1960 | Q21: ='Monthly Prices'!B9 -> 1.63 | R21: =AVERAGEIF(P:P,P21,Q:Q) -> 1.625 | S21: =_xlfn.XLOOKUP(P21,'Annual Real'!A:A,'Annual Real'!B:B,0,0) -> 8.514978123 | T21: =AD21 -> 11.30251615 | U21: =IF($U$19,T21,1) -> 11.30251615 | V21: =IF(AND($H20,$H21),LN(K21/K20)) -> FALSE | W21: =IF(AND($H20,$H21),LN(N21/N20)) -> FALSE | X21: =LOOKUP(D21,INDIRECT("'"&$X$14&"'!A:A"),INDIRECT("'"&$X$14&"'!B:B"))/100 -> 0.2941 | Y21: =IFERROR(X21,X20) -> 0.2941 | Z21: =Y21/Y20-1 -> 0.001361933946 | AA21: =AA20*(1+Z21) -> 1.001361934 | AB21: =LEN(C21) -> 7 | AC21: =IF(AB21>2,D21,0) -> 1960-02-01 | AD21: =$AD$17/AA21 -> 11.30251615 | AF21: 12 Month Rolling Volatility | AI21: =I5 -> Crude oil, Brent ($/bbl) | AL21: Volatility over Period | AN21: =#REF! ->  | AO21: Annual Volatilty | AQ21: =#REF! -> 
C22: ='Monthly Prices'!A10 -> 1960M04 | D22: 1960-03-01 | E22: 3 | F22: FALSE | G22: TRUE | H22: FALSE | J22: =INDEX('Monthly Prices'!B10:CB10,$G$4) -> 1.63 | K22: =IF(H22,INDEX('Monthly Prices'!B10:CB10,$G$4)*U22,FALSE) -> FALSE | L22: TRUE | M22: =INDEX('Monthly Prices'!B10:CB10,$G$5) -> 1.63 | N22: =IF(H22,INDEX('Monthly Prices'!B10:CB10,$G$5)*U22,FALSE) -> FALSE | O22: TRUE | P22: 1960 | Q22: ='Monthly Prices'!B10 -> 1.63 | R22: 1.625 | S22: =_xlfn.XLOOKUP(P22,'Annual Real'!A:A,'Annual Real'!B:B,0,0) -> 8.514978123 | T22: 11.30251615 | U22: 11.30251615 | V22: =IF(AND(H21,H22),LN(K22/K21)) -> FALSE | W22: =IF(AND($H21,$H22),LN(N22/N21)) -> FALSE | X22: 0.2941 | Y22: =IFERROR(X22,X21) -> 0.2941 | Z22: =Y22/Y21-1 -> 0 | AA22: 1.001361934 | AB22: 7 | AC22: 1960-03-01 | AD22: 11.30251615
C23: ='Monthly Prices'!A11 -> 1960M05 | D23: 1960-04-01 | E23: 4 | F23: FALSE | G23: TRUE | H23: FALSE | J23: =INDEX('Monthly Prices'!B11:CB11,$G$4) -> 1.63 | K23: =IF(H23,INDEX('Monthly Prices'!B11:CB11,$G$4)*U23,FALSE) -> FALSE | L23: TRUE | M23: =INDEX('Monthly Prices'!B11:CB11,$G$5) -> 1.63 | N23: =IF(H23,INDEX('Monthly Prices'!B11:CB11,$G$5)*U23,FALSE) -> FALSE | O23: TRUE | P23: 1960 | Q23: ='Monthly Prices'!B11 -> 1.63 | R23: 1.625 | S23: =_xlfn.XLOOKUP(P23,'Annual Real'!A:A,'Annual Real'!B:B,0,0) -> 8.514978123 | T23: 11.2527759 | U23: 11.2527759 | V23: FALSE | W23: FALSE | X23: 0.2954 | Y23: 0.2954 | Z23: 0.004420265216 | AA23: 1.005788219 | AB23: 7 | AC23: 1960-04-01 | AD23: 11.2527759 | AF23: Distribution Analysis | AI23: =AI20 -> Crude oil, average ($/bbl)
C24: ='Monthly Prices'!A12 -> 1960M06 | D24: 1960-05-01 | E24: 5 | F24: FALSE | G24: TRUE | H24: FALSE | J24: =INDEX('Monthly Prices'!B12:CB12,$G$4) -> 1.63 | K24: =IF(H24,INDEX('Monthly Prices'!B12:CB12,$G$4)*U24,FALSE) -> FALSE | L24: TRUE | M24: =INDEX('Monthly Prices'!B12:CB12,$G$5) -> 1.63 | N24: =IF(H24,INDEX('Monthly Prices'!B12:CB12,$G$5)*U24,FALSE) -> FALSE | O24: TRUE | P24: 1960 | Q24: ='Monthly Prices'!B12 -> 1.63 | R24: 1.625 | S24: =_xlfn.XLOOKUP(P24,'Annual Real'!A:A,'Annual Real'!B:B,0,0) -> 8.514978123 | T24: 11.24135949 | U24: 11.24135949 | V24: FALSE | W24: FALSE | X24: 0.2957 | Y24: 0.2957 | Z24: 0.001015572106 | AA24: 1.00680967 | AB24: 7 | AC24: 1960-05-01 | AD24: 11.24135949
C25: ='Monthly Prices'!A13 -> 1960M07 | D25: 1960-06-01 | E25: 6 | F25: FALSE | G25: TRUE | H25: FALSE | J25: =INDEX('Monthly Prices'!B13:CB13,$G$4) -> 1.63 | K25: =IF(H25,INDEX('Monthly Prices'!B13:CB13,$G$4)*U25,FALSE) -> FALSE | L25: TRUE | M25: =INDEX('Monthly Prices'!B13:CB13,$G$5) -> 1.63 | N25: =IF(H25,INDEX('Monthly Prices'!B13:CB13,$G$5)*U25,FALSE) -> FALSE | O25: TRUE | P25: 1960 | Q25: ='Monthly Prices'!B13 -> 1.63 | R25: 1.625 | S25: =_xlfn.XLOOKUP(P25,'Annual Real'!A:A,'Annual Real'!B:B,0,0) -> 8.514978123 | T25: 11.22617359 | U25: 11.22617359 | V25: FALSE | W25: FALSE | X25: 0.2961 | Y25: 0.2961 | Z25: 0.001352722354 | AA25: 1.008171604 | AB25: 7 | AC25: 1960-06-01 | AD25: 11.22617359
C26: ='Monthly Prices'!A14 -> 1960M08 | D26: 1960-07-01 | E26: 7 | F26: FALSE | G26: TRUE | H26: FALSE | J26: =INDEX('Monthly Prices'!B14:CB14,$G$4) -> 1.63 | K26: =IF(H26,INDEX('Monthly Prices'!B14:CB14,$G$4)*U26,FALSE) -> FALSE | L26: TRUE | M26: =INDEX('Monthly Prices'!B14:CB14,$G$5) -> 1.63 | N26: =IF(H26,INDEX('Monthly Prices'!B14:CB14,$G$5)*U26,FALSE) -> FALSE | O26: TRUE | P26: 1960 | Q26: ='Monthly Prices'!B14 -> 1.63 | R26: 1.625 | S26: =_xlfn.XLOOKUP(P26,'Annual Real'!A:A,'Annual Real'!B:B,0,0) -> 8.514978123 | T26: 11.24896785 | U26: 11.24896785 | V26: FALSE | W26: FALSE | X26: 0.2955 | Y26: 0.2955 | Z26: -0.002026342452 | AA26: 1.006128703 | AB26: 7 | AC26: 1960-07-01 | AD26: 11.24896785
C27: ='Monthly Prices'!A15 -> 1960M09 | D27: 1960-08-01 | E27: 8 | F27: FALSE | G27: TRUE | H27: FALSE | J27: =INDEX('Monthly Prices'!B15:CB15,$G$4) -> 1.63 | K27: =IF(H27,INDEX('Monthly Prices'!B15:CB15,$G$4)*U27,FALSE) -> FALSE | L27: TRUE | M27: =INDEX('Monthly Prices'!B15:CB15,$G$5) -> 1.63 | N27: =IF(H27,INDEX('Monthly Prices'!B15:CB15,$G$5)*U27,FALSE) -> FALSE | O27: TRUE | P27: 1960 | Q27: ='Monthly Prices'!B15 -> 1.63 | R27: 1.625 | S27: =_xlfn.XLOOKUP(P27,'Annual Real'!A:A,'Annual Real'!B:B,0,0) -> 8.514978123 | T27: 11.22617359 | U27: 11.22617359 | V27: FALSE | W27: FALSE | X27: 0.2961 | Y27: 0.2961 | Z27: 0.002030456853 | AA27: 1.008171604 | AB27: 7 | AC27: 1960-08-01 | AD27: 11.22617359 | AF27: =AF23 -> Distribution Analysis | AI27: =AI21 -> Crude oil, Brent ($/bbl)
C28: ='Monthly Prices'!A16 -> 1960M10 | D28: 1960-09-01 | E28: 9 | F28: FALSE | G28: TRUE | H28: FALSE | J28: =INDEX('Monthly Prices'!B16:CB16,$G$4) -> 1.63 | K28: =IF(H28,INDEX('Monthly Prices'!B16:CB16,$G$4)*U28,FALSE) -> FALSE | L28: TRUE | M28: =INDEX('Monthly Prices'!B16:CB16,$G$5) -> 1.63 | N28: =IF(H28,INDEX('Monthly Prices'!B16:CB16,$G$5)*U28,FALSE) -> FALSE | O28: TRUE | P28: 1960 | Q28: ='Monthly Prices'!B16 -> 1.63 | R28: 1.625 | S28: =_xlfn.XLOOKUP(P28,'Annual Real'!A:A,'Annual Real'!B:B,0,0) -> 8.514978123 | T28: 11.22617359 | U28: 11.22617359 | V28: FALSE | W28: FALSE | X28: 0.2961 | Y28: 0.2961 | Z28: 0 | AA28: 1.008171604 | AB28: 7 | AC28: 1960-09-01 | AD28: 11.22617359
C29: ='Monthly Prices'!A17 -> 1960M11 | D29: 1960-10-01 | E29: 10 | F29: FALSE | G29: TRUE | H29: FALSE | J29: =INDEX('Monthly Prices'!B17:CB17,$G$4) -> 1.63 | K29: =IF(H29,INDEX('Monthly Prices'!B17:CB17,$G$4)*U29,FALSE) -> FALSE | L29: TRUE | M29: =INDEX('Monthly Prices'!B17:CB17,$G$5) -> 1.63 | N29: =IF(H29,INDEX('Monthly Prices'!B17:CB17,$G$5)*U29,FALSE) -> FALSE | O29: TRUE | P29: 1960 | Q29: ='Monthly Prices'!B17 -> 1.63 | R29: 1.625 | S29: =_xlfn.XLOOKUP(P29,'Annual Real'!A:A,'Annual Real'!B:B,0,0) -> 8.514978123 | T29: 11.17334454 | U29: 11.17334454 | V29: FALSE | W29: FALSE | X29: 0.2975 | Y29: 0.2975 | Z29: 0.004728132388 | AA29: 1.012938372 | AB29: 7 | AC29: 1960-10-01 | AD29: 11.17334454
C30: ='Monthly Prices'!A18 -> 1960M12 | D30: 1960-11-01 | E30: 11 | F30: FALSE | G30: TRUE | H30: FALSE | J30: =INDEX('Monthly Prices'!B18:CB18,$G$4) -> 1.63 | K30: =IF(H30,INDEX('Monthly Prices'!B18:CB18,$G$4)*U30,FALSE) -> FALSE | L30: TRUE | M30: =INDEX('Monthly Prices'!B18:CB18,$G$5) -> 1.63 | N30: =IF(H30,INDEX('Monthly Prices'!B18:CB18,$G$5)*U30,FALSE) -> FALSE | O30: TRUE | P30: 1960 | Q30: ='Monthly Prices'!B18 -> 1.63 | R30: 1.625 | S30: =_xlfn.XLOOKUP(P30,'Annual Real'!A:A,'Annual Real'!B:B,0,0) -> 8.514978123 | T30: 11.16208865 | U30: 11.16208865 | V30: FALSE | W30: FALSE | X30: 0.2978 | Y30: 0.2978 | Z30: 0.001008403361 | AA30: 1.013959823 | AB30: 7 | AC30: 1960-11-01 | AD30: 11.16208865
C31: ='Monthly Prices'!A19 -> 1961M01 | D31: 1960-12-01 | E31: 12 | F31: FALSE | G31: TRUE | H31: FALSE | J31: =INDEX('Monthly Prices'!B19:CB19,$G$4) -> 1.57 | K31: =IF(H31,INDEX('Monthly Prices'!B19:CB19,$G$4)*U31,FALSE) -> FALSE | L31: TRUE | M31: =INDEX('Monthly Prices'!B19:CB19,$G$5) -> 1.57 | N31: =IF(H31,INDEX('Monthly Prices'!B19:CB19,$G$5)*U31,FALSE) -> FALSE | O31: TRUE | P31: 1960 | Q31: ='Monthly Prices'!B19 -> 1.57 | R31: 1.625 | S31: =_xlfn.XLOOKUP(P31,'Annual Real'!A:A,'Annual Real'!B:B,0,0) -> 8.514978123 | T31: 11.15085542 | U31: 11.15085542 | V31: FALSE | W31: FALSE | X31: 0.2981 | Y31: 0.2981 | Z31: 0.001007387508 | AA31: 1.014981273 | AB31: 7 | AC31: 1960-12-01 | AD31: 11.15085542
C32: ='Monthly Prices'!A20 -> 1961M02 | D32: 1961-01-01 | E32: 13 | F32: FALSE | G32: TRUE | H32: FALSE | J32: =INDEX('Monthly Prices'!B20:CB20,$G$4) -> 1.57 | K32: =IF(H32,INDEX('Monthly Prices'!B20:CB20,$G$4)*U32,FALSE) -> FALSE | L32: TRUE | M32: =INDEX('Monthly Prices'!B20:CB20,$G$5) -> 1.57 | N32: =IF(H32,INDEX('Monthly Prices'!B20:CB20,$G$5)*U32,FALSE) -> FALSE | O32: TRUE | P32: 1961 | Q32: ='Monthly Prices'!B20 -> 1.57 | R32: 1.565833333 | S32: =_xlfn.XLOOKUP(P32,'Annual Real'!A:A,'Annual Real'!B:B,0,0) -> 8.045024778 | T32: 11.13964477 | U32: 11.13964477 | V32: FALSE | W32: FALSE | X32: 0.2984 | Y32: 0.2984 | Z32: 0.0010063737 | AA32: 1.016002724 | AB32: 7 | AC32: 1961-01-01 | AD32: 11.13964477
C33: ='Monthly Prices'!A21 -> 1961M03 | D33: 1961-02-01 | E33: 14 | F33: FALSE | G33: TRUE | H33: FALSE | J33: =INDEX('Monthly Prices'!B21:CB21,$G$4) -> 1.57 | K33: =IF(H33,INDEX('Monthly Prices'!B21:CB21,$G$4)*U33,FALSE) -> FALSE | L33: TRUE | M33: =INDEX('Monthly Prices'!B21:CB21,$G$5) -> 1.57 | N33: =IF(H33,INDEX('Monthly Prices'!B21:CB21,$G$5)*U33,FALSE) -> FALSE | O33: TRUE | P33: 1961 | Q33: ='Monthly Prices'!B21 -> 1.57 | R33: 1.565833333 | S33: =_xlfn.XLOOKUP(P33,'Annual Real'!A:A,'Annual Real'!B:B,0,0) -> 8.045024778 | T33: 11.13964477 | U33: 11.13964477 | V33: FALSE | W33: FALSE | X33: 0.2984 | Y33: 0.2984 | Z33: 0 | AA33: 1.016002724 | AB33: 7 | AC33: 1961-02-01 | AD33: 11.13964477
C34: ='Monthly Prices'!A22 -> 1961M04 | D34: 1961-03-01 | E34: 15 | F34: FALSE | G34: TRUE | H34: FALSE | J34: =INDEX('Monthly Prices'!B22:CB22,$G$4) -> 1.57 | K34: =IF(H34,INDEX('Monthly Prices'!B22:CB22,$G$4)*U34,FALSE) -> FALSE | L34: TRUE | M34: =INDEX('Monthly Prices'!B22:CB22,$G$5) -> 1.57 | N34: =IF(H34,INDEX('Monthly Prices'!B22:CB22,$G$5)*U34,FALSE) -> FALSE | O34: TRUE | P34: 1961 | Q34: ='Monthly Prices'!B22 -> 1.57 | R34: 1.565833333 | S34: =_xlfn.XLOOKUP(P34,'Annual Real'!A:A,'Annual Real'!B:B,0,0) -> 8.045024778 | T34: 11.13964477 | U34: 11.13964477 | V34: FALSE | W34: FALSE | X34: 0.2984 | Y34: 0.2984 | Z34: 0 | AA34: 1.016002724 | AB34: 7 | AC34: 1961-03-01 | AD34: 11.13964477
C35: ='Monthly Prices'!A23 -> 1961M05 | D35: 1961-04-01 | E35: 16 | F35: FALSE | G35: TRUE | H35: FALSE | J35: =INDEX('Monthly Prices'!B23:CB23,$G$4) -> 1.57 | K35: =IF(H35,INDEX('Monthly Prices'!B23:CB23,$G$4)*U35,FALSE) -> FALSE | L35: TRUE | M35: =INDEX('Monthly Prices'!B23:CB23,$G$5) -> 1.57 | N35: =IF(H35,INDEX('Monthly Prices'!B23:CB23,$G$5)*U35,FALSE) -> FALSE | O35: TRUE | P35: 1961 | Q35: ='Monthly Prices'!B23 -> 1.57 | R35: 1.565833333 | S35: =_xlfn.XLOOKUP(P35,'Annual Real'!A:A,'Annual Real'!B:B,0,0) -> 8.045024778 | T35: 11.15085542 | U35: 11.15085542 | V35: FALSE | W35: FALSE | X35: 0.2981 | Y35: 0.2981 | Z35: -0.00100536193 | AA35: 1.014981273 | AB35: 7 | AC35: 1961-04-01 | AD35: 11.15085542
C36: ='Monthly Prices'!A24 -> 1961M06 | D36: 1961-05-01 | E36: 17 | F36: FALSE | G36: TRUE | H36: FALSE | J36: =INDEX('Monthly Prices'!B24:CB24,$G$4) -> 1.57 | K36: =IF(H36,INDEX('Monthly Prices'!B24:CB24,$G$4)*U36,FALSE) -> FALSE | L36: TRUE | M36: =INDEX('Monthly Prices'!B24:CB24,$G$5) -> 1.57 | N36: =IF(H36,INDEX('Monthly Prices'!B24:CB24,$G$5)*U36,FALSE) -> FALSE | O36: TRUE | P36: 1961 | Q36: ='Monthly Prices'!B24 -> 1.57 | R36: 1.565833333 | S36: =_xlfn.XLOOKUP(P36,'Annual Real'!A:A,'Annual Real'!B:B,0,0) -> 8.045024778 | T36: 11.13964477 | U36: 11.13964477 | V36: FALSE | W36: FALSE | X36: 0.2984 | Y36: 0.2984 | Z36: 0.0010063737 | AA36: 1.016002724 | AB36: 7 | AC36: 1961-05-01 | AD36: 11.13964477
C37: ='Monthly Prices'!A25 -> 1961M07 | D37: 1961-06-01 | E37: 18 | F37: FALSE | G37: TRUE | H37: FALSE | J37: =INDEX('Monthly Prices'!B25:CB25,$G$4) -> 1.57 | K37: =IF(H37,INDEX('Monthly Prices'!B25:CB25,$G$4)*U37,FALSE) -> FALSE | L37: TRUE | M37: =INDEX('Monthly Prices'!B25:CB25,$G$5) -> 1.57 | N37: =IF(H37,INDEX('Monthly Prices'!B25:CB25,$G$5)*U37,FALSE) -> FALSE | O37: TRUE | P37: 1961 | Q37: ='Monthly Prices'!B25 -> 1.57 | R37: 1.565833333 | S37: =_xlfn.XLOOKUP(P37,'Annual Real'!A:A,'Annual Real'!B:B,0,0) -> 8.045024778 | T37: 11.13964477 | U37: 11.13964477 | V37: FALSE | W37: FALSE | X37: 0.2984 | Y37: 0.2984 | Z37: 0 | AA37: 1.016002724 | AB37: 7 | AC37: 1961-06-01 | AD37: 11.13964477
C38: ='Monthly Prices'!A26 -> 1961M08 | D38: 1961-07-01 | E38: 19 | F38: FALSE | G38: TRUE | H38: FALSE | J38: =INDEX('Monthly Prices'!B26:CB26,$G$4) -> 1.57 | K38: =IF(H38,INDEX('Monthly Prices'!B26:CB26,$G$4)*U38,FALSE) -> FALSE | L38: TRUE | M38: =INDEX('Monthly Prices'!B26:CB26,$G$5) -> 1.57 | N38: =IF(H38,INDEX('Monthly Prices'!B26:CB26,$G$5)*U38,FALSE) -> FALSE | O38: TRUE | P38: 1961 | Q38: ='Monthly Prices'!B26 -> 1.57 | R38: 1.565833333 | S38: =_xlfn.XLOOKUP(P38,'Annual Real'!A:A,'Annual Real'!B:B,0,0) -> 8.045024778 | T38: 11.10985963 | U38: 11.10985963 | V38: FALSE | W38: FALSE | X38: 0.2992 | Y38: 0.2992 | Z38: 0.002680965147 | AA38: 1.018726592 | AB38: 7 | AC38: 1961-07-01 | AD38: 11.10985963
C39: ='Monthly Prices'!A27 -> 1961M09 | D39: 1961-08-01 | E39: 20 | F39: FALSE | G39: TRUE | H39: FALSE | J39: =INDEX('Monthly Prices'!B27:CB27,$G$4) -> 1.57 | K39: =IF(H39,INDEX('Monthly Prices'!B27:CB27,$G$4)*U39,FALSE) -> FALSE | L39: TRUE | M39: =INDEX('Monthly Prices'!B27:CB27,$G$5) -> 1.57 | N39: =IF(H39,INDEX('Monthly Prices'!B27:CB27,$G$5)*U39,FALSE) -> FALSE | O39: TRUE | P39: 1961 | Q39: ='Monthly Prices'!B27 -> 1.57 | R39: 1.565833333 | S39: =_xlfn.XLOOKUP(P39,'Annual Real'!A:A,'Annual Real'!B:B,0,0) -> 8.045024778 | T39: 11.10243821 | U39: 11.10243821 | V39: FALSE | W39: FALSE | X39: 0.2994 | Y39: 0.2994 | Z39: 0.0006684491979 | AA39: 1.019407559 | AB39: 7 | AC39: 1961-08-01 | AD39: 11.10243821
C40: ='Monthly Prices'!A28 -> 1961M10 | D40: 1961-09-01 | E40: 21 | F40: FALSE | G40: TRUE | H40: FALSE | J40: =INDEX('Monthly Prices'!B28:CB28,$G$4) -> 1.57 | K40: =IF(H40,INDEX('Monthly Prices'!B28:CB28,$G$4)*U40,FALSE) -> FALSE | L40: TRUE | M40: =INDEX('Monthly Prices'!B28:CB28,$G$5) -> 1.57 | N40: =IF(H40,INDEX('Monthly Prices'!B28:CB28,$G$5)*U40,FALSE) -> FALSE | O40: TRUE | P40: 1961 | Q40: ='Monthly Prices'!B28 -> 1.57 | R40: 1.565833333 | S40: =_xlfn.XLOOKUP(P40,'Annual Real'!A:A,'Annual Real'!B:B,0,0) -> 8.045024778 | T40: 11.08762508 | U40: 11.08762508 | V40: FALSE | W40: FALSE | X40: 0.2998 | Y40: 0.2998 | Z40: 0.001336005344 | AA40: 1.020769493 | AB40: 7 | AC40: 1961-09-01 | AD40: 11.08762508
C41: ='Monthly Prices'!A29 -> 1961M11 | D41: 1961-10-01 | E41: 22 | F41: FALSE | G41: TRUE | H41: FALSE | J41: =INDEX('Monthly Prices'!B29:CB29,$G$4) -> 1.57 | K41: =IF(H41,INDEX('Monthly Prices'!B29:CB29,$G$4)*U41,FALSE) -> FALSE | L41: TRUE | M41: =INDEX('Monthly Prices'!B29:CB29,$G$5) -> 1.57 | N41: =IF(H41,INDEX('Monthly Prices'!B29:CB29,$G$5)*U41,FALSE) -> FALSE | O41: TRUE | P41: 1961 | Q41: ='Monthly Prices'!B29 -> 1.57 | R41: 1.565833333 | S41: =_xlfn.XLOOKUP(P41,'Annual Real'!A:A,'Annual Real'!B:B,0,0) -> 8.045024778 | T41: 11.08762508 | U41: 11.08762508 | V41: FALSE | W41: FALSE | X41: 0.2998 | Y41: 0.2998 | Z41: 0 | AA41: 1.020769493 | AB41: 7 | AC41: 1961-10-01 | AD41: 11.08762508
C42: ='Monthly Prices'!A30 -> 1961M12 | D42: 1961-11-01 | E42: 23 | F42: FALSE | G42: TRUE | H42: FALSE | J42: =INDEX('Monthly Prices'!B30:CB30,$G$4) -> 1.57 | K42: =IF(H42,INDEX('Monthly Prices'!B30:CB30,$G$4)*U42,FALSE) -> FALSE | L42: TRUE | M42: =INDEX('Monthly Prices'!B30:CB30,$G$5) -> 1.57 | N42: =IF(H42,INDEX('Monthly Prices'!B30:CB30,$G$5)*U42,FALSE) -> FALSE | O42: TRUE | P42: 1961 | Q42: ='Monthly Prices'!B30 -> 1.57 | R42: 1.565833333 | S42: =_xlfn.XLOOKUP(P42,'Annual Real'!A:A,'Annual Real'!B:B,0,0) -> 8.045024778 | T42: 11.08762508 | U42: 11.08762508 | V42: FALSE | W42: FALSE | X42: 0.2998 | Y42: 0.2998 | Z42: 0 | AA42: 1.020769493 | AB42: 7 | AC42: 1961-11-01 | AD42: 11.08762508
C43: ='Monthly Prices'!A31 -> 1962M01 | D43: 1961-12-01 | E43: 24 | F43: FALSE | G43: TRUE | H43: FALSE | J43: =INDEX('Monthly Prices'!B31:CB31,$G$4) -> 1.52 | K43: =IF(H43,INDEX('Monthly Prices'!B31:CB31,$G$4)*U43,FALSE) -> FALSE | L43: TRUE | M43: =INDEX('Monthly Prices'!B31:CB31,$G$5) -> 1.52 | N43: =IF(H43,INDEX('Monthly Prices'!B31:CB31,$G$5)*U43,FALSE) -> FALSE | O43: TRUE | P43: 1961 | Q43: ='Monthly Prices'!B31 -> 1.52 | R43: 1.565833333 | S43: =_xlfn.XLOOKUP(P43,'Annual Real'!A:A,'Annual Real'!B:B,0,0) -> 8.045024778 | T43: 11.07654115 | U43: 11.07654115 | V43: FALSE | W43: FALSE | X43: 0.3001 | Y43: 0.3001 | Z43: 0.001000667111 | AA43: 1.021790943 | AB43: 7 | AC43: 1961-12-01 | AD43: 11.07654115
C44: ='Monthly Prices'!A32 -> 1962M02 | D44: 1962-01-01 | E44: 25 | F44: FALSE | G44: TRUE | H44: FALSE | J44: =INDEX('Monthly Prices'!B32:CB32,$G$4) -> 1.52 | K44: =IF(H44,INDEX('Monthly Prices'!B32:CB32,$G$4)*U44,FALSE) -> FALSE | L44: TRUE | M44: =INDEX('Monthly Prices'!B32:CB32,$G$5) -> 1.52 | N44: =IF(H44,INDEX('Monthly Prices'!B32:CB32,$G$5)*U44,FALSE) -> FALSE | O44: TRUE | P44: 1962 | Q44: ='Monthly Prices'!B32 -> 1.52 | R44: 1.518333333 | S44: =_xlfn.XLOOKUP(P44,'Annual Real'!A:A,'Annual Real'!B:B,0,0) -> 7.646137774 | T44: 11.06547936 | U44: 11.06547936 | V44: FALSE | W44: FALSE | X44: 0.3004 | Y44: 0.3004 | Z44: 0.0009996667777 | AA44: 1.022812394 | AB44: 7 | AC44: 1962-01-01 | AD44: 11.06547936
C45: ='Monthly Prices'!A33 -> 1962M03 | D45: 1962-02-01 | E45: 26 | F45: FALSE | G45: TRUE | H45: FALSE | J45: =INDEX('Monthly Prices'!B33:CB33,$G$4) -> 1.52 | K45: =IF(H45,INDEX('Monthly Prices'!B33:CB33,$G$4)*U45,FALSE) -> FALSE | L45: TRUE | M45: =INDEX('Monthly Prices'!B33:CB33,$G$5) -> 1.52 | N45: =IF(H45,INDEX('Monthly Prices'!B33:CB33,$G$5)*U45,FALSE) -> FALSE | O45: TRUE | P45: 1962 | Q45: ='Monthly Prices'!B33 -> 1.52 | R45: 1.518333333 | S45: =_xlfn.XLOOKUP(P45,'Annual Real'!A:A,'Annual Real'!B:B,0,0) -> 7.646137774 | T45: 11.03975423 | U45: 11.03975423 | V45: FALSE | W45: FALSE | X45: 0.3011 | Y45: 0.3011 | Z45: 0.002330226365 | AA45: 1.025195778 | AB45: 7 | AC45: 1962-02-01 | AD45: 11.03975423
C46: ='Monthly Prices'!A34 -> 1962M04 | D46: 1962-03-01 | E46: 27 | F46: FALSE | G46: TRUE | H46: FALSE | J46: =INDEX('Monthly Prices'!B34:CB34,$G$4) -> 1.52 | K46: =IF(H46,INDEX('Monthly Prices'!B34:CB34,$G$4)*U46,FALSE) -> FALSE | L46: TRUE | M46: =INDEX('Monthly Prices'!B34:CB34,$G$5) -> 1.52 | N46: =IF(H46,INDEX('Monthly Prices'!B34:CB34,$G$5)*U46,FALSE) -> FALSE | O46: TRUE | P46: 1962 | Q46: ='Monthly Prices'!B34 -> 1.52 | R46: 1.518333333 | S46: =_xlfn.XLOOKUP(P46,'Annual Real'!A:A,'Annual Real'!B:B,0,0) -> 7.646137774 | T46: 11.01779914 | U46: 11.01779914 | V46: FALSE | W46: FALSE | X46: 0.3017 | Y46: 0.3017 | Z46: 0.001992693457 | AA46: 1.027238679 | AB46: 7 | AC46: 1962-03-01 | AD46: 11.01779914
C47: ='Monthly Prices'!A35 -> 1962M05 | D47: 1962-04-01 | E47: 28 | F47: FALSE | G47: TRUE | H47: FALSE | J47: =INDEX('Monthly Prices'!B35:CB35,$G$4) -> 1.52 | K47: =IF(H47,INDEX('Monthly Prices'!B35:CB35,$G$4)*U47,FALSE) -> FALSE | L47: TRUE | M47: =INDEX('Monthly Prices'!B35:CB35,$G$5) -> 1.52 | N47: =IF(H47,INDEX('Monthly Prices'!B35:CB35,$G$5)*U47,FALSE) -> FALSE | O47: TRUE | P47: 1962 | Q47: ='Monthly Prices'!B35 -> 1.52 | R47: 1.518333333 | S47: =_xlfn.XLOOKUP(P47,'Annual Real'!A:A,'Annual Real'!B:B,0,0) -> 7.646137774 | T47: 11.00321086 | U47: 11.00321086 | V47: FALSE | W47: FALSE | X47: 0.3021 | Y47: 0.3021 | Z47: 0.001325820351 | AA47: 1.028600613 | AB47: 7 | AC47: 1962-04-01 | AD47: 11.00321086
C48: ='Monthly Prices'!A36 -> 1962M06 | D48: 1962-05-01 | E48: 29 | F48: FALSE | G48: TRUE | H48: FALSE | J48: =INDEX('Monthly Prices'!B36:CB36,$G$4) -> 1.52 | K48: =IF(H48,INDEX('Monthly Prices'!B36:CB36,$G$4)*U48,FALSE) -> FALSE | L48: TRUE | M48: =INDEX('Monthly Prices'!B36:CB36,$G$5) -> 1.52 | N48: =IF(H48,INDEX('Monthly Prices'!B36:CB36,$G$5)*U48,FALSE) -> FALSE | O48: TRUE | P48: 1962 | Q48: ='Monthly Prices'!B36 -> 1.52 | R48: 1.518333333 | S48: =_xlfn.XLOOKUP(P48,'Annual Real'!A:A,'Annual Real'!B:B,0,0) -> 7.646137774 | T48: 10.99229497 | U48: 10.99229497 | V48: FALSE | W48: FALSE | X48: 0.3024 | Y48: 0.3024 | Z48: 0.0009930486594 | AA48: 1.029622063 | AB48: 7 | AC48: 1962-05-01 | AD48: 10.99229497
C49: ='Monthly Prices'!A37 -> 1962M07 | D49: 1962-06-01 | E49: 30 | F49: FALSE | G49: TRUE | H49: FALSE | J49: =INDEX('Monthly Prices'!B37:CB37,$G$4) -> 1.52 | K49: =IF(H49,INDEX('Monthly Prices'!B37:CB37,$G$4)*U49,FALSE) -> FALSE | L49: TRUE | M49: =INDEX('Monthly Prices'!B37:CB37,$G$5) -> 1.52 | N49: =IF(H49,INDEX('Monthly Prices'!B37:CB37,$G$5)*U49,FALSE) -> FALSE | O49: TRUE | P49: 1962 | Q49: ='Monthly Prices'!B37 -> 1.52 | R49: 1.518333333 | S49: =_xlfn.XLOOKUP(P49,'Annual Real'!A:A,'Annual Real'!B:B,0,0) -> 7.646137774 | T49: 11.00321086 | U49: 11.00321086 | V49: FALSE | W49: FALSE | X49: 0.3021 | Y49: 0.3021 | Z49: -0.0009920634921 | AA49: 1.028600613 | AB49: 7 | AC49: 1962-06-01 | AD49: 11.00321086
C50: ='Monthly Prices'!A38 -> 1962M08 | D50: 1962-07-01 | E50: 31 | F50: FALSE | G50: TRUE | H50: FALSE | J50: =INDEX('Monthly Prices'!B38:CB38,$G$4) -> 1.52 | K50: =IF(H50,INDEX('Monthly Prices'!B38:CB38,$G$4)*U50,FALSE) -> FALSE | L50: TRUE | M50: =INDEX('Monthly Prices'!B38:CB38,$G$5) -> 1.52 | N50: =IF(H50,INDEX('Monthly Prices'!B38:CB38,$G$5)*U50,FALSE) -> FALSE | O50: TRUE | P50: 1962 | Q50: ='Monthly Prices'!B38 -> 1.52 | R50: 1.518333333 | S50: =_xlfn.XLOOKUP(P50,'Annual Real'!A:A,'Annual Real'!B:B,0,0) -> 7.646137774 | T50: 10.99956982 | U50: 10.99956982 | V50: FALSE | W50: FALSE | X50: 0.3022 | Y50: 0.3022 | Z50: 0.0003310162198 | AA50: 1.028941096 | AB50: 7 | AC50: 1962-07-01 | AD50: 10.99956982
C51: ='Monthly Prices'!A39 -> 1962M09 | D51: 1962-08-01 | E51: 32 | F51: FALSE | G51: TRUE | H51: FALSE | J51: =INDEX('Monthly Prices'!B39:CB39,$G$4) -> 1.52 | K51: =IF(H51,INDEX('Monthly Prices'!B39:CB39,$G$4)*U51,FALSE) -> FALSE | L51: TRUE | M51: =INDEX('Monthly Prices'!B39:CB39,$G$5) -> 1.52 | N51: =IF(H51,INDEX('Monthly Prices'!B39:CB39,$G$5)*U51,FALSE) -> FALSE | O51: TRUE | P51: 1962 | Q51: ='Monthly Prices'!B39 -> 1.52 | R51: 1.518333333 | S51: =_xlfn.XLOOKUP(P51,'Annual Real'!A:A,'Annual Real'!B:B,0,0) -> 7.646137774 | T51: 10.97777411 | U51: 10.97777411 | V51: FALSE | W51: FALSE | X51: 0.3028 | Y51: 0.3028 | Z51: 0.001985440106 | AA51: 1.030983997 | AB51: 7 | AC51: 1962-08-01 | AD51: 10.97777411
C52: ='Monthly Prices'!A40 -> 1962M10 | D52: 1962-09-01 | E52: 33 | F52: FALSE | G52: TRUE | H52: FALSE | J52: =INDEX('Monthly Prices'!B40:CB40,$G$4) -> 1.52 | K52: =IF(H52,INDEX('Monthly Prices'!B40:CB40,$G$4)*U52,FALSE) -> FALSE | L52: TRUE | M52: =INDEX('Monthly Prices'!B40:CB40,$G$5) -> 1.52 | N52: =IF(H52,INDEX('Monthly Prices'!B40:CB40,$G$5)*U52,FALSE) -> FALSE | O52: TRUE | P52: 1962 | Q52: ='Monthly Prices'!B40 -> 1.52 | R52: 1.518333333 | S52: =_xlfn.XLOOKUP(P52,'Annual Real'!A:A,'Annual Real'!B:B,0,0) -> 7.646137774 | T52: 10.92725181 | U52: 10.92725181 | V52: FALSE | W52: FALSE | X52: 0.3042 | Y52: 0.3042 | Z52: 0.004623513871 | AA52: 1.035750766 | AB52: 7 | AC52: 1962-09-01 | AD52: 10.92725181
C53: ='Monthly Prices'!A41 -> 1962M11 | D53: 1962-10-01 | E53: 34 | F53: FALSE | G53: TRUE | H53: FALSE | J53: =INDEX('Monthly Prices'!B41:CB41,$G$4) -> 1.52 | K53: =IF(H53,INDEX('Monthly Prices'!B41:CB41,$G$4)*U53,FALSE) -> FALSE | L53: TRUE | M53: =INDEX('Monthly Prices'!B41:CB41,$G$5) -> 1.52 | N53: =IF(H53,INDEX('Monthly Prices'!B41:CB41,$G$5)*U53,FALSE) -> FALSE | O53: TRUE | P53: 1962 | Q53: ='Monthly Prices'!B41 -> 1.52 | R53: 1.518333333 | S53: =_xlfn.XLOOKUP(P53,'Annual Real'!A:A,'Annual Real'!B:B,0,0) -> 7.646137774 | T53: 10.94163924 | U53: 10.94163924 | V53: FALSE | W53: FALSE | X53: 0.3038 | Y53: 0.3038 | Z53: -0.001314924392 | AA53: 1.034388832 | AB53: 7 | AC53: 1962-10-01 | AD53: 10.94163924
C54: ='Monthly Prices'!A42 -> 1962M12 | D54: 1962-11-01 | E54: 35 | F54: FALSE | G54: TRUE | H54: FALSE | J54: =INDEX('Monthly Prices'!B42:CB42,$G$4) -> 1.52 | K54: =IF(H54,INDEX('Monthly Prices'!B42:CB42,$G$4)*U54,FALSE) -> FALSE | L54: TRUE | M54: =INDEX('Monthly Prices'!B42:CB42,$G$5) -> 1.52 | N54: =IF(H54,INDEX('Monthly Prices'!B42:CB42,$G$5)*U54,FALSE) -> FALSE | O54: TRUE | P54: 1962 | Q54: ='Monthly Prices'!B42 -> 1.52 | R54: 1.518333333 | S54: =_xlfn.XLOOKUP(P54,'Annual Real'!A:A,'Annual Real'!B:B,0,0) -> 7.646137774 | T54: 10.94163924 | U54: 10.94163924 | V54: FALSE | W54: FALSE | X54: 0.3038 | Y54: 0.3038 | Z54: 0 | AA54: 1.034388832 | AB54: 7 | AC54: 1962-11-01 | AD54: 10.94163924
C55: ='Monthly Prices'!A43 -> 1963M01 | D55: 1962-12-01 | E55: 36 | F55: FALSE | G55: TRUE | H55: FALSE | J55: =INDEX('Monthly Prices'!B43:CB43,$G$4) -> 1.5 | K55: =IF(H55,INDEX('Monthly Prices'!B43:CB43,$G$4)*U55,FALSE) -> FALSE | L55: TRUE | M55: =INDEX('Monthly Prices'!B43:CB43,$G$5) -> 1.5 | N55: =IF(H55,INDEX('Monthly Prices'!B43:CB43,$G$5)*U55,FALSE) -> FALSE | O55: TRUE | P55: 1962 | Q55: ='Monthly Prices'!B43 -> 1.5 | R55: 1.518333333 | S55: =_xlfn.XLOOKUP(P55,'Annual Real'!A:A,'Annual Real'!B:B,0,0) -> 7.646137774 | T55: 10.94163924 | U55: 10.94163924 | V55: FALSE | W55: FALSE | X55: 0.3038 | Y55: 0.3038 | Z55: 0 | AA55: 1.034388832 | AB55: 7 | AC55: 1962-12-01 | AD55: 10.94163924
C56: ='Monthly Prices'!A44 -> 1963M02 | D56: 1963-01-01 | E56: 37 | F56: FALSE | G56: TRUE | H56: FALSE | J56: =INDEX('Monthly Prices'!B44:CB44,$G$4) -> 1.5 | K56: =IF(H56,INDEX('Monthly Prices'!B44:CB44,$G$4)*U56,FALSE) -> FALSE | L56: TRUE | M56: =INDEX('Monthly Prices'!B44:CB44,$G$5) -> 1.5 | N56: =IF(H56,INDEX('Monthly Prices'!B44:CB44,$G$5)*U56,FALSE) -> FALSE | O56: TRUE | P56: 1963 | Q56: ='Monthly Prices'!B44 -> 1.5 | R56: 1.495833333 | S56: =_xlfn.XLOOKUP(P56,'Annual Real'!A:A,'Annual Real'!B:B,0,0) -> 7.686329405 | T56: 10.92007227 | U56: 10.92007227 | V56: FALSE | W56: FALSE | X56: 0.3044 | Y56: 0.3044 | Z56: 0.001974983542 | AA56: 1.036431733 | AB56: 7 | AC56: 1963-01-01 | AD56: 10.92007227
C57: ='Monthly Prices'!A45 -> 1963M03 | D57: 1963-02-01 | E57: 38 | F57: FALSE | G57: TRUE | H57: FALSE | J57: =INDEX('Monthly Prices'!B45:CB45,$G$4) -> 1.5 | K57: =IF(H57,INDEX('Monthly Prices'!B45:CB45,$G$4)*U57,FALSE) -> FALSE | L57: TRUE | M57: =INDEX('Monthly Prices'!B45:CB45,$G$5) -> 1.5 | N57: =IF(H57,INDEX('Monthly Prices'!B45:CB45,$G$5)*U57,FALSE) -> FALSE | O57: TRUE | P57: 1963 | Q57: ='Monthly Prices'!B45 -> 1.5 | R57: 1.495833333 | S57: =_xlfn.XLOOKUP(P57,'Annual Real'!A:A,'Annual Real'!B:B,0,0) -> 7.686329405 | T57: 10.90574147 | U57: 10.90574147 | V57: FALSE | W57: FALSE | X57: 0.3048 | Y57: 0.3048 | Z57: 0.001314060447 | AA57: 1.037793667 | AB57: 7 | AC57: 1963-02-01 | AD57: 10.90574147
C58: ='Monthly Prices'!A46 -> 1963M04 | D58: 1963-03-01 | E58: 39 | F58: FALSE | G58: TRUE | H58: FALSE | J58: =INDEX('Monthly Prices'!B46:CB46,$G$4) -> 1.5 | K58: =IF(H58,INDEX('Monthly Prices'!B46:CB46,$G$4)*U58,FALSE) -> FALSE | L58: TRUE | M58: =INDEX('Monthly Prices'!B46:CB46,$G$5) -> 1.5 | N58: =IF(H58,INDEX('Monthly Prices'!B46:CB46,$G$5)*U58,FALSE) -> FALSE | O58: TRUE | P58: 1963 | Q58: ='Monthly Prices'!B46 -> 1.5 | R58: 1.495833333 | S58: =_xlfn.XLOOKUP(P58,'Annual Real'!A:A,'Annual Real'!B:B,0,0) -> 7.686329405 | T58: 10.89501803 | U58: 10.89501803 | V58: FALSE | W58: FALSE | X58: 0.3051 | Y58: 0.3051 | Z58: 0.0009842519685 | AA58: 1.038815117 | AB58: 7 | AC58: 1963-03-01 | AD58: 10.89501803
C59: ='Monthly Prices'!A47 -> 1963M05 | D59: 1963-04-01 | E59: 40 | F59: FALSE | G59: TRUE | H59: FALSE | J59: =INDEX('Monthly Prices'!B47:CB47,$G$4) -> 1.5 | K59: =IF(H59,INDEX('Monthly Prices'!B47:CB47,$G$4)*U59,FALSE) -> FALSE | L59: TRUE | M59: =INDEX('Monthly Prices'!B47:CB47,$G$5) -> 1.5 | N59: =IF(H59,INDEX('Monthly Prices'!B47:CB47,$G$5)*U59,FALSE) -> FALSE | O59: TRUE | P59: 1963 | Q59: ='Monthly Prices'!B47 -> 1.5 | R59: 1.495833333 | S59: =_xlfn.XLOOKUP(P59,'Annual Real'!A:A,'Annual Real'!B:B,0,0) -> 7.686329405 | T59: 10.90574147 | U59: 10.90574147 | V59: FALSE | W59: FALSE | X59: 0.3048 | Y59: 0.3048 | Z59: -0.0009832841691 | AA59: 1.037793667 | AB59: 7 | AC59: 1963-04-01 | AD59: 10.90574147
C60: ='Monthly Prices'!A48 -> 1963M06 | D60: 1963-05-01 | E60: 41 | F60: FALSE | G60: TRUE | H60: FALSE | J60: =INDEX('Monthly Prices'!B48:CB48,$G$4) -> 1.5 | K60: =IF(H60,INDEX('Monthly Prices'!B48:CB48,$G$4)*U60,FALSE) -> FALSE | L60: TRUE | M60: =INDEX('Monthly Prices'!B48:CB48,$G$5) -> 1.5 | N60: =IF(H60,INDEX('Monthly Prices'!B48:CB48,$G$5)*U60,FALSE) -> FALSE | O60: TRUE | P60: 1963 | Q60: ='Monthly Prices'!B48 -> 1.5 | R60: 1.495833333 | S60: =_xlfn.XLOOKUP(P60,'Annual Real'!A:A,'Annual Real'!B:B,0,0) -> 7.686329405 | T60: 10.89501803 | U60: 10.89501803 | V60: FALSE | W60: FALSE | X60: 0.3051 | Y60: 0.3051 | Z60: 0.0009842519685 | AA60: 1.038815117 | AB60: 7 | AC60: 1963-05-01 | AD60: 10.89501803
C61: ='Monthly Prices'!A49 -> 1963M07 | D61: 1963-06-01 | E61: 42 | F61: FALSE | G61: TRUE | H61: FALSE | J61: =INDEX('Monthly Prices'!B49:CB49,$G$4) -> 1.5 | K61: =IF(H61,INDEX('Monthly Prices'!B49:CB49,$G$4)*U61,FALSE) -> FALSE | L61: TRUE | M61: =INDEX('Monthly Prices'!B49:CB49,$G$5) -> 1.5 | N61: =IF(H61,INDEX('Monthly Prices'!B49:CB49,$G$5)*U61,FALSE) -> FALSE | O61: TRUE | P61: 1963 | Q61: ='Monthly Prices'!B49 -> 1.5 | R61: 1.495833333 | S61: =_xlfn.XLOOKUP(P61,'Annual Real'!A:A,'Annual Real'!B:B,0,0) -> 7.686329405 | T61: 10.85942502 | U61: 10.85942502 | V61: FALSE | W61: FALSE | X61: 0.3061 | Y61: 0.3061 | Z61: 0.003277613897 | AA61: 1.042219952 | AB61: 7 | AC61: 1963-06-01 | AD61: 10.85942502
C62: ='Monthly Prices'!A50 -> 1963M08 | D62: 1963-07-01 | E62: 43 | F62: FALSE | G62: TRUE | H62: FALSE | J62: =INDEX('Monthly Prices'!B50:CB50,$G$4) -> 1.5 | K62: =IF(H62,INDEX('Monthly Prices'!B50:CB50,$G$4)*U62,FALSE) -> FALSE | L62: TRUE | M62: =INDEX('Monthly Prices'!B50:CB50,$G$5) -> 1.5 | N62: =IF(H62,INDEX('Monthly Prices'!B50:CB50,$G$5)*U62,FALSE) -> FALSE | O62: TRUE | P62: 1963 | Q62: ='Monthly Prices'!B50 -> 1.5 | R62: 1.495833333 | S62: =_xlfn.XLOOKUP(P62,'Annual Real'!A:A,'Annual Real'!B:B,0,0) -> 7.686329405 | T62: 10.83111763 | U62: 10.83111763 | V62: FALSE | W62: FALSE | X62: 0.3069 | Y62: 0.3069 | Z62: 0.002613524992 | AA62: 1.04494382 | AB62: 7 | AC62: 1963-07-01 | AD62: 10.83111763
C63: ='Monthly Prices'!A51 -> 1963M09 | D63: 1963-08-01 | E63: 44 | F63: FALSE | G63: TRUE | H63: FALSE | J63: =INDEX('Monthly Prices'!B51:CB51,$G$4) -> 1.5 | K63: =IF(H63,INDEX('Monthly Prices'!B51:CB51,$G$4)*U63,FALSE) -> FALSE | L63: TRUE | M63: =INDEX('Monthly Prices'!B51:CB51,$G$5) -> 1.5 | N63: =IF(H63,INDEX('Monthly Prices'!B51:CB51,$G$5)*U63,FALSE) -> FALSE | O63: TRUE | P63: 1963 | Q63: ='Monthly Prices'!B51 -> 1.5 | R63: 1.495833333 | S63: =_xlfn.XLOOKUP(P63,'Annual Real'!A:A,'Annual Real'!B:B,0,0) -> 7.686329405 | T63: 10.80998374 | U63: 10.80998374 | V63: FALSE | W63: FALSE | X63: 0.3075 | Y63: 0.3075 | Z63: 0.001955034213 | AA63: 1.046986721 | AB63: 7 | AC63: 1963-08-01 | AD63: 10.80998374
C64: ='Monthly Prices'!A52 -> 1963M10 | D64: 1963-09-01 | E64: 45 | F64: FALSE | G64: TRUE | H64: FALSE | J64: =INDEX('Monthly Prices'!B52:CB52,$G$4) -> 1.5 | K64: =IF(H64,INDEX('Monthly Prices'!B52:CB52,$G$4)*U64,FALSE) -> FALSE | L64: TRUE | M64: =INDEX('Monthly Prices'!B52:CB52,$G$5) -> 1.5 | N64: =IF(H64,INDEX('Monthly Prices'!B52:CB52,$G$5)*U64,FALSE) -> FALSE | O64: TRUE | P64: 1963 | Q64: ='Monthly Prices'!B52 -> 1.5 | R64: 1.495833333 | S64: =_xlfn.XLOOKUP(P64,'Annual Real'!A:A,'Annual Real'!B:B,0,0) -> 7.686329405 | T64: 10.82054036 | U64: 10.82054036 | V64: FALSE | W64: FALSE | X64: 0.3072 | Y64: 0.3072 | Z64: -0.0009756097561 | AA64: 1.045965271 | AB64: 7 | AC64: 1963-09-01 | AD64: 10.82054036
C65: ='Monthly Prices'!A53 -> 1963M11 | D65: 1963-10-01 | E65: 46 | F65: FALSE | G65: TRUE | H65: FALSE | J65: =INDEX('Monthly Prices'!B53:CB53,$G$4) -> 1.5 | K65: =IF(H65,INDEX('Monthly Prices'!B53:CB53,$G$4)*U65,FALSE) -> FALSE | L65: TRUE | M65: =INDEX('Monthly Prices'!B53:CB53,$G$5) -> 1.5 | N65: =IF(H65,INDEX('Monthly Prices'!B53:CB53,$G$5)*U65,FALSE) -> FALSE | O65: TRUE | P65: 1963 | Q65: ='Monthly Prices'!B53 -> 1.5 | R65: 1.495833333 | S65: =_xlfn.XLOOKUP(P65,'Annual Real'!A:A,'Annual Real'!B:B,0,0) -> 7.686329405 | T65: 10.80998374 | U65: 10.80998374 | V65: FALSE | W65: FALSE | X65: 0.3075 | Y65: 0.3075 | Z65: 0.0009765625 | AA65: 1.046986721 | AB65: 7 | AC65: 1963-10-01 | AD65: 10.80998374
C66: ='Monthly Prices'!A54 -> 1963M12 | D66: 1963-11-01 | E66: 47 | F66: FALSE | G66: TRUE | H66: FALSE | J66: =INDEX('Monthly Prices'!B54:CB54,$G$4) -> 1.5 | K66: =IF(H66,INDEX('Monthly Prices'!B54:CB54,$G$4)*U66,FALSE) -> FALSE | L66: TRUE | M66: =INDEX('Monthly Prices'!B54:CB54,$G$5) -> 1.5 | N66: =IF(H66,INDEX('Monthly Prices'!B54:CB54,$G$5)*U66,FALSE) -> FALSE | O66: TRUE | P66: 1963 | Q66: ='Monthly Prices'!B54 -> 1.5 | R66: 1.495833333 | S66: =_xlfn.XLOOKUP(P66,'Annual Real'!A:A,'Annual Real'!B:B,0,0) -> 7.686329405 | T66: 10.79944769 | U66: 10.79944769 | V66: FALSE | W66: FALSE | X66: 0.3078 | Y66: 0.3078 | Z66: 0.0009756097561 | AA66: 1.048008172 | AB66: 7 | AC66: 1963-11-01 | AD66: 10.79944769
C67: ='Monthly Prices'!A55 -> 1964M01 | D67: 1963-12-01 | E67: 48 | F67: FALSE | G67: TRUE | H67: FALSE | J67: =INDEX('Monthly Prices'!B55:CB55,$G$4) -> 1.45 | K67: =IF(H67,INDEX('Monthly Prices'!B55:CB55,$G$4)*U67,FALSE) -> FALSE | L67: TRUE | M67: =INDEX('Monthly Prices'!B55:CB55,$G$5) -> 1.45 | N67: =IF(H67,INDEX('Monthly Prices'!B55:CB55,$G$5)*U67,FALSE) -> FALSE | O67: TRUE | P67: 1963 | Q67: ='Monthly Prices'!B55 -> 1.45 | R67: 1.495833333 | S67: =_xlfn.XLOOKUP(P67,'Annual Real'!A:A,'Annual Real'!B:B,0,0) -> 7.686329405 | T67: 10.76447539 | U67: 10.76447539 | V67: FALSE | W67: FALSE | X67: 0.3088 | Y67: 0.3088 | Z67: 0.003248862898 | AA67: 1.051413006 | AB67: 7 | AC67: 1963-12-01 | AD67: 10.76447539
C68: ='Monthly Prices'!A56 -> 1964M02 | D68: 1964-01-01 | E68: 49 | F68: FALSE | G68: TRUE | H68: FALSE | J68: =INDEX('Monthly Prices'!B56:CB56,$G$4) -> 1.45 | K68: =IF(H68,INDEX('Monthly Prices'!B56:CB56,$G$4)*U68,FALSE) -> FALSE | L68: TRUE | M68: =INDEX('Monthly Prices'!B56:CB56,$G$5) -> 1.45 | N68: =IF(H68,INDEX('Monthly Prices'!B56:CB56,$G$5)*U68,FALSE) -> FALSE | O68: TRUE | P68: 1964 | Q68: ='Monthly Prices'!B56 -> 1.45 | R68: 1.4475 | S68: =_xlfn.XLOOKUP(P68,'Annual Real'!A:A,'Annual Real'!B:B,0,0) -> 7.327569739 | T68: 10.74360052 | U68: 10.74360052 | V68: FALSE | W68: FALSE | X68: 0.3094 | Y68: 0.3094 | Z68: 0.001943005181 | AA68: 1.053455907 | AB68: 7 | AC68: 1964-01-01 | AD68: 10.74360052
C69: ='Monthly Prices'!A57 -> 1964M03 | D69: 1964-02-01 | E69: 50 | F69: FALSE | G69: TRUE | H69: FALSE | J69: =INDEX('Monthly Prices'!B57:CB57,$G$4) -> 1.45 | K69: =IF(H69,INDEX('Monthly Prices'!B57:CB57,$G$4)*U69,FALSE) -> FALSE | L69: TRUE | M69: =INDEX('Monthly Prices'!B57:CB57,$G$5) -> 1.45 | N69: =IF(H69,INDEX('Monthly Prices'!B57:CB57,$G$5)*U69,FALSE) -> FALSE | O69: TRUE | P69: 1964 | Q69: ='Monthly Prices'!B57 -> 1.45 | R69: 1.4475 | S69: =_xlfn.XLOOKUP(P69,'Annual Real'!A:A,'Annual Real'!B:B,0,0) -> 7.327569739 | T69: 10.75402782 | U69: 10.75402782 | V69: FALSE | W69: FALSE | X69: 0.3091 | Y69: 0.3091 | Z69: -0.0009696186167 | AA69: 1.052434457 | AB69: 7 | AC69: 1964-02-01 | AD69: 10.75402782
C70: ='Monthly Prices'!A58 -> 1964M04 | D70: 1964-03-01 | E70: 51 | F70: FALSE | G70: TRUE | H70: FALSE | J70: =INDEX('Monthly Prices'!B58:CB58,$G$4) -> 1.45 | K70: =IF(H70,INDEX('Monthly Prices'!B58:CB58,$G$4)*U70,FALSE) -> FALSE | L70: TRUE | M70: =INDEX('Monthly Prices'!B58:CB58,$G$5) -> 1.45 | N70: =IF(H70,INDEX('Monthly Prices'!B58:CB58,$G$5)*U70,FALSE) -> FALSE | O70: TRUE | P70: 1964 | Q70: ='Monthly Prices'!B58 -> 1.45 | R70: 1.4475 | S70: =_xlfn.XLOOKUP(P70,'Annual Real'!A:A,'Annual Real'!B:B,0,0) -> 7.327569739 | T70: 10.74360052 | U70: 10.74360052 | V70: FALSE | W70: FALSE | X70: 0.3094 | Y70: 0.3094 | Z70: 0.0009705596894 | AA70: 1.053455907 | AB70: 7 | AC70: 1964-03-01 | AD70: 10.74360052
C71: ='Monthly Prices'!A59 -> 1964M05 | D71: 1964-04-01 | E71: 52 | F71: FALSE | G71: TRUE | H71: FALSE | J71: =INDEX('Monthly Prices'!B59:CB59,$G$4) -> 1.45 | K71: =IF(H71,INDEX('Monthly Prices'!B59:CB59,$G$4)*U71,FALSE) -> FALSE | L71: TRUE | M71: =INDEX('Monthly Prices'!B59:CB59,$G$5) -> 1.45 | N71: =IF(H71,INDEX('Monthly Prices'!B59:CB59,$G$5)*U71,FALSE) -> FALSE | O71: TRUE | P71: 1964 | Q71: ='Monthly Prices'!B59 -> 1.45 | R71: 1.4475 | S71: =_xlfn.XLOOKUP(P71,'Annual Real'!A:A,'Annual Real'!B:B,0,0) -> 7.327569739 | T71: 10.74012924 | U71: 10.74012924 | V71: FALSE | W71: FALSE | X71: 0.3095 | Y71: 0.3095 | Z71: 0.0003232062056 | AA71: 1.053796391 | AB71: 7 | AC71: 1964-04-01 | AD71: 10.74012924
C72: ='Monthly Prices'!A60 -> 1964M06 | D72: 1964-05-01 | E72: 53 | F72: FALSE | G72: TRUE | H72: FALSE | J72: =INDEX('Monthly Prices'!B60:CB60,$G$4) -> 1.45 | K72: =IF(H72,INDEX('Monthly Prices'!B60:CB60,$G$4)*U72,FALSE) -> FALSE | L72: TRUE | M72: =INDEX('Monthly Prices'!B60:CB60,$G$5) -> 1.45 | N72: =IF(H72,INDEX('Monthly Prices'!B60:CB60,$G$5)*U72,FALSE) -> FALSE | O72: TRUE | P72: 1964 | Q72: ='Monthly Prices'!B60 -> 1.45 | R72: 1.4475 | S72: =_xlfn.XLOOKUP(P72,'Annual Real'!A:A,'Annual Real'!B:B,0,0) -> 7.327569739 | T72: 10.72972886 | U72: 10.72972886 | V72: FALSE | W72: FALSE | X72: 0.3098 | Y72: 0.3098 | Z72: 0.0009693053312 | AA72: 1.054817841 | AB72: 7 | AC72: 1964-05-01 | AD72: 10.72972886
C73: ='Monthly Prices'!A61 -> 1964M07 | D73: 1964-06-01 | E73: 54 | F73: FALSE | G73: TRUE | H73: FALSE | J73: =INDEX('Monthly Prices'!B61:CB61,$G$4) -> 1.45 | K73: =IF(H73,INDEX('Monthly Prices'!B61:CB61,$G$4)*U73,FALSE) -> FALSE | L73: TRUE | M73: =INDEX('Monthly Prices'!B61:CB61,$G$5) -> 1.45 | N73: =IF(H73,INDEX('Monthly Prices'!B61:CB61,$G$5)*U73,FALSE) -> FALSE | O73: TRUE | P73: 1964 | Q73: ='Monthly Prices'!B61 -> 1.45 | R73: 1.4475 | S73: =_xlfn.XLOOKUP(P73,'Annual Real'!A:A,'Annual Real'!B:B,0,0) -> 7.327569739 | T73: 10.7193486 | U73: 10.7193486 | V73: FALSE | W73: FALSE | X73: 0.3101 | Y73: 0.3101 | Z73: 0.0009683666882 | AA73: 1.055839292 | AB73: 7 | AC73: 1964-06-01 | AD73: 10.7193486
C74: ='Monthly Prices'!A62 -> 1964M08 | D74: 1964-07-01 | E74: 55 | F74: FALSE | G74: TRUE | H74: FALSE | J74: =INDEX('Monthly Prices'!B62:CB62,$G$4) -> 1.45 | K74: =IF(H74,INDEX('Monthly Prices'!B62:CB62,$G$4)*U74,FALSE) -> FALSE | L74: TRUE | M74: =INDEX('Monthly Prices'!B62:CB62,$G$5) -> 1.45 | N74: =IF(H74,INDEX('Monthly Prices'!B62:CB62,$G$5)*U74,FALSE) -> FALSE | O74: TRUE | P74: 1964 | Q74: ='Monthly Prices'!B62 -> 1.45 | R74: 1.4475 | S74: =_xlfn.XLOOKUP(P74,'Annual Real'!A:A,'Annual Real'!B:B,0,0) -> 7.327569739 | T74: 10.71589297 | U74: 10.71589297 | V74: FALSE | W74: FALSE | X74: 0.3102 | Y74: 0.3102 | Z74: 0.0003224766204 | AA74: 1.056179775 | AB74: 7 | AC74: 1964-07-01 | AD74: 10.71589297
C75: ='Monthly Prices'!A63 -> 1964M09 | D75: 1964-08-01 | E75: 56 | F75: FALSE | G75: TRUE | H75: FALSE | J75: =INDEX('Monthly Prices'!B63:CB63,$G$4) -> 1.45 | K75: =IF(H75,INDEX('Monthly Prices'!B63:CB63,$G$4)*U75,FALSE) -> FALSE | L75: TRUE | M75: =INDEX('Monthly Prices'!B63:CB63,$G$5) -> 1.45 | N75: =IF(H75,INDEX('Monthly Prices'!B63:CB63,$G$5)*U75,FALSE) -> FALSE | O75: TRUE | P75: 1964 | Q75: ='Monthly Prices'!B63 -> 1.45 | R75: 1.4475 | S75: =_xlfn.XLOOKUP(P75,'Annual Real'!A:A,'Annual Real'!B:B,0,0) -> 7.327569739 | T75: 10.70553945 | U75: 10.70553945 | V75: FALSE | W75: FALSE | X75: 0.3105 | Y75: 0.3105 | Z75: 0.0009671179884 | AA75: 1.057201226 | AB75: 7 | AC75: 1964-08-01 | AD75: 10.70553945
C76: ='Monthly Prices'!A64 -> 1964M10 | D76: 1964-09-01 | E76: 57 | F76: FALSE | G76: TRUE | H76: FALSE | J76: =INDEX('Monthly Prices'!B64:CB64,$G$4) -> 1.45 | K76: =IF(H76,INDEX('Monthly Prices'!B64:CB64,$G$4)*U76,FALSE) -> FALSE | L76: TRUE | M76: =INDEX('Monthly Prices'!B64:CB64,$G$5) -> 1.45 | N76: =IF(H76,INDEX('Monthly Prices'!B64:CB64,$G$5)*U76,FALSE) -> FALSE | O76: TRUE | P76: 1964 | Q76: ='Monthly Prices'!B64 -> 1.45 | R76: 1.4475 | S76: =_xlfn.XLOOKUP(P76,'Annual Real'!A:A,'Annual Real'!B:B,0,0) -> 7.327569739 | T76: 10.69520592 | U76: 10.69520592 | V76: FALSE | W76: FALSE | X76: 0.3108 | Y76: 0.3108 | Z76: 0.0009661835749 | AA76: 1.058222676 | AB76: 7 | AC76: 1964-09-01 | AD76: 10.69520592
C77: ='Monthly Prices'!A65 -> 1964M11 | D77: 1964-10-01 | E77: 58 | F77: FALSE | G77: TRUE | H77: FALSE | J77: =INDEX('Monthly Prices'!B65:CB65,$G$4) -> 1.45 | K77: =IF(H77,INDEX('Monthly Prices'!B65:CB65,$G$4)*U77,FALSE) -> FALSE | L77: TRUE | M77: =INDEX('Monthly Prices'!B65:CB65,$G$5) -> 1.45 | N77: =IF(H77,INDEX('Monthly Prices'!B65:CB65,$G$5)*U77,FALSE) -> FALSE | O77: TRUE | P77: 1964 | Q77: ='Monthly Prices'!B65 -> 1.45 | R77: 1.4475 | S77: =_xlfn.XLOOKUP(P77,'Annual Real'!A:A,'Annual Real'!B:B,0,0) -> 7.327569739 | T77: 10.68145887 | U77: 10.68145887 | V77: FALSE | W77: FALSE | X77: 0.3112 | Y77: 0.3112 | Z77: 0.001287001287 | AA77: 1.05958461 | AB77: 7 | AC77: 1964-10-01 | AD77: 10.68145887
C78: ='Monthly Prices'!A66 -> 1964M12 | D78: 1964-11-01 | E78: 59 | F78: FALSE | G78: TRUE | H78: FALSE | J78: =INDEX('Monthly Prices'!B66:CB66,$G$4) -> 1.45 | K78: =IF(H78,INDEX('Monthly Prices'!B66:CB66,$G$4)*U78,FALSE) -> FALSE | L78: TRUE | M78: =INDEX('Monthly Prices'!B66:CB66,$G$5) -> 1.45 | N78: =IF(H78,INDEX('Monthly Prices'!B66:CB66,$G$5)*U78,FALSE) -> FALSE | O78: TRUE | P78: 1964 | Q78: ='Monthly Prices'!B66 -> 1.45 | R78: 1.4475 | S78: =_xlfn.XLOOKUP(P78,'Annual Real'!A:A,'Annual Real'!B:B,0,0) -> 7.327569739 | T78: 10.65065684 | U78: 10.65065684 | V78: FALSE | W78: FALSE | X78: 0.3121 | Y78: 0.3121 | Z78: 0.002892030848 | AA78: 1.062648962 | AB78: 7 | AC78: 1964-11-01 | AD78: 10.65065684
C79: ='Monthly Prices'!A67 -> 1965M01 | D79: 1964-12-01 | E79: 60 | F79: FALSE | G79: TRUE | H79: FALSE | J79: =INDEX('Monthly Prices'!B67:CB67,$G$4) -> 1.42 | K79: =IF(H79,INDEX('Monthly Prices'!B67:CB67,$G$4)*U79,FALSE) -> FALSE | L79: TRUE | M79: =INDEX('Monthly Prices'!B67:CB67,$G$5) -> 1.42 | N79: =IF(H79,INDEX('Monthly Prices'!B67:CB67,$G$5)*U79,FALSE) -> FALSE | O79: TRUE | P79: 1964 | Q79: ='Monthly Prices'!B67 -> 1.42 | R79: 1.4475 | S79: =_xlfn.XLOOKUP(P79,'Annual Real'!A:A,'Annual Real'!B:B,0,0) -> 7.327569739 | T79: 10.637024 | U79: 10.637024 | V79: FALSE | W79: FALSE | X79: 0.3125 | Y79: 0.3125 | Z79: 0.0012816405 | AA79: 1.064010895 | AB79: 7 | AC79: 1964-12-01 | AD79: 10.637024
C80: ='Monthly Prices'!A68 -> 1965M02 | D80: 1965-01-01 | E80: 61 | F80: FALSE | G80: TRUE | H80: FALSE | J80: =INDEX('Monthly Prices'!B68:CB68,$G$4) -> 1.42 | K80: =IF(H80,INDEX('Monthly Prices'!B68:CB68,$G$4)*U80,FALSE) -> FALSE | L80: TRUE | M80: =INDEX('Monthly Prices'!B68:CB68,$G$5) -> 1.42 | N80: =IF(H80,INDEX('Monthly Prices'!B68:CB68,$G$5)*U80,FALSE) -> FALSE | O80: TRUE | P80: 1965 | Q80: ='Monthly Prices'!B68 -> 1.42 | R80: 1.415 | S80: =_xlfn.XLOOKUP(P80,'Annual Real'!A:A,'Annual Real'!B:B,0,0) -> 7.107594015 | T80: 10.62682225 | U80: 10.62682225 | V80: FALSE | W80: FALSE | X80: 0.3128 | Y80: 0.3128 | Z80: 0.00096 | AA80: 1.065032346 | AB80: 7 | AC80: 1965-01-01 | AD80: 10.62682225
C81: ='Monthly Prices'!A69 -> 1965M03 | D81: 1965-02-01 | E81: 62 | F81: FALSE | G81: TRUE | H81: FALSE | J81: =INDEX('Monthly Prices'!B69:CB69,$G$4) -> 1.42 | K81: =IF(H81,INDEX('Monthly Prices'!B69:CB69,$G$4)*U81,FALSE) -> FALSE | L81: TRUE | M81: =INDEX('Monthly Prices'!B69:CB69,$G$5) -> 1.42 | N81: =IF(H81,INDEX('Monthly Prices'!B69:CB69,$G$5)*U81,FALSE) -> FALSE | O81: TRUE | P81: 1965 | Q81: ='Monthly Prices'!B69 -> 1.42 | R81: 1.415 | S81: =_xlfn.XLOOKUP(P81,'Annual Real'!A:A,'Annual Real'!B:B,0,0) -> 7.107594015 | T81: 10.62682225 | U81: 10.62682225 | V81: FALSE | W81: FALSE | X81: 0.3128 | Y81: 0.3128 | Z81: 0 | AA81: 1.065032346 | AB81: 7 | AC81: 1965-02-01 | AD81: 10.62682225
C82: ='Monthly Prices'!A70 -> 1965M04 | D82: 1965-03-01 | E82: 63 | F82: FALSE | G82: TRUE | H82: FALSE | J82: =INDEX('Monthly Prices'!B70:CB70,$G$4) -> 1.42 | K82: =IF(H82,INDEX('Monthly Prices'!B70:CB70,$G$4)*U82,FALSE) -> FALSE | L82: TRUE | M82: =INDEX('Monthly Prices'!B70:CB70,$G$5) -> 1.42 | N82: =IF(H82,INDEX('Monthly Prices'!B70:CB70,$G$5)*U82,FALSE) -> FALSE | O82: TRUE | P82: 1965 | Q82: ='Monthly Prices'!B70 -> 1.42 | R82: 1.415 | S82: =_xlfn.XLOOKUP(P82,'Annual Real'!A:A,'Annual Real'!B:B,0,0) -> 7.107594015 | T82: 10.61664005 | U82: 10.61664005 | V82: FALSE | W82: FALSE | X82: 0.3131 | Y82: 0.3131 | Z82: 0.0009590792839 | AA82: 1.066053796 | AB82: 7 | AC82: 1965-03-01 | AD82: 10.61664005
C83: ='Monthly Prices'!A71 -> 1965M05 | D83: 1965-04-01 | E83: 64 | F83: FALSE | G83: TRUE | H83: FALSE | J83: =INDEX('Monthly Prices'!B71:CB71,$G$4) -> 1.42 | K83: =IF(H83,INDEX('Monthly Prices'!B71:CB71,$G$4)*U83,FALSE) -> FALSE | L83: TRUE | M83: =INDEX('Monthly Prices'!B71:CB71,$G$5) -> 1.42 | N83: =IF(H83,INDEX('Monthly Prices'!B71:CB71,$G$5)*U83,FALSE) -> FALSE | O83: TRUE | P83: 1965 | Q83: ='Monthly Prices'!B71 -> 1.42 | R83: 1.415 | S83: =_xlfn.XLOOKUP(P83,'Annual Real'!A:A,'Annual Real'!B:B,0,0) -> 7.107594015 | T83: 10.5929573 | U83: 10.5929573 | V83: FALSE | W83: FALSE | X83: 0.3138 | Y83: 0.3138 | Z83: 0.002235707442 | AA83: 1.068437181 | AB83: 7 | AC83: 1965-04-01 | AD83: 10.5929573
C84: ='Monthly Prices'!A72 -> 1965M06 | D84: 1965-05-01 | E84: 65 | F84: =AND(E84>=$M$4,L84) -> FALSE | G84: =AND(E84<=$M$5,O84) -> TRUE | H84: =AND(F84:G84) -> FALSE | I84: =IF(H84,D84,NA) ->  | J84: =INDEX('Monthly Prices'!B72:CB72,$G$4) -> 1.42 | K84: =IF(H84,INDEX('Monthly Prices'!B72:CB72,$G$4)*U84,FALSE) -> FALSE | L84: TRUE | M84: =INDEX('Monthly Prices'!B72:CB72,$G$5) -> 1.42 | N84: =IF(H84,INDEX('Monthly Prices'!B72:CB72,$G$5)*U84,FALSE) -> FALSE | O84: =AND(ISNUMBER(M84),M84>0) -> TRUE | P84: 1965 | Q84: ='Monthly Prices'!B72 -> 1.42 | R84: 1.415 | S84: =_xlfn.XLOOKUP(P84,'Annual Real'!A:A,'Annual Real'!B:B,0,0) -> 7.107594015 | T84: 10.5593075 | U84: 10.5593075 | V84: FALSE | W84: FALSE | X84: 0.3148 | Y84: 0.3148 | Z84: 0.003186743149 | AA84: 1.071842016 | AB84: 7 | AC84: 1965-05-01 | AD84: 10.5593075
C85: ='Monthly Prices'!A73 -> 1965M07 | D85: =EDATE(D84,1) -> 1965-06-01 | E85: =E84+1 -> 66 | F85: FALSE | G85: TRUE | H85: FALSE | J85: =INDEX('Monthly Prices'!B73:CB73,$G$4) -> 1.42 | K85: =IF(H85,INDEX('Monthly Prices'!B73:CB73,$G$4)*U85,FALSE) -> FALSE | L85: =ISNUMBER(J85) -> TRUE | M85: =INDEX('Monthly Prices'!B73:CB73,$G$5) -> 1.42 | N85: =IF(H85,INDEX('Monthly Prices'!B73:CB73,$G$5)*U85,FALSE) -> FALSE | O85: TRUE | P85: =YEAR(D85) -> 1965 | Q85: ='Monthly Prices'!B73 -> 1.42 | R85: =AVERAGEIF(P:P,P85,Q:Q) -> 1.415 | S85: =_xlfn.XLOOKUP(P85,'Annual Real'!A:A,'Annual Real'!B:B,0,0) -> 7.107594015 | T85: =AD85 -> 10.51588105 | U85: =IF($U$19,T85,1) -> 10.51588105 | V85: FALSE | W85: FALSE | X85: =LOOKUP(D85,INDIRECT("'"&$X$14&"'!A:A"),INDIRECT("'"&$X$14&"'!B:B"))/100 -> 0.3161 | Y85: 0.3161 | Z85: 0.004129606099 | AA85: =AA84*(1+Z85) -> 1.076268301 | AB85: =LEN(C85) -> 7 | AC85: =IF(AB85>2,D85,0) -> 1965-06-01 | AD85: =$AD$17/AA85 -> 10.51588105
C86: ='Monthly Prices'!A74 -> 1965M08 | D86: 1965-07-01 | E86: 67 | F86: FALSE | G86: TRUE | H86: FALSE | J86: =INDEX('Monthly Prices'!B74:CB74,$G$4) -> 1.42 | K86: =IF(H86,INDEX('Monthly Prices'!B74:CB74,$G$4)*U86,FALSE) -> FALSE | L86: TRUE | M86: =INDEX('Monthly Prices'!B74:CB74,$G$5) -> 1.42 | N86: =IF(H86,INDEX('Monthly Prices'!B74:CB74,$G$5)*U86,FALSE) -> FALSE | O86: TRUE | P86: 1965 | Q86: ='Monthly Prices'!B74 -> 1.42 | R86: 1.415 | S86: =_xlfn.XLOOKUP(P86,'Annual Real'!A:A,'Annual Real'!B:B,0,0) -> 7.107594015 | T86: 10.5258708 | U86: 10.5258708 | V86: =IF(AND(H85,H86),LN(K86/K85)) -> FALSE | W86: =IF(AND($H85,$H86),LN(N86/N85)) -> FALSE | X86: 0.3158 | Y86: =IFERROR(X86,X85) -> 0.3158 | Z86: =Y86/Y85-1 -> -0.000949066751 | AA86: 1.075246851 | AB86: 7 | AC86: 1965-07-01 | AD86: 10.5258708
C87: ='Monthly Prices'!A75 -> 1965M09 | D87: 1965-08-01 | E87: 68 | F87: FALSE | G87: TRUE | H87: FALSE | J87: =INDEX('Monthly Prices'!B75:CB75,$G$4) -> 1.42 | K87: =IF(H87,INDEX('Monthly Prices'!B75:CB75,$G$4)*U87,FALSE) -> FALSE | L87: TRUE | M87: =INDEX('Monthly Prices'!B75:CB75,$G$5) -> 1.42 | N87: =IF(H87,INDEX('Monthly Prices'!B75:CB75,$G$5)*U87,FALSE) -> FALSE | O87: TRUE | P87: 1965 | Q87: ='Monthly Prices'!B75 -> 1.42 | R87: 1.415 | S87: =_xlfn.XLOOKUP(P87,'Annual Real'!A:A,'Annual Real'!B:B,0,0) -> 7.107594015 | T87: 10.53587956 | U87: 10.53587956 | V87: FALSE | W87: FALSE | X87: 0.3155 | Y87: 0.3155 | Z87: -0.0009499683344 | AA87: 1.0742254 | AB87: 7 | AC87: 1965-08-01 | AD87: 10.53587956
C88: ='Monthly Prices'!A76 -> 1965M10 | D88: 1965-09-01 | E88: 69 | F88: FALSE | G88: TRUE | H88: FALSE | J88: =INDEX('Monthly Prices'!B76:CB76,$G$4) -> 1.42 | K88: =IF(H88,INDEX('Monthly Prices'!B76:CB76,$G$4)*U88,FALSE) -> FALSE | L88: TRUE | M88: =INDEX('Monthly Prices'!B76:CB76,$G$5) -> 1.42 | N88: =IF(H88,INDEX('Monthly Prices'!B76:CB76,$G$5)*U88,FALSE) -> FALSE | O88: TRUE | P88: 1965 | Q88: ='Monthly Prices'!B76 -> 1.42 | R88: 1.415 | S88: =_xlfn.XLOOKUP(P88,'Annual Real'!A:A,'Annual Real'!B:B,0,0) -> 7.107594015 | T88: 10.51255534 | U88: 10.51255534 | V88: FALSE | W88: FALSE | X88: 0.3162 | Y88: 0.3162 | Z88: 0.002218700475 | AA88: 1.076608784 | AB88: 7 | AC88: 1965-09-01 | AD88: 10.51255534
C89: ='Monthly Prices'!A77 -> 1965M11 | D89: 1965-10-01 | E89: 70 | F89: FALSE | G89: TRUE | H89: FALSE | J89: =INDEX('Monthly Prices'!B77:CB77,$G$4) -> 1.42 | K89: =IF(H89,INDEX('Monthly Prices'!B77:CB77,$G$4)*U89,FALSE) -> FALSE | L89: TRUE | M89: =INDEX('Monthly Prices'!B77:CB77,$G$5) -> 1.42 | N89: =IF(H89,INDEX('Monthly Prices'!B77:CB77,$G$5)*U89,FALSE) -> FALSE | O89: TRUE | P89: 1965 | Q89: ='Monthly Prices'!B77 -> 1.42 | R89: 1.415 | S89: =_xlfn.XLOOKUP(P89,'Annual Real'!A:A,'Annual Real'!B:B,0,0) -> 7.107594015 | T89: 10.50259084 | U89: 10.50259084 | V89: FALSE | W89: FALSE | X89: 0.3165 | Y89: 0.3165 | Z89: 0.0009487666034 | AA89: 1.077630235 | AB89: 7 | AC89: 1965-10-01 | AD89: 10.50259084
C90: ='Monthly Prices'!A78 -> 1965M12 | D90: 1965-11-01 | E90: 71 | F90: FALSE | G90: TRUE | H90: FALSE | J90: =INDEX('Monthly Prices'!B78:CB78,$G$4) -> 1.42 | K90: =IF(H90,INDEX('Monthly Prices'!B78:CB78,$G$4)*U90,FALSE) -> FALSE | L90: TRUE | M90: =INDEX('Monthly Prices'!B78:CB78,$G$5) -> 1.42 | N90: =IF(H90,INDEX('Monthly Prices'!B78:CB78,$G$5)*U90,FALSE) -> FALSE | O90: TRUE | P90: 1965 | Q90: ='Monthly Prices'!B78 -> 1.42 | R90: 1.415 | S90: =_xlfn.XLOOKUP(P90,'Annual Real'!A:A,'Annual Real'!B:B,0,0) -> 7.107594015 | T90: 10.46951181 | U90: 10.46951181 | V90: FALSE | W90: FALSE | X90: 0.3175 | Y90: 0.3175 | Z90: 0.003159557662 | AA90: 1.08103507 | AB90: 7 | AC90: 1965-11-01 | AD90: 10.46951181
C91: ='Monthly Prices'!A79 -> 1966M01 | D91: 1965-12-01 | E91: 72 | F91: FALSE | G91: TRUE | H91: FALSE | J91: =INDEX('Monthly Prices'!B79:CB79,$G$4) -> 1.36 | K91: =IF(H91,INDEX('Monthly Prices'!B79:CB79,$G$4)*U91,FALSE) -> FALSE | L91: TRUE | M91: =INDEX('Monthly Prices'!B79:CB79,$G$5) -> 1.36 | N91: =IF(H91,INDEX('Monthly Prices'!B79:CB79,$G$5)*U91,FALSE) -> FALSE | O91: TRUE | P91: 1965 | Q91: ='Monthly Prices'!B79 -> 1.36 | R91: 1.415 | S91: =_xlfn.XLOOKUP(P91,'Annual Real'!A:A,'Annual Real'!B:B,0,0) -> 7.107594015 | T91: 10.4366405 | U91: 10.4366405 | V91: FALSE | W91: FALSE | X91: 0.3185 | Y91: 0.3185 | Z91: 0.003149606299 | AA91: 1.084439905 | AB91: 7 | AC91: 1965-12-01 | AD91: 10.4366405
C92: ='Monthly Prices'!A80 -> 1966M02 | D92: 1966-01-01 | E92: 73 | F92: FALSE | G92: TRUE | H92: FALSE | J92: =INDEX('Monthly Prices'!B80:CB80,$G$4) -> 1.36 | K92: =IF(H92,INDEX('Monthly Prices'!B80:CB80,$G$4)*U92,FALSE) -> FALSE | L92: TRUE | M92: =INDEX('Monthly Prices'!B80:CB80,$G$5) -> 1.36 | N92: =IF(H92,INDEX('Monthly Prices'!B80:CB80,$G$5)*U92,FALSE) -> FALSE | O92: TRUE | P92: 1966 | Q92: ='Monthly Prices'!B80 -> 1.36 | R92: 1.3575 | S92: =_xlfn.XLOOKUP(P92,'Annual Real'!A:A,'Annual Real'!B:B,0,0) -> 6.565224675 | T92: 10.42681932 | U92: 10.42681932 | V92: FALSE | W92: FALSE | X92: 0.3188 | Y92: 0.3188 | Z92: 0.0009419152276 | AA92: 1.085461355 | AB92: 7 | AC92: 1966-01-01 | AD92: 10.42681932
C93: ='Monthly Prices'!A81 -> 1966M03 | D93: 1966-02-01 | E93: 74 | F93: FALSE | G93: TRUE | H93: FALSE | J93: =INDEX('Monthly Prices'!B81:CB81,$G$4) -> 1.36 | K93: =IF(H93,INDEX('Monthly Prices'!B81:CB81,$G$4)*U93,FALSE) -> FALSE | L93: TRUE | M93: =INDEX('Monthly Prices'!B81:CB81,$G$5) -> 1.36 | N93: =IF(H93,INDEX('Monthly Prices'!B81:CB81,$G$5)*U93,FALSE) -> FALSE | O93: TRUE | P93: 1966 | Q93: ='Monthly Prices'!B81 -> 1.36 | R93: 1.3575 | S93: =_xlfn.XLOOKUP(P93,'Annual Real'!A:A,'Annual Real'!B:B,0,0) -> 6.565224675 | T93: 10.36181421 | U93: 10.36181421 | V93: FALSE | W93: FALSE | X93: 0.3208 | Y93: 0.3208 | Z93: 0.006273525721 | AA93: 1.092271025 | AB93: 7 | AC93: 1966-02-01 | AD93: 10.36181421
C94: ='Monthly Prices'!A82 -> 1966M04 | D94: 1966-03-01 | E94: 75 | F94: FALSE | G94: TRUE | H94: FALSE | J94: =INDEX('Monthly Prices'!B82:CB82,$G$4) -> 1.36 | K94: =IF(H94,INDEX('Monthly Prices'!B82:CB82,$G$4)*U94,FALSE) -> FALSE | L94: TRUE | M94: =INDEX('Monthly Prices'!B82:CB82,$G$5) -> 1.36 | N94: =IF(H94,INDEX('Monthly Prices'!B82:CB82,$G$5)*U94,FALSE) -> FALSE | O94: TRUE | P94: 1966 | Q94: ='Monthly Prices'!B82 -> 1.36 | R94: 1.3575 | S94: =_xlfn.XLOOKUP(P94,'Annual Real'!A:A,'Annual Real'!B:B,0,0) -> 6.565224675 | T94: 10.32961467 | U94: 10.32961467 | V94: FALSE | W94: FALSE | X94: 0.3218 | Y94: 0.3218 | Z94: 0.003117206983 | AA94: 1.09567586 | AB94: 7 | AC94: 1966-03-01 | AD94: 10.32961467
C95: ='Monthly Prices'!A83 -> 1966M05 | D95: 1966-04-01 | E95: 76 | F95: FALSE | G95: TRUE | H95: FALSE | J95: =INDEX('Monthly Prices'!B83:CB83,$G$4) -> 1.36 | K95: =IF(H95,INDEX('Monthly Prices'!B83:CB83,$G$4)*U95,FALSE) -> FALSE | L95: TRUE | M95: =INDEX('Monthly Prices'!B83:CB83,$G$5) -> 1.36 | N95: =IF(H95,INDEX('Monthly Prices'!B83:CB83,$G$5)*U95,FALSE) -> FALSE | O95: TRUE | P95: 1966 | Q95: ='Monthly Prices'!B83 -> 1.36 | R95: 1.3575 | S95: =_xlfn.XLOOKUP(P95,'Annual Real'!A:A,'Annual Real'!B:B,0,0) -> 6.565224675 | T95: 10.29761462 | U95: 10.29761462 | V95: FALSE | W95: FALSE | X95: 0.3228 | Y95: 0.3228 | Z95: 0.003107520199 | AA95: 1.099080695 | AB95: 7 | AC95: 1966-04-01 | AD95: 10.29761462
C96: ='Monthly Prices'!A84 -> 1966M06 | D96: 1966-05-01 | E96: 77 | F96: FALSE | G96: TRUE | H96: FALSE | J96: =INDEX('Monthly Prices'!B84:CB84,$G$4) -> 1.36 | K96: =IF(H96,INDEX('Monthly Prices'!B84:CB84,$G$4)*U96,FALSE) -> FALSE | L96: TRUE | M96: =INDEX('Monthly Prices'!B84:CB84,$G$5) -> 1.36 | N96: =IF(H96,INDEX('Monthly Prices'!B84:CB84,$G$5)*U96,FALSE) -> FALSE | O96: TRUE | P96: 1966 | Q96: ='Monthly Prices'!B84 -> 1.36 | R96: 1.3575 | S96: =_xlfn.XLOOKUP(P96,'Annual Real'!A:A,'Annual Real'!B:B,0,0) -> 6.565224675 | T96: 10.2753323 | U96: 10.2753323 | V96: FALSE | W96: FALSE | X96: 0.3235 | Y96: 0.3235 | Z96: 0.002168525403 | AA96: 1.101464079 | AB96: 7 | AC96: 1966-05-01 | AD96: 10.2753323
C97: ='Monthly Prices'!A85 -> 1966M07 | D97: 1966-06-01 | E97: 78 | F97: FALSE | G97: TRUE | H97: FALSE | J97: =INDEX('Monthly Prices'!B85:CB85,$G$4) -> 1.36 | K97: =IF(H97,INDEX('Monthly Prices'!B85:CB85,$G$4)*U97,FALSE) -> FALSE | L97: TRUE | M97: =INDEX('Monthly Prices'!B85:CB85,$G$5) -> 1.36 | N97: =IF(H97,INDEX('Monthly Prices'!B85:CB85,$G$5)*U97,FALSE) -> FALSE | O97: TRUE | P97: 1966 | Q97: ='Monthly Prices'!B85 -> 1.36 | R97: 1.3575 | S97: =_xlfn.XLOOKUP(P97,'Annual Real'!A:A,'Annual Real'!B:B,0,0) -> 6.565224675 | T97: 10.26581223 | U97: 10.26581223 | V97: FALSE | W97: FALSE | X97: 0.3238 | Y97: 0.3238 | Z97: 0.0009273570325 | AA97: 1.102485529 | AB97: 7 | AC97: 1966-06-01 | AD97: 10.26581223
C98: ='Monthly Prices'!A86 -> 1966M08 | D98: 1966-07-01 | E98: 79 | F98: FALSE | G98: TRUE | H98: FALSE | J98: =INDEX('Monthly Prices'!B86:CB86,$G$4) -> 1.36 | K98: =IF(H98,INDEX('Monthly Prices'!B86:CB86,$G$4)*U98,FALSE) -> FALSE | L98: TRUE | M98: =INDEX('Monthly Prices'!B86:CB86,$G$5) -> 1.36 | N98: =IF(H98,INDEX('Monthly Prices'!B86:CB86,$G$5)*U98,FALSE) -> FALSE | O98: TRUE | P98: 1966 | Q98: ='Monthly Prices'!B86 -> 1.36 | R98: 1.3575 | S98: =_xlfn.XLOOKUP(P98,'Annual Real'!A:A,'Annual Real'!B:B,0,0) -> 6.565224675 | T98: 10.24366718 | U98: 10.24366718 | V98: FALSE | W98: FALSE | X98: 0.3245 | Y98: 0.3245 | Z98: 0.002161828289 | AA98: 1.104868914 | AB98: 7 | AC98: 1966-07-01 | AD98: 10.24366718
C99: ='Monthly Prices'!A87 -> 1966M09 | D99: 1966-08-01 | E99: 80 | F99: FALSE | G99: TRUE | H99: FALSE | J99: =INDEX('Monthly Prices'!B87:CB87,$G$4) -> 1.36 | K99: =IF(H99,INDEX('Monthly Prices'!B87:CB87,$G$4)*U99,FALSE) -> FALSE | L99: TRUE | M99: =INDEX('Monthly Prices'!B87:CB87,$G$5) -> 1.36 | N99: =IF(H99,INDEX('Monthly Prices'!B87:CB87,$G$5)*U99,FALSE) -> FALSE | O99: TRUE | P99: 1966 | Q99: ='Monthly Prices'!B87 -> 1.36 | R99: 1.3575 | S99: =_xlfn.XLOOKUP(P99,'Annual Real'!A:A,'Annual Real'!B:B,0,0) -> 6.565224675 | T99: 10.18091884 | U99: 10.18091884 | V99: FALSE | W99: FALSE | X99: 0.3265 | Y99: 0.3265 | Z99: 0.006163328197 | AA99: 1.111678584 | AB99: 7 | AC99: 1966-08-01 | AD99: 10.18091884
C100: ='Monthly Prices'!A88 -> 1966M10 | D100: 1966-09-01 | E100: 81 | F100: FALSE | G100: TRUE | H100: FALSE | J100: =INDEX('Monthly Prices'!B88:CB88,$G$4) -> 1.36 | K100: =IF(H100,INDEX('Monthly Prices'!B88:CB88,$G$4)*U100,FALSE) -> FALSE | L100: TRUE | M100: =INDEX('Monthly Prices'!B88:CB88,$G$5) -> 1.36 | N100: =IF(H100,INDEX('Monthly Prices'!B88:CB88,$G$5)*U100,FALSE) -> FALSE | O100: TRUE | P100: 1966 | Q100: ='Monthly Prices'!B88 -> 1.36 | R100: 1.3575 | S100: =_xlfn.XLOOKUP(P100,'Annual Real'!A:A,'Annual Real'!B:B,0,0) -> 6.565224675 | T100: 10.14983206 | U100: 10.14983206 | V100: FALSE | W100: FALSE | X100: 0.3275 | Y100: 0.3275 | Z100: 0.003062787136 | AA100: 1.115083418 | AB100: 7 | AC100: 1966-09-01 | AD100: 10.14983206
C101: ='Monthly Prices'!A89 -> 1966M11 | D101: 1966-10-01 | E101: 82 | F101: FALSE | G101: TRUE | H101: FALSE | J101: =INDEX('Monthly Prices'!B89:CB89,$G$4) -> 1.36 | K101: =IF(H101,INDEX('Monthly Prices'!B89:CB89,$G$4)*U101,FALSE) -> FALSE | L101: TRUE | M101: =INDEX('Monthly Prices'!B89:CB89,$G$5) -> 1.36 | N101: =IF(H101,INDEX('Monthly Prices'!B89:CB89,$G$5)*U101,FALSE) -> FALSE | O101: TRUE | P101: 1966 | Q101: ='Monthly Prices'!B89 -> 1.36 | R101: 1.3575 | S101: =_xlfn.XLOOKUP(P101,'Annual Real'!A:A,'Annual Real'!B:B,0,0) -> 6.565224675 | T101: 10.11893455 | U101: 10.11893455 | V101: FALSE | W101: FALSE | X101: 0.3285 | Y101: 0.3285 | Z101: 0.003053435115 | AA101: 1.118488253 | AB101: 7 | AC101: 1966-10-01 | AD101: 10.11893455
C102: ='Monthly Prices'!A90 -> 1966M12 | D102: 1966-11-01 | E102: 83 | F102: FALSE | G102: TRUE | H102: FALSE | J102: =INDEX('Monthly Prices'!B90:CB90,$G$4) -> 1.36 | K102: =IF(H102,INDEX('Monthly Prices'!B90:CB90,$G$4)*U102,FALSE) -> FALSE | L102: TRUE | M102: =INDEX('Monthly Prices'!B90:CB90,$G$5) -> 1.36 | N102: =IF(H102,INDEX('Monthly Prices'!B90:CB90,$G$5)*U102,FALSE) -> FALSE | O102: TRUE | P102: 1966 | Q102: ='Monthly Prices'!B90 -> 1.36 | R102: 1.3575 | S102: =_xlfn.XLOOKUP(P102,'Annual Real'!A:A,'Annual Real'!B:B,0,0) -> 6.565224675 | T102: 10.10970195 | U102: 10.10970195 | V102: FALSE | W102: FALSE | X102: 0.3288 | Y102: 0.3288 | Z102: 0.0009132420091 | AA102: 1.119509704 | AB102: 7 | AC102: 1966-11-01 | AD102: 10.10970195
C103: ='Monthly Prices'!A91 -> 1967M01 | D103: 1966-12-01 | E103: 84 | F103: FALSE | G103: TRUE | H103: FALSE | J103: =INDEX('Monthly Prices'!B91:CB91,$G$4) -> 1.33 | K103: =IF(H103,INDEX('Monthly Prices'!B91:CB91,$G$4)*U103,FALSE) -> FALSE | L103: TRUE | M103: =INDEX('Monthly Prices'!B91:CB91,$G$5) -> 1.33 | N103: =IF(H103,INDEX('Monthly Prices'!B91:CB91,$G$5)*U103,FALSE) -> FALSE | O103: TRUE | P103: 1966 | Q103: ='Monthly Prices'!B91 -> 1.33 | R103: 1.3575 | S103: =_xlfn.XLOOKUP(P103,'Annual Real'!A:A,'Annual Real'!B:B,0,0) -> 6.565224675 | T103: 10.09741798 | U103: 10.09741798 | V103: FALSE | W103: FALSE | X103: 0.3292 | Y103: 0.3292 | Z103: 0.001216545012 | AA103: 1.120871638 | AB103: 7 | AC103: 1966-12-01 | AD103: 10.09741798
C104: ='Monthly Prices'!A92 -> 1967M02 | D104: 1967-01-01 | E104: 85 | F104: FALSE | G104: TRUE | H104: FALSE | J104: =INDEX('Monthly Prices'!B92:CB92,$G$4) -> 1.33 | K104: =IF(H104,INDEX('Monthly Prices'!B92:CB92,$G$4)*U104,FALSE) -> FALSE | L104: TRUE | M104: =INDEX('Monthly Prices'!B92:CB92,$G$5) -> 1.33 | N104: =IF(H104,INDEX('Monthly Prices'!B92:CB92,$G$5)*U104,FALSE) -> FALSE | O104: TRUE | P104: 1967 | Q104: ='Monthly Prices'!B92 -> 1.33 | R104: 1.329166667 | S104: =_xlfn.XLOOKUP(P104,'Annual Real'!A:A,'Annual Real'!B:B,0,0) -> 6.364463393 | T104: 10.10355623 | U104: 10.10355623 | V104: FALSE | W104: FALSE | X104: 0.329 | Y104: 0.329 | Z104: -0.0006075334143 | AA104: 1.120190671 | AB104: 7 | AC104: 1967-01-01 | AD104: 10.10355623
C105: ='Monthly Prices'!A93 -> 1967M03 | D105: 1967-02-01 | E105: 86 | F105: FALSE | G105: TRUE | H105: FALSE | J105: =INDEX('Monthly Prices'!B93:CB93,$G$4) -> 1.33 | K105: =IF(H105,INDEX('Monthly Prices'!B93:CB93,$G$4)*U105,FALSE) -> FALSE | L105: TRUE | M105: =INDEX('Monthly Prices'!B93:CB93,$G$5) -> 1.33 | N105: =IF(H105,INDEX('Monthly Prices'!B93:CB93,$G$5)*U105,FALSE) -> FALSE | O105: TRUE | P105: 1967 | Q105: ='Monthly Prices'!B93 -> 1.33 | R105: 1.329166667 | S105: =_xlfn.XLOOKUP(P105,'Annual Real'!A:A,'Annual Real'!B:B,0,0) -> 6.364463393 | T105: 10.07293939 | U105: 10.07293939 | V105: FALSE | W105: FALSE | X105: 0.33 | Y105: 0.33 | Z105: 0.003039513678 | AA105: 1.123595506 | AB105: 7 | AC105: 1967-02-01 | AD105: 10.07293939
C106: ='Monthly Prices'!A94 -> 1967M04 | D106: 1967-03-01 | E106: 87 | F106: FALSE | G106: TRUE | H106: FALSE | J106: =INDEX('Monthly Prices'!B94:CB94,$G$4) -> 1.33 | K106: =IF(H106,INDEX('Monthly Prices'!B94:CB94,$G$4)*U106,FALSE) -> FALSE | L106: TRUE | M106: =INDEX('Monthly Prices'!B94:CB94,$G$5) -> 1.33 | N106: =IF(H106,INDEX('Monthly Prices'!B94:CB94,$G$5)*U106,FALSE) -> FALSE | O106: TRUE | P106: 1967 | Q106: ='Monthly Prices'!B94 -> 1.33 | R106: 1.329166667 | S106: =_xlfn.XLOOKUP(P106,'Annual Real'!A:A,'Annual Real'!B:B,0,0) -> 6.364463393 | T106: 10.07293939 | U106: 10.07293939 | V106: FALSE | W106: FALSE | X106: 0.33 | Y106: 0.33 | Z106: 0 | AA106: 1.123595506 | AB106: 7 | AC106: 1967-03-01 | AD106: 10.07293939
C107: ='Monthly Prices'!A95 -> 1967M05 | D107: 1967-04-01 | E107: 88 | F107: FALSE | G107: TRUE | H107: FALSE | J107: =INDEX('Monthly Prices'!B95:CB95,$G$4) -> 1.33 | K107: =IF(H107,INDEX('Monthly Prices'!B95:CB95,$G$4)*U107,FALSE) -> FALSE | L107: TRUE | M107: =INDEX('Monthly Prices'!B95:CB95,$G$5) -> 1.33 | N107: =IF(H107,INDEX('Monthly Prices'!B95:CB95,$G$5)*U107,FALSE) -> FALSE | O107: TRUE | P107: 1967 | Q107: ='Monthly Prices'!B95 -> 1.33 | R107: 1.329166667 | S107: =_xlfn.XLOOKUP(P107,'Annual Real'!A:A,'Annual Real'!B:B,0,0) -> 6.364463393 | T107: 10.04250755 | U107: 10.04250755 | V107: FALSE | W107: FALSE | X107: 0.331 | Y107: 0.331 | Z107: 0.00303030303 | AA107: 1.12700034 | AB107: 7 | AC107: 1967-04-01 | AD107: 10.04250755
C108: ='Monthly Prices'!A96 -> 1967M06 | D108: 1967-05-01 | E108: 89 | F108: FALSE | G108: TRUE | H108: FALSE | J108: =INDEX('Monthly Prices'!B96:CB96,$G$4) -> 1.33 | K108: =IF(H108,INDEX('Monthly Prices'!B96:CB96,$G$4)*U108,FALSE) -> FALSE | L108: TRUE | M108: =INDEX('Monthly Prices'!B96:CB96,$G$5) -> 1.33 | N108: =IF(H108,INDEX('Monthly Prices'!B96:CB96,$G$5)*U108,FALSE) -> FALSE | O108: TRUE | P108: 1967 | Q108: ='Monthly Prices'!B96 -> 1.33 | R108: 1.329166667 | S108: =_xlfn.XLOOKUP(P108,'Annual Real'!A:A,'Annual Real'!B:B,0,0) -> 6.364463393 | T108: 10.04250755 | U108: 10.04250755 | V108: FALSE | W108: FALSE | X108: 0.331 | Y108: 0.331 | Z108: 0 | AA108: 1.12700034 | AB108: 7 | AC108: 1967-05-01 | AD108: 10.04250755
C109: ='Monthly Prices'!A97 -> 1967M07 | D109: 1967-06-01 | E109: 90 | F109: FALSE | G109: TRUE | H109: FALSE | J109: =INDEX('Monthly Prices'!B97:CB97,$G$4) -> 1.33 | K109: =IF(H109,INDEX('Monthly Prices'!B97:CB97,$G$4)*U109,FALSE) -> FALSE | L109: TRUE | M109: =INDEX('Monthly Prices'!B97:CB97,$G$5) -> 1.33 | N109: =IF(H109,INDEX('Monthly Prices'!B97:CB97,$G$5)*U109,FALSE) -> FALSE | O109: TRUE | P109: 1967 | Q109: ='Monthly Prices'!B97 -> 1.33 | R109: 1.329166667 | S109: =_xlfn.XLOOKUP(P109,'Annual Real'!A:A,'Annual Real'!B:B,0,0) -> 6.364463393 | T109: 9.982192192 | U109: 9.982192192 | V109: FALSE | W109: FALSE | X109: 0.333 | Y109: 0.333 | Z109: 0.006042296073 | AA109: 1.13381001 | AB109: 7 | AC109: 1967-06-01 | AD109: 9.982192192
C110: ='Monthly Prices'!A98 -> 1967M08 | D110: 1967-07-01 | E110: 91 | F110: FALSE | G110: TRUE | H110: FALSE | J110: =INDEX('Monthly Prices'!B98:CB98,$G$4) -> 1.33 | K110: =IF(H110,INDEX('Monthly Prices'!B98:CB98,$G$4)*U110,FALSE) -> FALSE | L110: TRUE | M110: =INDEX('Monthly Prices'!B98:CB98,$G$5) -> 1.33 | N110: =IF(H110,INDEX('Monthly Prices'!B98:CB98,$G$5)*U110,FALSE) -> FALSE | O110: TRUE | P110: 1967 | Q110: ='Monthly Prices'!B98 -> 1.33 | R110: 1.329166667 | S110: =_xlfn.XLOOKUP(P110,'Annual Real'!A:A,'Annual Real'!B:B,0,0) -> 6.364463393 | T110: 9.952305389 | U110: 9.952305389 | V110: FALSE | W110: FALSE | X110: 0.334 | Y110: 0.334 | Z110: 0.003003003003 | AA110: 1.137214845 | AB110: 7 | AC110: 1967-07-01 | AD110: 9.952305389
C111: ='Monthly Prices'!A99 -> 1967M09 | D111: 1967-08-01 | E111: 92 | F111: FALSE | G111: TRUE | H111: FALSE | J111: =INDEX('Monthly Prices'!B99:CB99,$G$4) -> 1.33 | K111: =IF(H111,INDEX('Monthly Prices'!B99:CB99,$G$4)*U111,FALSE) -> FALSE | L111: TRUE | M111: =INDEX('Monthly Prices'!B99:CB99,$G$5) -> 1.33 | N111: =IF(H111,INDEX('Monthly Prices'!B99:CB99,$G$5)*U111,FALSE) -> FALSE | O111: TRUE | P111: 1967 | Q111: ='Monthly Prices'!B99 -> 1.33 | R111: 1.329166667 | S111: =_xlfn.XLOOKUP(P111,'Annual Real'!A:A,'Annual Real'!B:B,0,0) -> 6.364463393 | T111: 9.922597015 | U111: 9.922597015 | V111: FALSE | W111: FALSE | X111: 0.335 | Y111: 0.335 | Z111: 0.002994011976 | AA111: 1.14061968 | AB111: 7 | AC111: 1967-08-01 | AD111: 9.922597015
C112: ='Monthly Prices'!A100 -> 1967M10 | D112: 1967-09-01 | E112: 93 | F112: FALSE | G112: TRUE | H112: FALSE | J112: =INDEX('Monthly Prices'!B100:CB100,$G$4) -> 1.33 | K112: =IF(H112,INDEX('Monthly Prices'!B100:CB100,$G$4)*U112,FALSE) -> FALSE | L112: TRUE | M112: =INDEX('Monthly Prices'!B100:CB100,$G$5) -> 1.33 | N112: =IF(H112,INDEX('Monthly Prices'!B100:CB100,$G$5)*U112,FALSE) -> FALSE | O112: TRUE | P112: 1967 | Q112: ='Monthly Prices'!B100 -> 1.33 | R112: 1.329166667 | S112: =_xlfn.XLOOKUP(P112,'Annual Real'!A:A,'Annual Real'!B:B,0,0) -> 6.364463393 | T112: 9.893065476 | U112: 9.893065476 | V112: FALSE | W112: FALSE | X112: 0.336 | Y112: 0.336 | Z112: 0.002985074627 | AA112: 1.144024515 | AB112: 7 | AC112: 1967-09-01 | AD112: 9.893065476
C113: ='Monthly Prices'!A101 -> 1967M11 | D113: 1967-10-01 | E113: 94 | F113: FALSE | G113: TRUE | H113: FALSE | J113: =INDEX('Monthly Prices'!B101:CB101,$G$4) -> 1.33 | K113: =IF(H113,INDEX('Monthly Prices'!B101:CB101,$G$4)*U113,FALSE) -> FALSE | L113: TRUE | M113: =INDEX('Monthly Prices'!B101:CB101,$G$5) -> 1.33 | N113: =IF(H113,INDEX('Monthly Prices'!B101:CB101,$G$5)*U113,FALSE) -> FALSE | O113: TRUE | P113: 1967 | Q113: ='Monthly Prices'!B101 -> 1.33 | R113: 1.329166667 | S113: =_xlfn.XLOOKUP(P113,'Annual Real'!A:A,'Annual Real'!B:B,0,0) -> 6.364463393 | T113: 9.863709199 | U113: 9.863709199 | V113: FALSE | W113: FALSE | X113: 0.337 | Y113: 0.337 | Z113: 0.002976190476 | AA113: 1.14742935 | AB113: 7 | AC113: 1967-10-01 | AD113: 9.863709199
C114: ='Monthly Prices'!A102 -> 1967M12 | D114: 1967-11-01 | E114: 95 | F114: FALSE | G114: TRUE | H114: FALSE | J114: =INDEX('Monthly Prices'!B102:CB102,$G$4) -> 1.33 | K114: =IF(H114,INDEX('Monthly Prices'!B102:CB102,$G$4)*U114,FALSE) -> FALSE | L114: TRUE | M114: =INDEX('Monthly Prices'!B102:CB102,$G$5) -> 1.33 | N114: =IF(H114,INDEX('Monthly Prices'!B102:CB102,$G$5)*U114,FALSE) -> FALSE | O114: TRUE | P114: 1967 | Q114: ='Monthly Prices'!B102 -> 1.33 | R114: 1.329166667 | S114: =_xlfn.XLOOKUP(P114,'Annual Real'!A:A,'Annual Real'!B:B,0,0) -> 6.364463393 | T114: 9.805516224 | U114: 9.805516224 | V114: FALSE | W114: FALSE | X114: 0.339 | Y114: 0.339 | Z114: 0.005934718101 | AA114: 1.154239019 | AB114: 7 | AC114: 1967-11-01 | AD114: 9.805516224
C115: ='Monthly Prices'!A103 -> 1968M01 | D115: 1967-12-01 | E115: 96 | F115: FALSE | G115: TRUE | H115: FALSE | J115: =INDEX('Monthly Prices'!B103:CB103,$G$4) -> 1.32 | K115: =IF(H115,INDEX('Monthly Prices'!B103:CB103,$G$4)*U115,FALSE) -> FALSE | L115: TRUE | M115: =INDEX('Monthly Prices'!B103:CB103,$G$5) -> 1.32 | N115: =IF(H115,INDEX('Monthly Prices'!B103:CB103,$G$5)*U115,FALSE) -> FALSE | O115: TRUE | P115: 1967 | Q115: ='Monthly Prices'!B103 -> 1.32 | R115: 1.329166667 | S115: =_xlfn.XLOOKUP(P115,'Annual Real'!A:A,'Annual Real'!B:B,0,0) -> 6.364463393 | T115: 9.776676471 | U115: 9.776676471 | V115: FALSE | W115: FALSE | X115: 0.34 | Y115: 0.34 | Z115: 0.002949852507 | AA115: 1.157643854 | AB115: 7 | AC115: 1967-12-01 | AD115: 9.776676471
C116: ='Monthly Prices'!A104 -> 1968M02 | D116: 1968-01-01 | E116: 97 | F116: FALSE | G116: TRUE | H116: FALSE | J116: =INDEX('Monthly Prices'!B104:CB104,$G$4) -> 1.32 | K116: =IF(H116,INDEX('Monthly Prices'!B104:CB104,$G$4)*U116,FALSE) -> FALSE | L116: TRUE | M116: =INDEX('Monthly Prices'!B104:CB104,$G$5) -> 1.32 | N116: =IF(H116,INDEX('Monthly Prices'!B104:CB104,$G$5)*U116,FALSE) -> FALSE | O116: TRUE | P116: 1968 | Q116: ='Monthly Prices'!B104 -> 1.32 | R116: 1.315833333 | S116: =_xlfn.XLOOKUP(P116,'Annual Real'!A:A,'Annual Real'!B:B,0,0) -> 6.372129832 | T116: 9.748005865 | U116: 9.748005865 | V116: FALSE | W116: FALSE | X116: 0.341 | Y116: 0.341 | Z116: 0.002941176471 | AA116: 1.161048689 | AB116: 7 | AC116: 1968-01-01 | AD116: 9.748005865
C117: ='Monthly Prices'!A105 -> 1968M03 | D117: 1968-02-01 | E117: 98 | F117: FALSE | G117: TRUE | H117: FALSE | J117: =INDEX('Monthly Prices'!B105:CB105,$G$4) -> 1.32 | K117: =IF(H117,INDEX('Monthly Prices'!B105:CB105,$G$4)*U117,FALSE) -> FALSE | L117: TRUE | M117: =INDEX('Monthly Prices'!B105:CB105,$G$5) -> 1.32 | N117: =IF(H117,INDEX('Monthly Prices'!B105:CB105,$G$5)*U117,FALSE) -> FALSE | O117: TRUE | P117: 1968 | Q117: ='Monthly Prices'!B105 -> 1.32 | R117: 1.315833333 | S117: =_xlfn.XLOOKUP(P117,'Annual Real'!A:A,'Annual Real'!B:B,0,0) -> 6.372129832 | T117: 9.719502924 | U117: 9.719502924 | V117: FALSE | W117: FALSE | X117: 0.342 | Y117: 0.342 | Z117: 0.00293255132 | AA117: 1.164453524 | AB117: 7 | AC117: 1968-02-01 | AD117: 9.719502924
C118: ='Monthly Prices'!A106 -> 1968M04 | D118: 1968-03-01 | E118: 99 | F118: FALSE | G118: TRUE | H118: FALSE | J118: =INDEX('Monthly Prices'!B106:CB106,$G$4) -> 1.32 | K118: =IF(H118,INDEX('Monthly Prices'!B106:CB106,$G$4)*U118,FALSE) -> FALSE | L118: TRUE | M118: =INDEX('Monthly Prices'!B106:CB106,$G$5) -> 1.32 | N118: =IF(H118,INDEX('Monthly Prices'!B106:CB106,$G$5)*U118,FALSE) -> FALSE | O118: TRUE | P118: 1968 | Q118: ='Monthly Prices'!B106 -> 1.32 | R118: 1.315833333 | S118: =_xlfn.XLOOKUP(P118,'Annual Real'!A:A,'Annual Real'!B:B,0,0) -> 6.372129832 | T118: 9.691166181 | U118: 9.691166181 | V118: FALSE | W118: FALSE | X118: 0.343 | Y118: 0.343 | Z118: 0.002923976608 | AA118: 1.167858359 | AB118: 7 | AC118: 1968-03-01 | AD118: 9.691166181
C119: ='Monthly Prices'!A107 -> 1968M05 | D119: 1968-04-01 | E119: 100 | F119: FALSE | G119: TRUE | H119: FALSE | J119: =INDEX('Monthly Prices'!B107:CB107,$G$4) -> 1.32 | K119: =IF(H119,INDEX('Monthly Prices'!B107:CB107,$G$4)*U119,FALSE) -> FALSE | L119: TRUE | M119: =INDEX('Monthly Prices'!B107:CB107,$G$5) -> 1.32 | N119: =IF(H119,INDEX('Monthly Prices'!B107:CB107,$G$5)*U119,FALSE) -> FALSE | O119: TRUE | P119: 1968 | Q119: ='Monthly Prices'!B107 -> 1.32 | R119: 1.315833333 | S119: =_xlfn.XLOOKUP(P119,'Annual Real'!A:A,'Annual Real'!B:B,0,0) -> 6.372129832 | T119: 9.662994186 | U119: 9.662994186 | V119: FALSE | W119: FALSE | X119: 0.344 | Y119: 0.344 | Z119: 0.002915451895 | AA119: 1.171263194 | AB119: 7 | AC119: 1968-04-01 | AD119: 9.662994186
C120: ='Monthly Prices'!A108 -> 1968M06 | D120: 1968-05-01 | E120: 101 | F120: FALSE | G120: TRUE | H120: FALSE | J120: =INDEX('Monthly Prices'!B108:CB108,$G$4) -> 1.32 | K120: =IF(H120,INDEX('Monthly Prices'!B108:CB108,$G$4)*U120,FALSE) -> FALSE | L120: TRUE | M120: =INDEX('Monthly Prices'!B108:CB108,$G$5) -> 1.32 | N120: =IF(H120,INDEX('Monthly Prices'!B108:CB108,$G$5)*U120,FALSE) -> FALSE | O120: TRUE | P120: 1968 | Q120: ='Monthly Prices'!B108 -> 1.32 | R120: 1.315833333 | S120: =_xlfn.XLOOKUP(P120,'Annual Real'!A:A,'Annual Real'!B:B,0,0) -> 6.372129832 | T120: 9.634985507 | U120: 9.634985507 | V120: FALSE | W120: FALSE | X120: 0.345 | Y120: 0.345 | Z120: 0.002906976744 | AA120: 1.174668029 | AB120: 7 | AC120: 1968-05-01 | AD120: 9.634985507
C121: ='Monthly Prices'!A109 -> 1968M07 | D121: 1968-06-01 | E121: 102 | F121: FALSE | G121: TRUE | H121: FALSE | J121: =INDEX('Monthly Prices'!B109:CB109,$G$4) -> 1.32 | K121: =IF(H121,INDEX('Monthly Prices'!B109:CB109,$G$4)*U121,FALSE) -> FALSE | L121: TRUE | M121: =INDEX('Monthly Prices'!B109:CB109,$G$5) -> 1.32 | N121: =IF(H121,INDEX('Monthly Prices'!B109:CB109,$G$5)*U121,FALSE) -> FALSE | O121: TRUE | P121: 1968 | Q121: ='Monthly Prices'!B109 -> 1.32 | R121: 1.315833333 | S121: =_xlfn.XLOOKUP(P121,'Annual Real'!A:A,'Annual Real'!B:B,0,0) -> 6.372129832 | T121: 9.57945245 | U121: 9.57945245 | V121: FALSE | W121: FALSE | X121: 0.347 | Y121: 0.347 | Z121: 0.005797101449 | AA121: 1.181477698 | AB121: 7 | AC121: 1968-06-01 | AD121: 9.57945245
C122: ='Monthly Prices'!A110 -> 1968M08 | D122: 1968-07-01 | E122: 103 | F122: FALSE | G122: TRUE | H122: FALSE | J122: =INDEX('Monthly Prices'!B110:CB110,$G$4) -> 1.32 | K122: =IF(H122,INDEX('Monthly Prices'!B110:CB110,$G$4)*U122,FALSE) -> FALSE | L122: TRUE | M122: =INDEX('Monthly Prices'!B110:CB110,$G$5) -> 1.32 | N122: =IF(H122,INDEX('Monthly Prices'!B110:CB110,$G$5)*U122,FALSE) -> FALSE | O122: TRUE | P122: 1968 | Q122: ='Monthly Prices'!B110 -> 1.32 | R122: 1.315833333 | S122: =_xlfn.XLOOKUP(P122,'Annual Real'!A:A,'Annual Real'!B:B,0,0) -> 6.372129832 | T122: 9.524555874 | U122: 9.524555874 | V122: FALSE | W122: FALSE | X122: 0.349 | Y122: 0.349 | Z122: 0.005763688761 | AA122: 1.188287368 | AB122: 7 | AC122: 1968-07-01 | AD122: 9.524555874
C123: ='Monthly Prices'!A111 -> 1968M09 | D123: 1968-08-01 | E123: 104 | F123: FALSE | G123: TRUE | H123: FALSE | J123: =INDEX('Monthly Prices'!B111:CB111,$G$4) -> 1.32 | K123: =IF(H123,INDEX('Monthly Prices'!B111:CB111,$G$4)*U123,FALSE) -> FALSE | L123: TRUE | M123: =INDEX('Monthly Prices'!B111:CB111,$G$5) -> 1.32 | N123: =IF(H123,INDEX('Monthly Prices'!B111:CB111,$G$5)*U123,FALSE) -> FALSE | O123: TRUE | P123: 1968 | Q123: ='Monthly Prices'!B111 -> 1.32 | R123: 1.315833333 | S123: =_xlfn.XLOOKUP(P123,'Annual Real'!A:A,'Annual Real'!B:B,0,0) -> 6.372129832 | T123: 9.497342857 | U123: 9.497342857 | V123: FALSE | W123: FALSE | X123: 0.35 | Y123: 0.35 | Z123: 0.002865329513 | AA123: 1.191692203 | AB123: 7 | AC123: 1968-08-01 | AD123: 9.497342857
C124: ='Monthly Prices'!A112 -> 1968M10 | D124: 1968-09-01 | E124: 105 | F124: FALSE | G124: TRUE | H124: FALSE | J124: =INDEX('Monthly Prices'!B112:CB112,$G$4) -> 1.32 | K124: =IF(H124,INDEX('Monthly Prices'!B112:CB112,$G$4)*U124,FALSE) -> FALSE | L124: TRUE | M124: =INDEX('Monthly Prices'!B112:CB112,$G$5) -> 1.32 | N124: =IF(H124,INDEX('Monthly Prices'!B112:CB112,$G$5)*U124,FALSE) -> FALSE | O124: TRUE | P124: 1968 | Q124: ='Monthly Prices'!B112 -> 1.32 | R124: 1.315833333 | S124: =_xlfn.XLOOKUP(P124,'Annual Real'!A:A,'Annual Real'!B:B,0,0) -> 6.372129832 | T124: 9.4702849 | U124: 9.4702849 | V124: FALSE | W124: FALSE | X124: 0.351 | Y124: 0.351 | Z124: 0.002857142857 | AA124: 1.195097038 | AB124: 7 | AC124: 1968-09-01 | AD124: 9.4702849
C125: ='Monthly Prices'!A113 -> 1968M11 | D125: 1968-10-01 | E125: 106 | F125: FALSE | G125: TRUE | H125: FALSE | J125: =INDEX('Monthly Prices'!B113:CB113,$G$4) -> 1.32 | K125: =IF(H125,INDEX('Monthly Prices'!B113:CB113,$G$4)*U125,FALSE) -> FALSE | L125: TRUE | M125: =INDEX('Monthly Prices'!B113:CB113,$G$5) -> 1.32 | N125: =IF(H125,INDEX('Monthly Prices'!B113:CB113,$G$5)*U125,FALSE) -> FALSE | O125: TRUE | P125: 1968 | Q125: ='Monthly Prices'!B113 -> 1.32 | R125: 1.315833333 | S125: =_xlfn.XLOOKUP(P125,'Annual Real'!A:A,'Annual Real'!B:B,0,0) -> 6.372129832 | T125: 9.416628895 | U125: 9.416628895 | V125: FALSE | W125: FALSE | X125: 0.353 | Y125: 0.353 | Z125: 0.005698005698 | AA125: 1.201906708 | AB125: 7 | AC125: 1968-10-01 | AD125: 9.416628895
C126: ='Monthly Prices'!A114 -> 1968M12 | D126: 1968-11-01 | E126: 107 | F126: FALSE | G126: TRUE | H126: FALSE | J126: =INDEX('Monthly Prices'!B114:CB114,$G$4) -> 1.32 | K126: =IF(H126,INDEX('Monthly Prices'!B114:CB114,$G$4)*U126,FALSE) -> FALSE | L126: TRUE | M126: =INDEX('Monthly Prices'!B114:CB114,$G$5) -> 1.32 | N126: =IF(H126,INDEX('Monthly Prices'!B114:CB114,$G$5)*U126,FALSE) -> FALSE | O126: TRUE | P126: 1968 | Q126: ='Monthly Prices'!B114 -> 1.32 | R126: 1.315833333 | S126: =_xlfn.XLOOKUP(P126,'Annual Real'!A:A,'Annual Real'!B:B,0,0) -> 6.372129832 | T126: 9.390028249 | U126: 9.390028249 | V126: FALSE | W126: FALSE | X126: 0.354 | Y126: 0.354 | Z126: 0.00283286119 | AA126: 1.205311542 | AB126: 7 | AC126: 1968-11-01 | AD126: 9.390028249
C127: ='Monthly Prices'!A115 -> 1969M01 | D127: 1968-12-01 | E127: 108 | F127: TRUE | G127: TRUE | H127: TRUE | I127: 1968-12-01 | J127: =INDEX('Monthly Prices'!B115:CB115,$G$4) -> 1.27 | K127: =IF(H127,INDEX('Monthly Prices'!B115:CB115,$G$4)*U127,FALSE) -> 11.85833961 | L127: TRUE | M127: =INDEX('Monthly Prices'!B115:CB115,$G$5) -> 1.27 | N127: =IF(H127,INDEX('Monthly Prices'!B115:CB115,$G$5)*U127,FALSE) -> 11.85833961 | O127: TRUE | P127: 1968 | Q127: ='Monthly Prices'!B115 -> 1.27 | R127: 1.315833333 | S127: =_xlfn.XLOOKUP(P127,'Annual Real'!A:A,'Annual Real'!B:B,0,0) -> 6.372129832 | T127: 9.337275281 | U127: 9.337275281 | V127: FALSE | W127: FALSE | X127: 0.356 | Y127: 0.356 | Z127: 0.005649717514 | AA127: 1.212121212 | AB127: 7 | AC127: 1968-12-01 | AD127: 9.337275281
C128: ='Monthly Prices'!A116 -> 1969M02 | D128: 1969-01-01 | E128: 109 | F128: TRUE | G128: TRUE | H128: TRUE | I128: 1969-01-01 | J128: =INDEX('Monthly Prices'!B116:CB116,$G$4) -> 1.27 | K128: =IF(H128,INDEX('Monthly Prices'!B116:CB116,$G$4)*U128,FALSE) -> 11.82512297 | L128: TRUE | M128: =INDEX('Monthly Prices'!B116:CB116,$G$5) -> 1.27 | N128: =IF(H128,INDEX('Monthly Prices'!B116:CB116,$G$5)*U128,FALSE) -> 11.82512297 | O128: TRUE | P128: 1969 | Q128: ='Monthly Prices'!B116 -> 1.27 | R128: 1.265 | S128: =_xlfn.XLOOKUP(P128,'Annual Real'!A:A,'Annual Real'!B:B,0,0) -> 5.819224679 | T128: 9.311120448 | U128: 9.311120448 | V128: -0.002805050928 | W128: -0.002805050928 | X128: 0.357 | Y128: 0.357 | Z128: 0.002808988764 | AA128: 1.215526047 | AB128: 7 | AC128: 1969-01-01 | AD128: 9.311120448
C129: ='Monthly Prices'!A117 -> 1969M03 | D129: 1969-02-01 | E129: 110 | F129: TRUE | G129: TRUE | H129: TRUE | I129: 1969-02-01 | J129: =INDEX('Monthly Prices'!B117:CB117,$G$4) -> 1.27 | K129: =IF(H129,INDEX('Monthly Prices'!B117:CB117,$G$4)*U129,FALSE) -> 11.7920919 | L129: TRUE | M129: =INDEX('Monthly Prices'!B117:CB117,$G$5) -> 1.27 | N129: =IF(H129,INDEX('Monthly Prices'!B117:CB117,$G$5)*U129,FALSE) -> 11.7920919 | O129: TRUE | P129: 1969 | Q129: ='Monthly Prices'!B117 -> 1.27 | R129: 1.265 | S129: =_xlfn.XLOOKUP(P129,'Annual Real'!A:A,'Annual Real'!B:B,0,0) -> 5.819224679 | T129: 9.285111732 | U129: 9.285111732 | V129: -0.002797204621 | W129: -0.002797204621 | X129: 0.358 | Y129: 0.358 | Z129: 0.002801120448 | AA129: 1.218930882 | AB129: 7 | AC129: 1969-02-01 | AD129: 9.285111732
C130: ='Monthly Prices'!A118 -> 1969M04 | D130: 1969-03-01 | E130: 111 | F130: TRUE | G130: TRUE | H130: TRUE | I130: 1969-03-01 | J130: =INDEX('Monthly Prices'!B118:CB118,$G$4) -> 1.27 | K130: =IF(H130,INDEX('Monthly Prices'!B118:CB118,$G$4)*U130,FALSE) -> 11.69409668 | L130: TRUE | M130: =INDEX('Monthly Prices'!B118:CB118,$G$5) -> 1.27 | N130: =IF(H130,INDEX('Monthly Prices'!B118:CB118,$G$5)*U130,FALSE) -> 11.69409668 | O130: TRUE | P130: 1969 | Q130: ='Monthly Prices'!B118 -> 1.27 | R130: 1.265 | S130: =_xlfn.XLOOKUP(P130,'Annual Real'!A:A,'Annual Real'!B:B,0,0) -> 5.819224679 | T130: 9.207950139 | U130: 9.207950139 | V130: -0.008344971932 | W130: -0.008344971932 | X130: 0.361 | Y130: 0.361 | Z130: 0.008379888268 | AA130: 1.229145386 | AB130: 7 | AC130: 1969-03-01 | AD130: 9.207950139
C131: ='Monthly Prices'!A119 -> 1969M05 | D131: 1969-04-01 | E131: 112 | F131: TRUE | G131: TRUE | H131: TRUE | I131: 1969-04-01 | J131: =INDEX('Monthly Prices'!B119:CB119,$G$4) -> 1.27 | K131: =IF(H131,INDEX('Monthly Prices'!B119:CB119,$G$4)*U131,FALSE) -> 11.62966639 | L131: TRUE | M131: =INDEX('Monthly Prices'!B119:CB119,$G$5) -> 1.27 | N131: =IF(H131,INDEX('Monthly Prices'!B119:CB119,$G$5)*U131,FALSE) -> 11.62966639 | O131: TRUE | P131: 1969 | Q131: ='Monthly Prices'!B119 -> 1.27 | R131: 1.265 | S131: =_xlfn.XLOOKUP(P131,'Annual Real'!A:A,'Annual Real'!B:B,0,0) -> 5.819224679 | T131: 9.157217631 | U131: 9.157217631 | V131: -0.005524875932 | W131: -0.005524875932 | X131: 0.363 | Y131: 0.363 | Z131: 0.005540166205 | AA131: 1.235955056 | AB131: 7 | AC131: 1969-04-01 | AD131: 9.157217631
C132: ='Monthly Prices'!A120 -> 1969M06 | D132: 1969-05-01 | E132: 113 | F132: TRUE | G132: TRUE | H132: TRUE | I132: 1969-05-01 | J132: =INDEX('Monthly Prices'!B120:CB120,$G$4) -> 1.27 | K132: =IF(H132,INDEX('Monthly Prices'!B120:CB120,$G$4)*U132,FALSE) -> 11.59771676 | L132: TRUE | M132: =INDEX('Monthly Prices'!B120:CB120,$G$5) -> 1.27 | N132: =IF(H132,INDEX('Monthly Prices'!B120:CB120,$G$5)*U132,FALSE) -> 11.59771676 | O132: TRUE | P132: 1969 | Q132: ='Monthly Prices'!B120 -> 1.27 | R132: 1.265 | S132: =_xlfn.XLOOKUP(P132,'Annual Real'!A:A,'Annual Real'!B:B,0,0) -> 5.819224679 | T132: 9.13206044 | U132: 9.13206044 | V132: -0.002751033372 | W132: -0.002751033372 | X132: 0.364 | Y132: 0.364 | Z132: 0.002754820937 | AA132: 1.239359891 | AB132: 7 | AC132: 1969-05-01 | AD132: 9.13206044
C133: ='Monthly Prices'!A121 -> 1969M07 | D133: 1969-06-01 | E133: 114 | F133: TRUE | G133: TRUE | H133: TRUE | I133: 1969-06-01 | J133: =INDEX('Monthly Prices'!B121:CB121,$G$4) -> 1.27 | K133: =IF(H133,INDEX('Monthly Prices'!B121:CB121,$G$4)*U133,FALSE) -> 11.53434126 | L133: TRUE | M133: =INDEX('Monthly Prices'!B121:CB121,$G$5) -> 1.27 | N133: =IF(H133,INDEX('Monthly Prices'!B121:CB121,$G$5)*U133,FALSE) -> 11.53434126 | O133: TRUE | P133: 1969 | Q133: ='Monthly Prices'!B121 -> 1.27 | R133: 1.265 | S133: =_xlfn.XLOOKUP(P133,'Annual Real'!A:A,'Annual Real'!B:B,0,0) -> 5.819224679 | T133: 9.08215847 | U133: 9.08215847 | V133: -0.005479465765 | W133: -0.005479465765 | X133: 0.366 | Y133: 0.366 | Z133: 0.005494505495 | AA133: 1.246169561 | AB133: 7 | AC133: 1969-06-01 | AD133: 9.08215847
C134: ='Monthly Prices'!A122 -> 1969M08 | D134: 1969-07-01 | E134: 115 | F134: TRUE | G134: TRUE | H134: TRUE | I134: 1969-07-01 | J134: =INDEX('Monthly Prices'!B122:CB122,$G$4) -> 1.27 | K134: =IF(H134,INDEX('Monthly Prices'!B122:CB122,$G$4)*U134,FALSE) -> 11.47165462 | L134: TRUE | M134: =INDEX('Monthly Prices'!B122:CB122,$G$5) -> 1.27 | N134: =IF(H134,INDEX('Monthly Prices'!B122:CB122,$G$5)*U134,FALSE) -> 11.47165462 | O134: TRUE | P134: 1969 | Q134: ='Monthly Prices'!B122 -> 1.27 | R134: 1.265 | S134: =_xlfn.XLOOKUP(P134,'Annual Real'!A:A,'Annual Real'!B:B,0,0) -> 5.819224679 | T134: 9.032798913 | U134: 9.032798913 | V134: -0.005449604768 | W134: -0.005449604768 | X134: 0.368 | Y134: 0.368 | Z134: 0.005464480874 | AA134: 1.252979231 | AB134: 7 | AC134: 1969-07-01 | AD134: 9.032798913
C135: ='Monthly Prices'!A123 -> 1969M09 | D135: 1969-08-01 | E135: 116 | F135: TRUE | G135: TRUE | H135: TRUE | I135: 1969-08-01 | J135: =INDEX('Monthly Prices'!B123:CB123,$G$4) -> 1.27 | K135: =IF(H135,INDEX('Monthly Prices'!B123:CB123,$G$4)*U135,FALSE) -> 11.44056612 | L135: TRUE | M135: =INDEX('Monthly Prices'!B123:CB123,$G$5) -> 1.27 | N135: =IF(H135,INDEX('Monthly Prices'!B123:CB123,$G$5)*U135,FALSE) -> 11.44056612 | O135: TRUE | P135: 1969 | Q135: ='Monthly Prices'!B123 -> 1.27 | R135: 1.265 | S135: =_xlfn.XLOOKUP(P135,'Annual Real'!A:A,'Annual Real'!B:B,0,0) -> 5.819224679 | T135: 9.008319783 | U135: 9.008319783 | V135: -0.002713705872 | W135: -0.002713705872 | X135: 0.369 | Y135: 0.369 | Z135: 0.002717391304 | AA135: 1.256384065 | AB135: 7 | AC135: 1969-08-01 | AD135: 9.008319783
C136: ='Monthly Prices'!A124 -> 1969M10 | D136: 1969-09-01 | E136: 117 | F136: TRUE | G136: TRUE | H136: TRUE | I136: 1969-09-01 | J136: =INDEX('Monthly Prices'!B124:CB124,$G$4) -> 1.27 | K136: =IF(H136,INDEX('Monthly Prices'!B124:CB124,$G$4)*U136,FALSE) -> 11.37889191 | L136: TRUE | M136: =INDEX('Monthly Prices'!B124:CB124,$G$5) -> 1.27 | N136: =IF(H136,INDEX('Monthly Prices'!B124:CB124,$G$5)*U136,FALSE) -> 11.37889191 | O136: TRUE | P136: 1969 | Q136: ='Monthly Prices'!B124 -> 1.27 | R136: 1.265 | S136: =_xlfn.XLOOKUP(P136,'Annual Real'!A:A,'Annual Real'!B:B,0,0) -> 5.819224679 | T136: 8.959757412 | U136: 8.959757412 | V136: -0.005405418567 | W136: -0.005405418567 | X136: 0.371 | Y136: 0.371 | Z136: 0.005420054201 | AA136: 1.263193735 | AB136: 7 | AC136: 1969-09-01 | AD136: 8.959757412
C137: ='Monthly Prices'!A125 -> 1969M11 | D137: 1969-10-01 | E137: 118 | F137: TRUE | G137: TRUE | H137: TRUE | I137: 1969-10-01 | J137: =INDEX('Monthly Prices'!B125:CB125,$G$4) -> 1.27 | K137: =IF(H137,INDEX('Monthly Prices'!B125:CB125,$G$4)*U137,FALSE) -> 11.31787909 | L137: TRUE | M137: =INDEX('Monthly Prices'!B125:CB125,$G$5) -> 1.27 | N137: =IF(H137,INDEX('Monthly Prices'!B125:CB125,$G$5)*U137,FALSE) -> 11.31787909 | O137: TRUE | P137: 1969 | Q137: ='Monthly Prices'!B125 -> 1.27 | R137: 1.265 | S137: =_xlfn.XLOOKUP(P137,'Annual Real'!A:A,'Annual Real'!B:B,0,0) -> 5.819224679 | T137: 8.911715818 | U137: 8.911715818 | V137: -0.005376357036 | W137: -0.005376357036 | X137: 0.373 | Y137: 0.373 | Z137: 0.00539083558 | AA137: 1.270003405 | AB137: 7 | AC137: 1969-10-01 | AD137: 8.911715818
C138: ='Monthly Prices'!A126 -> 1969M12 | D138: 1969-11-01 | E138: 119 | F138: TRUE | G138: TRUE | H138: TRUE | I138: 1969-11-01 | J138: =INDEX('Monthly Prices'!B126:CB126,$G$4) -> 1.27 | K138: =IF(H138,INDEX('Monthly Prices'!B126:CB126,$G$4)*U138,FALSE) -> 11.25751707 | L138: TRUE | M138: =INDEX('Monthly Prices'!B126:CB126,$G$5) -> 1.27 | N138: =IF(H138,INDEX('Monthly Prices'!B126:CB126,$G$5)*U138,FALSE) -> 11.25751707 | O138: TRUE | P138: 1969 | Q138: ='Monthly Prices'!B126 -> 1.27 | R138: 1.265 | S138: =_xlfn.XLOOKUP(P138,'Annual Real'!A:A,'Annual Real'!B:B,0,0) -> 5.819224679 | T138: 8.864186667 | U138: 8.864186667 | V138: -0.005347606327 | W138: -0.005347606327 | X138: 0.375 | Y138: 0.375 | Z138: 0.005361930295 | AA138: 1.276813075 | AB138: 7 | AC138: 1969-11-01 | AD138: 8.864186667
C139: ='Monthly Prices'!A127 -> 1970M01 | D139: 1969-12-01 | E139: 120 | F139: TRUE | G139: TRUE | H139: TRUE | I139: 1969-12-01 | J139: =INDEX('Monthly Prices'!B127:CB127,$G$4) -> 1.21 | K139: =IF(H139,INDEX('Monthly Prices'!B127:CB127,$G$4)*U139,FALSE) -> 10.66876578 | L139: TRUE | M139: =INDEX('Monthly Prices'!B127:CB127,$G$5) -> 1.21 | N139: =IF(H139,INDEX('Monthly Prices'!B127:CB127,$G$5)*U139,FALSE) -> 10.66876578 | O139: TRUE | P139: 1969 | Q139: ='Monthly Prices'!B127 -> 1.21 | R139: 1.265 | S139: =_xlfn.XLOOKUP(P139,'Annual Real'!A:A,'Annual Real'!B:B,0,0) -> 5.819224679 | T139: 8.817161804 | U139: 8.817161804 | V139: -0.05371570234 | W139: -0.05371570234 | X139: 0.377 | Y139: 0.377 | Z139: 0.005333333333 | AA139: 1.283622744 | AB139: 7 | AC139: 1969-12-01 | AD139: 8.817161804
C140: ='Monthly Prices'!A128 -> 1970M02 | D140: 1970-01-01 | E140: 121 | F140: TRUE | G140: TRUE | H140: TRUE | I140: 1970-01-01 | J140: =INDEX('Monthly Prices'!B128:CB128,$G$4) -> 1.21 | K140: =IF(H140,INDEX('Monthly Prices'!B128:CB128,$G$4)*U140,FALSE) -> 10.61246623 | L140: TRUE | M140: =INDEX('Monthly Prices'!B128:CB128,$G$5) -> 1.21 | N140: =IF(H140,INDEX('Monthly Prices'!B128:CB128,$G$5)*U140,FALSE) -> 10.61246623 | O140: TRUE | P140: 1970 | Q140: ='Monthly Prices'!B128 -> 1.21 | R140: 1.245833333 | S140: =_xlfn.XLOOKUP(P140,'Annual Real'!A:A,'Annual Real'!B:B,0,0) -> 5.212235611 | T140: 8.770633245 | U140: 8.770633245 | V140: -0.005291017634 | W140: -0.005291017634 | X140: 0.379 | Y140: 0.379 | Z140: 0.005305039788 | AA140: 1.290432414 | AB140: 7 | AC140: 1970-01-01 | AD140: 8.770633245
C141: ='Monthly Prices'!A129 -> 1970M03 | D141: 1970-02-01 | E141: 122 | F141: TRUE | G141: TRUE | H141: TRUE | I141: 1970-02-01 | J141: =INDEX('Monthly Prices'!B129:CB129,$G$4) -> 1.21 | K141: =IF(H141,INDEX('Monthly Prices'!B129:CB129,$G$4)*U141,FALSE) -> 10.55675774 | L141: TRUE | M141: =INDEX('Monthly Prices'!B129:CB129,$G$5) -> 1.21 | N141: =IF(H141,INDEX('Monthly Prices'!B129:CB129,$G$5)*U141,FALSE) -> 10.55675774 | O141: TRUE | P141: 1970 | Q141: ='Monthly Prices'!B129 -> 1.21 | R141: 1.245833333 | S141: =_xlfn.XLOOKUP(P141,'Annual Real'!A:A,'Annual Real'!B:B,0,0) -> 5.212235611 | T141: 8.724593176 | U141: 8.724593176 | V141: -0.005263170044 | W141: -0.005263170044 | X141: 0.381 | Y141: 0.381 | Z141: 0.005277044855 | AA141: 1.297242084 | AB141: 7 | AC141: 1970-02-01 | AD141: 8.724593176
C142: ='Monthly Prices'!A130 -> 1970M04 | D142: 1970-03-01 | E142: 123 | F142: TRUE | G142: TRUE | H142: TRUE | I142: 1970-03-01 | J142: =INDEX('Monthly Prices'!B130:CB130,$G$4) -> 1.21 | K142: =IF(H142,INDEX('Monthly Prices'!B130:CB130,$G$4)*U142,FALSE) -> 10.50163107 | L142: TRUE | M142: =INDEX('Monthly Prices'!B130:CB130,$G$5) -> 1.21 | N142: =IF(H142,INDEX('Monthly Prices'!B130:CB130,$G$5)*U142,FALSE) -> 10.50163107 | O142: TRUE | P142: 1970 | Q142: ='Monthly Prices'!B130 -> 1.21 | R142: 1.245833333 | S142: =_xlfn.XLOOKUP(P142,'Annual Real'!A:A,'Annual Real'!B:B,0,0) -> 5.212235611 | T142: 8.679033943 | U142: 8.679033943 | V142: -0.005235614054 | W142: -0.005235614054 | X142: 0.383 | Y142: 0.383 | Z142: 0.005249343832 | AA142: 1.304051753 | AB142: 7 | AC142: 1970-03-01 | AD142: 8.679033943
C143: ='Monthly Prices'!A131 -> 1970M05 | D143: 1970-04-01 | E143: 124 | F143: TRUE | G143: TRUE | H143: TRUE | I143: 1970-04-01 | J143: =INDEX('Monthly Prices'!B131:CB131,$G$4) -> 1.21 | K143: =IF(H143,INDEX('Monthly Prices'!B131:CB131,$G$4)*U143,FALSE) -> 10.44707714 | L143: TRUE | M143: =INDEX('Monthly Prices'!B131:CB131,$G$5) -> 1.21 | N143: =IF(H143,INDEX('Monthly Prices'!B131:CB131,$G$5)*U143,FALSE) -> 10.44707714 | O143: TRUE | P143: 1970 | Q143: ='Monthly Prices'!B131 -> 1.21 | R143: 1.245833333 | S143: =_xlfn.XLOOKUP(P143,'Annual Real'!A:A,'Annual Real'!B:B,0,0) -> 5.212235611 | T143: 8.633948052 | U143: 8.633948052 | V143: -0.005208345107 | W143: -0.005208345107 | X143: 0.385 | Y143: 0.385 | Z143: 0.005221932115 | AA143: 1.310861423 | AB143: 7 | AC143: 1970-04-01 | AD143: 8.633948052
C144: ='Monthly Prices'!A132 -> 1970M06 | D144: 1970-05-01 | E144: 125 | F144: TRUE | G144: TRUE | H144: TRUE | I144: 1970-05-01 | J144: =INDEX('Monthly Prices'!B132:CB132,$G$4) -> 1.21 | K144: =IF(H144,INDEX('Monthly Prices'!B132:CB132,$G$4)*U144,FALSE) -> 10.42001218 | L144: TRUE | M144: =INDEX('Monthly Prices'!B132:CB132,$G$5) -> 1.21 | N144: =IF(H144,INDEX('Monthly Prices'!B132:CB132,$G$5)*U144,FALSE) -> 10.42001218 | O144: TRUE | P144: 1970 | Q144: ='Monthly Prices'!B132 -> 1.21 | R144: 1.245833333 | S144: =_xlfn.XLOOKUP(P144,'Annual Real'!A:A,'Annual Real'!B:B,0,0) -> 5.212235611 | T144: 8.611580311 | U144: 8.611580311 | V144: -0.002594035177 | W144: -0.002594035177 | X144: 0.386 | Y144: 0.386 | Z144: 0.002597402597 | AA144: 1.314266258 | AB144: 7 | AC144: 1970-05-01 | AD144: 8.611580311
C145: ='Monthly Prices'!A133 -> 1970M07 | D145: 1970-06-01 | E145: 126 | F145: TRUE | G145: TRUE | H145: TRUE | I145: 1970-06-01 | J145: =INDEX('Monthly Prices'!B133:CB133,$G$4) -> 1.21 | K145: =IF(H145,INDEX('Monthly Prices'!B133:CB133,$G$4)*U145,FALSE) -> 10.36630077 | L145: TRUE | M145: =INDEX('Monthly Prices'!B133:CB133,$G$5) -> 1.21 | N145: =IF(H145,INDEX('Monthly Prices'!B133:CB133,$G$5)*U145,FALSE) -> 10.36630077 | O145: TRUE | P145: 1970 | Q145: ='Monthly Prices'!B133 -> 1.21 | R145: 1.245833333 | S145: =_xlfn.XLOOKUP(P145,'Annual Real'!A:A,'Annual Real'!B:B,0,0) -> 5.212235611 | T145: 8.567190722 | U145: 8.567190722 | V145: -0.005167970158 | W145: -0.005167970158 | X145: 0.388 | Y145: 0.388 | Z145: 0.00518134715 | AA145: 1.321075928 | AB145: 7 | AC145: 1970-06-01 | AD145: 8.567190722
C146: ='Monthly Prices'!A134 -> 1970M08 | D146: 1970-07-01 | E146: 127 | F146: TRUE | G146: TRUE | H146: TRUE | I146: 1970-07-01 | J146: =INDEX('Monthly Prices'!B134:CB134,$G$4) -> 1.21 | K146: =IF(H146,INDEX('Monthly Prices'!B134:CB134,$G$4)*U146,FALSE) -> 10.33965219 | L146: TRUE | M146: =INDEX('Monthly Prices'!B134:CB134,$G$5) -> 1.21 | N146: =IF(H146,INDEX('Monthly Prices'!B134:CB134,$G$5)*U146,FALSE) -> 10.33965219 | O146: TRUE | P146: 1970 | Q146: ='Monthly Prices'!B134 -> 1.21 | R146: 1.245833333 | S146: =_xlfn.XLOOKUP(P146,'Annual Real'!A:A,'Annual Real'!B:B,0,0) -> 5.212235611 | T146: 8.545167095 | U146: 8.545167095 | V146: -0.002574003995 | W146: -0.002574003995 | X146: 0.389 | Y146: 0.389 | Z146: 0.002577319588 | AA146: 1.324480763 | AB146: 7 | AC146: 1970-07-01 | AD146: 8.545167095
C147: ='Monthly Prices'!A135 -> 1970M09 | D147: 1970-08-01 | E147: 128 | F147: TRUE | G147: TRUE | H147: TRUE | I147: 1970-08-01 | J147: =INDEX('Monthly Prices'!B135:CB135,$G$4) -> 1.21 | K147: =IF(H147,INDEX('Monthly Prices'!B135:CB135,$G$4)*U147,FALSE) -> 10.31314026 | L147: TRUE | M147: =INDEX('Monthly Prices'!B135:CB135,$G$5) -> 1.21 | N147: =IF(H147,INDEX('Monthly Prices'!B135:CB135,$G$5)*U147,FALSE) -> 10.31314026 | O147: TRUE | P147: 1970 | Q147: ='Monthly Prices'!B135 -> 1.21 | R147: 1.245833333 | S147: =_xlfn.XLOOKUP(P147,'Annual Real'!A:A,'Annual Real'!B:B,0,0) -> 5.212235611 | T147: 8.52325641 | U147: 8.52325641 | V147: -0.002567395505 | W147: -0.002567395505 | X147: 0.39 | Y147: 0.39 | Z147: 0.002570694087 | AA147: 1.327885598 | AB147: 7 | AC147: 1970-08-01 | AD147: 8.52325641
C148: ='Monthly Prices'!A136 -> 1970M10 | D148: 1970-09-01 | E148: 129 | F148: =AND(E148>=$M$4,L148) -> TRUE | G148: =AND(E148<=$M$5,O148) -> TRUE | H148: =AND(F148:G148) -> TRUE | I148: =IF(H148,D148,NA) -> 1970-09-01 | J148: =INDEX('Monthly Prices'!B136:CB136,$G$4) -> 1.21 | K148: =IF(H148,INDEX('Monthly Prices'!B136:CB136,$G$4)*U148,FALSE) -> 10.26052219 | L148: TRUE | M148: =INDEX('Monthly Prices'!B136:CB136,$G$5) -> 1.21 | N148: =IF(H148,INDEX('Monthly Prices'!B136:CB136,$G$5)*U148,FALSE) -> 10.26052219 | O148: =AND(ISNUMBER(M148),M148>0) -> TRUE | P148: 1970 | Q148: ='Monthly Prices'!B136 -> 1.21 | R148: 1.245833333 | S148: =_xlfn.XLOOKUP(P148,'Annual Real'!A:A,'Annual Real'!B:B,0,0) -> 5.212235611 | T148: 8.479770408 | U148: 8.479770408 | V148: -0.005115100667 | W148: -0.005115100667 | X148: 0.392 | Y148: 0.392 | Z148: 0.005128205128 | AA148: 1.334695267 | AB148: 7 | AC148: 1970-09-01 | AD148: 8.479770408
C149: ='Monthly Prices'!A137 -> 1970M11 | D149: =EDATE(D148,1) -> 1970-10-01 | E149: =E148+1 -> 130 | F149: TRUE | G149: TRUE | H149: TRUE | I149: 1970-10-01 | J149: =INDEX('Monthly Prices'!B137:CB137,$G$4) -> 1.21 | K149: =IF(H149,INDEX('Monthly Prices'!B137:CB137,$G$4)*U149,FALSE) -> 10.20843832 | L149: =ISNUMBER(J149) -> TRUE | M149: =INDEX('Monthly Prices'!B137:CB137,$G$5) -> 1.21 | N149: =IF(H149,INDEX('Monthly Prices'!B137:CB137,$G$5)*U149,FALSE) -> 10.20843832 | O149: TRUE | P149: =YEAR(D149) -> 1970 | Q149: ='Monthly Prices'!B137 -> 1.21 | R149: =AVERAGEIF(P:P,P149,Q:Q) -> 1.245833333 | S149: =_xlfn.XLOOKUP(P149,'Annual Real'!A:A,'Annual Real'!B:B,0,0) -> 5.212235611 | T149: =AD149 -> 8.436725888 | U149: =IF($U$19,T149,1) -> 8.436725888 | V149: -0.005089069507 | W149: -0.005089069507 | X149: =LOOKUP(D149,INDIRECT("'"&$X$14&"'!A:A"),INDIRECT("'"&$X$14&"'!B:B"))/100 -> 0.394 | Y149: 0.394 | Z149: 0.005102040816 | AA149: =AA148*(1+Z149) -> 1.341504937 | AB149: =LEN(C149) -> 7 | AC149: =IF(AB149>2,D149,0) -> 1970-10-01 | AD149: =$AD$17/AA149 -> 8.436725888
C150: ='Monthly Prices'!A138 -> 1970M12 | D150: 1970-11-01 | E150: 131 | F150: TRUE | G150: TRUE | H150: TRUE | I150: 1970-11-01 | J150: =INDEX('Monthly Prices'!B138:CB138,$G$4) -> 1.21 | K150: =IF(H150,INDEX('Monthly Prices'!B138:CB138,$G$4)*U150,FALSE) -> 10.15688056 | L150: TRUE | M150: =INDEX('Monthly Prices'!B138:CB138,$G$5) -> 1.21 | N150: =IF(H150,INDEX('Monthly Prices'!B138:CB138,$G$5)*U150,FALSE) -> 10.15688056 | O150: TRUE | P150: 1970 | Q150: ='Monthly Prices'!B138 -> 1.21 | R150: 1.245833333 | S150: =_xlfn.XLOOKUP(P150,'Annual Real'!A:A,'Annual Real'!B:B,0,0) -> 5.212235611 | T150: 8.394116162 | U150: 8.394116162 | V150: =IF(AND(H149,H150),LN(K150/K149)) -> -0.005063301957 | W150: =IF(AND($H149,$H150),LN(N150/N149)) -> -0.005063301957 | X150: 0.396 | Y150: =IFERROR(X150,X149) -> 0.396 | Z150: =Y150/Y149-1 -> 0.005076142132 | AA150: 1.348314607 | AB150: 7 | AC150: 1970-11-01 | AD150: 8.394116162
C151: ='Monthly Prices'!A139 -> 1971M01 | D151: 1970-12-01 | E151: 132 | F151: TRUE | G151: TRUE | H151: TRUE | I151: 1970-12-01 | J151: =INDEX('Monthly Prices'!B139:CB139,$G$4) -> 1.64 | K151: =IF(H151,INDEX('Monthly Prices'!B139:CB139,$G$4)*U151,FALSE) -> 13.69717286 | L151: TRUE | M151: =INDEX('Monthly Prices'!B139:CB139,$G$5) -> 1.64 | N151: =IF(H151,INDEX('Monthly Prices'!B139:CB139,$G$5)*U151,FALSE) -> 13.69717286 | O151: TRUE | P151: 1970 | Q151: ='Monthly Prices'!B139 -> 1.64 | R151: 1.245833333 | S151: =_xlfn.XLOOKUP(P151,'Annual Real'!A:A,'Annual Real'!B:B,0,0) -> 5.212235611 | T151: 8.351934673 | U151: 8.351934673 | V151: 0.2990380882 | W151: 0.2990380882 | X151: 0.398 | Y151: 0.398 | Z151: 0.005050505051 | AA151: 1.355124276 | AB151: 7 | AC151: 1970-12-01 | AD151: 8.351934673
C152: ='Monthly Prices'!A140 -> 1971M02 | D152: 1971-01-01 | E152: 133 | F152: TRUE | G152: TRUE | H152: TRUE | I152: 1971-01-01 | J152: =INDEX('Monthly Prices'!B140:CB140,$G$4) -> 1.64 | K152: =IF(H152,INDEX('Monthly Prices'!B140:CB140,$G$4)*U152,FALSE) -> 13.66284411 | L152: TRUE | M152: =INDEX('Monthly Prices'!B140:CB140,$G$5) -> 1.64 | N152: =IF(H152,INDEX('Monthly Prices'!B140:CB140,$G$5)*U152,FALSE) -> 13.66284411 | O152: TRUE | P152: 1971 | Q152: ='Monthly Prices'!B140 -> 1.64 | R152: 1.700833333 | S152: =_xlfn.XLOOKUP(P152,'Annual Real'!A:A,'Annual Real'!B:B,0,0) -> 6.922073764 | T152: 8.331002506 | U152: 8.331002506 | V152: -0.002509411605 | W152: -0.002509411605 | X152: 0.399 | Y152: 0.399 | Z152: 0.002512562814 | AA152: 1.358529111 | AB152: 7 | AC152: 1971-01-01 | AD152: 8.331002506
C153: ='Monthly Prices'!A141 -> 1971M03 | D153: 1971-02-01 | E153: 134 | F153: TRUE | G153: TRUE | H153: TRUE | I153: 1971-02-01 | J153: =INDEX('Monthly Prices'!B141:CB141,$G$4) -> 1.64 | K153: =IF(H153,INDEX('Monthly Prices'!B141:CB141,$G$4)*U153,FALSE) -> 13.66284411 | L153: TRUE | M153: =INDEX('Monthly Prices'!B141:CB141,$G$5) -> 1.64 | N153: =IF(H153,INDEX('Monthly Prices'!B141:CB141,$G$5)*U153,FALSE) -> 13.66284411 | O153: TRUE | P153: 1971 | Q153: ='Monthly Prices'!B141 -> 1.64 | R153: 1.700833333 | S153: =_xlfn.XLOOKUP(P153,'Annual Real'!A:A,'Annual Real'!B:B,0,0) -> 6.922073764 | T153: 8.331002506 | U153: 8.331002506 | V153: 0 | W153: 0 | X153: 0.399 | Y153: 0.399 | Z153: 0 | AA153: 1.358529111 | AB153: 7 | AC153: 1971-02-01 | AD153: 8.331002506
C154: ='Monthly Prices'!A142 -> 1971M04 | D154: 1971-03-01 | E154: 135 | F154: TRUE | G154: TRUE | H154: TRUE | I154: 1971-03-01 | J154: =INDEX('Monthly Prices'!B142:CB142,$G$4) -> 1.64 | K154: =IF(H154,INDEX('Monthly Prices'!B142:CB142,$G$4)*U154,FALSE) -> 13.628687 | L154: TRUE | M154: =INDEX('Monthly Prices'!B142:CB142,$G$5) -> 1.64 | N154: =IF(H154,INDEX('Monthly Prices'!B142:CB142,$G$5)*U154,FALSE) -> 13.628687 | O154: TRUE | P154: 1971 | Q154: ='Monthly Prices'!B142 -> 1.64 | R154: 1.700833333 | S154: =_xlfn.XLOOKUP(P154,'Annual Real'!A:A,'Annual Real'!B:B,0,0) -> 6.922073764 | T154: 8.310175 | U154: 8.310175 | V154: -0.002503130218 | W154: -0.002503130218 | X154: 0.4 | Y154: 0.4 | Z154: 0.002506265664 | AA154: 1.361933946 | AB154: 7 | AC154: 1971-03-01 | AD154: 8.310175
C155: ='Monthly Prices'!A143 -> 1971M05 | D155: 1971-04-01 | E155: 136 | F155: TRUE | G155: TRUE | H155: TRUE | I155: 1971-04-01 | J155: =INDEX('Monthly Prices'!B143:CB143,$G$4) -> 1.64 | K155: =IF(H155,INDEX('Monthly Prices'!B143:CB143,$G$4)*U155,FALSE) -> 13.59470025 | L155: TRUE | M155: =INDEX('Monthly Prices'!B143:CB143,$G$5) -> 1.64 | N155: =IF(H155,INDEX('Monthly Prices'!B143:CB143,$G$5)*U155,FALSE) -> 13.59470025 | O155: TRUE | P155: 1971 | Q155: ='Monthly Prices'!B143 -> 1.64 | R155: 1.700833333 | S155: =_xlfn.XLOOKUP(P155,'Annual Real'!A:A,'Annual Real'!B:B,0,0) -> 6.922073764 | T155: 8.289451372 | U155: 8.289451372 | V155: -0.002496880199 | W155: -0.002496880199 | X155: 0.401 | Y155: 0.401 | Z155: 0.0025 | AA155: 1.365338781 | AB155: 7 | AC155: 1971-04-01 | AD155: 8.289451372
C156: ='Monthly Prices'!A144 -> 1971M06 | D156: 1971-05-01 | E156: 137 | F156: TRUE | G156: TRUE | H156: TRUE | I156: 1971-05-01 | J156: =INDEX('Monthly Prices'!B144:CB144,$G$4) -> 1.64 | K156: =IF(H156,INDEX('Monthly Prices'!B144:CB144,$G$4)*U156,FALSE) -> 13.52723275 | L156: TRUE | M156: =INDEX('Monthly Prices'!B144:CB144,$G$5) -> 1.64 | N156: =IF(H156,INDEX('Monthly Prices'!B144:CB144,$G$5)*U156,FALSE) -> 13.52723275 | O156: TRUE | P156: 1971 | Q156: ='Monthly Prices'!B144 -> 1.64 | R156: 1.700833333 | S156: =_xlfn.XLOOKUP(P156,'Annual Real'!A:A,'Annual Real'!B:B,0,0) -> 6.922073764 | T156: 8.248312655 | U156: 8.248312655 | V156: -0.00497513464 | W156: -0.00497513464 | X156: 0.403 | Y156: 0.403 | Z156: 0.004987531172 | AA156: 1.372148451 | AB156: 7 | AC156: 1971-05-01 | AD156: 8.248312655
C157: ='Monthly Prices'!A145 -> 1971M07 | D157: 1971-06-01 | E157: 138 | F157: TRUE | G157: TRUE | H157: TRUE | I157: 1971-06-01 | J157: =INDEX('Monthly Prices'!B145:CB145,$G$4) -> 1.74 | K157: =IF(H157,INDEX('Monthly Prices'!B145:CB145,$G$4)*U157,FALSE) -> 14.28118963 | L157: TRUE | M157: =INDEX('Monthly Prices'!B145:CB145,$G$5) -> 1.74 | N157: =IF(H157,INDEX('Monthly Prices'!B145:CB145,$G$5)*U157,FALSE) -> 14.28118963 | O157: TRUE | P157: 1971 | Q157: ='Monthly Prices'!B145 -> 1.74 | R157: 1.700833333 | S157: =_xlfn.XLOOKUP(P157,'Annual Real'!A:A,'Annual Real'!B:B,0,0) -> 6.922073764 | T157: 8.207580247 | U157: 8.207580247 | V157: 0.05423836623 | W157: 0.05423836623 | X157: 0.405 | Y157: 0.405 | Z157: 0.004962779156 | AA157: 1.378958121 | AB157: 7 | AC157: 1971-06-01 | AD157: 8.207580247
C158: ='Monthly Prices'!A146 -> 1971M08 | D158: 1971-07-01 | E158: 139 | F158: TRUE | G158: TRUE | H158: TRUE | I158: 1971-07-01 | J158: =INDEX('Monthly Prices'!B146:CB146,$G$4) -> 1.74 | K158: =IF(H158,INDEX('Monthly Prices'!B146:CB146,$G$4)*U158,FALSE) -> 14.24601429 | L158: TRUE | M158: =INDEX('Monthly Prices'!B146:CB146,$G$5) -> 1.74 | N158: =IF(H158,INDEX('Monthly Prices'!B146:CB146,$G$5)*U158,FALSE) -> 14.24601429 | O158: TRUE | P158: 1971 | Q158: ='Monthly Prices'!B146 -> 1.74 | R158: 1.700833333 | S158: =_xlfn.XLOOKUP(P158,'Annual Real'!A:A,'Annual Real'!B:B,0,0) -> 6.922073764 | T158: 8.187364532 | U158: 8.187364532 | V158: -0.002466092495 | W158: -0.002466092495 | X158: 0.406 | Y158: 0.406 | Z158: 0.002469135802 | AA158: 1.382362955 | AB158: 7 | AC158: 1971-07-01 | AD158: 8.187364532
C159: ='Monthly Prices'!A147 -> 1971M09 | D159: 1971-08-01 | E159: 140 | F159: TRUE | G159: TRUE | H159: TRUE | I159: 1971-08-01 | J159: =INDEX('Monthly Prices'!B147:CB147,$G$4) -> 1.74 | K159: =IF(H159,INDEX('Monthly Prices'!B147:CB147,$G$4)*U159,FALSE) -> 14.21101179 | L159: TRUE | M159: =INDEX('Monthly Prices'!B147:CB147,$G$5) -> 1.74 | N159: =IF(H159,INDEX('Monthly Prices'!B147:CB147,$G$5)*U159,FALSE) -> 14.21101179 | O159: TRUE | P159: 1971 | Q159: ='Monthly Prices'!B147 -> 1.74 | R159: 1.700833333 | S159: =_xlfn.XLOOKUP(P159,'Annual Real'!A:A,'Annual Real'!B:B,0,0) -> 6.922073764 | T159: 8.167248157 | U159: 8.167248157 | V159: -0.002460025841 | W159: -0.002460025841 | X159: 0.407 | Y159: 0.407 | Z159: 0.002463054187 | AA159: 1.38576779 | AB159: 7 | AC159: 1971-08-01 | AD159: 8.167248157
C160: ='Monthly Prices'!A148 -> 1971M10 | D160: 1971-09-01 | E160: 141 | F160: TRUE | G160: TRUE | H160: TRUE | I160: 1971-09-01 | J160: =INDEX('Monthly Prices'!B148:CB148,$G$4) -> 1.74 | K160: =IF(H160,INDEX('Monthly Prices'!B148:CB148,$G$4)*U160,FALSE) -> 14.17618088 | L160: TRUE | M160: =INDEX('Monthly Prices'!B148:CB148,$G$5) -> 1.74 | N160: =IF(H160,INDEX('Monthly Prices'!B148:CB148,$G$5)*U160,FALSE) -> 14.17618088 | O160: TRUE | P160: 1971 | Q160: ='Monthly Prices'!B148 -> 1.74 | R160: 1.700833333 | S160: =_xlfn.XLOOKUP(P160,'Annual Real'!A:A,'Annual Real'!B:B,0,0) -> 6.922073764 | T160: 8.147230392 | U160: 8.147230392 | V160: -0.002453988962 | W160: -0.002453988962 | X160: 0.408 | Y160: 0.408 | Z160: 0.002457002457 | AA160: 1.389172625 | AB160: 7 | AC160: 1971-09-01 | AD160: 8.147230392
C161: ='Monthly Prices'!A149 -> 1971M11 | D161: 1971-10-01 | E161: 142 | F161: TRUE | G161: TRUE | H161: TRUE | I161: 1971-10-01 | J161: =INDEX('Monthly Prices'!B149:CB149,$G$4) -> 1.74 | K161: =IF(H161,INDEX('Monthly Prices'!B149:CB149,$G$4)*U161,FALSE) -> 14.14152029 | L161: TRUE | M161: =INDEX('Monthly Prices'!B149:CB149,$G$5) -> 1.74 | N161: =IF(H161,INDEX('Monthly Prices'!B149:CB149,$G$5)*U161,FALSE) -> 14.14152029 | O161: TRUE | P161: 1971 | Q161: ='Monthly Prices'!B149 -> 1.74 | R161: 1.700833333 | S161: =_xlfn.XLOOKUP(P161,'Annual Real'!A:A,'Annual Real'!B:B,0,0) -> 6.922073764 | T161: 8.127310513 | U161: 8.127310513 | V161: -0.002447981639 | W161: -0.002447981639 | X161: 0.409 | Y161: 0.409 | Z161: 0.002450980392 | AA161: 1.39257746 | AB161: 7 | AC161: 1971-10-01 | AD161: 8.127310513
C162: ='Monthly Prices'!A150 -> 1971M12 | D162: 1971-11-01 | E162: 143 | F162: TRUE | G162: TRUE | H162: TRUE | I162: 1971-11-01 | J162: =INDEX('Monthly Prices'!B150:CB150,$G$4) -> 1.74 | K162: =IF(H162,INDEX('Monthly Prices'!B150:CB150,$G$4)*U162,FALSE) -> 14.10702878 | L162: TRUE | M162: =INDEX('Monthly Prices'!B150:CB150,$G$5) -> 1.74 | N162: =IF(H162,INDEX('Monthly Prices'!B150:CB150,$G$5)*U162,FALSE) -> 14.10702878 | O162: TRUE | P162: 1971 | Q162: ='Monthly Prices'!B150 -> 1.74 | R162: 1.700833333 | S162: =_xlfn.XLOOKUP(P162,'Annual Real'!A:A,'Annual Real'!B:B,0,0) -> 6.922073764 | T162: 8.107487805 | U162: 8.107487805 | V162: -0.002442003656 | W162: -0.002442003656 | X162: 0.41 | Y162: 0.41 | Z162: 0.002444987775 | AA162: 1.395982295 | AB162: 7 | AC162: 1971-11-01 | AD162: 8.107487805
C163: ='Monthly Prices'!A151 -> 1972M01 | D163: 1971-12-01 | E163: 144 | F163: TRUE | G163: TRUE | H163: TRUE | I163: 1971-12-01 | J163: =INDEX('Monthly Prices'!B151:CB151,$G$4) -> 1.77 | K163: =IF(H163,INDEX('Monthly Prices'!B151:CB151,$G$4)*U163,FALSE) -> 14.31533796 | L163: TRUE | M163: =INDEX('Monthly Prices'!B151:CB151,$G$5) -> 1.77 | N163: =IF(H163,INDEX('Monthly Prices'!B151:CB151,$G$5)*U163,FALSE) -> 14.31533796 | O163: TRUE | P163: 1971 | Q163: ='Monthly Prices'!B151 -> 1.77 | R163: 1.700833333 | S163: =_xlfn.XLOOKUP(P163,'Annual Real'!A:A,'Annual Real'!B:B,0,0) -> 6.922073764 | T163: 8.087761557 | U163: 8.087761557 | V163: 0.01465837856 | W163: 0.01465837856 | X163: 0.411 | Y163: 0.411 | Z163: 0.00243902439 | AA163: 1.39938713 | AB163: 7 | AC163: 1971-12-01 | AD163: 8.087761557
C164: ='Monthly Prices'!A152 -> 1972M02 | D164: 1972-01-01 | E164: 145 | F164: TRUE | G164: TRUE | H164: TRUE | I164: 1972-01-01 | J164: =INDEX('Monthly Prices'!B152:CB152,$G$4) -> 1.77 | K164: =IF(H164,INDEX('Monthly Prices'!B152:CB152,$G$4)*U164,FALSE) -> 14.28059199 | L164: TRUE | M164: =INDEX('Monthly Prices'!B152:CB152,$G$5) -> 1.77 | N164: =IF(H164,INDEX('Monthly Prices'!B152:CB152,$G$5)*U164,FALSE) -> 14.28059199 | O164: TRUE | P164: 1972 | Q164: ='Monthly Prices'!B152 -> 1.77 | R164: 1.845833333 | S164: =_xlfn.XLOOKUP(P164,'Annual Real'!A:A,'Annual Real'!B:B,0,0) -> 6.833715314 | T164: 8.068131068 | U164: 8.068131068 | V164: -0.002430134853 | W164: -0.002430134853 | X164: 0.412 | Y164: 0.412 | Z164: 0.002433090024 | AA164: 1.402791965 | AB164: 7 | AC164: 1972-01-01 | AD164: 8.068131068
C165: ='Monthly Prices'!A153 -> 1972M03 | D165: 1972-02-01 | E165: 146 | F165: TRUE | G165: TRUE | H165: TRUE | I165: 1972-02-01 | J165: =INDEX('Monthly Prices'!B153:CB153,$G$4) -> 1.77 | K165: =IF(H165,INDEX('Monthly Prices'!B153:CB153,$G$4)*U165,FALSE) -> 14.21160362 | L165: TRUE | M165: =INDEX('Monthly Prices'!B153:CB153,$G$5) -> 1.77 | N165: =IF(H165,INDEX('Monthly Prices'!B153:CB153,$G$5)*U165,FALSE) -> 14.21160362 | O165: TRUE | P165: 1972 | Q165: ='Monthly Prices'!B153 -> 1.77 | R165: 1.845833333 | S165: =_xlfn.XLOOKUP(P165,'Annual Real'!A:A,'Annual Real'!B:B,0,0) -> 6.833715314 | T165: 8.029154589 | U165: 8.029154589 | V165: -0.004842624476 | W165: -0.004842624476 | X165: 0.414 | Y165: 0.414 | Z165: 0.004854368932 | AA165: 1.409601634 | AB165: 7 | AC165: 1972-02-01 | AD165: 8.029154589
C166: ='Monthly Prices'!A154 -> 1972M04 | D166: 1972-03-01 | E166: 147 | F166: TRUE | G166: TRUE | H166: TRUE | I166: 1972-03-01 | J166: =INDEX('Monthly Prices'!B154:CB154,$G$4) -> 1.77 | K166: =IF(H166,INDEX('Monthly Prices'!B154:CB154,$G$4)*U166,FALSE) -> 14.21160362 | L166: TRUE | M166: =INDEX('Monthly Prices'!B154:CB154,$G$5) -> 1.77 | N166: =IF(H166,INDEX('Monthly Prices'!B154:CB154,$G$5)*U166,FALSE) -> 14.21160362 | O166: TRUE | P166: 1972 | Q166: ='Monthly Prices'!B154 -> 1.77 | R166: 1.845833333 | S166: =_xlfn.XLOOKUP(P166,'Annual Real'!A:A,'Annual Real'!B:B,0,0) -> 6.833715314 | T166: 8.029154589 | U166: 8.029154589 | V166: 0 | W166: 0 | X166: 0.414 | Y166: 0.414 | Z166: 0 | AA166: 1.409601634 | AB166: 7 | AC166: 1972-03-01 | AD166: 8.029154589
C167: ='Monthly Prices'!A155 -> 1972M05 | D167: 1972-04-01 | E167: 148 | F167: TRUE | G167: TRUE | H167: TRUE | I167: 1972-04-01 | J167: =INDEX('Monthly Prices'!B155:CB155,$G$4) -> 1.77 | K167: =IF(H167,INDEX('Monthly Prices'!B155:CB155,$G$4)*U167,FALSE) -> 14.1773588 | L167: TRUE | M167: =INDEX('Monthly Prices'!B155:CB155,$G$5) -> 1.77 | N167: =IF(H167,INDEX('Monthly Prices'!B155:CB155,$G$5)*U167,FALSE) -> 14.1773588 | O167: TRUE | P167: 1972 | Q167: ='Monthly Prices'!B155 -> 1.77 | R167: 1.845833333 | S167: =_xlfn.XLOOKUP(P167,'Annual Real'!A:A,'Annual Real'!B:B,0,0) -> 6.833715314 | T167: 8.009807229 | U167: 8.009807229 | V167: -0.002412546405 | W167: -0.002412546405 | X167: 0.415 | Y167: 0.415 | Z167: 0.002415458937 | AA167: 1.413006469 | AB167: 7 | AC167: 1972-04-01 | AD167: 8.009807229
C168: ='Monthly Prices'!A156 -> 1972M06 | D168: 1972-05-01 | E168: 149 | F168: TRUE | G168: TRUE | H168: TRUE | I168: 1972-05-01 | J168: =INDEX('Monthly Prices'!B156:CB156,$G$4) -> 1.77 | K168: =IF(H168,INDEX('Monthly Prices'!B156:CB156,$G$4)*U168,FALSE) -> 14.14327861 | L168: TRUE | M168: =INDEX('Monthly Prices'!B156:CB156,$G$5) -> 1.77 | N168: =IF(H168,INDEX('Monthly Prices'!B156:CB156,$G$5)*U168,FALSE) -> 14.14327861 | O168: TRUE | P168: 1972 | Q168: ='Monthly Prices'!B156 -> 1.77 | R168: 1.845833333 | S168: =_xlfn.XLOOKUP(P168,'Annual Real'!A:A,'Annual Real'!B:B,0,0) -> 6.833715314 | T168: 7.990552885 | U168: 7.990552885 | V168: -0.002406740031 | W168: -0.002406740031 | X168: 0.416 | Y168: 0.416 | Z168: 0.002409638554 | AA168: 1.416411304 | AB168: 7 | AC168: 1972-05-01 | AD168: 7.990552885
C169: ='Monthly Prices'!A157 -> 1972M07 | D169: 1972-06-01 | E169: 150 | F169: TRUE | G169: TRUE | H169: TRUE | I169: 1972-06-01 | J169: =INDEX('Monthly Prices'!B157:CB157,$G$4) -> 1.87 | K169: =IF(H169,INDEX('Monthly Prices'!B157:CB157,$G$4)*U169,FALSE) -> 14.90650096 | L169: TRUE | M169: =INDEX('Monthly Prices'!B157:CB157,$G$5) -> 1.87 | N169: =IF(H169,INDEX('Monthly Prices'!B157:CB157,$G$5)*U169,FALSE) -> 14.90650096 | O169: TRUE | P169: 1972 | Q169: ='Monthly Prices'!B157 -> 1.87 | R169: 1.845833333 | S169: =_xlfn.XLOOKUP(P169,'Annual Real'!A:A,'Annual Real'!B:B,0,0) -> 6.833715314 | T169: 7.971390887 | U169: 7.971390887 | V169: 0.05255792274 | W169: 0.05255792274 | X169: 0.417 | Y169: 0.417 | Z169: 0.002403846154 | AA169: 1.419816139 | AB169: 7 | AC169: 1972-06-01 | AD169: 7.971390887
C170: ='Monthly Prices'!A158 -> 1972M08 | D170: 1972-07-01 | E170: 151 | F170: TRUE | G170: TRUE | H170: TRUE | I170: 1972-07-01 | J170: =INDEX('Monthly Prices'!B158:CB158,$G$4) -> 1.87 | K170: =IF(H170,INDEX('Monthly Prices'!B158:CB158,$G$4)*U170,FALSE) -> 14.87083947 | L170: TRUE | M170: =INDEX('Monthly Prices'!B158:CB158,$G$5) -> 1.87 | N170: =IF(H170,INDEX('Monthly Prices'!B158:CB158,$G$5)*U170,FALSE) -> 14.87083947 | O170: TRUE | P170: 1972 | Q170: ='Monthly Prices'!B158 -> 1.87 | R170: 1.845833333 | S170: =_xlfn.XLOOKUP(P170,'Annual Real'!A:A,'Annual Real'!B:B,0,0) -> 6.833715314 | T170: 7.952320574 | U170: 7.952320574 | V170: -0.002395210726 | W170: -0.002395210726 | X170: 0.418 | Y170: 0.418 | Z170: 0.002398081535 | AA170: 1.423220974 | AB170: 7 | AC170: 1972-07-01 | AD170: 7.952320574
C171: ='Monthly Prices'!A159 -> 1972M09 | D171: 1972-08-01 | E171: 152 | F171: TRUE | G171: TRUE | H171: TRUE | I171: 1972-08-01 | J171: =INDEX('Monthly Prices'!B159:CB159,$G$4) -> 1.87 | K171: =IF(H171,INDEX('Monthly Prices'!B159:CB159,$G$4)*U171,FALSE) -> 14.83534821 | L171: TRUE | M171: =INDEX('Monthly Prices'!B159:CB159,$G$5) -> 1.87 | N171: =IF(H171,INDEX('Monthly Prices'!B159:CB159,$G$5)*U171,FALSE) -> 14.83534821 | O171: TRUE | P171: 1972 | Q171: ='Monthly Prices'!B159 -> 1.87 | R171: 1.845833333 | S171: =_xlfn.XLOOKUP(P171,'Annual Real'!A:A,'Annual Real'!B:B,0,0) -> 6.833715314 | T171: 7.933341289 | U171: 7.933341289 | V171: -0.002389487397 | W171: -0.002389487397 | X171: 0.419 | Y171: 0.419 | Z171: 0.002392344498 | AA171: 1.426625809 | AB171: 7 | AC171: 1972-08-01 | AD171: 7.933341289
C172: ='Monthly Prices'!A160 -> 1972M10 | D172: 1972-09-01 | E172: 153 | F172: TRUE | G172: TRUE | H172: TRUE | I172: 1972-09-01 | J172: =INDEX('Monthly Prices'!B160:CB160,$G$4) -> 1.87 | K172: =IF(H172,INDEX('Monthly Prices'!B160:CB160,$G$4)*U172,FALSE) -> 14.7648715 | L172: TRUE | M172: =INDEX('Monthly Prices'!B160:CB160,$G$5) -> 1.87 | N172: =IF(H172,INDEX('Monthly Prices'!B160:CB160,$G$5)*U172,FALSE) -> 14.7648715 | O172: TRUE | P172: 1972 | Q172: ='Monthly Prices'!B160 -> 1.87 | R172: 1.845833333 | S172: =_xlfn.XLOOKUP(P172,'Annual Real'!A:A,'Annual Real'!B:B,0,0) -> 6.833715314 | T172: 7.895653207 | U172: 7.895653207 | V172: -0.00476191376 | W172: -0.00476191376 | X172: 0.421 | Y172: 0.421 | Z172: 0.00477326969 | AA172: 1.433435478 | AB172: 7 | AC172: 1972-09-01 | AD172: 7.895653207
C173: ='Monthly Prices'!A161 -> 1972M11 | D173: 1972-10-01 | E173: 154 | F173: TRUE | G173: TRUE | H173: TRUE | I173: 1972-10-01 | J173: =INDEX('Monthly Prices'!B161:CB161,$G$4) -> 1.87 | K173: =IF(H173,INDEX('Monthly Prices'!B161:CB161,$G$4)*U173,FALSE) -> 14.72988365 | L173: TRUE | M173: =INDEX('Monthly Prices'!B161:CB161,$G$5) -> 1.87 | N173: =IF(H173,INDEX('Monthly Prices'!B161:CB161,$G$5)*U173,FALSE) -> 14.72988365 | O173: TRUE | P173: 1972 | Q173: ='Monthly Prices'!B161 -> 1.87 | R173: 1.845833333 | S173: =_xlfn.XLOOKUP(P173,'Annual Real'!A:A,'Annual Real'!B:B,0,0) -> 6.833715314 | T173: 7.876943128 | U173: 7.876943128 | V173: -0.002372480354 | W173: -0.002372480354 | X173: 0.422 | Y173: 0.422 | Z173: 0.002375296912 | AA173: 1.436840313 | AB173: 7 | AC173: 1972-10-01 | AD173: 7.876943128
C174: ='Monthly Prices'!A162 -> 1972M12 | D174: 1972-11-01 | E174: 155 | F174: TRUE | G174: TRUE | H174: TRUE | I174: 1972-11-01 | J174: =INDEX('Monthly Prices'!B162:CB162,$G$4) -> 1.87 | K174: =IF(H174,INDEX('Monthly Prices'!B162:CB162,$G$4)*U174,FALSE) -> 14.66040307 | L174: TRUE | M174: =INDEX('Monthly Prices'!B162:CB162,$G$5) -> 1.87 | N174: =IF(H174,INDEX('Monthly Prices'!B162:CB162,$G$5)*U174,FALSE) -> 14.66040307 | O174: TRUE | P174: 1972 | Q174: ='Monthly Prices'!B162 -> 1.87 | R174: 1.845833333 | S174: =_xlfn.XLOOKUP(P174,'Annual Real'!A:A,'Annual Real'!B:B,0,0) -> 6.833715314 | T174: 7.839787736 | U174: 7.839787736 | V174: -0.004728141196 | W174: -0.004728141196 | X174: 0.424 | Y174: 0.424 | Z174: 0.004739336493 | AA174: 1.443649983 | AB174: 7 | AC174: 1972-11-01 | AD174: 7.839787736
C175: ='Monthly Prices'!A163 -> 1973M01 | D175: 1972-12-01 | E175: 156 | F175: TRUE | G175: TRUE | H175: TRUE | I175: 1972-12-01 | J175: =INDEX('Monthly Prices'!B163:CB163,$G$4) -> 2.08 | K175: =IF(H175,INDEX('Monthly Prices'!B163:CB163,$G$4)*U175,FALSE) -> 16.26838965 | L175: TRUE | M175: =INDEX('Monthly Prices'!B163:CB163,$G$5) -> 2.08 | N175: =IF(H175,INDEX('Monthly Prices'!B163:CB163,$G$5)*U175,FALSE) -> 16.26838965 | O175: TRUE | P175: 1972 | Q175: ='Monthly Prices'!B163 -> 2.08 | R175: 1.845833333 | S175: =_xlfn.XLOOKUP(P175,'Annual Real'!A:A,'Annual Real'!B:B,0,0) -> 6.833715314 | T175: 7.821341176 | U175: 7.821341176 | V175: 0.1040737492 | W175: 0.1040737492 | X175: 0.425 | Y175: 0.425 | Z175: 0.002358490566 | AA175: 1.447054818 | AB175: 7 | AC175: 1972-12-01 | AD175: 7.821341176
C176: ='Monthly Prices'!A164 -> 1973M02 | D176: 1973-01-01 | E176: 157 | F176: TRUE | G176: TRUE | H176: TRUE | I176: 1973-01-01 | J176: =INDEX('Monthly Prices'!B164:CB164,$G$4) -> 2.08 | K176: =IF(H176,INDEX('Monthly Prices'!B164:CB164,$G$4)*U176,FALSE) -> 16.1921911 | L176: TRUE | M176: =INDEX('Monthly Prices'!B164:CB164,$G$5) -> 2.08 | N176: =IF(H176,INDEX('Monthly Prices'!B164:CB164,$G$5)*U176,FALSE) -> 16.1921911 | O176: TRUE | P176: 1973 | Q176: ='Monthly Prices'!B164 -> 2.08 | R176: 3.7175 | S176: =_xlfn.XLOOKUP(P176,'Annual Real'!A:A,'Annual Real'!B:B,0,0) -> 9.089702394 | T176: 7.78470726 | U176: 7.78470726 | V176: -0.004694844304 | W176: -0.004694844304 | X176: 0.427 | Y176: 0.427 | Z176: 0.004705882353 | AA176: 1.453864488 | AB176: 7 | AC176: 1973-01-01 | AD176: 7.78470726
C177: ='Monthly Prices'!A165 -> 1973M03 | D177: 1973-02-01 | E177: 158 | F177: TRUE | G177: TRUE | H177: TRUE | I177: 1973-02-01 | J177: =INDEX('Monthly Prices'!B165:CB165,$G$4) -> 2.08 | K177: =IF(H177,INDEX('Monthly Prices'!B165:CB165,$G$4)*U177,FALSE) -> 16.07922233 | L177: TRUE | M177: =INDEX('Monthly Prices'!B165:CB165,$G$5) -> 2.08 | N177: =IF(H177,INDEX('Monthly Prices'!B165:CB165,$G$5)*U177,FALSE) -> 16.07922233 | O177: TRUE | P177: 1973 | Q177: ='Monthly Prices'!B165 -> 2.08 | R177: 3.7175 | S177: =_xlfn.XLOOKUP(P177,'Annual Real'!A:A,'Annual Real'!B:B,0,0) -> 9.089702394 | T177: 7.730395349 | U177: 7.730395349 | V177: -0.007001195459 | W177: -0.007001195459 | X177: 0.43 | Y177: 0.43 | Z177: 0.007025761124 | AA177: 1.464078992 | AB177: 7 | AC177: 1973-02-01 | AD177: 7.730395349
C178: ='Monthly Prices'!A166 -> 1973M04 | D178: 1973-03-01 | E178: 159 | F178: TRUE | G178: TRUE | H178: TRUE | I178: 1973-03-01 | J178: =INDEX('Monthly Prices'!B166:CB166,$G$4) -> 2.35 | K178: =IF(H178,INDEX('Monthly Prices'!B166:CB166,$G$4)*U178,FALSE) -> 17.99899654 | L178: TRUE | M178: =INDEX('Monthly Prices'!B166:CB166,$G$5) -> 2.35 | N178: =IF(H178,INDEX('Monthly Prices'!B166:CB166,$G$5)*U178,FALSE) -> 17.99899654 | O178: TRUE | P178: 1973 | Q178: ='Monthly Prices'!B166 -> 2.35 | R178: 3.7175 | S178: =_xlfn.XLOOKUP(P178,'Annual Real'!A:A,'Annual Real'!B:B,0,0) -> 9.089702394 | T178: 7.659147465 | U178: 7.659147465 | V178: 0.112788109 | W178: 0.112788109 | X178: 0.434 | Y178: 0.434 | Z178: 0.009302325581 | AA178: 1.477698332 | AB178: 7 | AC178: 1973-03-01 | AD178: 7.659147465
C179: ='Monthly Prices'!A167 -> 1973M05 | D179: 1973-04-01 | E179: 160 | F179: TRUE | G179: TRUE | H179: TRUE | I179: 1973-04-01 | J179: =INDEX('Monthly Prices'!B167:CB167,$G$4) -> 2.35 | K179: =IF(H179,INDEX('Monthly Prices'!B167:CB167,$G$4)*U179,FALSE) -> 17.87543364 | L179: TRUE | M179: =INDEX('Monthly Prices'!B167:CB167,$G$5) -> 2.35 | N179: =IF(H179,INDEX('Monthly Prices'!B167:CB167,$G$5)*U179,FALSE) -> 17.87543364 | O179: TRUE | P179: 1973 | Q179: ='Monthly Prices'!B167 -> 2.35 | R179: 3.7175 | S179: =_xlfn.XLOOKUP(P179,'Annual Real'!A:A,'Annual Real'!B:B,0,0) -> 9.089702394 | T179: 7.606567506 | U179: 7.606567506 | V179: -0.006888660995 | W179: -0.006888660995 | X179: 0.437 | Y179: 0.437 | Z179: 0.006912442396 | AA179: 1.487912836 | AB179: 7 | AC179: 1973-04-01 | AD179: 7.606567506
C180: ='Monthly Prices'!A168 -> 1973M06 | D180: 1973-05-01 | E180: 161 | F180: TRUE | G180: TRUE | H180: TRUE | I180: 1973-05-01 | J180: =INDEX('Monthly Prices'!B168:CB168,$G$4) -> 2.35 | K180: =IF(H180,INDEX('Monthly Prices'!B168:CB168,$G$4)*U180,FALSE) -> 17.79399658 | L180: TRUE | M180: =INDEX('Monthly Prices'!B168:CB168,$G$5) -> 2.35 | N180: =IF(H180,INDEX('Monthly Prices'!B168:CB168,$G$5)*U180,FALSE) -> 17.79399658 | O180: TRUE | P180: 1973 | Q180: ='Monthly Prices'!B168 -> 2.35 | R180: 3.7175 | S180: =_xlfn.XLOOKUP(P180,'Annual Real'!A:A,'Annual Real'!B:B,0,0) -> 9.089702394 | T180: 7.57191344 | U180: 7.57191344 | V180: -0.00456621798 | W180: -0.00456621798 | X180: 0.439 | Y180: 0.439 | Z180: 0.004576659039 | AA180: 1.494722506 | AB180: 7 | AC180: 1973-05-01 | AD180: 7.57191344
C181: ='Monthly Prices'!A169 -> 1973M07 | D181: 1973-06-01 | E181: 162 | F181: TRUE | G181: TRUE | H181: TRUE | I181: 1973-06-01 | J181: =INDEX('Monthly Prices'!B169:CB169,$G$4) -> 2.7 | K181: =IF(H181,INDEX('Monthly Prices'!B169:CB169,$G$4)*U181,FALSE) -> 20.30540498 | L181: TRUE | M181: =INDEX('Monthly Prices'!B169:CB169,$G$5) -> 2.7 | N181: =IF(H181,INDEX('Monthly Prices'!B169:CB169,$G$5)*U181,FALSE) -> 20.30540498 | O181: TRUE | P181: 1973 | Q181: ='Monthly Prices'!B169 -> 2.7 | R181: 3.7175 | S181: =_xlfn.XLOOKUP(P181,'Annual Real'!A:A,'Annual Real'!B:B,0,0) -> 9.089702394 | T181: 7.520520362 | U181: 7.520520362 | V181: 0.1320259759 | W181: 0.1320259759 | X181: 0.442 | Y181: 0.442 | Z181: 0.006833712984 | AA181: 1.504937011 | AB181: 7 | AC181: 1973-06-01 | AD181: 7.520520362
C182: ='Monthly Prices'!A170 -> 1973M08 | D182: 1973-07-01 | E182: 163 | F182: TRUE | G182: TRUE | H182: TRUE | I182: 1973-07-01 | J182: =INDEX('Monthly Prices'!B170:CB170,$G$4) -> 2.7 | K182: =IF(H182,INDEX('Monthly Prices'!B170:CB170,$G$4)*U182,FALSE) -> 20.30540498 | L182: TRUE | M182: =INDEX('Monthly Prices'!B170:CB170,$G$5) -> 2.7 | N182: =IF(H182,INDEX('Monthly Prices'!B170:CB170,$G$5)*U182,FALSE) -> 20.30540498 | O182: TRUE | P182: 1973 | Q182: ='Monthly Prices'!B170 -> 2.7 | R182: 3.7175 | S182: =_xlfn.XLOOKUP(P182,'Annual Real'!A:A,'Annual Real'!B:B,0,0) -> 9.089702394 | T182: 7.520520362 | U182: 7.520520362 | V182: 0 | W182: 0 | X182: 0.442 | Y182: 0.442 | Z182: 0 | AA182: 1.504937011 | AB182: 7 | AC182: 1973-07-01 | AD182: 7.520520362
C183: ='Monthly Prices'!A171 -> 1973M09 | D183: 1973-08-01 | E183: 164 | F183: TRUE | G183: TRUE | H183: TRUE | I183: 1973-08-01 | J183: =INDEX('Monthly Prices'!B171:CB171,$G$4) -> 2.7 | K183: =IF(H183,INDEX('Monthly Prices'!B171:CB171,$G$4)*U183,FALSE) -> 19.94442 | L183: TRUE | M183: =INDEX('Monthly Prices'!B171:CB171,$G$5) -> 2.7 | N183: =IF(H183,INDEX('Monthly Prices'!B171:CB171,$G$5)*U183,FALSE) -> 19.94442 | O183: TRUE | P183: 1973 | Q183: ='Monthly Prices'!B171 -> 2.7 | R183: 3.7175 | S183: =_xlfn.XLOOKUP(P183,'Annual Real'!A:A,'Annual Real'!B:B,0,0) -> 9.089702394 | T183: 7.386822222 | U183: 7.386822222 | V183: -0.01793770069 | W183: -0.01793770069 | X183: 0.45 | Y183: 0.45 | Z183: 0.01809954751 | AA183: 1.532175689 | AB183: 7 | AC183: 1973-08-01 | AD183: 7.386822222
C184: ='Monthly Prices'!A172 -> 1973M10 | D184: 1973-09-01 | E184: 165 | F184: TRUE | G184: TRUE | H184: TRUE | I184: 1973-09-01 | J184: =INDEX('Monthly Prices'!B172:CB172,$G$4) -> 4.1 | K184: =IF(H184,INDEX('Monthly Prices'!B172:CB172,$G$4)*U184,FALSE) -> 30.15196239 | L184: TRUE | M184: =INDEX('Monthly Prices'!B172:CB172,$G$5) -> 4.1 | N184: =IF(H184,INDEX('Monthly Prices'!B172:CB172,$G$5)*U184,FALSE) -> 30.15196239 | O184: TRUE | P184: 1973 | Q184: ='Monthly Prices'!B172 -> 4.1 | R184: 3.7175 | S184: =_xlfn.XLOOKUP(P184,'Annual Real'!A:A,'Annual Real'!B:B,0,0) -> 9.089702394 | T184: 7.354137168 | U184: 7.354137168 | V184: 0.4133006036 | W184: 0.4133006036 | X184: 0.452 | Y184: 0.452 | Z184: 0.004444444444 | AA184: 1.538985359 | AB184: 7 | AC184: 1973-09-01 | AD184: 7.354137168
C185: ='Monthly Prices'!A173 -> 1973M11 | D185: 1973-10-01 | E185: 166 | F185: TRUE | G185: TRUE | H185: TRUE | I185: 1973-10-01 | J185: =INDEX('Monthly Prices'!B173:CB173,$G$4) -> 4.1 | K185: =IF(H185,INDEX('Monthly Prices'!B173:CB173,$G$4)*U185,FALSE) -> 29.88747149 | L185: TRUE | M185: =INDEX('Monthly Prices'!B173:CB173,$G$5) -> 4.1 | N185: =IF(H185,INDEX('Monthly Prices'!B173:CB173,$G$5)*U185,FALSE) -> 29.88747149 | O185: TRUE | P185: 1973 | Q185: ='Monthly Prices'!B173 -> 4.1 | R185: 3.7175 | S185: =_xlfn.XLOOKUP(P185,'Annual Real'!A:A,'Annual Real'!B:B,0,0) -> 9.089702394 | T185: 7.289627193 | U185: 7.289627193 | V185: -0.008810629682 | W185: -0.008810629682 | X185: 0.456 | Y185: 0.456 | Z185: 0.008849557522 | AA185: 1.552604699 | AB185: 7 | AC185: 1973-10-01 | AD185: 7.289627193
C186: ='Monthly Prices'!A174 -> 1973M12 | D186: 1973-11-01 | E186: 167 | F186: TRUE | G186: TRUE | H186: TRUE | I186: 1973-11-01 | J186: =INDEX('Monthly Prices'!B174:CB174,$G$4) -> 4.1 | K186: =IF(H186,INDEX('Monthly Prices'!B174:CB174,$G$4)*U186,FALSE) -> 29.69212854 | L186: TRUE | M186: =INDEX('Monthly Prices'!B174:CB174,$G$5) -> 4.1 | N186: =IF(H186,INDEX('Monthly Prices'!B174:CB174,$G$5)*U186,FALSE) -> 29.69212854 | O186: TRUE | P186: 1973 | Q186: ='Monthly Prices'!B174 -> 4.1 | R186: 3.7175 | S186: =_xlfn.XLOOKUP(P186,'Annual Real'!A:A,'Annual Real'!B:B,0,0) -> 9.089702394 | T186: 7.241982571 | U186: 7.241982571 | V186: -0.006557400546 | W186: -0.006557400546 | X186: 0.459 | Y186: 0.459 | Z186: 0.006578947368 | AA186: 1.562819203 | AB186: 7 | AC186: 1973-11-01 | AD186: 7.241982571
C187: ='Monthly Prices'!A175 -> 1974M01 | D187: 1973-12-01 | E187: 168 | F187: TRUE | G187: TRUE | H187: TRUE | I187: 1973-12-01 | J187: =INDEX('Monthly Prices'!B175:CB175,$G$4) -> 13 | K187: =IF(H187,INDEX('Monthly Prices'!B175:CB175,$G$4)*U187,FALSE) -> 93.33241901 | L187: TRUE | M187: =INDEX('Monthly Prices'!B175:CB175,$G$5) -> 13 | N187: =IF(H187,INDEX('Monthly Prices'!B175:CB175,$G$5)*U187,FALSE) -> 93.33241901 | O187: TRUE | P187: 1973 | Q187: ='Monthly Prices'!B175 -> 13 | R187: 3.7175 | S187: =_xlfn.XLOOKUP(P187,'Annual Real'!A:A,'Annual Real'!B:B,0,0) -> 9.089702394 | T187: 7.179416847 | U187: 7.179416847 | V187: 1.14528554 | W187: 1.14528554 | X187: 0.463 | Y187: 0.463 | Z187: 0.00871459695 | AA187: 1.576438543 | AB187: 7 | AC187: 1973-12-01 | AD187: 7.179416847
C188: ='Monthly Prices'!A176 -> 1974M02 | D188: 1974-01-01 | E188: 169 | F188: TRUE | G188: TRUE | H188: TRUE | I188: 1974-01-01 | J188: =INDEX('Monthly Prices'!B176:CB176,$G$4) -> 13 | K188: =IF(H188,INDEX('Monthly Prices'!B176:CB176,$G$4)*U188,FALSE) -> 92.33527778 | L188: TRUE | M188: =INDEX('Monthly Prices'!B176:CB176,$G$5) -> 13 | N188: =IF(H188,INDEX('Monthly Prices'!B176:CB176,$G$5)*U188,FALSE) -> 92.33527778 | O188: TRUE | P188: 1974 | Q188: ='Monthly Prices'!B176 -> 13 | R188: 10.76 | S188: =_xlfn.XLOOKUP(P188,'Annual Real'!A:A,'Annual Real'!B:B,0,0) -> 29.15785585 | T188: 7.102713675 | U188: 7.102713675 | V188: -0.01074124183 | W188: -0.01074124183 | X188: 0.468 | Y188: 0.468 | Z188: 0.01079913607 | AA188: 1.593462717 | AB188: 7 | AC188: 1974-01-01 | AD188: 7.102713675
C189: ='Monthly Prices'!A177 -> 1974M03 | D189: 1974-02-01 | E189: 170 | F189: TRUE | G189: TRUE | H189: TRUE | I189: 1974-02-01 | J189: =INDEX('Monthly Prices'!B177:CB177,$G$4) -> 13 | K189: =IF(H189,INDEX('Monthly Prices'!B177:CB177,$G$4)*U189,FALSE) -> 91.35921776 | L189: TRUE | M189: =INDEX('Monthly Prices'!B177:CB177,$G$5) -> 13 | N189: =IF(H189,INDEX('Monthly Prices'!B177:CB177,$G$5)*U189,FALSE) -> 91.35921776 | O189: TRUE | P189: 1974 | Q189: ='Monthly Prices'!B177 -> 13 | R189: 10.76 | S189: =_xlfn.XLOOKUP(P189,'Annual Real'!A:A,'Annual Real'!B:B,0,0) -> 29.15785585 | T189: 7.027632135 | U189: 7.027632135 | V189: -0.01062709257 | W189: -0.01062709257 | X189: 0.473 | Y189: 0.473 | Z189: 0.01068376068 | AA189: 1.610486891 | AB189: 7 | AC189: 1974-02-01 | AD189: 7.027632135
C190: ='Monthly Prices'!A178 -> 1974M04 | D190: 1974-03-01 | E190: 171 | F190: TRUE | G190: TRUE | H190: TRUE | I190: 1974-03-01 | J190: =INDEX('Monthly Prices'!B178:CB178,$G$4) -> 10.6 | K190: =IF(H190,INDEX('Monthly Prices'!B178:CB178,$G$4)*U190,FALSE) -> 73.71368619 | L190: TRUE | M190: =INDEX('Monthly Prices'!B178:CB178,$G$5) -> 10.6 | N190: =IF(H190,INDEX('Monthly Prices'!B178:CB178,$G$5)*U190,FALSE) -> 73.71368619 | O190: TRUE | P190: 1974 | Q190: ='Monthly Prices'!B178 -> 10.6 | R190: 10.76 | S190: =_xlfn.XLOOKUP(P190,'Annual Real'!A:A,'Annual Real'!B:B,0,0) -> 29.15785585 | T190: 6.954121339 | U190: 6.954121339 | V190: -0.2146107003 | W190: -0.2146107003 | X190: 0.478 | Y190: 0.478 | Z190: 0.01057082452 | AA190: 1.627511066 | AB190: 7 | AC190: 1974-03-01 | AD190: 6.954121339
C191: ='Monthly Prices'!A179 -> 1974M05 | D191: 1974-04-01 | E191: 172 | F191: TRUE | G191: TRUE | H191: TRUE | I191: 1974-04-01 | J191: =INDEX('Monthly Prices'!B179:CB179,$G$4) -> 10.6 | K191: =IF(H191,INDEX('Monthly Prices'!B179:CB179,$G$4)*U191,FALSE) -> 73.25393347 | L191: TRUE | M191: =INDEX('Monthly Prices'!B179:CB179,$G$5) -> 10.6 | N191: =IF(H191,INDEX('Monthly Prices'!B179:CB179,$G$5)*U191,FALSE) -> 73.25393347 | O191: TRUE | P191: 1974 | Q191: ='Monthly Prices'!B179 -> 10.6 | R191: 10.76 | S191: =_xlfn.XLOOKUP(P191,'Annual Real'!A:A,'Annual Real'!B:B,0,0) -> 29.15785585 | T191: 6.910748441 | U191: 6.910748441 | V191: -0.006256537614 | W191: -0.006256537614 | X191: 0.481 | Y191: 0.481 | Z191: 0.006276150628 | AA191: 1.63772557 | AB191: 7 | AC191: 1974-04-01 | AD191: 6.910748441
C192: ='Monthly Prices'!A180 -> 1974M06 | D192: 1974-05-01 | E192: 173 | F192: TRUE | G192: TRUE | H192: TRUE | I192: 1974-05-01 | J192: =INDEX('Monthly Prices'!B180:CB180,$G$4) -> 10.6 | K192: =IF(H192,INDEX('Monthly Prices'!B180:CB180,$G$4)*U192,FALSE) -> 72.50029218 | L192: TRUE | M192: =INDEX('Monthly Prices'!B180:CB180,$G$5) -> 10.6 | N192: =IF(H192,INDEX('Monthly Prices'!B180:CB180,$G$5)*U192,FALSE) -> 72.50029218 | O192: TRUE | P192: 1974 | Q192: ='Monthly Prices'!B180 -> 10.6 | R192: 10.76 | S192: =_xlfn.XLOOKUP(P192,'Annual Real'!A:A,'Annual Real'!B:B,0,0) -> 29.15785585 | T192: 6.839650206 | U192: 6.839650206 | V192: -0.01034135379 | W192: -0.01034135379 | X192: 0.486 | Y192: 0.486 | Z192: 0.0103950104 | AA192: 1.654749745 | AB192: 7 | AC192: 1974-05-01 | AD192: 6.839650206
C193: ='Monthly Prices'!A181 -> 1974M07 | D193: 1974-06-01 | E193: 174 | F193: TRUE | G193: TRUE | H193: TRUE | I193: 1974-06-01 | J193: =INDEX('Monthly Prices'!B181:CB181,$G$4) -> 10 | K193: =IF(H193,INDEX('Monthly Prices'!B181:CB181,$G$4)*U193,FALSE) -> 67.83816327 | L193: TRUE | M193: =INDEX('Monthly Prices'!B181:CB181,$G$5) -> 10 | N193: =IF(H193,INDEX('Monthly Prices'!B181:CB181,$G$5)*U193,FALSE) -> 67.83816327 | O193: TRUE | P193: 1974 | Q193: ='Monthly Prices'!B181 -> 10 | R193: 10.76 | S193: =_xlfn.XLOOKUP(P193,'Annual Real'!A:A,'Annual Real'!B:B,0,0) -> 29.15785585 | T193: 6.783816327 | U193: 6.783816327 | V193: -0.06646567533 | W193: -0.06646567533 | X193: 0.49 | Y193: 0.49 | Z193: 0.008230452675 | AA193: 1.668369084 | AB193: 7 | AC193: 1974-06-01 | AD193: 6.783816327
C194: ='Monthly Prices'!A182 -> 1974M08 | D194: 1974-07-01 | E194: 175 | F194: TRUE | G194: TRUE | H194: TRUE | I194: 1974-07-01 | J194: =INDEX('Monthly Prices'!B182:CB182,$G$4) -> 10 | K194: =IF(H194,INDEX('Monthly Prices'!B182:CB182,$G$4)*U194,FALSE) -> 67.42535497 | L194: TRUE | M194: =INDEX('Monthly Prices'!B182:CB182,$G$5) -> 10 | N194: =IF(H194,INDEX('Monthly Prices'!B182:CB182,$G$5)*U194,FALSE) -> 67.42535497 | O194: TRUE | P194: 1974 | Q194: ='Monthly Prices'!B182 -> 10 | R194: 10.76 | S194: =_xlfn.XLOOKUP(P194,'Annual Real'!A:A,'Annual Real'!B:B,0,0) -> 29.15785585 | T194: 6.742535497 | U194: 6.742535497 | V194: -0.006103782938 | W194: -0.006103782938 | X194: 0.493 | Y194: 0.493 | Z194: 0.00612244898 | AA194: 1.678583589 | AB194: 7 | AC194: 1974-07-01 | AD194: 6.742535497
C195: ='Monthly Prices'!A183 -> 1974M09 | D195: 1974-08-01 | E195: 176 | F195: TRUE | G195: TRUE | H195: TRUE | I195: 1974-08-01 | J195: =INDEX('Monthly Prices'!B183:CB183,$G$4) -> 10 | K195: =IF(H195,INDEX('Monthly Prices'!B183:CB183,$G$4)*U195,FALSE) -> 66.61462926 | L195: TRUE | M195: =INDEX('Monthly Prices'!B183:CB183,$G$5) -> 10 | N195: =IF(H195,INDEX('Monthly Prices'!B183:CB183,$G$5)*U195,FALSE) -> 66.61462926 | O195: TRUE | P195: 1974 | Q195: ='Monthly Prices'!B183 -> 10 | R195: 10.76 | S195: =_xlfn.XLOOKUP(P195,'Annual Real'!A:A,'Annual Real'!B:B,0,0) -> 29.15785585 | T195: 6.661462926 | U195: 6.661462926 | V195: -0.01209692171 | W195: -0.01209692171 | X195: 0.499 | Y195: 0.499 | Z195: 0.0121703854 | AA195: 1.699012598 | AB195: 7 | AC195: 1974-08-01 | AD195: 6.661462926
C196: ='Monthly Prices'!A184 -> 1974M10 | D196: 1974-09-01 | E196: 177 | F196: TRUE | G196: TRUE | H196: TRUE | I196: 1974-09-01 | J196: =INDEX('Monthly Prices'!B184:CB184,$G$4) -> 10.3 | K196: =IF(H196,INDEX('Monthly Prices'!B184:CB184,$G$4)*U196,FALSE) -> 67.66387549 | L196: TRUE | M196: =INDEX('Monthly Prices'!B184:CB184,$G$5) -> 10.3 | N196: =IF(H196,INDEX('Monthly Prices'!B184:CB184,$G$5)*U196,FALSE) -> 67.66387549 | O196: TRUE | P196: 1974 | Q196: ='Monthly Prices'!B184 -> 10.3 | R196: 10.76 | S196: =_xlfn.XLOOKUP(P196,'Annual Real'!A:A,'Annual Real'!B:B,0,0) -> 29.15785585 | T196: 6.5693083 | U196: 6.5693083 | V196: 0.01562822871 | W196: 0.01562822871 | X196: 0.506 | Y196: 0.506 | Z196: 0.01402805611 | AA196: 1.722846442 | AB196: 7 | AC196: 1974-09-01 | AD196: 6.5693083
C197: ='Monthly Prices'!A185 -> 1974M11 | D197: 1974-10-01 | E197: 178 | F197: TRUE | G197: TRUE | H197: TRUE | I197: 1974-10-01 | J197: =INDEX('Monthly Prices'!B185:CB185,$G$4) -> 10.3 | K197: =IF(H197,INDEX('Monthly Prices'!B185:CB185,$G$4)*U197,FALSE) -> 67.13317843 | L197: TRUE | M197: =INDEX('Monthly Prices'!B185:CB185,$G$5) -> 10.3 | N197: =IF(H197,INDEX('Monthly Prices'!B185:CB185,$G$5)*U197,FALSE) -> 67.13317843 | O197: TRUE | P197: 1974 | Q197: ='Monthly Prices'!B185 -> 10.3 | R197: 10.76 | S197: =_xlfn.XLOOKUP(P197,'Annual Real'!A:A,'Annual Real'!B:B,0,0) -> 29.15785585 | T197: 6.517784314 | U197: 6.517784314 | V197: -0.007874056431 | W197: -0.007874056431 | X197: 0.51 | Y197: 0.51 | Z197: 0.00790513834 | AA197: 1.736465781 | AB197: 7 | AC197: 1974-10-01 | AD197: 6.517784314
C198: ='Monthly Prices'!A186 -> 1974M12 | D198: 1974-11-01 | E198: 179 | F198: TRUE | G198: TRUE | H198: TRUE | I198: 1974-11-01 | J198: =INDEX('Monthly Prices'!B186:CB186,$G$4) -> 10.3 | K198: =IF(H198,INDEX('Monthly Prices'!B186:CB186,$G$4)*U198,FALSE) -> 66.4814 | L198: TRUE | M198: =INDEX('Monthly Prices'!B186:CB186,$G$5) -> 10.3 | N198: =IF(H198,INDEX('Monthly Prices'!B186:CB186,$G$5)*U198,FALSE) -> 66.4814 | O198: TRUE | P198: 1974 | Q198: ='Monthly Prices'!B186 -> 10.3 | R198: 10.76 | S198: =_xlfn.XLOOKUP(P198,'Annual Real'!A:A,'Annual Real'!B:B,0,0) -> 29.15785585 | T198: 6.454504854 | U198: 6.454504854 | V198: -0.009756174945 | W198: -0.009756174945 | X198: 0.515 | Y198: 0.515 | Z198: 0.009803921569 | AA198: 1.753489956 | AB198: 7 | AC198: 1974-11-01 | AD198: 6.454504854
C199: ='Monthly Prices'!A187 -> 1975M01 | D199: 1974-12-01 | E199: 180 | F199: TRUE | G199: TRUE | H199: TRUE | I199: 1974-12-01 | J199: =INDEX('Monthly Prices'!B187:CB187,$G$4) -> 10.42 | K199: =IF(H199,INDEX('Monthly Prices'!B187:CB187,$G$4)*U199,FALSE) -> 66.73759037 | L199: TRUE | M199: =INDEX('Monthly Prices'!B187:CB187,$G$5) -> 10.42 | N199: =IF(H199,INDEX('Monthly Prices'!B187:CB187,$G$5)*U199,FALSE) -> 66.73759037 | O199: TRUE | P199: 1974 | Q199: ='Monthly Prices'!B187 -> 10.42 | R199: 10.76 | S199: =_xlfn.XLOOKUP(P199,'Annual Real'!A:A,'Annual Real'!B:B,0,0) -> 29.15785585 | T199: 6.404759152 | U199: 6.404759152 | V199: 0.003846158587 | W199: 0.003846158587 | X199: 0.519 | Y199: 0.519 | Z199: 0.007766990291 | AA199: 1.767109295 | AB199: 7 | AC199: 1974-12-01 | AD199: 6.404759152
C200: ='Monthly Prices'!A188 -> 1975M02 | D200: 1975-01-01 | E200: 181 | F200: TRUE | G200: TRUE | H200: TRUE | I200: 1975-01-01 | J200: =INDEX('Monthly Prices'!B188:CB188,$G$4) -> 10.42 | K200: =IF(H200,INDEX('Monthly Prices'!B188:CB188,$G$4)*U200,FALSE) -> 66.22716902 | L200: TRUE | M200: =INDEX('Monthly Prices'!B188:CB188,$G$5) -> 10.42 | N200: =IF(H200,INDEX('Monthly Prices'!B188:CB188,$G$5)*U200,FALSE) -> 66.22716902 | O200: TRUE | P200: 1975 | Q200: ='Monthly Prices'!B188 -> 10.42 | R200: 10.52333333 | S200: =_xlfn.XLOOKUP(P200,'Annual Real'!A:A,'Annual Real'!B:B,0,0) -> 24.956436 | T200: 6.355774379 | U200: 6.355774379 | V200: -0.007677580899 | W200: -0.007677580899 | X200: 0.523 | Y200: 0.523 | Z200: 0.007707129094 | AA200: 1.780728635 | AB200: 7 | AC200: 1975-01-01 | AD200: 6.355774379
C201: ='Monthly Prices'!A189 -> 1975M03 | D201: 1975-02-01 | E201: 182 | F201: TRUE | G201: TRUE | H201: TRUE | I201: 1975-02-01 | J201: =INDEX('Monthly Prices'!B189:CB189,$G$4) -> 10.42 | K201: =IF(H201,INDEX('Monthly Prices'!B189:CB189,$G$4)*U201,FALSE) -> 65.84944753 | L201: TRUE | M201: =INDEX('Monthly Prices'!B189:CB189,$G$5) -> 10.42 | N201: =IF(H201,INDEX('Monthly Prices'!B189:CB189,$G$5)*U201,FALSE) -> 65.84944753 | O201: TRUE | P201: 1975 | Q201: ='Monthly Prices'!B189 -> 10.42 | R201: 10.52333333 | S201: =_xlfn.XLOOKUP(P201,'Annual Real'!A:A,'Annual Real'!B:B,0,0) -> 24.956436 | T201: 6.319524715 | U201: 6.319524715 | V201: -0.005719748673 | W201: -0.005719748673 | X201: 0.526 | Y201: 0.526 | Z201: 0.005736137667 | AA201: 1.790943139 | AB201: 7 | AC201: 1975-02-01 | AD201: 6.319524715
C202: ='Monthly Prices'!A190 -> 1975M04 | D202: 1975-03-01 | E202: 183 | F202: TRUE | G202: TRUE | H202: TRUE | I202: 1975-03-01 | J202: =INDEX('Monthly Prices'!B190:CB190,$G$4) -> 10.42 | K202: =IF(H202,INDEX('Monthly Prices'!B190:CB190,$G$4)*U202,FALSE) -> 65.6000178 | L202: TRUE | M202: =INDEX('Monthly Prices'!B190:CB190,$G$5) -> 10.42 | N202: =IF(H202,INDEX('Monthly Prices'!B190:CB190,$G$5)*U202,FALSE) -> 65.6000178 | O202: TRUE | P202: 1975 | Q202: ='Monthly Prices'!B190 -> 10.42 | R202: 10.52333333 | S202: =_xlfn.XLOOKUP(P202,'Annual Real'!A:A,'Annual Real'!B:B,0,0) -> 24.956436 | T202: 6.295587121 | U202: 6.295587121 | V202: -0.003795070969 | W202: -0.003795070969 | X202: 0.528 | Y202: 0.528 | Z202: 0.003802281369 | AA202: 1.797752809 | AB202: 7 | AC202: 1975-03-01 | AD202: 6.295587121
C203: ='Monthly Prices'!A191 -> 1975M05 | D203: 1975-04-01 | E203: 184 | F203: TRUE | G203: TRUE | H203: TRUE | I203: 1975-04-01 | J203: =INDEX('Monthly Prices'!B191:CB191,$G$4) -> 10.42 | K203: =IF(H203,INDEX('Monthly Prices'!B191:CB191,$G$4)*U203,FALSE) -> 65.35247057 | L203: TRUE | M203: =INDEX('Monthly Prices'!B191:CB191,$G$5) -> 10.42 | N203: =IF(H203,INDEX('Monthly Prices'!B191:CB191,$G$5)*U203,FALSE) -> 65.35247057 | O203: TRUE | P203: 1975 | Q203: ='Monthly Prices'!B191 -> 10.42 | R203: 10.52333333 | S203: =_xlfn.XLOOKUP(P203,'Annual Real'!A:A,'Annual Real'!B:B,0,0) -> 24.956436 | T203: 6.271830189 | U203: 6.271830189 | V203: -0.00378072284 | W203: -0.00378072284 | X203: 0.53 | Y203: 0.53 | Z203: 0.003787878788 | AA203: 1.804562479 | AB203: 7 | AC203: 1975-04-01 | AD203: 6.271830189
C204: ='Monthly Prices'!A192 -> 1975M06 | D204: 1975-05-01 | E204: 185 | F204: TRUE | G204: TRUE | H204: TRUE | I204: 1975-05-01 | J204: =INDEX('Monthly Prices'!B192:CB192,$G$4) -> 10.42 | K204: =IF(H204,INDEX('Monthly Prices'!B192:CB192,$G$4)*U204,FALSE) -> 65.22939623 | L204: TRUE | M204: =INDEX('Monthly Prices'!B192:CB192,$G$5) -> 10.42 | N204: =IF(H204,INDEX('Monthly Prices'!B192:CB192,$G$5)*U204,FALSE) -> 65.22939623 | O204: TRUE | P204: 1975 | Q204: ='Monthly Prices'!B192 -> 10.42 | R204: 10.52333333 | S204: =_xlfn.XLOOKUP(P204,'Annual Real'!A:A,'Annual Real'!B:B,0,0) -> 24.956436 | T204: 6.260018832 | U204: 6.260018832 | V204: -0.001885014696 | W204: -0.001885014696 | X204: 0.531 | Y204: 0.531 | Z204: 0.001886792453 | AA204: 1.807967314 | AB204: 7 | AC204: 1975-05-01 | AD204: 6.260018832
... 611 more rows

Sheet Monthly Prices
A1: World Bank Commodity Price Data (The Pink Sheet)
A2: monthly prices in nominal US dollars, 1960 to present
A3: (monthly series are available only in nominal US dollars)
A4: Updated on June 02, 2026
B5: Crude oil, average | C5: Crude oil, Brent | D5: Crude oil, Dubai | E5: Crude oil, WTI | F5: Coal, Australian | G5: Coal, South African ** | H5: Natural gas, US | I5: Natural gas, Europe | J5: Liquefied natural gas, Japan | K5: Natural gas index | L5: Cocoa | M5: Coffee, Arabica | N5: Coffee, Robusta | O5: Tea, avg 3 auctions | P5: Tea, Colombo | Q5: Tea, Kolkata | R5: Tea, Mombasa | S5: Coconut oil | T5: Groundnuts | U5: Fish meal | V5: Groundnut oil ** | W5: Palm oil | X5: Palm kernel oil | Y5: Soybeans | Z5: Soybean oil | AA5: Soybean meal | AB5: Rapeseed oil | AC5: Sunflower oil | AD5: Barley | AE5: Maize | AF5: Sorghum | AG5: Rice, Thai 5% | AH5: Rice, Thai 25% | AI5: Rice, Thai A.1 | AJ5: Rice, Viet Namese 5% | AK5: Wheat, US SRW | AL5: Wheat, US HRW | AM5: Banana, Europe | AN5: Banana, US | AO5: Orange | AP5: Beef ** | AQ5: Chicken ** | AR5: Lamb ** | AS5: Shrimps, Mexican | AT5: Sugar, EU | AU5: Sugar, US | AV5: Sugar, world | AW5: Tobacco, US import u.v. | AX5: Logs, Cameroon | AY5: Logs, Malaysian | AZ5: Sawnwood, Cameroon | BA5: Sawnwood, Malaysian | BB5: Plywood | BC5: Cotton, A Index | BD5: Rubber, TSR20 ** | BE5: Rubber, RSS3 | BF5: Phosphate rock | BG5: DAP | BH5: TSP | BI5: Urea | BJ5: Potassium chloride ** | BK5: Aluminum | BL5: Iron ore, cfr spot | BM5: Copper | BN5: Lead | BO5: Tin | BP5: Nickel | BQ5: Zinc | BR5: Gold | BS5: Platinum | BT5: Silver
B6: ($/bbl) | C6: ($/bbl) | D6: ($/bbl) | E6: ($/bbl) | F6: ($/mt) | G6: ($/mt) | H6: ($/mmbtu) | I6: ($/mmbtu) | J6: ($/mmbtu) | K6: (2010=100) | L6: ($/kg) | M6: ($/kg) | N6: ($/kg) | O6: ($/kg) | P6: ($/kg) | Q6: ($/kg) | R6: ($/kg) | S6: ($/mt) | T6: ($/mt) | U6: ($/mt) | V6: ($/mt) | W6: ($/mt) | X6: ($/mt) | Y6: ($/mt) | Z6: ($/mt) | AA6: ($/mt) | AB6: ($/mt) | AC6: ($/mt) | AD6: ($/mt) | AE6: ($/mt) | AF6: ($/mt) | AG6: ($/mt) | AH6: ($/mt) | AI6: ($/mt) | AJ6: ($/mt) | AK6: ($/mt) | AL6: ($/mt) | AM6: ($/kg) | AN6: ($/kg) | AO6: ($/kg) | AP6: ($/kg) | AQ6: ($/kg) | AR6: ($/kg) | AS6: ($/kg) | AT6: ($/kg) | AU6: ($/kg) | AV6: ($/kg) | AW6: ($/mt) | AX6: ($/cubic meter) | AY6: ($/cubic meter) | AZ6: ($/cubic meter) | BA6: ($/cubic meter) | BB6: (cents/sheet) | BC6: ($/kg) | BD6: ($/kg) | BE6: ($/kg) | BF6: ($/mt) | BG6: ($/mt) | BH6: ($/mt) | BI6: ($/mt) | BJ6: ($/mt) | BK6: ($/mt) | BL6: ($/dmtu) | BM6: ($/mt) | BN6: ($/mt) | BO6: ($/mt) | BP6: ($/mt) | BQ6: ($/mt) | BR6: ($/troy oz) | BS6: ($/troy oz) | BT6: ($/troy oz)
A7: 1960M01 | B7: 1.63 | C7: 1.63 | D7: 1.63 | E7: … | F7: … | G7: … | H7: 0.14 | I7: 0.4 | J7: … | K7: … | L7: 0.63 | M7: 0.94 | N7: 0.7 | O7: 1.03 | P7: 0.93 | Q7: 1.12 | R7: 1.04 | S7: 390 | T7: … | U7: … | V7: 334 | W7: 233 | X7: … | Y7: 94 | Z7: 204 | AA7: 91.9 | AB7: … | AC7: … | AD7: 20.36 | AE7: 45 | AF7: 39 | AG7: 104.45 | AH7: … | AI7: … | AJ7: … | AK7: … | AL7: 59.89 | AM7: … | AN7: 0.14 | AO7: 0.12 | AP7: 0.71 | AQ7: 0.3 | AR7: … | AS7: 1.43 | AT7: 0.12 | AU7: 0.12 | AV7: 0.07 | AW7: 1736.87 | AX7: … | AY7: 31.94 | AZ7: … | BA7: 149.17 | BB7: … | BC7: 0.65 | BD7: … | BE7: 0.82 | BF7: 13 | BG7: ... | BH7: 53 | BI7: 42.25 | BJ7: 28.5 | BK7: 511.47 | BL7: 11.42 | BM7: 715.4 | BN7: 206.1 | BO7: 2180.4 | BP7: 1631 | BQ7: 260.8 | BR7: 35.27 | BS7: 83.5 | BT7: 0.91
A8: 1960M02 | B8: 1.63 | C8: 1.63 | D8: 1.63 | E8: … | F8: … | G8: … | H8: 0.14 | I8: 0.4 | J8: … | K8: … | L8: 0.61 | M8: 0.95 | N8: 0.69 | O8: 1.03 | P8: 0.93 | Q8: 1.12 | R8: 1.04 | S8: 379 | T8: … | U8: … | V8: 341 | W8: 229 | X8: … | Y8: 91 | Z8: 201 | AA8: 86.7 | AB8: … | AC8: … | AD8: 20.41 | AE8: 44 | AF8: 39 | AG8: 103.54 | AH8: … | AI8: … | AJ8: … | AK8: … | AL8: 60.99 | AM8: … | AN8: 0.14 | AO8: 0.11 | AP8: 0.71 | AQ8: 0.3 | AR8: … | AS8: 1.5 | AT8: 0.12 | AU8: 0.12 | AV8: 0.07 | AW8: 1736.87 | AX8: … | AY8: 31.94 | AZ8: … | BA8: 149.17 | BB8: … | BC8: 0.65 | BD8: … | BE8: 0.83 | BF8: 13 | BG8: ... | BH8: 53 | BI8: 42.25 | BJ8: 28.5 | BK8: 511.47 | BL8: 11.42 | BM8: 728.19 | BN8: 203.7 | BO8: 2180.4 | BP8: 1631 | BQ8: 244.9 | BR8: 35.27 | BS8: 83.5 | BT8: 0.91
A9: 1960M03 | B9: 1.63 | C9: 1.63 | D9: 1.63 | E9: … | F9: … | G9: … | H9: 0.14 | I9: 0.4 | J9: … | K9: … | L9: 0.58 | M9: 0.93 | N9: 0.69 | O9: 1.03 | P9: 0.93 | Q9: 1.12 | R9: 1.04 | S9: 361 | T9: … | U9: … | V9: 338 | W9: 225 | X9: … | Y9: 92 | Z9: 201 | AA9: 84.1 | AB9: … | AC9: … | AD9: 20.72 | AE9: 45 | AF9: 35 | AG9: 103.79 | AH9: … | AI9: … | AJ9: … | AK9: … | AL9: 61.73 | AM9: … | AN9: 0.14 | AO9: 0.13 | AP9: 0.77 | AQ9: 0.3 | AR9: … | AS9: 1.5 | AT9: 0.12 | AU9: 0.12 | AV9: 0.07 | AW9: 1736.87 | AX9: … | AY9: 31.94 | AZ9: … | BA9: 149.17 | BB9: … | BC9: 0.65 | BD9: … | BE9: 0.86 | BF9: 13 | BG9: ... | BH9: 53 | BI9: 42.25 | BJ9: 28.5 | BK9: 511.47 | BL9: 11.42 | BM9: 684.94 | BN9: 210.3 | BO9: 2173.8 | BP9: 1631 | BQ9: 248.7 | BR9: 35.27 | BS9: 83.5 | BT9: 0.91
A10: 1960M04 | B10: 1.63 | C10: 1.63 | D10: 1.63 | E10: … | F10: … | G10: … | H10: 0.14 | I10: 0.4 | J10: … | K10: … | L10: 0.6 | M10: 0.93 | N10: 0.68 | O10: 1.03 | P10: 0.93 | Q10: 1.12 | R10: 1.04 | S10: 338 | T10: … | U10: … | V10: 333 | W10: 225 | X10: … | Y10: 93 | Z10: 207 | AA10: 86.7 | AB10: … | AC10: … | AD10: 20.64 | AE10: 45 | AF10: 35 | AG10: 100.97 | AH10: … | AI10: … | AJ10: … | AK10: … | AL10: 60.99 | AM10: … | AN10: 0.14 | AO10: 0.14 | AP10: 0.84 | AQ10: 0.3 | AR10: … | AS10: 1.68 | AT10: 0.12 | AU10: 0.12 | AV10: 0.07 | AW10: 1736.87 | AX10: … | AY10: 31.94 | AZ10: … | BA10: 149.17 | BB10: … | BC10: 0.64 | BD10: … | BE10: 0.86 | BF10: 13 | BG10: ... | BH10: 53 | BI10: 42.25 | BJ10: 28.5 | BK10: 511.47 | BL10: 11.42 | BM10: 723.11 | BN10: 213.6 | BO10: 2178.2 | BP10: 1631 | BQ10: 254.6 | BR10: 35.27 | BS10: 83.5 | BT10: 0.91
A11: 1960M05 | B11: 1.63 | C11: 1.63 | D11: 1.63 | E11: … | F11: … | G11: … | H11: 0.14 | I11: 0.4 | J11: … | K11: … | L11: 0.6 | M11: 0.92 | N11: 0.69 | O11: 1.03 | P11: 0.93 | Q11: 1.12 | R11: 1.04 | S11: 321 | T11: … | U11: … | V11: 335 | W11: 225 | X11: … | Y11: 93 | Z11: 209 | AA11: 81.5 | AB11: … | AC11: … | AD11: 20.61 | AE11: 48 | AF11: 35 | AG11: 102.15 | AH11: … | AI11: … | AJ11: … | AK11: … | AL11: 57.69 | AM11: … | AN11: 0.15 | AO11: 0.14 | AP11: 0.76 | AQ11: 0.3 | AR11: … | AS11: 1.76 | AT11: 0.12 | AU11: 0.12 | AV11: 0.07 | AW11: 1736.87 | AX11: … | AY11: 31.94 | AZ11: … | BA11: 149.17 | BB11: … | BC11: 0.65 | BD11: … | BE11: 0.93 | BF11: 13 | BG11: ... | BH11: 53 | BI11: 42.25 | BJ11: 28.5 | BK11: 511.47 | BL11: 11.42 | BM11: 684.75 | BN11: 213.4 | BO11: 2162.7 | BP11: 1631 | BQ11: 253.8 | BR11: 35.27 | BS11: 83.5 | BT11: 0.91
A12: 1960M06 | B12: 1.63 | C12: 1.63 | D12: 1.63 | E12: … | F12: … | G12: … | H12: 0.14 | I12: 0.4 | J12: … | K12: … | L12: 0.59 | M12: 0.91 | N12: 0.7 | O12: 1.03 | P12: 0.93 | Q12: 1.12 | R12: 1.04 | S12: 287 | T12: … | U12: … | V12: 334 | W12: 219 | X12: … | Y12: 91 | Z12: 218 | AA12: 80.3 | AB12: … | AC12: … | AD12: 20.13 | AE12: 47 | AF12: 36 | AG12: 103.13 | AH12: … | AI12: … | AJ12: … | AK12: … | AL12: 55.48 | AM12: … | AN12: 0.15 | AO12: 0.14 | AP12: 0.71 | AQ12: 0.3 | AR12: … | AS12: 1.76 | AT12: 0.12 | AU12: 0.13 | AV12: 0.07 | AW12: 1736.87 | AX12: … | AY12: 31.94 | AZ12: … | BA12: 149.17 | BB12: … | BC12: 0.66 | BD12: … | BE12: 0.89 | BF12: 13 | BG12: ... | BH12: 53 | BI12: 42.25 | BJ12: 28.5 | BK12: 511.47 | BL12: 11.42 | BM12: 691.59 | BN12: 202.4 | BO12: 2184.8 | BP12: 1631 | BQ12: 249.8 | BR12: 35.27 | BS12: 83.5 | BT12: 0.91
A13: 1960M07 | B13: 1.63 | C13: 1.63 | D13: 1.63 | E13: … | F13: … | G13: … | H13: 0.14 | I13: 0.4 | J13: … | K13: … | L13: 0.6 | M13: 0.92 | N13: 0.69 | O13: 1.03 | P13: 0.93 | Q13: 1.12 | R13: 1.04 | S13: 298 | T13: … | U13: … | V13: 336 | W13: 221 | X13: … | Y13: 92 | Z13: 224 | AA13: 77.7 | AB13: … | AC13: … | AD13: 20.04 | AE13: 47 | AF13: 39.9 | AG13: 102.05 | AH13: … | AI13: … | AJ13: … | AK13: … | AL13: 54.75 | AM13: … | AN13: 0.15 | AO13: 0.13 | AP13: 0.75 | AQ13: 0.3 | AR13: … | AS13: 1.74 | AT13: 0.12 | AU13: 0.13 | AV13: 0.07 | AW13: 1736.87 | AX13: … | AY13: 31.94 | AZ13: … | BA13: 149.17 | BB13: … | BC13: 0.66 | BD13: … | BE13: 0.79 | BF13: 13 | BG13: ... | BH13: 53 | BI13: 42.25 | BJ13: 28.5 | BK13: 511.47 | BL13: 11.42 | BM13: 702.39 | BN13: 196.2 | BO13: 2248.7 | BP13: 1631 | BQ13: 248.7 | BR13: 35.27 | BS13: 83.5 | BT13: 0.91
A14: 1960M08 | B14: 1.63 | C14: 1.63 | D14: 1.63 | E14: … | F14: … | G14: … | H14: 0.14 | I14: 0.4 | J14: … | K14: … | L14: 0.59 | M14: 0.93 | N14: 0.7 | O14: 1.03 | P14: 0.93 | Q14: 1.12 | R14: 1.04 | S14: 292 | T14: … | U14: … | V14: 336 | W14: 225 | X14: … | Y14: 93 | Z14: 237 | AA14: 77.7 | AB14: … | AC14: … | AD14: 20.13 | AE14: 47 | AF14: 39 | AG14: 109.71 | AH14: … | AI14: … | AJ14: … | AK14: … | AL14: 55.12 | AM14: … | AN14: 0.13 | AO14: 0.13 | AP14: 0.78 | AQ14: 0.3 | AR14: … | AS14: 1.59 | AT14: 0.12 | AU14: 0.13 | AV14: 0.07 | AW14: 1736.87 | AX14: … | AY14: 31.94 | AZ14: … | BA14: 149.17 | BB14: … | BC14: 0.65 | BD14: … | BE14: 0.72 | BF14: 13 | BG14: ... | BH14: 53 | BI14: 42.25 | BJ14: 28.5 | BK14: 511.47 | BL14: 11.42 | BM14: 675.94 | BN14: 195.3 | BO14: 2204.6 | BP14: 1631 | BQ14: 241 | BR14: 35.27 | BS14: 83.5 | BT14: 0.91
A15: 1960M09 | B15: 1.63 | C15: 1.63 | D15: 1.63 | E15: … | F15: … | G15: … | H15: 0.14 | I15: 0.4 | J15: … | K15: … | L15: 0.58 | M15: 0.92 | N15: 0.7 | O15: 1.03 | P15: 0.93 | Q15: 1.12 | R15: 1.04 | S15: 276 | T15: … | U15: … | V15: 323 | W15: 224 | X15: … | Y15: 92 | Z15: 231 | AA15: 82.8 | AB15: … | AC15: … | AD15: 20.26 | AE15: 46 | AF15: 35 | AG15: 116.1 | AH15: … | AI15: … | AJ15: … | AK15: … | AL15: 56.59 | AM15: … | AN15: 0.14 | AO15: 0.13 | AP15: 0.81 | AQ15: 0.3 | AR15: … | AS15: 1.52 | AT15: 0.12 | AU15: 0.13 | AV15: 0.07 | AW15: 1736.87 | AX15: … | AY15: 31.94 | AZ15: … | BA15: 149.17 | BB15: … | BC15: 0.66 | BD15: … | BE15: 0.73 | BF15: 13 | BG15: ... | BH15: 53 | BI15: 42.25 | BJ15: 28.5 | BK15: 511.47 | BL15: 11.42 | BM15: 647.06 | BN15: 192.7 | BO15: 2226.7 | BP15: 1631 | BQ15: 240.1 | BR15: 35.27 | BS15: 83.5 | BT15: 0.91
A16: 1960M10 | B16: 1.63 | C16: 1.63 | D16: 1.63 | E16: … | F16: … | G16: … | H16: 0.14 | I16: 0.4 | J16: … | K16: … | L16: 0.59 | M16: 0.92 | N16: 0.71 | O16: 1.03 | P16: 0.93 | Q16: 1.12 | R16: 1.04 | S16: 280 | T16: … | U16: … | V16: 310 | W16: 222 | X16: … | Y16: 88 | Z16: 237 | AA16: 75.1 | AB16: … | AC16: … | AD16: 19.72 | AE16: 42 | AF16: 35 | AG16: 115.21 | AH16: … | AI16: … | AJ16: … | AK16: … | AL16: 56.95 | AM16: … | AN16: 0.15 | AO16: 0.13 | AP16: 0.71 | AQ16: 0.3 | AR16: … | AS16: 1.63 | AT16: 0.12 | AU16: 0.13 | AV16: 0.05 | AW16: 1736.87 | AX16: … | AY16: 31.94 | AZ16: … | BA16: 149.17 | BB16: … | BC16: 0.67 | BD16: … | BE16: 0.69 | BF16: 13 | BG16: ... | BH16: 53 | BI16: 42.25 | BJ16: 28.5 | BK16: 511.47 | BL16: 11.42 | BM16: 612.66 | BN16: 185.2 | BO16: 2226.7 | BP16: 1631 | BQ16: 242.3 | BR16: 35.27 | BS16: 83.5 | BT16: 0.91
A17: 1960M11 | B17: 1.63 | C17: 1.63 | D17: 1.63 | E17: … | F17: … | G17: … | H17: 0.14 | I17: 0.4 | J17: … | K17: … | L17: 0.57 | M17: 0.91 | N17: 0.71 | O17: 1.03 | P17: 0.93 | Q17: 1.12 | R17: 1.04 | S17: 274 | T17: … | U17: … | V17: 303 | W17: 222 | X17: … | Y17: 90 | Z17: 259 | AA17: 68.6 | AB17: … | AC17: … | AD17: 19.2 | AE17: 38 | AF17: 35 | AG17: 114.43 | AH17: … | AI17: … | AJ17: … | AK17: … | AL17: 57.69 | AM17: … | AN17: 0.13 | AO17: 0.15 | AP17: 0.63 | AQ17: 0.3 | AR17: … | AS17: 1.63 | AT17: 0.12 | AU17: 0.13 | AV17: 0.05 | AW17: 1736.87 | AX17: … | AY17: 31.94 | AZ17: … | BA17: 149.17 | BB17: … | BC17: 0.67 | BD17: … | BE17: 0.63 | BF17: 13 | BG17: ... | BH17: 53 | BI17: 42.25 | BJ17: 28.5 | BK17: 511.47 | BL17: 11.42 | BM17: 642.13 | BN17: 188.1 | BO17: 2204.6 | BP17: 1631 | BQ17: 241.4 | BR17: 35.27 | BS17: 83.5 | BT17: 0.91
A18: 1960M12 | B18: 1.63 | C18: 1.63 | D18: 1.63 | E18: … | F18: … | G18: … | H18: 0.14 | I18: 0.4 | J18: … | K18: … | L18: 0.52 | M18: 0.9 | N18: 0.7 | O18: 1.03 | P18: 0.93 | Q18: 1.12 | R18: 1.04 | S18: 252 | T18: … | U18: … | V18: 301 | W18: 223 | X18: … | Y18: 93 | Z18: 259 | AA18: 79 | AB18: … | AC18: … | AD18: 19.63 | AE18: 40 | AF18: 36 | AG18: 112.66 | AH18: … | AI18: … | AJ18: … | AK18: … | AL18: 58.05 | AM18: … | AN18: 0.15 | AO18: 0.12 | AP18: 0.67 | AQ18: 0.3 | AR18: … | AS18: 1.52 | AT18: 0.12 | AU18: 0.13 | AV18: 0.06 | AW18: 1736.87 | AX18: … | AY18: 31.94 | AZ18: … | BA18: 149.17 | BB18: … | BC18: 0.66 | BD18: … | BE18: 0.62 | BF18: 13 | BG18: ... | BH18: 53 | BI18: 42.25 | BJ18: 28.5 | BK18: 511.47 | BL18: 11.42 | BM18: 636.91 | BN18: 179.2 | BO18: 2189.2 | BP18: 1631 | BQ18: 228.2 | BR18: 35.27 | BS18: 83.5 | BT18: 0.91
A19: 1961M01 | B19: 1.57 | C19: 1.57 | D19: 1.57 | E19: … | F19: … | G19: … | H19: 0.15 | I19: 0.4 | J19: … | K19: … | L19: 0.49 | M19: 0.91 | N19: 0.68 | O19: 0.95 | P19: 0.89 | Q19: 0.98 | R19: 0.98 | S19: 269 | T19: … | U19: … | V19: 331 | W19: 223 | X19: … | Y19: 102 | Z19: 278 | AA19: 85.4 | AB19: … | AC19: … | AD19: 20.28 | AE19: 43 | AF19: 38 | AG19: 113.47 | AH19: … | AI19: … | AJ19: … | AK19: … | AL19: 58.79 | AM19: … | AN19: 0.13 | AO19: 0.11 | AP19: 0.64 | AQ19: 0.31 | AR19: … | AS19: 1.52 | AT19: 0.12 | AU19: 0.13 | AV19: 0.06 | AW19: 1563.19 | AX19: … | AY19: 33.06 | AZ19: … | BA19: 151.98 | BB19: … | BC19: 0.66 | BD19: … | BE19: 0.6 | BF19: 13 | BG19: ... | BH19: 52 | BI19: 42.25 | BJ19: 30 | BK19: 511.47 | BL19: 11.02 | BM19: 606.71 | BN19: 175.9 | BO19: 2162.7 | BP19: 1711 | BQ19: 218 | BR19: 35.25 | BS19: 83.5 | BT19: 0.91
A20: 1961M02 | B20: 1.57 | C20: 1.57 | D20: 1.57 | E20: … | F20: … | G20: … | H20: 0.15 | I20: 0.4 | J20: … | K20: … | L20: 0.49 | M20: 0.92 | N20: 0.68 | O20: 0.95 | P20: 0.89 | Q20: 0.98 | R20: 0.98 | S20: 281 | T20: … | U20: … | V20: 349 | W20: 228 | X20: … | Y20: 114 | Z20: 303 | AA20: 94.6 | AB20: … | AC20: … | AD20: 20.53 | AE20: 44 | AF20: 39 | AG20: 109.52 | AH20: … | AI20: … | AJ20: … | AK20: … | AL20: 59.16 | AM20: … | AN20: 0.13 | AO20: 0.11 | AP20: 0.64 | AQ20: 0.31 | AR20: … | AS20: 1.54 | AT20: 0.12 | AU20: 0.13 | AV20: 0.06 | AW20: 1563.19 | AX20: … | AY20: 33.06 | AZ20: … | BA20: 151.98 | BB20: … | BC20: 0.68 | BD20: … | BE20: 0.58 | BF20: 13 | BG20: ... | BH20: 52 | BI20: 42.25 | BJ20: 30 | BK20: 511.47 | BL20: 11.02 | BM20: 616.63 | BN20: 179.9 | BO20: 2187 | BP20: 1711 | BQ20: 228.2 | BR20: 35.25 | BS20: 83.5 | BT20: 0.91
A21: 1961M03 | B21: 1.57 | C21: 1.57 | D21: 1.57 | E21: … | F21: … | G21: … | H21: 0.15 | I21: 0.4 | J21: … | K21: … | L21: 0.46 | M21: 0.91 | N21: 0.67 | O21: 0.95 | P21: 0.89 | Q21: 0.98 | R21: 0.98 | S21: 276 | T21: … | U21: … | V21: 373 | W21: 231 | X21: … | Y21: 121 | Z21: 311 | AA21: 98.5 | AB21: … | AC21: … | AD21: 20.39 | AE21: 44 | AF21: 39 | AG21: 117.65 | AH21: … | AI21: … | AJ21: … | AK21: … | AL21: 58.05 | AM21: … | AN21: 0.14 | AO21: 0.12 | AP21: 0.78 | AQ21: 0.31 | AR21: … | AS21: 1.52 | AT21: 0.12 | AU21: 0.12 | AV21: 0.06 | AW21: 1563.19 | AX21: … | AY21: 33.06 | AZ21: … | BA21: 151.98 | BB21: … | BC21: 0.67 | BD21: … | BE21: 0.62 | BF21: 13 | BG21: ... | BH21: 52 | BI21: 42.25 | BJ21: 30 | BK21: 511.47 | BL21: 11.02 | BM21: 621.26 | BN21: 181.7 | BO21: 2248.7 | BP21: 1711 | BQ21: 233.2 | BR21: 35.25 | BS21: 83.5 | BT21: 0.91
A22: 1961M04 | B22: 1.57 | C22: 1.57 | D22: 1.57 | E22: … | F22: … | G22: … | H22: 0.15 | I22: 0.4 | J22: … | K22: … | L22: 0.44 | M22: 0.9 | N22: 0.66 | O22: 0.95 | P22: 0.89 | Q22: 0.98 | R22: 0.98 | S22: 269 | T22: … | U22: … | V22: 369 | W22: 233 | X22: … | Y22: 129 | Z22: 322 | AA22: 110.7 | AB22: … | AC22: … | AD22: 20.14 | AE22: 43 | AF22: 38 | AG22: 115.17 | AH22: … | AI22: … | AJ22: … | AK22: … | AL22: 57.32 | AM22: … | AN22: 0.14 | AO22: 0.13 | AP22: 0.71 | AQ22: 0.31 | AR22: … | AS22: 1.52 | AT22: 0.12 | AU22: 0.12 | AV22: 0.07 | AW22: 1563.19 | AX22: … | AY22: 33.06 | AZ22: … | BA22: 151.98 | BB22: … | BC22: 0.67 | BD22: … | BE22: 0.64 | BF22: 13 | BG22: ... | BH22: 52 | BI22: 42.25 | BJ22: 30 | BK22: 511.47 | BL22: 11.02 | BM22: 631.84 | BN22: 185 | BO22: 2308.2 | BP22: 1711 | BQ22: 231.3 | BR22: 35.25 | BS22: 83.5 | BT22: 0.91
A23: 1961M05 | B23: 1.57 | C23: 1.57 | D23: 1.57 | E23: … | F23: … | G23: … | H23: 0.15 | I23: 0.4 | J23: … | K23: … | L23: 0.48 | M23: 0.89 | N23: 0.66 | O23: 0.95 | P23: 0.89 | Q23: 0.98 | R23: 0.98 | S23: 258 | T23: … | U23: … | V23: 352 | W23: 234 | X23: … | Y23: 122 | Z23: 314 | AA23: 109.1 | AB23: … | AC23: … | AD23: 20.25 | AE23: 45 | AF23: 42 | AG23: 119.42 | AH23: … | AI23: … | AJ23: … | AK23: … | AL23: 55.85 | AM23: … | AN23: 0.13 | AO23: 0.13 | AP23: 0.64 | AQ23: 0.31 | AR23: … | AS23: 1.5 | AT23: 0.12 | AU23: 0.13 | AV23: 0.07 | AW23: 1563.19 | AX23: … | AY23: 33.06 | AZ23: … | BA23: 151.98 | BB23: … | BC23: 0.68 | BD23: … | BE23: 0.64 | BF23: 13 | BG23: ... | BH23: 52 | BI23: 42.25 | BJ23: 30 | BK23: 511.47 | BL23: 11.02 | BM23: 668.44 | BN23: 183.6 | BO23: 2376.6 | BP23: 1711 | BQ23: 227.1 | BR23: 35.25 | BS23: 83.5 | BT23: 0.91
A24: 1961M06 | B24: 1.57 | C24: 1.57 | D24: 1.57 | E24: … | F24: … | G24: … | H24: 0.15 | I24: 0.4 | J24: … | K24: … | L24: 0.49 | M24: 0.89 | N24: 0.67 | O24: 0.95 | P24: 0.89 | Q24: 0.98 | R24: 0.98 | S24: 243 | T24: … | U24: … | V24: 330 | W24: 233 | X24: … | Y24: 114 | Z24: 295 | AA24: 98.5 | AB24: … | AC24: … | AD24: 19.88 | AE24: 44 | AF24: 45 | AG24: 121.4 | AH24: … | AI24: … | AJ24: … | AK24: … | AL24: 54.38 | AM24: … | AN24: 0.12 | AO24: 0.19 | AP24: 0.68 | AQ24: 0.31 | AR24: … | AS24: 1.52 | AT24: 0.12 | AU24: 0.13 | AV24: 0.07 | AW24: 1563.19 | AX24: … | AY24: 33.06 | AZ24: … | BA24: 151.98 | BB24: … | BC24: 0.68 | BD24: … | BE24: 0.61 | BF24: 13 | BG24: ... | BH24: 52 | BI24: 42.25 | BJ24: 30 | BK24: 511.47 | BL24: 11.02 | BM24: 652.12 | BN24: 178.4 | BO24: 2467 | BP24: 1711 | BQ24: 217.8 | BR24: 35.25 | BS24: 83.5 | BT24: 0.91
A25: 1961M07 | B25: 1.57 | C25: 1.57 | D25: 1.57 | E25: … | F25: … | G25: … | H25: 0.15 | I25: 0.4 | J25: … | K25: … | L25: 0.48 | M25: 0.89 | N25: 0.67 | O25: 0.95 | P25: 0.89 | Q25: 0.98 | R25: 0.98 | S25: 245 | T25: … | U25: … | V25: 328 | W25: 229 | X25: … | Y25: 112 | Z25: 282 | AA25: 99.9 | AB25: … | AC25: … | AD25: 20.44 | AE25: 45 | AF25: 45 | AG25: 123.41 | AH25: … | AI25: … | AJ25: … | AK25: … | AL25: 56.59 | AM25: … | AN25: 0.13 | AO25: 0.13 | AP25: 0.67 | AQ25: 0.31 | AR25: … | AS25: 1.57 | AT25: 0.12 | AU25: 0.13 | AV25: 0.06 | AW25: 1563.19 | AX25: … | AY25: 33.06 | AZ25: … | BA25: 151.98 | BB25: … | BC25: 0.68 | BD25: … | BE25: 0.61 | BF25: 13 | BG25: ... | BH25: 52 | BI25: 42.25 | BJ25: 30 | BK25: 511.47 | BL25: 11.02 | BM25: 633.39 | BN25: 178.8 | BO25: 2519.9 | BP25: 1711 | BQ25: 214.7 | BR25: 35.25 | BS25: 83.5 | BT25: 0.91
A26: 1961M08 | B26: 1.57 | C26: 1.57 | D26: 1.57 | E26: … | F26: … | G26: … | H26: 0.15 | I26: 0.4 | J26: … | K26: … | L26: 0.48 | M26: 0.89 | N26: 0.67 | O26: 0.95 | P26: 0.89 | Q26: 0.98 | R26: 0.98 | S26: 248 | T26: … | U26: … | V26: 321 | W26: 226 | X26: … | Y26: 101 | Z26: 276 | AA26: 102.5 | AB26: … | AC26: … | AD26: 20.68 | AE26: 44 | AF26: 44 | AG26: 119.63 | AH26: … | AI26: … | AJ26: … | AK26: … | AL26: 58.79 | AM26: … | AN26: 0.13 | AO26: 0.13 | AP26: 0.69 | AQ26: 0.31 | AR26: … | AS26: 1.81 | AT26: 0.12 | AU26: 0.12 | AV26: 0.05 | AW26: 1563.19 | AX26: … | AY26: 33.06 | AZ26: … | BA26: 151.98 | BB26: … | BC26: 0.67 | BD26: … | BE26: 0.62 | BF26: 13 | BG26: ... | BH26: 52 | BI26: 42.25 | BJ26: 30 | BK26: 511.47 | BL26: 11.02 | BM26: 636.47 | BN26: 178.4 | BO26: 2605.9 | BP26: 1711 | BQ26: 210.8 | BR26: 35.25 | BS26: 83.5 | BT26: 0.91
A27: 1961M09 | B27: 1.57 | C27: 1.57 | D27: 1.57 | E27: … | F27: … | G27: … | H27: 0.15 | I27: 0.4 | J27: … | K27: … | L27: 0.47 | M27: 0.89 | N27: 0.67 | O27: 0.95 | P27: 0.89 | Q27: 0.98 | R27: 0.98 | S27: 243 | T27: … | U27: … | V27: 301 | W27: 226 | X27: … | Y27: 98 | Z27: 267 | AA27: 92 | AB27: … | AC27: … | AD27: 20.72 | AE27: 43 | AF27: 45 | AG27: 118.99 | AH27: … | AI27: … | AJ27: … | AK27: … | AL27: 59.89 | AM27: … | AN27: 0.15 | AO27: 0.13 | AP27: 0.71 | AQ27: 0.31 | AR27: … | AS27: 1.9 | AT27: 0.12 | AU27: 0.12 | AV27: 0.05 | AW27: 1563.19 | AX27: … | AY27: 33.06 | AZ27: … | BA27: 151.98 | BB27: … | BC27: 0.67 | BD27: … | BE27: 0.62 | BF27: 13 | BG27: ... | BH27: 52 | BI27: 42.25 | BJ27: 30 | BK27: 511.47 | BL27: 11.02 | BM27: 632.72 | BN27: 176.4 | BO27: 2630.1 | BP27: 1711 | BQ27: 203.7 | BR27: 35.25 | BS27: 83.5 | BT27: 0.91
A28: 1961M10 | B28: 1.57 | C28: 1.57 | D28: 1.57 | E28: … | F28: … | G28: … | H28: 0.15 | I28: 0.4 | J28: … | K28: … | L28: 0.46 | M28: 0.89 | N28: 0.67 | O28: 0.95 | P28: 0.89 | Q28: 0.98 | R28: 0.98 | S28: 236 | T28: … | U28: … | V28: 293 | W28: 226 | X28: … | Y28: 98 | Z28: 270 | AA28: 86.7 | AB28: … | AC28: … | AD28: 21.57 | AE28: 47.64 | AF28: 40 | AG28: 120.32 | AH28: … | AI28: … | AJ28: … | AK28: … | AL28: 60.26 | AM28: … | AN28: 0.13 | AO28: 0.13 | AP28: 0.67 | AQ28: 0.31 | AR28: … | AS28: 1.94 | AT28: 0.12 | AU28: 0.12 | AV28: 0.05 | AW28: 1563.19 | AX28: … | AY28: 33.06 | AZ28: … | BA28: 151.98 | BB28: … | BC28: 0.68 | BD28: … | BE28: 0.59 | BF28: 13 | BG28: ... | BH28: 52 | BI28: 42.25 | BJ28: 30 | BK28: 511.47 | BL28: 11.02 | BM28: 630.3 | BN28: 172.5 | BO28: 2605.9 | BP28: 1711 | BQ28: 198.2 | BR28: 35.25 | BS28: 83.5 | BT28: 0.91
A29: 1961M11 | B29: 1.57 | C29: 1.57 | D29: 1.57 | E29: … | F29: … | G29: … | H29: 0.15 | I29: 0.4 | J29: … | K29: … | L29: 0.48 | M29: 0.88 | N29: 0.67 | O29: 0.95 | P29: 0.89 | Q29: 0.98 | R29: 0.98 | S29: 236 | T29: … | U29: … | V29: 297 | W29: 226 | X29: … | Y29: 100 | Z29: 265 | AA29: 92 | AB29: … | AC29: … | AD29: 21.97 | AE29: 48.42 | AF29: 41 | AG29: 128.32 | AH29: … | AI29: … | AJ29: … | AK29: … | AL29: 61.73 | AM29: … | AN29: 0.15 | AO29: 0.16 | AP29: 0.64 | AQ29: 0.32 | AR29: … | AS29: 1.96 | AT29: 0.12 | AU29: 0.13 | AV29: 0.05 | AW29: 1563.19 | AX29: … | AY29: 33.06 | AZ29: … | BA29: 151.98 | BB29: … | BC29: 0.66 | BD29: … | BE29: 0.54 | BF29: 13 | BG29: ... | BH29: 52 | BI29: 42.25 | BJ29: 30 | BK29: 511.47 | BL29: 11.02 | BM29: 632.28 | BN29: 166.4 | BO29: 2667.6 | BP29: 1711 | BQ29: 191.8 | BR29: 35.25 | BS29: 83.5 | BT29: 0.92
A30: 1961M12 | B30: 1.57 | C30: 1.57 | D30: 1.57 | E30: … | F30: … | G30: … | H30: 0.15 | I30: 0.4 | J30: … | K30: … | L30: 0.54 | M30: 0.88 | N30: 0.67 | O30: 0.95 | P30: 0.89 | Q30: 0.98 | R30: 0.98 | S30: 237 | T30: … | U30: … | V30: 319 | W30: 226 | X30: … | Y30: 101 | Z30: 265 | AA30: 93 | AB30: … | AC30: … | AD30: 22.12 | AE30: 48.42 | AF30: 41 | AG30: 120.1 | AH30: … | AI30: … | AJ30: … | AK30: … | AL30: 62.46 | AM30: … | AN30: 0.14 | AO30: 0.11 | AP30: 0.72 | AQ30: 0.32 | AR30: … | AS30: 2.03 | AT30: 0.12 | AU30: 0.13 | AV30: 0.05 | AW30: 1563.19 | AX30: … | AY30: 33.06 | AZ30: … | BA30: 151.98 | BB30: … | BC30: 0.66 | BD30: … | BE30: 0.56 | BF30: 13 | BG30: ... | BH30: 52 | BI30: 42.25 | BJ30: 30 | BK30: 511.47 | BL30: 11.02 | BM30: 634.85 | BN30: 166.7 | BO30: 2619.1 | BP30: 1711 | BQ30: 196.9 | BR30: 35.25 | BS30: 83.5 | BT30: 1.03
A31: 1962M01 | B31: 1.52 | C31: 1.52 | D31: 1.52 | E31: … | F31: … | G31: … | H31: 0.16 | I31: 0.4 | J31: … | K31: … | L31: 0.46 | M31: 0.88 | N31: 0.67 | O31: 0.97 | P31: 0.86 | Q31: 1.1 | R31: 0.95 | S31: 246.9 | T31: … | U31: … | V31: 327.94 | W31: 235.89 | X31: … | Y31: 101.41 | Z31: 265 | AA31: 80.2 | AB31: … | AC31: … | AD31: 21.8 | AE31: 48.03 | AF31: 44.53 | AG31: 117.79 | AH31: … | AI31: … | AJ31: … | AK31: … | AL31: 60.63 | AM31: … | AN31: 0.13 | AO31: 0.1 | AP31: 0.76 | AQ31: 0.32 | AR31: … | AS31: 2.03 | AT31: 0.13 | AU31: 0.13 | AV31: 0.05 | AW31: 1404.9 | AX31: … | AY31: 36.39 | AZ31: … | BA31: 160.06 | BB31: … | BC31: 0.66 | BD31: … | BE31: 0.58 | BF31: 11.5 | BG31: ... | BH31: 51 | BI31: 42.25 | BJ31: 30 | BK31: 511.47 | BL31: 11.01 | BM31: 635.37 | BN31: 162.9 | BO31: 2610.3 | BP31: 1761 | BQ31: 193.6 | BR31: 35.23 | BS31: 83.5 | BT31: 1.04
A32: 1962M02 | B32: 1.52 | C32: 1.52 | D32: 1.52 | E32: … | F32: … | G32: … | H32: 0.16 | I32: 0.4 | J32: … | K32: … | L32: 0.49 | M32: 0.88 | N32: 0.67 | O32: 0.97 | P32: 0.86 | Q32: 1.1 | R32: 0.95 | S32: 248.6 | T32: … | U32: … | V32: 299.28 | W32: 237 | X32: … | Y32: 100.59 | Z32: 259 | AA32: 77.9 | AB32: … | AC32: … | AD32: 21.95 | AE32: 48.03 | AF32: 44.53 | AG32: 119.18 | AH32: … | AI32: … | AJ32: … | AK32: … | AL32: 61.36 | AM32: … | AN32: 0.14 | AO32: 0.1 | AP32: 0.76 | AQ32: 0.32 | AR32: … | AS32: 2.07 | AT32: 0.13 | AU32: 0.13 | AV32: 0.05 | AW32: 1404.9 | AX32: … | AY32: 36.39 | AZ32: … | BA32: 160.06 | BB32: … | BC32: 0.66 | BD32: … | BE32: 0.6 | BF32: 11.5 | BG32: ... | BH32: 51 | BI32: 42.25 | BJ32: 30 | BK32: 504.86 | BL32: 11.01 | BM32: 647.94 | BN32: 161.9 | BO32: 2623.5 | BP32: 1761 | BQ32: 189.6 | BR32: 35.23 | BS32: 83.5 | BT32: 1.02
A33: 1962M03 | B33: 1.52 | C33: 1.52 | D33: 1.52 | E33: … | F33: … | G33: … | H33: 0.16 | I33: 0.4 | J33: … | K33: … | L33: 0.44 | M33: 0.86 | N33: 0.67 | O33: 0.97 | P33: 0.86 | Q33: 1.1 | R33: 0.95 | S33: 250.8 | T33: … | U33: … | V33: 290.73 | W33: 223.22 | X33: … | Y33: 102.79 | Z33: 256 | AA33: 82.5 | AB33: … | AC33: … | AD33: 22.18 | AE33: 48.82 | AF33: 45.64 | AG33: 123.75 | AH33: … | AI33: … | AJ33: … | AK33: … | AL33: 61.73 | AM33: … | AN33: 0.15 | AO33: 0.11 | AP33: 0.71 | AQ33: 0.32 | AR33: … | AS33: 2.07 | AT33: 0.13 | AU33: 0.13 | AV33: 0.06 | AW33: 1404.9 | AX33: … | AY33: 36.39 | AZ33: … | BA33: 160.06 | BB33: … | BC33: 0.66 | BD33: … | BE33: 0.58 | BF33: 11.5 | BG33: ... | BH33: 51 | BI33: 42.25 | BJ33: 30 | BK33: 496.04 | BL33: 11.01 | BM33: 647.5 | BN33: 167.1 | BO33: 2652.2 | BP33: 1761 | BQ33: 191.4 | BR33: 35.23 | BS33: 83.5 | BT33: 1.02
A34: 1962M04 | B34: 1.52 | C34: 1.52 | D34: 1.52 | E34: … | F34: … | G34: … | H34: 0.16 | I34: 0.4 | J34: … | K34: … | L34: 0.46 | M34: 0.85 | N34: 0.67 | O34: 0.97 | P34: 0.86 | Q34: 1.1 | R34: 0.95 | S34: 260.7 | T34: … | U34: … | V34: 281.64 | W34: 220.46 | X34: … | Y34: 104.44 | Z34: 254 | AA34: 83.7 | AB34: … | AC34: … | AD34: 22.27 | AE34: 48.82 | AF34: 46.52 | AG34: 130.84 | AH34: … | AI34: … | AJ34: … | AK34: … | AL34: 62.1 | AM34: … | AN34: 0.15 | AO34: 0.1 | AP34: 0.65 | AQ34: 0.32 | AR34: … | AS34: 2.09 | AT34: 0.13 | AU34: 0.13 | AV34: 0.06 | AW34: 1404.9 | AX34: … | AY34: 36.39 | AZ34: … | BA34: 160.06 | BB34: … | BC34: 0.66 | BD34: … | BE34: 0.57 | BF34: 11.5 | BG34: ... | BH34: 51 | BI34: 42.25 | BJ34: 30 | BK34: 496.04 | BL34: 11.01 | BM34: 645.95 | BN34: 166.7 | BO34: 2614.7 | BP34: 1761 | BQ34: 191.4 | BR34: 35.23 | BS34: 83.5 | BT34: 1.02
A35: 1962M05 | B35: 1.52 | C35: 1.52 | D35: 1.52 | E35: … | F35: … | G35: … | H35: 0.16 | I35: 0.4 | J35: … | K35: … | L35: 0.47 | M35: 0.83 | N35: 0.67 | O35: 0.97 | P35: 0.86 | Q35: 1.1 | R35: 0.95 | S35: 253.3 | T35: … | U35: … | V35: 270.34 | W35: 219.08 | X35: … | Y35: 103.62 | Z35: 234 | AA35: 85.9 | AB35: … | AC35: … | AD35: 22.68 | AE35: 49.6 | AF35: 47.18 | AG35: 149.14 | AH35: … | AI35: … | AJ35: … | AK35: … | AL35: 63.57 | AM35: … | AN35: 0.14 | AO35: 0.1 | AP35: 0.73 | AQ35: 0.32 | AR35: … | AS35: 2.16 | AT35: 0.13 | AU35: 0.13 | AV35: 0.06 | AW35: 1404.9 | AX35: … | AY35: 36.39 | AZ35: … | BA35: 160.06 | BB35: … | BC35: 0.66 | BD35: … | BE35: 0.56 | BF35: 11.5 | BG35: ... | BH35: 51 | BI35: 42.25 | BJ35: 30 | BK35: 496.04 | BL35: 11.01 | BM35: 645.73 | BN35: 164.9 | BO35: 2533.1 | BP35: 1761 | BQ35: 188.5 | BR35: 35.23 | BS35: 83.5 | BT35: 1.02
A36: 1962M06 | B36: 1.52 | C36: 1.52 | D36: 1.52 | E36: … | F36: … | G36: … | H36: 0.16 | I36: 0.4 | J36: … | K36: … | L36: 0.47 | M36: 0.8 | N36: 0.67 | O36: 0.97 | P36: 0.86 | Q36: 1.1 | R36: 0.95 | S36: 239.5 | T36: … | U36: … | V36: 264.59 | W36: 216.33 | X36: … | Y36: 102.24 | Z36: 215 | AA36: 89.4 | AB36: … | AC36: … | AD36: 22.83 | AE36: 49.6 | AF36: 47.18 | AG36: 144.11 | AH36: … | AI36: … | AJ36: … | AK36: … | AL36: 64.3 | AM36: … | AN36: 0.12 | AO36: 0.1 | AP36: 0.79 | AQ36: 0.32 | AR36: … | AS36: 2.27 | AT36: 0.13 | AU36: 0.13 | AV36: 0.06 | AW36: 1404.9 | AX36: … | AY36: 36.39 | AZ36: … | BA36: 160.06 | BB36: … | BC36: 0.66 | BD36: … | BE36: 0.54 | BF36: 11.5 | BG36: ... | BH36: 51 | BI36: 42.25 | BJ36: 30 | BK36: 496.04 | BL36: 11.01 | BM36: 645.51 | BN36: 159 | BO36: 2414.1 | BP36: 1761 | BQ36: 184.7 | BR36: 35.23 | BS36: 83.5 | BT36: 1.02
A37: 1962M07 | B37: 1.52 | C37: 1.52 | D37: 1.52 | E37: … | F37: … | G37: … | H37: 0.16 | I37: 0.4 | J37: … | K37: … | L37: 0.46 | M37: 0.81 | N37: 0.68 | O37: 0.97 | P37: 0.86 | Q37: 1.1 | R37: 0.95 | S37: 240.3 | T37: … | U37: … | V37: 266.76 | W37: 212.75 | X37: … | Y37: 100.86 | Z37: 198 | AA37: 91.7 | AB37: … | AC37: … | AD37: 22.92 | AE37: 48.82 | AF37: 44.34 | AG37: 144.22 | AH37: … | AI37: … | AJ37: … | AK37: … | AL37: 65.4 | AM37: … | AN37: 0.12 | AO37: 0.11 | AP37: 0.76 | AQ37: 0.32 | AR37: … | AS37: 2.27 | AT37: 0.13 | AU37: 0.13 | AV37: 0.06 | AW37: 1404.9 | AX37: … | AY37: 36.39 | AZ37: … | BA37: 160.06 | BB37: … | BC37: 0.65 | BD37: … | BE37: 0.55 | BF37: 11.5 | BG37: ... | BH37: 51 | BI37: 42.25 | BJ37: 30 | BK37: 496.04 | BL37: 11.01 | BM37: 645.51 | BN37: 148.4 | BO37: 2376.6 | BP37: 1761 | BQ37: 182.1 | BR37: 35.23 | BS37: 83.5 | BT37: 1.04
A38: 1962M08 | B38: 1.52 | C38: 1.52 | D38: 1.52 | E38: … | F38: … | G38: … | H38: 0.16 | I38: 0.4 | J38: … | K38: … | L38: 0.46 | M38: 0.82 | N38: 0.68 | O38: 0.97 | P38: 0.86 | Q38: 1.1 | R38: 0.95 | S38: 244.7 | T38: … | U38: … | V38: 265.1 | W38: 209.16 | X38: … | Y38: 95.35 | Z38: 198 | AA38: 94 | AB38: … | AC38: … | AD38: 22.88 | AE38: 47.24 | AF38: 42.55 | AG38: 142.92 | AH38: … | AI38: … | AJ38: … | AK38: … | AL38: 66.51 | AM38: … | AN38: 0.12 | AO38: 0.11 | AP38: 0.75 | AQ38: 0.32 | AR38: … | AS38: 2.38 | AT38: 0.13 | AU38: 0.13 | AV38: 0.06 | AW38: 1404.9 | AX38: … | AY38: 36.39 | AZ38: … | BA38: 160.06 | BB38: … | BC38: 0.64 | BD38: … | BE38: 0.53 | BF38: 11.5 | BG38: ... | BH38: 51 | BI38: 42.25 | BJ38: 30 | BK38: 496.04 | BL38: 11.01 | BM38: 645.51 | BN38: 140.7 | BO38: 2350.1 | BP38: 1761 | BQ38: 178.1 | BR38: 35.23 | BS38: 83.5 | BT38: 1.08
A39: 1962M09 | B39: 1.52 | C39: 1.52 | D39: 1.52 | E39: … | F39: … | G39: … | H39: 0.16 | I39: 0.4 | J39: … | K39: … | L39: 0.45 | M39: 0.83 | N39: 0.69 | O39: 0.97 | P39: 0.86 | Q39: 1.1 | R39: 0.95 | S39: 246.6 | T39: … | U39: … | V39: 268.69 | W39: 205.3 | X39: … | Y39: 95.35 | Z39: 198 | AA39: 102 | AB39: … | AC39: … | AD39: 22.86 | AE39: 47.64 | AF39: 42.55 | AG39: 140.64 | AH39: … | AI39: … | AJ39: … | AK39: … | AL39: 65.77 | AM39: … | AN39: 0.12 | AO39: 0.11 | AP39: 0.8 | AQ39: 0.32 | AR39: … | AS39: 2.54 | AT39: 0.13 | AU39: 0.13 | AV39: 0.06 | AW39: 1404.9 | AX39: … | AY39: 36.39 | AZ39: … | BA39: 160.06 | BB39: … | BC39: 0.63 | BD39: … | BE39: 0.54 | BF39: 11.5 | BG39: ... | BH39: 51 | BI39: 42.25 | BJ39: 30 | BK39: 496.04 | BL39: 11.01 | BM39: 645.51 | BN39: 143.1 | BO39: 2350.1 | BP39: 1761 | BQ39: 176.6 | BR39: 35.23 | BS39: 83.5 | BT39: 1.15
A40: 1962M10 | B40: 1.52 | C40: 1.52 | D40: 1.52 | E40: … | F40: … | G40: … | H40: 0.16 | I40: 0.4 | J40: … | K40: … | L40: 0.44 | M40: 0.81 | N40: 0.69 | O40: 0.97 | P40: 0.86 | Q40: 1.1 | R40: 0.95 | S40: 253.5 | T40: … | U40: … | V40: 251.6 | W40: 196.76 | X40: … | Y40: 97 | Z40: 212 | AA40: 92.8 | AB40: … | AC40: … | AD40: 22.67 | AE40: 47.64 | AF40: 42.77 | AG40: 142.95 | AH40: … | AI40: … | AJ40: … | AK40: … | AL40: 64.3 | AM40: … | AN40: 0.12 | AO40: 0.11 | AP40: 0.68 | AQ40: 0.32 | AR40: … | AS40: 2.49 | AT40: 0.13 | AU40: 0.13 | AV40: 0.07 | AW40: 1404.9 | AX40: … | AY40: 36.39 | AZ40: … | BA40: 160.06 | BB40: … | BC40: 0.63 | BD40: … | BE40: 0.57 | BF40: 11.5 | BG40: ... | BH40: 51 | BI40: 42.25 | BJ40: 30 | BK40: 496.04 | BL40: 11.01 | BM40: 645.95 | BN40: 146.2 | BO40: 2358.9 | BP40: 1761 | BQ40: 181.9 | BR40: 35.23 | BS40: 83.5 | BT40: 1.21
A41: 1962M11 | B41: 1.52 | C41: 1.52 | D41: 1.52 | E41: … | F41: … | G41: … | H41: 0.16 | I41: 0.4 | J41: … | K41: … | L41: 0.44 | M41: 0.81 | N41: 0.69 | O41: 0.97 | P41: 0.86 | Q41: 1.1 | R41: 0.95 | S41: 257.4 | T41: … | U41: … | V41: 251.05 | W41: 208.06 | X41: … | Y41: 100.59 | Z41: 220 | AA41: 94 | AB41: … | AC41: … | AD41: 23.54 | AE41: 48.42 | AF41: 43.43 | AG41: 142.5 | AH41: … | AI41: … | AJ41: … | AK41: … | AL41: 68.71 | AM41: … | AN41: 0.15 | AO41: 0.14 | AP41: 0.59 | AQ41: 0.32 | AR41: … | AS41: 2.38 | AT41: 0.13 | AU41: 0.13 | AV41: 0.08 | AW41: 1404.9 | AX41: … | AY41: 36.39 | AZ41: … | BA41: 160.06 | BB41: … | BC41: 0.63 | BD41: … | BE41: 0.58 | BF41: 11.5 | BG41: ... | BH41: 51 | BI41: 42.25 | BJ41: 30 | BK41: 496.04 | BL41: 11.01 | BM41: 645.51 | BN41: 149.7 | BO41: 2407.4 | BP41: 1761 | BQ41: 188.5 | BR41: 35.23 | BS41: 83.5 | BT41: 1.19
A42: 1962M12 | B42: 1.52 | C42: 1.52 | D42: 1.52 | E42: … | F42: … | G42: … | H42: 0.16 | I42: 0.4 | J42: … | K42: … | L42: 0.45 | M42: 0.82 | N42: 0.72 | O42: 0.97 | P42: 0.86 | Q42: 1.1 | R42: 0.95 | S42: 272.3 | T42: … | U42: … | V42: 254.36 | W42: 210.82 | X42: … | Y42: 102.24 | Z42: 215 | AA42: 94 | AB42: … | AC42: … | AD42: 23.86 | AE42: 51.18 | AF42: 45.19 | AG42: 121.07 | AH42: … | AI42: … | AJ42: … | AK42: … | AL42: 67.61 | AM42: … | AN42: 0.13 | AO42: 0.1 | AP42: 0.6 | AQ42: 0.32 | AR42: … | AS42: 2.27 | AT42: 0.13 | AU42: 0.13 | AV42: 0.09 | AW42: 1404.9 | AX42: … | AY42: 36.39 | AZ42: … | BA42: 160.06 | BB42: … | BC42: 0.65 | BD42: … | BE42: 0.58 | BF42: 11.5 | BG42: ... | BH42: 51 | BI42: 42.25 | BJ42: 30 | BK42: 496.04 | BL42: 11.01 | BM42: 645.73 | BN42: 152.8 | BO42: 2365.6 | BP42: 1761 | BQ42: 184.7 | BR42: 35.23 | BS42: 83.5 | BT42: 1.2
A43: 1963M01 | B43: 1.5 | C43: 1.5 | D43: 1.5 | E43: … | F43: … | G43: … | H43: 0.16 | I43: 0.39 | J43: … | K43: … | L43: 0.5 | M43: 0.83 | N43: 0.65 | O43: 0.95 | P43: 0.81 | Q43: 1.08 | R43: 0.96 | S43: 278.9 | T43: … | U43: … | V43: 261.25 | W43: 217.71 | X43: … | Y43: 107.47 | Z43: 223 | AA43: 92.3 | AB43: … | AC43: … | AD43: 24.08 | AE43: 52.75 | AF43: 46.52 | AG43: 121.77 | AH43: … | AI43: … | AJ43: … | AK43: … | AL43: 67.24 | AM43: … | AN43: 0.13 | AO43: 0.08 | AP43: 0.57 | AQ43: 0.32 | AR43: … | AS43: 2.29 | AT43: 0.13 | AU43: 0.13 | AV43: 0.12 | AW43: 1343.61 | AX43: … | AY43: 36.67 | AZ43: … | BA43: 160.72 | BB43: … | BC43: 0.66 | BD43: … | BE43: 0.57 | BF43: 11.5 | BG43: ... | BH43: 52 | BI43: 42.25 | BJ43: 30 | BK43: 496.04 | BL43: 11.02 | BM43: 645.51 | BN43: 149.4 | BO43: 2350.1 | BP43: 1741 | BQ43: 186.3 | BR43: 35.09 | BS43: 83.5 | BT43: 1.24
A44: 1963M02 | B44: 1.5 | C44: 1.5 | D44: 1.5 | E44: … | F44: … | G44: … | H44: 0.16 | I44: 0.39 | J44: … | K44: … | L44: 0.54 | M44: 0.8 | N44: 0.61 | O44: 0.95 | P44: 0.81 | Q44: 1.08 | R44: 0.96 | S44: 272.5 | T44: … | U44: … | V44: 264.83 | W44: 217.71 | X44: … | Y44: 109.96 | Z44: 231 | AA44: 92.3 | AB44: … | AC44: … | AD44: 24.37 | AE44: 53.15 | AF44: 47.18 | AG44: 123.35 | AH44: … | AI44: … | AJ44: … | AK44: … | AL44: 68.34 | AM44: … | AN44: 0.13 | AO44: 0.08 | AP44: 0.56 | AQ44: 0.32 | AR44: … | AS44: 2.29 | AT44: 0.13 | AU44: 0.14 | AV44: 0.13 | AW44: 1343.61 | AX44: … | AY44: 36.67 | AZ44: … | BA44: 160.72 | BB44: … | BC44: 0.65 | BD44: … | BE44: 0.56 | BF44: 11.5 | BG44: ... | BH44: 52 | BI44: 42.25 | BJ44: 30 | BK44: 496.04 | BL44: 11.02 | BM44: 645.51 | BN44: 150.6 | BO44: 2350.1 | BP44: 1742 | BQ44: 191.6 | BR44: 35.09 | BS44: 83.5 | BT44: 1.26
A45: 1963M03 | B45: 1.5 | C45: 1.5 | D45: 1.5 | E45: … | F45: … | G45: … | H45: 0.16 | I45: 0.39 | J45: … | K45: … | L45: 0.53 | M45: 0.81 | N45: 0.62 | O45: 0.95 | P45: 0.81 | Q45: 1.08 | R45: 0.96 | S45: 272.5 | T45: … | U45: … | V45: 264.28 | W45: 217.71 | X45: … | Y45: 109.13 | Z45: 229 | AA45: 90.1 | AB45: … | AC45: … | AD45: 24.46 | AE45: 52.36 | AF45: 47.18 | AG45: 123.28 | AH45: … | AI45: … | AJ45: … | AK45: … | AL45: 69.45 | AM45: … | AN45: 0.13 | AO45: 0.08 | AP45: 0.56 | AQ45: 0.32 | AR45: … | AS45: 2.29 | AT45: 0.13 | AU45: 0.14 | AV45: 0.14 | AW45: 1343.61 | AX45: … | AY45: 36.94 | AZ45: … | BA45: 161.36 | BB45: … | BC45: 0.65 | BD45: … | BE45: 0.54 | BF45: 11.5 | BG45: ... | BH45: 52 | BI45: 42.25 | BJ45: 30 | BK45: 496.04 | BL45: 11.02 | BM45: 645.51 | BN45: 153.7 | BO45: 2358.9 | BP45: 1742 | BQ45: 197.5 | BR45: 35.09 | BS45: 83.5 | BT45: 1.27
A46: 1963M04 | B46: 1.5 | C46: 1.5 | D46: 1.5 | E46: … | F46: … | G46: … | H46: 0.16 | I46: 0.39 | J46: … | K46: … | L46: 0.56 | M46: 0.81 | N46: 0.62 | O46: 0.95 | P46: 0.81 | Q46: 1.08 | R46: 0.96 | S46: 278.3 | T46: … | U46: … | V46: 261.52 | W46: 217.71 | X46: … | Y46: 107.2 | Z46: 229 | AA46: 86.8 | AB46: … | AC46: … | AD46: 24.68 | AE46: 51.97 | AF46: 46.3 | AG46: 122.38 | AH46: … | AI46: … | AJ46: … | AK46: … | AL46: 70.92 | AM46: … | AN46: 0.13 | AO46: 0.1 | AP46: 0.65 | AQ46: 0.33 | AR46: … | AS46: 2.29 | AT46: 0.13 | AU46: 0.16 | AV46: 0.16 | AW46: 1343.61 | AX46: … | AY46: 36.94 | AZ46: … | BA46: 161.36 | BB46: … | BC46: 0.64 | BD46: … | BE46: 0.55 | BF46: 11.5 | BG46: ... | BH46: 52 | BI46: 42.25 | BJ46: 30 | BK46: 496.04 | BL46: 11.02 | BM46: 645.73 | BN46: 159.4 | BO46: 2427.3 | BP46: 1741 | BQ46: 204.4 | BR46: 35.09 | BS46: 78.5 | BT46: 1.27
A47: 1963M05 | B47: 1.5 | C47: 1.5 | D47: 1.5 | E47: … | F47: … | G47: … | H47: 0.16 | I47: 0.39 | J47: … | K47: … | L47: 0.61 | M47: 0.8 | N47: 0.61 | O47: 0.95 | P47: 0.81 | Q47: 1.08 | R47: 0.96 | S47: 279.7 | T47: … | U47: … | V47: 268.69 | W47: 217.71 | X47: … | Y47: 109.13 | Z47: 231 | AA47: 86.8 | AB47: … | AC47: … | AD47: 24.24 | AE47: 52.36 | AF47: 46.52 | AG47: 123.17 | AH47: … | AI47: … | AJ47: … | AK47: … | AL47: 67.61 | AM47: … | AN47: 0.13 | AO47: 0.11 | AP47: 0.69 | AQ47: 0.33 | AR47: … | AS47: 2.23 | AT47: 0.13 | AU47: 0.22 | AV47: 0.22 | AW47: 1343.61 | AX47: … | AY47: 37.78 | AZ47: … | BA47: 163.33 | BB47: … | BC47: 0.64 | BD47: … | BE47: 0.54 | BF47: 11.5 | BG47: ... | BH47: 52 | BI47: 42.25 | BJ47: 30 | BK47: 496.04 | BL47: 11.02 | BM47: 645.51 | BN47: 167.1 | BO47: 2495.6 | BP47: 1742 | BQ47: 209.4 | BR47: 35.09 | BS47: 78.5 | BT47: 1.28
A48: 1963M06 | B48: 1.5 | C48: 1.5 | D48: 1.5 | E48: … | F48: … | G48: … | H48: 0.16 | I48: 0.39 | J48: … | K48: … | L48: 0.56 | M48: 0.8 | N48: 0.61 | O48: 0.95 | P48: 0.81 | Q48: 1.08 | R48: 0.96 | S48: 282.5 | T48: … | U48: … | V48: 274.47 | W48: 219.91 | X48: … | Y48: 108.3 | Z48: 231 | AA48: 90.1 | AB48: … | AC48: … | AD48: 23.17 | AE48: 55.51 | AF48: 48.28 | AG48: 128.13 | AH48: … | AI48: … | AJ48: … | AK48: … | AL48: 58.42 | AM48: … | AN48: 0.13 | AO48: 0.12 | AP48: 0.69 | AQ48: 0.33 | AR48: … | AS48: 2.2 | AT48: 0.13 | AU48: 0.18 | AV48: 0.22 | AW48: 1343.61 | AX48: … | AY48: 37.5 | AZ48: … | BA48: 162.68 | BB48: … | BC48: 0.64 | BD48: … | BE48: 0.53 | BF48: 11.5 | BG48: ... | BH48: 52 | BI48: 42.25 | BJ48: 30 | BK48: 496.04 | BL48: 11.02 | BM48: 645.73 | BN48: 179 | BO48: 2500 | BP48: 1742 | BQ48: 209.2 | BR48: 35.09 | BS48: 78.5 | BT48: 1.28
A49: 1963M07 | B49: 1.5 | C49: 1.5 | D49: 1.5 | E49: … | F49: … | G49: … | H49: 0.16 | I49: 0.39 | J49: … | K49: … | L49: 0.52 | M49: 0.81 | N49: 0.62 | O49: 0.95 | P49: 0.81 | Q49: 1.08 | R49: 0.96 | S49: 286.3 | T49: … | U49: … | V49: 274.47 | W49: 221.84 | X49: … | Y49: 108.58 | Z49: 229 | AA49: 91 | AB49: … | AC49: … | AD49: 23.25 | AE49: 56.69 | AF49: 48.38 | AG49: 130.63 | AH49: … | AI49: … | AJ49: … | AK49: … | AL49: 57.69 | AM49: … | AN49: 0.13 | AO49: 0.09 | AP49: 0.76 | AQ49: 0.33 | AR49: … | AS49: 2.03 | AT49: 0.13 | AU49: 0.16 | AV49: 0.2 | AW49: 1343.61 | AX49: … | AY49: 36.11 | AZ49: … | BA49: 159.39 | BB49: … | BC49: 0.64 | BD49: … | BE49: 0.52 | BF49: 11.5 | BG49: ... | BH49: 52 | BI49: 42.25 | BJ49: 30 | BK49: 496.04 | BL49: 11.02 | BM49: 645.51 | BN49: 179.5 | BO49: 2482.4 | BP49: 1741 | BQ49: 204.8 | BR49: 35.09 | BS49: 78.5 | BT49: 1.29
A50: 1963M08 | B50: 1.5 | C50: 1.5 | D50: 1.5 | E50: … | F50: … | G50: … | H50: 0.16 | I50: 0.39 | J50: … | K50: … | L50: 0.52 | M50: 0.8 | N50: 0.61 | O50: 0.95 | P50: 0.81 | Q50: 1.08 | R50: 0.96 | S50: 291.8 | T50: … | U50: … | V50: 264.55 | W50: 224.6 | X50: … | Y50: 105.82 | Z50: 207 | AA50: 91 | AB50: … | AC50: … | AD50: 23.25 | AE50: 55.51 | AF50: 47.84 | AG50: 129.86 | AH50: … | AI50: … | AJ50: … | AK50: … | AL50: 58.42 | AM50: … | AN50: 0.17 | AO50: 0.09 | AP50: 0.83 | AQ50: 0.33 | AR50: … | AS50: 1.72 | AT50: 0.13 | AU50: 0.13 | AV50: 0.14 | AW50: 1343.61 | AX50: … | AY50: 34.72 | AZ50: … | BA50: 156.05 | BB50: … | BC50: 0.64 | BD50: … | BE50: 0.49 | BF50: 11.5 | BG50: ... | BH50: 52 | BI50: 42.25 | BJ50: 30 | BK50: 496.04 | BL50: 11.02 | BM50: 645.51 | BN50: 184.7 | BO50: 2495.6 | BP50: 1742 | BQ50: 210.3 | BR50: 35.09 | BS50: 78.95 | BT50: 1.29
A51: 1963M09 | B51: 1.5 | C51: 1.5 | D51: 1.5 | E51: … | F51: … | G51: … | H51: 0.16 | I51: 0.39 | J51: … | K51: … | L51: 0.55 | M51: 0.8 | N51: 0.62 | O51: 0.95 | P51: 0.81 | Q51: 1.08 | R51: 0.96 | S51: 297.6 | T51: … | U51: … | V51: 265.66 | W51: 224.6 | X51: … | Y51: 108.58 | Z51: 204 | AA51: 91 | AB51: … | AC51: … | AD51: 23.75 | AE51: 55.9 | AF51: 48.94 | AG51: 130.29 | AH51: … | AI51: … | AJ51: … | AK51: … | AL51: 60.63 | AM51: … | AN51: 0.16 | AO51: 0.09 | AP51: 0.7 | AQ51: 0.33 | AR51: … | AS51: 1.68 | AT51: 0.13 | AU51: 0.15 | AV51: 0.16 | AW51: 1343.61 | AX51: … | AY51: 33.89 | AZ51: … | BA51: 154.03 | BB51: … | BC51: 0.65 | BD51: … | BE51: 0.48 | BF51: 11.5 | BG51: ... | BH51: 52 | BI51: 42.25 | BJ51: 30 | BK51: 496.04 | BL51: 11.02 | BM51: 645.51 | BN51: 187 | BO51: 2572.8 | BP51: 1742 | BQ51: 211.2 | BR51: 35.09 | BS51: 80.75 | BT51: 1.29
A52: 1963M10 | B52: 1.5 | C52: 1.5 | D52: 1.5 | E52: … | F52: … | G52: … | H52: 0.16 | I52: 0.39 | J52: … | K52: … | L52: 0.58 | M52: 0.8 | N52: 0.63 | O52: 0.95 | P52: 0.81 | Q52: 1.08 | R52: 0.96 | S52: 303.7 | T52: … | U52: … | V52: 275.58 | W52: 227.35 | X52: … | Y52: 116.84 | Z52: 234 | AA52: 91 | AB52: … | AC52: … | AD52: 24.14 | AE52: 53.15 | AF52: 48.98 | AG52: 128.72 | AH52: … | AI52: … | AJ52: … | AK52: … | AL52: 65.04 | AM52: … | AN52: 0.18 | AO52: 0.09 | AP52: 0.67 | AQ52: 0.33 | AR52: … | AS52: 1.59 | AT52: 0.13 | AU52: 0.19 | AV52: 0.23 | AW52: 1343.61 | AX52: … | AY52: 32.78 | AZ52: … | BA52: 151.28 | BB52: … | BC52: 0.65 | BD52: … | BE52: 0.5 | BF52: 11.5 | BG52: ... | BH52: 52 | BI52: 42.25 | BJ52: 30 | BK52: 507.06 | BL52: 11.02 | BM52: 645.51 | BN52: 192 | BO52: 2590.4 | BP52: 1741 | BQ52: 220.9 | BR52: 35.09 | BS52: 80.5 | BT52: 1.29
A53: 1963M11 | B53: 1.5 | C53: 1.5 | D53: 1.5 | E53: … | F53: … | G53: … | H53: 0.16 | I53: 0.39 | J53: … | K53: … | L53: 0.57 | M53: 0.81 | N53: 0.63 | O53: 0.95 | P53: 0.81 | Q53: 1.08 | R53: 0.96 | S53: 303.4 | T53: … | U53: … | V53: 274.47 | W53: 230.11 | X53: … | Y53: 116.02 | Z53: 223 | AA53: 91 | AB53: … | AC53: … | AD53: 24.05 | AE53: 52.36 | AF53: 48.98 | AG53: 124.84 | AH53: … | AI53: … | AJ53: … | AK53: … | AL53: 65.04 | AM53: … | AN53: 0.15 | AO53: 0.09 | AP53: 0.63 | AQ53: 0.33 | AR53: … | AS53: 1.65 | AT53: 0.13 | AU53: 0.19 | AV53: 0.25 | AW53: 1343.61 | AX53: … | AY53: 32.5 | AZ53: … | BA53: 150.58 | BB53: … | BC53: 0.64 | BD53: … | BE53: 0.5 | BF53: 11.5 | BG53: ... | BH53: 52 | BI53: 42.25 | BJ53: 30 | BK53: 507.06 | BL53: 11.02 | BM53: 645.73 | BN53: 190.5 | BO53: 2687.4 | BP53: 1742 | BQ53: 231.5 | BR53: 35.09 | BS53: 82.97 | BT53: 1.29
A54: 1963M12 | B54: 1.5 | C54: 1.5 | D54: 1.5 | E54: … | F54: … | G54: … | H54: 0.16 | I54: 0.39 | J54: … | K54: … | L54: 0.57 | M54: 0.8 | N54: 0.65 | O54: 0.95 | P54: 0.81 | Q54: 1.08 | R54: 0.96 | S54: 288.8 | T54: … | U54: … | V54: 272.27 | W54: 231.76 | X54: … | Y54: 114.09 | Z54: 212 | AA54: 98.8 | AB54: … | AC54: … | AD54: 24.28 | AE54: 53.54 | AF54: 48.98 | AG54: 121.54 | AH54: … | AI54: … | AJ54: … | AK54: … | AL54: 65.04 | AM54: … | AN54: 0.16 | AO54: 0.08 | AP54: 0.69 | AQ54: 0.33 | AR54: … | AS54: 1.7 | AT54: 0.13 | AU54: 0.18 | AV54: 0.23 | AW54: 1343.61 | AX54: … | AY54: 33.33 | AZ54: … | BA54: 152.65 | BB54: … | BC54: 0.64 | BD54: … | BE54: 0.47 | BF54: 11.5 | BG54: ... | BH54: 52 | BI54: 42.25 | BJ54: 30 | BK54: 507.06 | BL54: 11.02 | BM54: 650.14 | BN54: 204.8 | BO54: 2782.2 | BP54: 1742 | BQ54: 261 | BR54: 35.09 | BS54: 83.5 | BT54: 1.29
A55: 1964M01 | B55: 1.45 | C55: 1.45 | D55: 1.45 | E55: … | F55: … | G55: … | H55: 0.15 | I55: 0.38 | J55: … | K55: … | L55: 0.55 | M55: 0.93 | N55: 0.7 | O55: 0.93 | P55: 0.82 | Q55: 1.04 | R55: 0.92 | S55: 286.9 | T55: … | U55: … | V55: 269.79 | W55: 232.86 | X55: … | Y55: 116.84 | Z55: 215 | AA55: 98.8 | AB55: … | AC55: … | AD55: 24.39 | AE55: 55.12 | AF55: 49.6 | AG55: 124.01 | AH55: … | AI55: … | AJ55: … | AK55: … | AL55: 64.04 | AM55: … | AN55: 0.15 | AO55: 0.08 | AP55: 0.73 | AQ55: 0.33 | AR55: … | AS55: 1.76 | AT55: 0.13 | AU55: 0.19 | AV55: 0.23 | AW55: 1488.3 | AX55: … | AY55: 32.78 | AZ55: … | BA55: 151.28 | BB55: … | BC55: 0.66 | BD55: … | BE55: 0.45 | BF55: 12.5 | BG55: ... | BH55: 53 | BI55: 60.5 | BJ55: 32.5 | BK55: 507.06 | BL55: 10.24 | BM55: 655.65 | BN55: 217.6 | BO55: 2872.6 | BP55: 1741 | BQ55: 264.1 | BR55: 35.1 | BS55: 88.27 | BT55: 1.29
A56: 1964M02 | B56: 1.45 | C56: 1.45 | D56: 1.45 | E56: … | F56: … | G56: … | H56: 0.15 | I56: 0.38 | J56: … | K56: … | L56: 0.51 | M56: 0.94 | N56: 0.72 | O56: 0.93 | P56: 0.82 | Q56: 1.04 | R56: 0.92 | S56: 271.4 | T56: … | U56: … | V56: 258.49 | W56: 232.59 | X56: … | Y56: 112.71 | Z56: 209 | AA56: 95.5 | AB56: … | AC56: … | AD56: 24.42 | AE56: 52.75 | AF56: 49.9 | AG56: 119.06 | AH56: … | AI56: … | AJ56: … | AK56: … | AL56: 66.14 | AM56: … | AN56: 0.16 | AO56: 0.08 | AP56: 0.79 | AQ56: 0.33 | AR56: … | AS56: 1.7 | AT56: 0.13 | AU56: 0.16 | AV56: 0.2 | AW56: 1488.3 | AX56: … | AY56: 32.78 | AZ56: … | BA56: 151.28 | BB56: … | BC56: 0.66 | BD56: … | BE56: 0.47 | BF56: 12.5 | BG56: ... | BH56: 53 | BI56: 60.5 | BJ56: 32.5 | BK56: 507.06 | BL56: 10.24 | BM56: 693.79 | BN56: 223.1 | BO56: 3060 | BP56: 1742 | BQ56: 270.5 | BR56: 35.1 | BS56: 88.5 | BT56: 1.29
A57: 1964M03 | B57: 1.45 | C57: 1.45 | D57: 1.45 | E57: … | F57: … | G57: … | H57: 0.15 | I57: 0.38 | J57: … | K57: … | L57: 0.51 | M57: 1.04 | N57: 0.78 | O57: 0.93 | P57: 0.82 | Q57: 1.04 | R57: 0.92 | S57: 280.5 | T57: … | U57: … | V57: 265.1 | W57: 232.86 | X57: … | Y57: 110.51 | Z57: 209 | AA57: 94.4 | AB57: … | AC57: … | AD57: 24.84 | AE57: 54.33 | AF57: 48.98 | AG57: 115.11 | AH57: … | AI57: … | AJ57: … | AK57: … | AL57: 66.87 | AM57: … | AN57: 0.16 | AO57: 0.09 | AP57: 0.82 | AQ57: 0.34 | AR57: … | AS57: 1.63 | AT57: 0.13 | AU57: 0.15 | AV57: 0.16 | AW57: 1488.3 | AX57: … | AY57: 31.94 | AZ57: … | BA57: 149.17 | BB57: … | BC57: 0.65 | BD57: … | BE57: 0.5 | BF57: 12.5 | BG57: ... | BH57: 53 | BI57: 60.5 | BJ57: 32.5 | BK57: 524.7 | BL57: 10.24 | BM57: 745.16 | BN57: 223.8 | BO57: 2958.6 | BP57: 1742 | BQ57: 277.1 | BR57: 35.1 | BS57: 88.5 | BT57: 1.29
A58: 1964M04 | B58: 1.45 | C58: 1.45 | D58: 1.45 | E58: … | F58: … | G58: … | H58: 0.15 | I58: 0.38 | J58: … | K58: … | L58: 0.48 | M58: 1 | N58: 0.82 | O58: 0.93 | P58: 0.82 | Q58: 1.04 | R58: 0.92 | S58: 280.3 | T58: … | U58: … | V58: 273.1 | W58: 232.86 | X58: … | Y58: 106.65 | Z58: 204 | AA58: 90 | AB58: … | AC58: … | AD58: 25.19 | AE58: 55.51 | AF58: 48.06 | AG58: 116.89 | AH58: … | AI58: … | AJ58: … | AK58: … | AL58: 67.61 | AM58: … | AN58: 0.2 | AO58: 0.09 | AP58: 0.83 | AQ58: 0.34 | AR58: … | AS58: 1.61 | AT58: 0.13 | AU58: 0.15 | AV58: 0.17 | AW58: 1488.3 | AX58: … | AY58: 30.56 | AZ58: … | BA58: 145.66 | BB58: … | BC58: 0.65 | BD58: … | BE58: 0.5 | BF58: 12.5 | BG58: ... | BH58: 53 | BI58: 60.5 | BJ58: 32.5 | BK58: 529.11 | BL58: 10.24 | BM58: 861.56 | BN58: 226.8 | BO58: 2879.2 | BP58: 1741 | BQ58: 298.7 | BR58: 35.1 | BS58: 88.5 | BT58: 1.29
A59: 1964M05 | B59: 1.45 | C59: 1.45 | D59: 1.45 | E59: … | F59: … | G59: … | H59: 0.15 | I59: 0.38 | J59: … | K59: … | L59: 0.48 | M59: 1.02 | N59: 0.83 | O59: 0.93 | P59: 0.82 | Q59: 1.04 | R59: 0.92 | S59: 282.5 | T59: … | U59: … | V59: 292.39 | W59: 232.86 | X59: … | Y59: 104.72 | Z59: 215 | AA59: 84.5 | AB59: … | AC59: … | AD59: 25.61 | AE59: 55.9 | AF59: 48.06 | AG59: 117.02 | AH59: … | AI59: … | AJ59: … | AK59: … | AL59: 69.45 | AM59: … | AN59: 0.21 | AO59: 0.08 | AP59: 0.87 | AQ59: 0.34 | AR59: … | AS59: 1.63 | AT59: 0.13 | AU59: 0.13 | AV59: 0.15 | AW59: 1488.3 | AX59: … | AY59: 29.44 | AZ59: … | BA59: 142.75 | BB59: … | BC59: 0.66 | BD59: … | BE59: 0.5 | BF59: 12.5 | BG59: ... | BH59: 53 | BI59: 60.5 | BJ59: 32.5 | BK59: 529.11 | BL59: 10.24 | BM59: 828.28 | BN59: 243.8 | BO59: 2910.1 | BP59: 1742 | BQ59: 343 | BR59: 35.1 | BS59: 88.5 | BT59: 1.29
A60: 1964M06 | B60: 1.45 | C60: 1.45 | D60: 1.45 | E60: … | F60: … | G60: … | H60: 0.15 | I60: 0.38 | J60: … | K60: … | L60: 0.5 | M60: 1.01 | N60: 0.85 | O60: 0.93 | P60: 0.82 | Q60: 1.04 | R60: 0.92 | S60: 294.9 | T60: … | U60: … | V60: 317.19 | W60: 233.96 | X60: … | Y60: 104.44 | Z60: 212 | AA60: 85.6 | AB60: … | AC60: … | AD60: 24.95 | AE60: 56.3 | AF60: 47.4 | AG60: 119.18 | AH60: … | AI60: … | AJ60: … | AK60: … | AL60: 65.04 | AM60: … | AN60: 0.21 | AO60: 0.09 | AP60: 0.86 | AQ60: 0.34 | AR60: … | AS60: 1.81 | AT60: 0.13 | AU60: 0.13 | AV60: 0.12 | AW60: 1488.3 | AX60: … | AY60: 29.44 | AZ60: … | BA60: 142.75 | BB60: … | BC60: 0.66 | BD60: … | BE60: 0.49 | BF60: 12.5 | BG60: ... | BH60: 53 | BI60: 60.5 | BJ60: 32.5 | BK60: 529.11 | BL60: 10.24 | BM60: 808.43 | BN60: 246.3 | BO60: 3265 | BP60: 1742 | BQ60: 357.1 | BR60: 35.1 | BS60: 88.5 | BT60: 1.29
A61: 1964M07 | B61: 1.45 | C61: 1.45 | D61: 1.45 | E61: … | F61: … | G61: … | H61: 0.15 | I61: 0.38 | J61: … | K61: … | L61: 0.51 | M61: 1.02 | N61: 0.82 | O61: 0.93 | P61: 0.82 | Q61: 1.04 | R61: 0.92 | S61: 303.7 | T61: … | U61: … | V61: 335.1 | W61: 235.34 | X61: … | Y61: 102.24 | Z61: 209 | AA61: 84.5 | AB61: … | AC61: … | AD61: 25.57 | AE61: 55.9 | AF61: 47.4 | AG61: 122.61 | AH61: … | AI61: … | AJ61: … | AK61: … | AL61: 68.71 | AM61: … | AN61: 0.17 | AO61: 0.08 | AP61: 0.94 | AQ61: 0.34 | AR61: … | AS61: 1.83 | AT61: 0.13 | AU61: 0.12 | AV61: 0.1 | AW61: 1488.3 | AX61: … | AY61: 29.17 | AZ61: … | BA61: 142.04 | BB61: … | BC61: 0.65 | BD61: … | BE61: 0.48 | BF61: 12.5 | BG61: ... | BH61: 53 | BI61: 60.5 | BJ61: 32.5 | BK61: 529.11 | BL61: 10.24 | BM61: 854.95 | BN61: 270.9 | BO61: 3452.4 | BP61: 1741 | BQ61: 385.1 | BR61: 35.1 | BS61: 88.5 | BT61: 1.29
A62: 1964M08 | B62: 1.45 | C62: 1.45 | D62: 1.45 | E62: … | F62: … | G62: … | H62: 0.15 | I62: 0.38 | J62: … | K62: … | L62: 0.5 | M62: 1.05 | N62: 0.82 | O62: 0.93 | P62: 0.82 | Q62: 1.04 | R62: 0.92 | S62: 303.1 | T62: … | U62: … | V62: 323.53 | W62: 235.62 | X62: … | Y62: 104.44 | Z62: 223 | AA62: 82.5 | AB62: … | AC62: … | AD62: 25.42 | AE62: 54.72 | AF62: 47.62 | AG62: 122.92 | AH62: … | AI62: … | AJ62: … | AK62: … | AL62: 68.71 | AM62: … | AN62: 0.16 | AO62: 0.08 | AP62: 0.9 | AQ62: 0.34 | AR62: … | AS62: 1.76 | AT62: 0.13 | AU62: 0.12 | AV62: 0.09 | AW62: 1488.3 | AX62: … | AY62: 29.17 | AZ62: … | BA62: 142.04 | BB62: … | BC62: 0.64 | BD62: … | BE62: 0.48 | BF62: 12.5 | BG62: ... | BH62: 53 | BI62: 60.5 | BJ62: 32.5 | BK62: 529.11 | BL62: 10.24 | BM62: 999.33 | BN62: 300.9 | BO62: 3512 | BP62: 1742 | BQ62: 345.2 | BR62: 35.1 | BS62: 88.5 | BT62: 1.29
A63: 1964M09 | B63: 1.45 | C63: 1.45 | D63: 1.45 | E63: … | F63: … | G63: … | H63: 0.15 | I63: 0.38 | J63: … | K63: … | L63: 0.51 | M63: 1.04 | N63: 0.79 | O63: 0.93 | P63: 0.82 | Q63: 1.04 | R63: 0.92 | S63: 302.6 | T63: … | U63: … | V63: 346.68 | W63: 237.55 | X63: … | Y63: 109.96 | Z63: 243 | AA63: 92.2 | AB63: … | AC63: … | AD63: 25.59 | AE63: 55.12 | AF63: 48.5 | AG63: 123.44 | AH63: … | AI63: … | AJ63: … | AK63: … | AL63: 69.08 | AM63: … | AN63: 0.18 | AO63: 0.08 | AP63: 0.82 | AQ63: 0.34 | AR63: … | AS63: 1.9 | AT63: 0.13 | AU63: 0.12 | AV63: 0.08 | AW63: 1488.3 | AX63: … | AY63: 28.89 | AZ63: … | BA63: 141.31 | BB63: … | BC63: 0.65 | BD63: … | BE63: 0.5 | BF63: 12.5 | BG63: ... | BH63: 53 | BI63: 60.5 | BJ63: 32.5 | BK63: 529.11 | BL63: 10.24 | BM63: 1162.05 | BN63: 300.9 | BO63: 3933 | BP63: 1742 | BQ63: 355.1 | BR63: 35.1 | BS63: 88.5 | BT63: 1.29
A64: 1964M10 | B64: 1.45 | C64: 1.45 | D64: 1.45 | E64: … | F64: … | G64: … | H64: 0.15 | I64: 0.38 | J64: … | K64: … | L64: 0.51 | M64: 1.04 | N64: 0.77 | O64: 0.93 | P64: 0.82 | Q64: 1.04 | R64: 0.92 | S64: 311.4 | T64: … | U64: … | V64: 370.65 | W64: 250.77 | X64: … | Y64: 114.09 | Z64: 270 | AA64: 88.9 | AB64: … | AC64: … | AD64: 25.2 | AE64: 52.8 | AF64: 47.4 | AG64: 121.48 | AH64: … | AI64: … | AJ64: … | AK64: … | AL64: 68.71 | AM64: … | AN64: 0.16 | AO64: 0.08 | AP64: 0.84 | AQ64: 0.34 | AR64: … | AS64: 1.92 | AT64: 0.13 | AU64: 0.13 | AV64: 0.08 | AW64: 1488.3 | AX64: … | AY64: 28.89 | AZ64: … | BA64: 141.31 | BB64: … | BC64: 0.65 | BD64: … | BE64: 0.52 | BF64: 12.5 | BG64: ... | BH64: 53 | BI64: 60.5 | BJ64: 32.5 | BK64: 529.11 | BL64: 10.24 | BM64: 1358.27 | BN64: 331.8 | BO64: 4371.8 | BP64: 1741 | BQ64: 334.4 | BR64: 35.1 | BS64: 88.5 | BT64: 1.29
A65: 1964M11 | B65: 1.45 | C65: 1.45 | D65: 1.45 | E65: … | F65: … | G65: … | H65: 0.15 | I65: 0.38 | J65: … | K65: … | L65: 0.52 | M65: 1.03 | N65: 0.79 | O65: 0.93 | P65: 0.82 | Q65: 1.04 | R65: 0.92 | S65: 314.4 | T65: … | U65: … | V65: 359.63 | W65: 254.91 | X65: … | Y65: 117.67 | Z65: 270 | AA65: 84.5 | AB65: … | AC65: … | AD65: 25.11 | AE65: 52.8 | AF65: 47.18 | AG65: 120.97 | AH65: … | AI65: … | AJ65: … | AK65: … | AL65: 67.98 | AM65: … | AN65: 0.16 | AO65: 0.08 | AP65: 0.84 | AQ65: 0.34 | AR65: … | AS65: 2.09 | AT65: 0.13 | AU65: 0.12 | AV65: 0.07 | AW65: 1488.3 | AX65: … | AY65: 29.44 | AZ65: … | BA65: 142.75 | BB65: … | BC65: 0.64 | BD65: … | BE65: 0.51 | BF65: 12.5 | BG65: ... | BH65: 53 | BI65: 60.5 | BJ65: 32.5 | BK65: 529.11 | BL65: 10.24 | BM65: 1400.37 | BN65: 365.1 | BO65: 4105 | BP65: 1742 | BQ65: 344.6 | BR65: 35.1 | BS65: 88.5 | BT65: 1.29
A66: 1964M12 | B66: 1.45 | C66: 1.45 | D66: 1.45 | E66: … | F66: … | G66: … | H66: 0.15 | I66: 0.38 | J66: … | K66: … | L66: 0.5 | M66: 1.01 | N66: 0.76 | O66: 0.93 | P66: 0.82 | Q66: 1.04 | R66: 0.92 | S66: 326 | T66: … | U66: … | V66: 372.86 | W66: 261.25 | X66: … | Y66: 121.8 | Z66: 317 | AA66: 86.7 | AB66: … | AC66: … | AD66: 25.41 | AE66: 54.33 | AF66: 48.72 | AG66: 119.08 | AH66: … | AI66: … | AJ66: … | AK66: … | AL66: 67.98 | AM66: … | AN66: 0.13 | AO66: 0.09 | AP66: 0.86 | AQ66: 0.34 | AR66: … | AS66: 2.12 | AT66: 0.12 | AU66: 0.13 | AV66: 0.06 | AW66: 1488.3 | AX66: … | AY66: 30.56 | AZ66: … | BA66: 145.66 | BB66: … | BC66: 0.64 | BD66: … | BE66: 0.5 | BF66: 12.5 | BG66: ... | BH66: 53 | BI66: 60.5 | BJ66: 32.5 | BK66: 540.13 | BL66: 10.24 | BM66: 1269.2 | BN66: 383.6 | BO66: 3633.2 | BP66: 1742 | BQ66: 343 | BR66: 35.1 | BS66: 88.5 | BT66: 1.29
A67: 1965M01 | B67: 1.42 | C67: 1.42 | D67: 1.42 | E67: … | F67: … | G67: … | H67: 0.16 | I67: 0.41 | J67: … | K67: … | L67: 0.47 | M67: 1.01 | N67: 0.63 | O67: 1 | P67: 0.85 | Q67: 1.14 | R67: 1.01 | S67: 337.6 | T67: … | U67: … | V67: 361.28 | W67: 266.21 | X67: … | Y67: 123.46 | Z67: 284 | AA67: 92.4 | AB67: … | AC67: … | AD67: 25.38 | AE67: 55.9 | AF67: 49.82 | AG67: 114.61 | AH67: … | AI67: … | AJ67: … | AK67: … | AL67: 66.14 | AM67: … | AN67: 0.13 | AO67: 0.08 | AP67: 0.85 | AQ67: 0.34 | AR67: … | AS67: 2.09 | AT67: 0.12 | AU67: 0.14 | AV67: 0.05 | AW67: 1265.41 | AX67: … | AY67: 30.56 | AZ67: … | BA67: 145.66 | BB67: … | BC67: 0.64 | BD67: … | BE67: 0.51 | BF67: 14 | BG67: ... | BH67: 54 | BI67: 65.75 | BJ67: 29.5 | BK67: 540.13 | BL67: 10.24 | BM67: 1000.68 | BN67: 347.9 | BO67: 3456.8 | BP67: 1735 | BQ67: 322.3 | BR67: 35.12 | BS67: 93 | BT67: 1.29
A68: 1965M02 | B68: 1.42 | C68: 1.42 | D68: 1.42 | E68: … | F68: … | G68: … | H68: 0.16 | I68: 0.41 | J68: … | K68: … | L68: 0.42 | M68: 1.04 | N68: 0.64 | O68: 1 | P68: 0.85 | Q68: 1.14 | R68: 1.01 | S68: 356.9 | T68: … | U68: … | V68: 373.13 | W68: 283.02 | X68: … | Y68: 128.42 | Z68: 303 | AA68: 96 | AB68: … | AC68: … | AD68: 24.68 | AE68: 56.69 | AF68: 49.82 | AG68: 115.94 | AH68: … | AI68: … | AJ68: … | AK68: … | AL68: 61.36 | AM68: … | AN68: 0.16 | AO68: 0.08 | AP68: 0.85 | AQ68: 0.35 | AR68: … | AS68: 2.01 | AT68: 0.12 | AU68: 0.14 | AV68: 0.05 | AW68: 1265.41 | AX68: … | AY68: 33.33 | AZ68: … | BA68: 152.65 | BB68: … | BC68: 0.67 | BD68: … | BE68: 0.52 | BF68: 14 | BG68: ... | BH68: 54 | BI68: 65.75 | BJ68: 29.5 | BK68: 540.13 | BL68: 10.24 | BM68: 1179.91 | BN68: 389.6 | BO68: 3390.7 | BP68: 1735 | BQ68: 320.3 | BR68: 35.12 | BS68: 98.5 | BT68: 1.29
A69: 1965M03 | B69: 1.42 | C69: 1.42 | D69: 1.42 | E69: … | F69: … | G69: … | H69: 0.16 | I69: 0.41 | J69: … | K69: … | L69: 0.35 | M69: 0.99 | N69: 0.58 | O69: 1 | P69: 0.85 | Q69: 1.14 | R69: 1.01 | S69: 356.9 | T69: … | U69: … | V69: 344.2 | W69: 292.11 | X69: … | Y69: 124.84 | Z69: 300 | AA69: 93.6 | AB69: … | AC69: … | AD69: 24.71 | AE69: 57.08 | AF69: 48.94 | AG69: 115.56 | AH69: … | AI69: … | AJ69: … | AK69: … | AL69: 60.99 | AM69: … | AN69: 0.15 | AO69: 0.08 | AP69: 0.85 | AQ69: 0.35 | AR69: … | AS69: 2.03 | AT69: 0.12 | AU69: 0.13 | AV69: 0.05 | AW69: 1265.41 | AX69: … | AY69: 34.17 | AZ69: … | BA69: 154.71 | BB69: … | BC69: 0.65 | BD69: … | BE69: 0.52 | BF69: 14 | BG69: ... | BH69: 54 | BI69: 65.75 | BJ69: 29.5 | BK69: 540.13 | BL69: 10.24 | BM69: 1237.23 | BN69: 395.3 | BO69: 3584.7 | BP69: 1735 | BQ69: 315.9 | BR69: 35.12 | BS69: 98.5 | BT69: 1.29
A70: 1965M04 | B70: 1.42 | C70: 1.42 | D70: 1.42 | E70: … | F70: … | G70: … | H70: 0.16 | I70: 0.41 | J70: … | K70: … | L70: 0.35 | M70: 0.97 | N70: 0.55 | O70: 1 | P70: 0.85 | Q70: 1.14 | R70: 1.01 | S70: 356.9 | T70: … | U70: … | V70: 325.73 | W70: 297.62 | X70: … | Y70: 123.46 | Z70: 295 | AA70: 94.8 | AB70: … | AC70: … | AD70: 24.6 | AE70: 57.48 | AF70: 47.84 | AG70: 113.29 | AH70: … | AI70: … | AJ70: … | AK70: … | AL70: 59.89 | AM70: … | AN70: 0.16 | AO70: 0.09 | AP70: 0.85 | AQ70: 0.35 | AR70: … | AS70: 2.07 | AT70: 0.12 | AU70: 0.13 | AV70: 0.05 | AW70: 1265.41 | AX70: … | AY70: 35.56 | AZ70: … | BA70: 158.08 | BB70: … | BC70: 0.65 | BD70: … | BE70: 0.53 | BF70: 14 | BG70: ... | BH70: 54 | BI70: 65.75 | BJ70: 29.5 | BK70: 540.13 | BL70: 10.24 | BM70: 1348.34 | BN70: 353 | BO70: 3944.1 | BP70: 1735 | BQ70: 315.9 | BR70: 35.12 | BS70: 98.5 | BT70: 1.29
A71: 1965M05 | B71: 1.42 | C71: 1.42 | D71: 1.42 | E71: … | F71: … | G71: … | H71: 0.16 | I71: 0.41 | J71: … | K71: … | L71: 0.33 | M71: 0.96 | N71: 0.49 | O71: 1 | P71: 0.85 | Q71: 1.14 | R71: 1.01 | S71: 356.9 | T71: … | U71: … | V71: 293.76 | W71: 303.13 | X71: … | Y71: 118.5 | Z71: 256 | AA71: 93.6 | AB71: … | AC71: … | AD71: 24.68 | AE71: 58.66 | AF71: 47.84 | AG71: 111.77 | AH71: … | AI71: … | AJ71: … | AK71: … | AL71: 59.16 | AM71: … | AN71: 0.15 | AO71: 0.15 | AP71: 0.84 | AQ71: 0.35 | AR71: … | AS71: 2.05 | AT71: 0.12 | AU71: 0.14 | AV71: 0.05 | AW71: 1265.41 | AX71: … | AY71: 35.56 | AZ71: … | BA71: 158.08 | BB71: … | BC71: 0.65 | BD71: … | BE71: 0.53 | BF71: 14 | BG71: ... | BH71: 54 | BI71: 65.75 | BJ71: 29.5 | BK71: 540.13 | BL71: 15.3 | BM71: 1378.55 | BN71: 302 | BO71: 4215.2 | BP71: 1735 | BQ71: 323.4 | BR71: 35.12 | BS71: 98.5 | BT71: 1.29
A72: 1965M06 | B72: 1.42 | C72: 1.42 | D72: 1.42 | E72: … | F72: … | G72: … | H72: 0.16 | I72: 0.41 | J72: … | K72: … | L72: 0.29 | M72: 0.98 | N72: 0.61 | O72: 1 | P72: 0.85 | Q72: 1.14 | R72: 1.01 | S72: 420.5 | T72: … | U72: … | V72: 296.52 | W72: 294.87 | X72: … | Y72: 122.08 | Z72: 256 | AA72: 93.6 | AB72: … | AC72: … | AD72: 24.45 | AE72: 58.26 | AF72: 47.84 | AG72: 110.88 | AH72: … | AI72: … | AJ72: … | AK72: … | AL72: 58.05 | AM72: … | AN72: 0.17 | AO72: 0.11 | AP72: 0.86 | AQ72: 0.35 | AR72: … | AS72: 1.96 | AT72: 0.12 | AU72: 0.14 | AV72: 0.04 | AW72: 1265.41 | AX72: … | AY72: 35.56 | AZ72: … | BA72: 158.08 | BB72: … | BC72: 0.63 | BD72: … | BE72: 0.52 | BF72: 14 | BG72: ... | BH72: 54 | BI72: 65.75 | BJ72: 29.5 | BK72: 540.13 | BL72: 10.24 | BM72: 1308.88 | BN72: 278.7 | BO72: 4131.5 | BP72: 1735 | BQ72: 314.4 | BR72: 35.12 | BS72: 98.5 | BT72: 1.29
A73: 1965M07 | B73: 1.42 | C73: 1.42 | D73: 1.42 | E73: … | F73: … | G73: … | H73: 0.16 | I73: 0.41 | J73: … | K73: … | L73: 0.26 | M73: 0.98 | N73: 0.72 | O73: 1 | P73: 0.85 | Q73: 1.14 | R73: 1.01 | S73: 372.6 | T73: … | U73: … | V73: 301.76 | W73: 279.99 | X73: … | Y73: 119.88 | Z73: 248 | AA73: 101.8 | AB73: … | AC73: … | AD73: 24.12 | AE73: 56.69 | AF73: 47.84 | AG73: 112.04 | AH73: … | AI73: … | AJ73: … | AK73: … | AL73: 57.32 | AM73: … | AN73: 0.18 | AO73: 0.1 | AP73: 0.88 | AQ73: 0.35 | AR73: … | AS73: 1.94 | AT73: 0.12 | AU73: 0.13 | AV73: 0.04 | AW73: 1265.41 | AX73: … | AY73: 35.56 | AZ73: … | BA73: 158.08 | BB73: … | BC73: 0.63 | BD73: … | BE73: 0.49 | BF73: 14 | BG73: ... | BH73: 54 | BI73: 65.75 | BJ73: 29.5 | BK73: 540.13 | BL73: 10.24 | BM73: 1134.06 | BN73: 271.6 | BO73: 3966.1 | BP73: 1735 | BQ73: 310.4 | BR73: 35.12 | BS73: 98.5 | BT73: 1.29
A74: 1965M08 | B74: 1.42 | C74: 1.42 | D74: 1.42 | E74: … | F74: … | G74: … | H74: 0.16 | I74: 0.41 | J74: … | K74: … | L74: 0.33 | M74: 1 | N74: 0.79 | O74: 1 | P74: 0.85 | Q74: 1.14 | R74: 1.01 | S74: 334.8 | T74: … | U74: … | V74: 299.28 | W74: 257.66 | X74: … | Y74: 110.78 | Z74: 234 | AA74: 96 | AB74: … | AC74: … | AD74: 24 | AE74: 55.12 | AF74: 47.4 | AG74: 116.92 | AH74: … | AI74: … | AJ74: … | AK74: … | AL74: 57.69 | AM74: … | AN74: 0.17 | AO74: 0.1 | AP74: 0.89 | AQ74: 0.35 | AR74: … | AS74: 1.87 | AT74: 0.12 | AU74: 0.14 | AV74: 0.04 | AW74: 1265.41 | AX74: … | AY74: 35.56 | AZ74: … | BA74: 158.08 | BB74: … | BC74: 0.63 | BD74: … | BE74: 0.48 | BF74: 14 | BG74: ... | BH74: 54 | BI74: 65.75 | BJ74: 29.5 | BK74: 540.13 | BL74: 10.24 | BM74: 1209.9 | BN74: 272 | BO74: 4091.8 | BP74: 1735 | BQ74: 303.6 | BR74: 35.12 | BS74: 98.5 | BT74: 1.29
A75: 1965M09 | B75: 1.42 | C75: 1.42 | D75: 1.42 | E75: … | F75: … | G75: … | H75: 0.16 | I75: 0.41 | J75: … | K75: … | L75: 0.36 | M75: 1 | N75: 0.78 | O75: 1 | P75: 0.85 | Q75: 1.14 | R75: 1.01 | S75: 312 | T75: … | U75: … | V75: 308.92 | W75: 246.64 | X75: … | Y75: 106.1 | Z75: 248 | AA75: 105.3 | AB75: … | AC75: … | AD75: 23.99 | AE75: 53.93 | AF75: 47.4 | AG75: 126.55 | AH75: … | AI75: … | AJ75: … | AK75: … | AL75: 58.42 | AM75: … | AN75: 0.18 | AO75: 0.1 | AP75: 0.91 | AQ75: 0.35 | AR75: … | AS75: 1.9 | AT75: 0.12 | AU75: 0.14 | AV75: 0.04 | AW75: 1265.41 | AX75: … | AY75: 36.11 | AZ75: … | BA75: 159.39 | BB75: … | BC75: 0.63 | BD75: … | BE75: 0.48 | BF75: 14 | BG75: ... | BH75: 54 | BI75: 65.75 | BJ75: 29.5 | BK75: 540.13 | BL75: 10.24 | BM75: 1327.84 | BN75: 289.2 | BO75: 4208.6 | BP75: 1735 | BQ75: 299.6 | BR75: 35.12 | BS75: 98.5 | BT75: 1.29
A76: 1965M10 | B76: 1.42 | C76: 1.42 | D76: 1.42 | E76: … | F76: … | G76: … | H76: 0.16 | I76: 0.41 | J76: … | K76: … | L76: 0.37 | M76: 1.01 | N76: 0.81 | O76: 1 | P76: 0.85 | Q76: 1.14 | R76: 1.01 | S76: 331 | T76: … | U76: … | V76: 324.08 | W76: 250.22 | X76: … | Y76: 104.44 | Z76: 284 | AA76: 97.1 | AB76: … | AC76: … | AD76: 23.6 | AE76: 51.57 | AF76: 46.52 | AG76: 126.65 | AH76: … | AI76: … | AJ76: … | AK76: … | AL76: 58.05 | AM76: … | AN76: 0.19 | AO76: 0.1 | AP76: 0.93 | AQ76: 0.35 | AR76: … | AS76: 1.92 | AT76: 0.12 | AU76: 0.14 | AV76: 0.04 | AW76: 1265.41 | AX76: … | AY76: 36.11 | AZ76: … | BA76: 159.39 | BB76: … | BC76: 0.62 | BD76: … | BE76: 0.47 | BF76: 14 | BG76: ... | BH76: 54 | BI76: 65.75 | BJ76: 29.5 | BK76: 540.13 | BL76: 10.24 | BM76: 1401.92 | BN76: 306.9 | BO76: 4010.2 | BP76: 1735 | BQ76: 307.8 | BR76: 35.12 | BS76: 98.5 | BT76: 1.29
A77: 1965M11 | B77: 1.42 | C77: 1.42 | D77: 1.42 | E77: … | F77: … | G77: … | H77: 0.16 | I77: 0.41 | J77: … | K77: … | L77: 0.4 | M77: 1.03 | N77: 0.76 | O77: 1 | P77: 0.85 | Q77: 1.14 | R77: 1.01 | S77: 334.8 | T77: … | U77: … | V77: 336.2 | W77: 250.22 | X77: … | Y77: 107.47 | Z77: 276 | AA77: 103 | AB77: … | AC77: … | AD77: 23.63 | AE77: 51.57 | AF77: 46.3 | AG77: 129.2 | AH77: … | AI77: … | AJ77: … | AK77: … | AL77: 58.05 | AM77: … | AN77: 0.15 | AO77: 0.1 | AP77: 0.91 | AQ77: 0.36 | AR77: … | AS77: 2.01 | AT77: 0.12 | AU77: 0.14 | AV77: 0.04 | AW77: 1265.41 | AX77: … | AY77: 36.11 | AZ77: … | BA77: 159.39 | BB77: … | BC77: 0.62 | BD77: … | BE77: 0.49 | BF77: 14 | BG77: ... | BH77: 54 | BI77: 65.75 | BJ77: 29.5 | BK77: 540.13 | BL77: 10.24 | BM77: 1469.16 | BN77: 299.2 | BO77: 3820.6 | BP77: 1735 | BQ77: 298.7 | BR77: 35.12 | BS77: 98.5 | BT77: 1.29
A78: 1965M12 | B78: 1.42 | C78: 1.42 | D78: 1.42 | E78: … | F78: … | G78: … | H78: 0.16 | I78: 0.41 | J78: … | K78: … | L78: 0.46 | M78: 1.03 | N78: 0.79 | O78: 1 | P78: 0.85 | Q78: 1.14 | R78: 1.01 | S78: 330.7 | T78: … | U78: … | V78: 322.15 | W78: 248.57 | X78: … | Y78: 112.99 | Z78: 256 | AA78: 97.1 | AB78: … | AC78: … | AD78: 24.3 | AE78: 55.12 | AF78: 47.62 | AG78: 132.06 | AH78: … | AI78: … | AJ78: … | AK78: … | AL78: 58.42 | AM78: … | AN78: 0.13 | AO78: 0.09 | AP78: 0.94 | AQ78: 0.36 | AR78: … | AS78: 2.01 | AT78: 0.12 | AU78: 0.13 | AV78: 0.04 | AW78: 1265.41 | AX78: … | AY78: 36.11 | AZ78: … | BA78: 159.39 | BB78: … | BC78: 0.62 | BD78: … | BE78: 0.5 | BF78: 14 | BG78: ... | BH78: 54 | BI78: 65.75 | BJ78: 29.5 | BK78: 540.13 | BL78: 10.24 | BM78: 1517.66 | BN78: 300.7 | BO78: 3869.1 | BP78: 1735 | BQ78: 302.7 | BR78: 35.12 | BS78: 98.5 | BT78: 1.29
A79: 1966M01 | B79: 1.36 | C79: 1.36 | D79: 1.36 | E79: … | F79: … | G79: … | H79: 0.16 | I79: 0.42 | J79: … | K79: … | L79: 0.47 | M79: 1.01 | N79: 0.8 | O79: 0.96 | P79: 0.76 | Q79: 1.21 | R79: 0.91 | S79: 355.5 | T79: … | U79: … | V79: 307.27 | W79: 246.92 | X79: … | Y79: 119.6 | Z79: 267 | AA79: 101.93 | AB79: … | AC79: … | AD79: 24.63 | AE79: 57.08 | AF79: 47.62 | AG79: 125.51 | AH79: … | AI79: … | AJ79: … | AK79: … | AL79: 58.42 | AM79: … | AN79: 0.13 | AO79: 0.09 | AP79: 0.97 | AQ79: 0.36 | AR79: … | AS79: 2.31 | AT79: 0.13 | AU79: 0.14 | AV79: 0.05 | AW79: 1581.22 | AX79: … | AY79: 36.11 | AZ79: … | BA79: 159.39 | BB79: … | BC79: 0.62 | BD79: … | BE79: 0.51 | BF79: 13 | BG79: ... | BH79: 50 | BI79: 59.25 | BJ79: 27.5 | BK79: 540.13 | BL79: 9.52 | BM79: 1679.04 | BN79: 301.2 | BO79: 3926.4 | BP79: 1739 | BQ79: 302.7 | BR79: 35.13 | BS79: 98.5 | BT79: 1.29
A80: 1966M02 | B80: 1.36 | C80: 1.36 | D80: 1.36 | E80: … | F80: … | G80: … | H80: 0.16 | I80: 0.42 | J80: … | K80: … | L80: 0.47 | M80: 0.97 | N80: 0.76 | O80: 0.96 | P80: 0.76 | Q80: 1.21 | R80: 0.91 | S80: 348.6 | T80: … | U80: … | V80: 299.69 | W80: 248.02 | X80: … | Y80: 121.8 | Z80: 273 | AA80: 99.1 | AB80: … | AC80: … | AD80: 24.74 | AE80: 57.08 | AF80: 48.5 | AG80: 124.79 | AH80: … | AI80: … | AJ80: … | AK80: … | AL80: 58.79 | AM80: … | AN80: 0.14 | AO80: 0.07 | AP80: 0.96 | AQ80: 0.36 | AR80: … | AS80: 2.31 | AT80: 0.13 | AU80: 0.14 | AV80: 0.05 | AW80: 1581.22 | AX80: … | AY80: 36.94 | AZ80: … | BA80: 161.36 | BB80: … | BC80: 0.62 | BD80: … | BE80: 0.51 | BF80: 13 | BG80: ... | BH80: 50 | BI80: 59.25 | BJ80: 27.5 | BK80: 540.13 | BL80: 9.52 | BM80: 1874.37 | BN80: 291.5 | BO80: 3877.9 | BP80: 1739 | BQ80: 299.8 | BR80: 35.13 | BS80: 98.5 | BT80: 1.29
A81: 1966M03 | B81: 1.36 | C81: 1.36 | D81: 1.36 | E81: … | F81: … | G81: … | H81: 0.16 | I81: 0.42 | J81: … | K81: … | L81: 0.49 | M81: 0.95 | N81: 0.74 | O81: 0.96 | P81: 0.76 | Q81: 1.21 | R81: 0.91 | S81: 338.4 | T81: … | U81: … | V81: 292.8 | W81: 245.26 | X81: … | Y81: 119.88 | Z81: 265 | AA81: 92.5 | AB81: … | AC81: … | AD81: 24.55 | AE81: 55.51 | AF81: 47.4 | AG81: 131.73 | AH81: … | AI81: … | AJ81: … | AK81: … | AL81: 58.79 | AM81: … | AN81: 0.17 | AO81: 0.09 | AP81: 1.07 | AQ81: 0.36 | AR81: … | AS81: 2.31 | AT81: 0.13 | AU81: 0.14 | AV81: 0.05 | AW81: 1581.22 | AX81: … | AY81: 36.94 | AZ81: … | BA81: 161.36 | BB81: … | BC81: 0.64 | BD81: … | BE81: 0.5 | BF81: 13 | BG81: ... | BH81: 50 | BI81: 59.25 | BJ81: 27.5 | BK81: 540.13 | BL81: 9.52 | BM81: 1874.81 | BN81: 292.8 | BO81: 3772.1 | BP81: 1739 | BQ81: 300.7 | BR81: 35.13 | BS81: 99.65 | BT81: 1.29
A82: 1966M04 | B82: 1.36 | C82: 1.36 | D82: 1.36 | E82: … | F82: … | G82: … | H82: 0.16 | I82: 0.42 | J82: … | K82: … | L82: 0.53 | M82: 0.95 | N82: 0.76 | O82: 0.96 | P82: 0.76 | Q82: 1.21 | R82: 0.91 | S82: 331.2 | T82: … | U82: … | V82: 285.77 | W82: 233.69 | X82: … | Y82: 122.08 | Z82: 267 | AA82: 96.9 | AB82: … | AC82: … | AD82: 24.65 | AE82: 55.9 | AF82: 46.96 | AG82: 143.04 | AH82: … | AI82: … | AJ82: … | AK82: … | AL82: 58.79 | AM82: … | AN82: 0.19 | AO82: 0.09 | AP82: 1.07 | AQ82: 0.36 | AR82: … | AS82: 2.31 | AT82: 0.13 | AU82: 0.14 | AV82: 0.05 | AW82: 1581.22 | AX82: … | AY82: 36.39 | AZ82: … | BA82: 160.06 | BB82: … | BC82: 0.62 | BD82: … | BE82: 0.48 | BF82: 13 | BG82: ... | BH82: 50 | BI82: 59.25 | BJ82: 27.5 | BK82: 540.13 | BL82: 9.52 | BM82: 1907.44 | BN82: 280.4 | BO82: 3763.3 | BP82: 1739 | BQ82: 278.7 | BR82: 35.13 | BS82: 100 | BT82: 1.29
A83: 1966M05 | B83: 1.36 | C83: 1.36 | D83: 1.36 | E83: … | F83: … | G83: … | H83: 0.16 | I83: 0.42 | J83: … | K83: … | L83: 0.51 | M83: 0.95 | N83: 0.77 | O83: 0.96 | P83: 0.76 | Q83: 1.21 | R83: 0.91 | S83: 330.7 | T83: … | U83: … | V83: 288.31 | W83: 225.7 | X83: … | Y83: 124.84 | Z83: 256 | AA83: 102.4 | AB83: … | AC83: … | AD83: 24.57 | AE83: 55.12 | AF83: 46.96 | AG83: 140.86 | AH83: … | AI83: … | AJ83: … | AK83: … | AL83: 58.79 | AM83: … | AN83: 0.18 | AO83: 0.09 | AP83: 1.04 | AQ83: 0.36 | AR83: … | AS83: 2.31 | AT83: 0.13 | AU83: 0.14 | AV83: 0.05 | AW83: 1581.22 | AX83: … | AY83: 36.94 | AZ83: … | BA83: 161.36 | BB83: … | BC83: 0.62 | BD83: … | BE83: 0.49 | BF83: 13 | BG83: ... | BH83: 50 | BI83: 59.25 | BJ83: 27.5 | BK83: 540.13 | BL83: 9.52 | BM83: 1663.61 | BN83: 261.9 | BO83: 3688.3 | BP83: 1739 | BQ83: 270 | BR83: 35.13 | BS83: 100 | BT83: 1.29
A84: 1966M06 | B84: 1.36 | C84: 1.36 | D84: 1.36 | E84: … | F84: … | G84: … | H84: 0.16 | I84: 0.42 | J84: … | K84: … | L84: 0.53 | M84: 0.92 | N84: 0.74 | O84: 0.81 | P84: 0.76 | Q84: 0.77 | R84: 0.91 | S84: 332.1 | T84: … | U84: … | V84: 288.31 | W84: 225.42 | X84: … | Y84: 130.62 | Z84: 256 | AA84: 117.8 | AB84: … | AC84: … | AD84: 25.54 | AE84: 57.08 | AF84: 46.74 | AG84: 144.45 | AH84: … | AI84: … | AJ84: … | AK84: … | AL84: 62.1 | AM84: … | AN84: 0.18 | AO84: 0.08 | AP84: 0.99 | AQ84: 0.36 | AR84: … | AS84: 2.31 | AT84: 0.13 | AU84: 0.14 | AV84: 0.04 | AW84: 1581.22 | AX84: … | AY84: 36.94 | AZ84: … | BA84: 161.36 | BB84: … | BC84: 0.62 | BD84: … | BE84: 0.47 | BF84: 13 | BG84: ... | BH84: 50 | BI84: 59.25 | BJ84: 27.5 | BK84: 540.13 | BL84: 9.52 | BM84: 1695.79 | BN84: 259.3 | BO84: 3516.4 | BP84: 1739 | BQ84: 272.1 | BR84: 35.13 | BS84: 100 | BT84: 1.29
A85: 1966M07 | B85: 1.36 | C85: 1.36 | D85: 1.36 | E85: … | F85: … | G85: … | H85: 0.16 | I85: 0.42 | J85: … | K85: … | L85: 0.58 | M85: 0.92 | N85: 0.73 | O85: 0.81 | P85: 0.76 | Q85: 0.77 | R85: 0.91 | S85: 330.4 | T85: … | U85: … | V85: 294.59 | W85: 235.34 | X85: … | Y85: 138.89 | Z85: 267 | AA85: 123.3 | AB85: … | AC85: … | AD85: 26.51 | AE85: 59.05 | AF85: 47.18 | AG85: 153.3 | AH85: … | AI85: … | AJ85: … | AK85: … | AL85: 65.4 | AM85: … | AN85: 0.14 | AO85: 0.08 | AP85: 0.97 | AQ85: 0.37 | AR85: … | AS85: 2.31 | AT85: 0.13 | AU85: 0.14 | AV85: 0.04 | AW85: 1581.22 | AX85: … | AY85: 36.94 | AZ85: … | BA85: 161.36 | BB85: … | BC85: 0.62 | BD85: … | BE85: 0.47 | BF85: 13 | BG85: ... | BH85: 50 | BI85: 59.25 | BJ85: 27.5 | BK85: 540.13 | BL85: 9.52 | BM85: 1567.93 | BN85: 263.4 | BO85: 3514.2 | BP85: 1739 | BQ85: 264.6 | BR85: 35.13 | BS85: 100 | BT85: 1.29
A86: 1966M08 | B86: 1.36 | C86: 1.36 | D86: 1.36 | E86: … | F86: … | G86: … | H86: 0.16 | I86: 0.42 | J86: … | K86: … | L86: 0.57 | M86: 0.92 | N86: 0.72 | O86: 0.81 | P86: 0.76 | Q86: 0.77 | R86: 0.91 | S86: 319.1 | T86: … | U86: … | V86: 304.84 | W86: 239.75 | X86: … | Y86: 140.27 | Z86: 276 | AA86: 124.4 | AB86: … | AC86: … | AD86: 27.51 | AE86: 62.6 | AF86: 50.49 | AG86: 150.39 | AH86: … | AI86: … | AJ86: … | AK86: … | AL86: 67.61 | AM86: … | AN86: 0.16 | AO86: 0.08 | AP86: 1 | AQ86: 0.37 | AR86: … | AS86: 2.31 | AT86: 0.13 | AU86: 0.14 | AV86: 0.04 | AW86: 1581.22 | AX86: … | AY86: 36.94 | AZ86: … | BA86: 161.36 | BB86: … | BC86: 0.62 | BD86: … | BE86: 0.46 | BF86: 13 | BG86: ... | BH86: 50 | BI86: 59.25 | BJ86: 27.5 | BK86: 540.13 | BL86: 9.52 | BM86: 1195.34 | BN86: 242.5 | BO86: 3428.2 | BP86: 1739 | BQ86: 264.6 | BR86: 35.13 | BS86: 100 | BT86: 1.29
A87: 1966M09 | B87: 1.36 | C87: 1.36 | D87: 1.36 | E87: … | F87: … | G87: … | H87: 0.16 | I87: 0.42 | J87: … | K87: … | L87: 0.5 | M87: 0.9 | N87: 0.7 | O87: 0.81 | P87: 0.76 | Q87: 0.77 | R87: 0.91 | S87: 317.2 | T87: … | U87: … | V87: 298.73 | W87: 239.75 | X87: … | Y87: 127.59 | Z87: 267 | AA87: 112.3 | AB87: … | AC87: … | AD87: 27.25 | AE87: 61.02 | AF87: 51.59 | AG87: 155.39 | AH87: … | AI87: … | AJ87: … | AK87: … | AL87: 67.24 | AM87: … | AN87: 0.14 | AO87: 0.08 | AP87: 1.05 | AQ87: 0.37 | AR87: … | AS87: 2.31 | AT87: 0.13 | AU87: 0.14 | AV87: 0.03 | AW87: 1581.22 | AX87: … | AY87: 36.94 | AZ87: … | BA87: 161.36 | BB87: … | BC87: 0.61 | BD87: … | BE87: 0.43 | BF87: 13 | BG87: ... | BH87: 50 | BI87: 59.25 | BJ87: 27.5 | BK87: 540.13 | BL87: 9.52 | BM87: 1128.32 | BN87: 254.2 | BO87: 3377.5 | BP87: 1739 | BQ87: 270.5 | BR87: 35.13 | BS87: 100 | BT87: 1.29
A88: 1966M10 | B88: 1.36 | C88: 1.36 | D88: 1.36 | E88: … | F88: … | G88: … | H88: 0.16 | I88: 0.42 | J88: … | K88: … | L88: 0.51 | M88: 0.89 | N88: 0.72 | O88: 0.81 | P88: 0.76 | Q88: 0.77 | R88: 0.91 | S88: 303.1 | T88: … | U88: … | V88: 291.84 | W88: 230.93 | X88: … | Y88: 120.15 | Z88: 251 | AA88: 104.6 | AB88: … | AC88: … | AD88: 26.72 | AE88: 58.66 | AF88: 48.72 | AG88: 164.26 | AH88: … | AI88: … | AJ88: … | AK88: … | AL88: 66.14 | AM88: … | AN88: 0.13 | AO88: 0.08 | AP88: 1.05 | AQ88: 0.37 | AR88: … | AS88: 2.31 | AT88: 0.13 | AU88: 0.15 | AV88: 0.03 | AW88: 1581.22 | AX88: … | AY88: 36.94 | AZ88: … | BA88: 161.36 | BB88: … | BC88: 0.63 | BD88: … | BE88: 0.45 | BF88: 13 | BG88: ... | BH88: 50 | BI88: 59.25 | BJ88: 27.5 | BK88: 540.13 | BL88: 9.52 | BM88: 1275.37 | BN88: 233.7 | BO88: 3362 | BP88: 1739 | BQ88: 276 | BR88: 35.13 | BS88: 100 | BT88: 1.29
A89: 1966M11 | B89: 1.36 | C89: 1.36 | D89: 1.36 | E89: … | F89: … | G89: … | H89: 0.16 | I89: 0.42 | J89: … | K89: … | L89: 0.5 | M89: 0.89 | N89: 0.72 | O89: 0.81 | P89: 0.76 | Q89: 0.77 | R89: 0.91 | S89: 277.8 | T89: … | U89: … | V89: 292.66 | W89: 225.97 | X89: … | Y89: 121.25 | Z89: 248 | AA89: 101.3 | AB89: … | AC89: … | AD89: 26.76 | AE89: 59.05 | AF89: 49.38 | AG89: 166.11 | AH89: … | AI89: … | AJ89: … | AK89: … | AL89: 65.77 | AM89: … | AN89: 0.14 | AO89: 0.08 | AP89: 1.03 | AQ89: 0.37 | AR89: … | AS89: 2.31 | AT89: 0.13 | AU89: 0.14 | AV89: 0.03 | AW89: 1581.22 | AX89: … | AY89: 36.94 | AZ89: … | BA89: 161.36 | BB89: … | BC89: 0.63 | BD89: … | BE89: 0.45 | BF89: 13 | BG89: ... | BH89: 50 | BI89: 59.25 | BJ89: 27.5 | BK89: 540.13 | BL89: 9.52 | BM89: 1301.61 | BN89: 222.7 | BO89: 3320.2 | BP89: 1739 | BQ89: 288.1 | BR89: 35.13 | BS89: 100 | BT89: 1.29
A90: 1966M12 | B90: 1.36 | C90: 1.36 | D90: 1.36 | E90: … | F90: … | G90: … | H90: 0.16 | I90: 0.42 | J90: … | K90: … | L90: 0.55 | M90: 0.87 | N90: 0.72 | O90: 0.81 | P90: 0.76 | Q90: 0.77 | R90: 0.91 | S90: 300.4 | T90: … | U90: … | V90: 310.85 | W90: 230.93 | X90: … | Y90: 120.98 | Z90: 245 | AA90: 107.9 | AB90: … | AC90: … | AD90: 27.51 | AE90: 61.41 | AF90: 51.37 | AG90: 142.6 | AH90: … | AI90: … | AJ90: … | AK90: … | AL90: 67.61 | AM90: … | AN90: 0.14 | AO90: 0.08 | AP90: 1.06 | AQ90: 0.37 | AR90: … | AS90: 2.31 | AT90: 0.13 | AU90: 0.14 | AV90: 0.03 | AW90: 1581.22 | AX90: … | AY90: 36.94 | AZ90: … | BA90: 161.36 | BB90: … | BC90: 0.63 | BD90: … | BE90: 0.43 | BF90: 13 | BG90: ... | BH90: 50 | BI90: 59.25 | BJ90: 27.5 | BK90: 540.13 | BL90: 9.52 | BM90: 1214.53 | BN90: 224.2 | BO90: 3335.6 | BP90: 1739 | BQ90: 285.5 | BR90: 35.13 | BS90: 100 | BT90: 1.29
A91: 1967M01 | B91: 1.33 | C91: 1.33 | D91: 1.33 | E91: … | F91: … | G91: … | H91: 0.16 | I91: 0.46 | J91: … | K91: … | L91: 0.57 | M91: 0.85 | N91: 0.71 | O91: 0.84 | P91: 0.73 | Q91: 0.8 | R91: 0.99 | S91: 310 | T91: … | U91: … | V91: 303.41 | W91: 234.24 | X91: … | Y91: 117.4 | Z91: 231 | AA91: 104.6 | AB91: … | AC91: … | AD91: 27.3 | AE91: 60.23 | AF91: 52.91 | AG91: 142.27 | AH91: … | AI91: … | AJ91: … | AK91: … | AL91: 67.24 | AM91: … | AN91: 0.16 | AO91: 0.18 | AP91: 1.08 | AQ91: 0.37 | AR91: … | AS91: 2.29 | AT91: 0.13 | AU91: 0.14 | AV91: 0.03 | AW91: 1299.43 | AX91: … | AY91: 36.94 | AZ91: … | BA91: 161.36 | BB91: … | BC91: 0.64 | BD91: … | BE91: 0.43 | BF91: 12 | BG91: 68.5 | BH91: 46.5 | BI91: 49.25 | BJ91: 25.5 | BK91: 540.13 | BL91: 8.86 | BM91: 1243.85 | BN91: 220.2 | BO91: 3302.5 | BP91: 1935.7 | BQ91: 279.5 | BR91: 34.95 | BS91: 102.93 | BT91: 1.29
A92: 1967M02 | B92: 1.33 | C92: 1.33 | D92: 1.33 | E92: … | F92: … | G92: … | H92: 0.16 | I92: 0.46 | J92: … | K92: … | L92: 0.61 | M92: 0.84 | N92: 0.73 | O92: 0.84 | P92: 0.73 | Q92: 0.8 | R92: 0.99 | S92: 316.9 | T92: … | U92: … | V92: 297.07 | W92: 230.66 | X92: … | Y92: 116.84 | Z92: 225 | AA92: 101.3 | AB92: … | AC92: … | AD92: 27.3 | AE92: 59.05 | AF92: 52.91 | AG92: 151.45 | AH92: … | AI92: … | AJ92: … | AK92: … | AL92: 67.98 | AM92: … | AN92: 0.14 | AO92: 0.15 | AP92: 1.06 | AQ92: 0.37 | AR92: … | AS92: 2.29 | AT92: 0.13 | AU92: 0.15 | AV92: 0.04 | AW92: 1299.43 | AX92: … | AY92: 37.5 | AZ92: … | BA92: 162.68 | BB92: … | BC92: 0.66 | BD92: … | BE92: 0.41 | BF92: 12 | BG92: 68.5 | BH92: 46.5 | BI92: 49.25 | BJ92: 25.5 | BK92: 540.13 | BL92: 8.86 | BM92: 1220.48 | BN92: 221.8 | BO92: 3309.1 | BP92: 1935.7 | BQ92: 282.2 | BR92: 34.95 | BS92: 110.5 | BT92: 1.29
A93: 1967M03 | B93: 1.33 | C93: 1.33 | D93: 1.33 | E93: … | F93: … | G93: … | H93: 0.16 | I93: 0.46 | J93: … | K93: … | L93: 0.6 | M93: 0.82 | N93: 0.73 | O93: 0.84 | P93: 0.73 | Q93: 0.8 | R93: 0.99 | S93: 314.2 | T93: … | U93: … | V93: 300.65 | W93: 223.22 | X93: … | Y93: 115.74 | Z93: 231 | AA93: 98 | AB93: … | AC93: … | AD93: 27.68 | AE93: 59.05 | AF93: 54.89 | AG93: 163.53 | AH93: … | AI93: … | AJ93: … | AK93: … | AL93: 69.81 | AM93: … | AN93: 0.16 | AO93: 0.16 | AP93: 1.04 | AQ93: 0.37 | AR93: … | AS93: 2.29 | AT93: 0.13 | AU93: 0.15 | AV93: 0.03 | AW93: 1299.43 | AX93: … | AY93: 38.33 | AZ93: … | BA93: 164.61 | BB93: … | BC93: 0.66 | BD93: … | BE93: 0.41 | BF93: 12 | BG93: 68.5 | BH93: 46.5 | BI93: 49.25 | BJ93: 25.5 | BK93: 540.13 | BL93: 8.86 | BM93: 1098.34 | BN93: 228.4 | BO93: 3318 | BP93: 1935.7 | BQ93: 279.3 | BR93: 34.95 | BS93: 110.5 | BT93: 1.29
A94: 1967M04 | B94: 1.33 | C94: 1.33 | D94: 1.33 | E94: … | F94: … | G94: … | H94: 0.16 | I94: 0.46 | J94: … | K94: … | L94: 0.58 | M94: 0.85 | N94: 0.75 | O94: 0.84 | P94: 0.73 | Q94: 0.8 | R94: 0.99 | S94: 305.1 | T94: … | U94: … | V94: 292.39 | W94: 223.22 | X94: … | Y94: 116.29 | Z94: 227 | AA94: 95.8 | AB94: … | AC94: … | AD94: 27.27 | AE94: 57.87 | AF94: 54.23 | AG94: 168.53 | AH94: … | AI94: … | AJ94: … | AK94: … | AL94: 68.34 | AM94: … | AN94: 0.16 | AO94: 0.16 | AP94: 1.06 | AQ94: 0.37 | AR94: … | AS94: 2.29 | AT94: 0.13 | AU94: 0.15 | AV94: 0.05 | AW94: 1299.43 | AX94: … | AY94: 38.33 | AZ94: … | BA94: 164.61 | BB94: … | BC94: 0.66 | BD94: … | BE94: 0.41 | BF94: 12 | BG94: 68.5 | BH94: 46.5 | BI94: 49.25 | BJ94: 25.5 | BK94: 540.13 | BL94: 8.86 | BM94: 994.72 | BN94: 226.6 | BO94: 3351 | BP94: 1935.7 | BQ94: 272.1 | BR94: 34.95 | BS94: 110.5 | BT94: 1.29
A95: 1967M05 | B95: 1.33 | C95: 1.33 | D95: 1.33 | E95: … | F95: … | G95: … | H95: 0.16 | I95: 0.46 | J95: … | K95: … | L95: 0.57 | M95: 0.89 | N95: 0.77 | O95: 0.84 | P95: 0.73 | Q95: 0.8 | R95: 0.99 | S95: 283.8 | T95: … | U95: … | V95: 288.8 | W95: 223.77 | X95: … | Y95: 116.29 | Z95: 224 | AA95: 94.7 | AB95: … | AC95: … | AD95: 27.18 | AE95: 57.08 | AF95: 54.45 | AG95: 175.8 | AH95: … | AI95: … | AJ95: … | AK95: … | AL95: 68.34 | AM95: … | AN95: 0.15 | AO95: 0.15 | AP95: 1.04 | AQ95: 0.37 | AR95: … | AS95: 2.29 | AT95: 0.13 | AU95: 0.15 | AV95: 0.06 | AW95: 1299.43 | AX95: … | AY95: 38.89 | AZ95: … | BA95: 165.91 | BB95: … | BC95: 0.66 | BD95: … | BE95: 0.4 | BF95: 12 | BG95: 68.5 | BH95: 46.5 | BI95: 49.25 | BJ95: 25.5 | BK95: 540.13 | BL95: 8.86 | BM95: 1036.17 | BN95: 226.2 | BO95: 3357.6 | BP95: 1935.7 | BQ95: 275.1 | BR95: 34.95 | BS95: 110.5 | BT95: 1.3
A96: 1967M06 | B96: 1.33 | C96: 1.33 | D96: 1.33 | E96: … | F96: … | G96: … | H96: 0.16 | I96: 0.46 | J96: … | K96: … | L96: 0.58 | M96: 0.91 | N96: 0.78 | O96: 0.84 | P96: 0.73 | Q96: 0.8 | R96: 0.99 | S96: 319.7 | T96: … | U96: … | V96: 293.76 | W96: 229.28 | X96: … | Y96: 117.4 | Z96: 226 | AA96: 98.9 | AB96: … | AC96: … | AD96: 26.89 | AE96: 57.08 | AF96: 52.91 | AG96: 184.54 | AH96: … | AI96: … | AJ96: … | AK96: … | AL96: 66.51 | AM96: … | AN96: 0.16 | AO96: 0.16 | AP96: 1.04 | AQ96: 0.37 | AR96: … | AS96: 2.29 | AT96: 0.13 | AU96: 0.15 | AV96: 0.05 | AW96: 1299.43 | AX96: … | AY96: 38.89 | AZ96: … | BA96: 165.91 | BB96: … | BC96: 0.67 | BD96: … | BE96: 0.41 | BF96: 12 | BG96: 68.5 | BH96: 46.5 | BI96: 49.25 | BJ96: 25.5 | BK96: 540.13 | BL96: 8.86 | BM96: 1015.22 | BN96: 228.2 | BO96: 3366.5 | BP96: 1935.7 | BQ96: 274.3 | BR96: 34.95 | BS96: 110.5 | BT96: 1.3
A97: 1967M07 | B97: 1.33 | C97: 1.33 | D97: 1.33 | E97: … | F97: … | G97: … | H97: 0.16 | I97: 0.46 | J97: … | K97: … | L97: 0.57 | M97: 0.9 | N97: 0.74 | O97: 0.84 | P97: 0.73 | Q97: 0.8 | R97: 0.99 | S97: 318.3 | T97: … | U97: … | V97: 294.59 | W97: 228.73 | X97: … | Y97: 115.19 | Z97: 212 | AA97: 98.9 | AB97: … | AC97: … | AD97: 26.27 | AE97: 55.12 | AF97: 52.03 | AG97: 206.24 | AH97: … | AI97: … | AJ97: … | AK97: … | AL97: 64.67 | AM97: … | AN97: 0.16 | AO97: 0.16 | AP97: 1.04 | AQ97: 0.37 | AR97: … | AS97: 2.29 | AT97: 0.13 | AU97: 0.15 | AV97: 0.04 | AW97: 1299.43 | AX97: … | AY97: 38.89 | AZ97: … | BA97: 165.91 | BB97: … | BC97: 0.67 | BD97: … | BE97: 0.4 | BF97: 12 | BG97: 68.5 | BH97: 43.5 | BI97: 49.25 | BJ97: 25.5 | BK97: 540.13 | BL97: 8.86 | BM97: 997.37 | BN97: 231.3 | BO97: 3362 | BP97: 1935.7 | BQ97: 267.2 | BR97: 34.95 | BS97: 110.5 | BT97: 1.59
A98: 1967M08 | B98: 1.33 | C98: 1.33 | D98: 1.33 | E98: … | F98: … | G98: … | H98: 0.16 | I98: 0.46 | J98: … | K98: … | L98: 0.59 | M98: 0.88 | N98: 0.72 | O98: 0.84 | P98: 0.73 | Q98: 0.8 | R98: 0.99 | S98: 310 | T98: … | U98: … | V98: 291.56 | W98: 228.73 | X98: … | Y98: 111.13 | Z98: 210 | AA98: 98.9 | AB98: … | AC98: … | AD98: 25.65 | AE98: 51.97 | AF98: 50.26 | AG98: 207.22 | AH98: … | AI98: … | AJ98: … | AK98: … | AL98: 63.93 | AM98: … | AN98: 0.15 | AO98: 0.16 | AP98: 1.03 | AQ98: 0.37 | AR98: … | AS98: 2.29 | AT98: 0.13 | AU98: 0.15 | AV98: 0.04 | AW98: 1299.43 | AX98: … | AY98: 38.89 | AZ98: … | BA98: 165.91 | BB98: … | BC98: 0.68 | BD98: … | BE98: 0.37 | BF98: 12 | BG98: 68.5 | BH98: 43.5 | BI98: 49.25 | BJ98: 25.5 | BK98: 540.13 | BL98: 8.86 | BM98: 1044.55 | BN98: 232.3 | BO98: 3291.5 | BP98: 1935.7 | BQ98: 268.7 | BR98: 34.95 | BS98: 110.5 | BT98: 1.75
A99: 1967M09 | B99: 1.33 | C99: 1.33 | D99: 1.33 | E99: … | F99: … | G99: … | H99: 0.16 | I99: 0.46 | J99: … | K99: … | L99: 0.62 | M99: 0.86 | N99: 0.72 | O99: 0.84 | P99: 0.73 | Q99: 0.8 | R99: 0.99 | S99: 324.9 | T99: … | U99: … | V99: 275.3 | W99: 225.15 | X99: … | Y99: 111.06 | Z99: 206 | AA99: 98.9 | AB99: … | AC99: … | AD99: 25.08 | AE99: 49.21 | AF99: 49.6 | AG99: 221.64 | AH99: … | AI99: … | AJ99: … | AK99: … | AL99: 63.2 | AM99: … | AN99: 0.18 | AO99: 0.16 | AP99: 1.04 | AQ99: 0.37 | AR99: … | AS99: 2.29 | AT99: 0.13 | AU99: 0.15 | AV99: 0.04 | AW99: 1299.43 | AX99: … | AY99: 40.28 | AZ99: … | BA99: 169.08 | BB99: … | BC99: 0.69 | BD99: … | BE99: 0.36 | BF99: 12 | BG99: 68.5 | BH99: 43.5 | BI99: 49.25 | BJ99: 25.5 | BK99: 540.13 | BL99: 8.86 | BM99: 1060.2 | BN99: 226.9 | BO99: 3267.2 | BP99: 1935.7 | BQ99: 264.6 | BR99: 34.95 | BS99: 110.5 | BT99: 1.68
A100: 1967M10 | B100: 1.33 | C100: 1.33 | D100: 1.33 | E100: … | F100: … | G100: … | H100: 0.16 | I100: 0.46 | J100: … | K100: … | L100: 0.61 | M100: 0.85 | N100: 0.73 | O100: 0.84 | P100: 0.73 | Q100: 0.8 | R100: 0.99 | S100: 350.5 | T100: … | U100: … | V100: 259.04 | W100: 221.56 | X100: … | Y100: 109.96 | Z100: 203 | AA100: 98.9 | AB100: … | AC100: … | AD100: 24.98 | AE100: 48.03 | AF100: 49.38 | AG100: 224.12 | AH100: … | AI100: … | AJ100: … | AK100: … | AL100: 63.57 | AM100: … | AN100: 0.18 | AO100: 0.16 | AP100: 1.04 | AQ100: 0.37 | AR100: … | AS100: 2.29 | AT100: 0.13 | AU100: 0.15 | AV100: 0.04 | AW100: 1299.43 | AX100: … | AY100: 41.67 | AZ100: … | BA100: 172.21 | BB100: … | BC100: 0.7 | BD100: … | BE100: 0.36 | BF100: 12 | BG100: 68.5 | BH100: 43.5 | BI100: 49.25 | BJ100: 25.5 | BK100: 540.13 | BL100: 8.86 | BM100: 1138.47 | BN100: 225.7 | BO100: 3280.5 | BP100: 1935.7 | BQ100: 263.9 | BR100: 34.95 | BS100: 110.5 | BT100: 1.79
A101: 1967M11 | B101: 1.33 | C101: 1.33 | D101: 1.33 | E101: … | F101: … | G101: … | H101: 0.16 | I101: 0.46 | J101: … | K101: … | L101: 0.64 | M101: 0.87 | N101: 0.75 | O101: 0.84 | P101: 0.73 | Q101: 0.8 | R101: 0.99 | S101: 376.2 | T101: … | U101: … | V101: 248.02 | W101: 217.98 | X101: … | Y101: 116.02 | Z101: 211 | AA101: 98.9 | AB101: … | AC101: … | AD101: 24.81 | AE101: 47.64 | AF101: 48.94 | AG101: 213.57 | AH101: … | AI101: … | AJ101: … | AK101: … | AL101: 62.83 | AM101: … | AN101: 0.16 | AO101: 0.16 | AP101: 1.01 | AQ101: 0.38 | AR101: … | AS101: 2.29 | AT101: 0.13 | AU101: 0.15 | AV101: 0.05 | AW101: 1299.43 | AX101: … | AY101: 41.67 | AZ101: … | BA101: 172.21 | BB101: … | BC101: 0.71 | BD101: … | BE101: 0.35 | BF101: 12 | BG101: 68.5 | BH101: 43.5 | BI101: 49.25 | BJ101: 25.5 | BK101: 540.13 | BL101: 8.86 | BM101: 1443.81 | BN101: 242.1 | BO101: 3298.1 | BP101: 1935.7 | BQ101: 287 | BR101: 34.95 | BS101: 110.5 | BT101: 1.95
A102: 1967M12 | B102: 1.33 | C102: 1.33 | D102: 1.33 | E102: … | F102: … | G102: … | H102: 0.16 | I102: 0.46 | J102: … | K102: … | L102: 0.65 | M102: 0.85 | N102: 0.75 | O102: 0.79 | P102: 0.58 | Q102: 0.8 | R102: 0.99 | S102: 386.7 | T102: … | U102: … | V102: 250.85 | W102: 194.87 | X102: … | Y102: 113.38 | Z102: 196 | AA102: 98.9 | AB102: … | AC102: … | AD102: 24.59 | AE102: 46.9 | AF102: 50.26 | AG102: 213.57 | AH102: … | AI102: … | AJ102: … | AK102: … | AL102: 62.1 | AM102: … | AN102: 0.13 | AO102: 0.17 | AP102: 1.02 | AQ102: 0.38 | AR102: … | AS102: 2.29 | AT102: 0.13 | AU102: 0.15 | AV102: 0.05 | AW102: 1299.43 | AX102: … | AY102: 41.67 | AZ102: … | BA102: 172.21 | BB102: … | BC102: 0.72 | BD102: … | BE102: 0.36 | BF102: 12 | BG102: 68.5 | BH102: 43.5 | BI102: 49.25 | BJ102: 25.5 | BK102: 540.13 | BL102: 8.86 | BM102: 1324.09 | BN102: 222.4 | BO102: 3192.3 | BP102: 1935.7 | BQ102: 266.1 | BR102: 34.95 | BS102: 115.05 | BT102: 2.06
A103: 1968M01 | B103: 1.32 | C103: 1.32 | D103: 1.32 | E103: … | F103: … | G103: … | H103: 0.16 | I103: 0.45 | J103: … | K103: … | L103: 0.65 | M103: 0.87 | N103: 0.76 | O103: 0.75 | P103: 0.68 | Q103: 0.73 | R103: 0.84 | S103: 398 | T103: … | U103: … | V103: 251.33 | W103: 191.33 | X103: … | Y103: 114.09 | Z103: 196 | AA103: 97 | AB103: … | AC103: … | AD103: 25.45 | AE103: 51.57 | AF103: 55.6 | AG103: 198.78 | AH103: … | AI103: … | AJ103: … | AK103: … | AL103: 62.1 | AM103: … | AN103: 0.11 | AO103: 0.16 | AP103: 1.03 | AQ103: 0.38 | AR103: … | AS103: 2.58 | AT103: 0.11 | AU103: 0.15 | AV103: 0.05 | AW103: 1253.81 | AX103: … | AY103: 41.67 | AZ103: … | BA103: 172.21 | BB103: … | BC103: 0.72 | BD103: … | BE103: 0.35 | BF103: 11.5 | BG103: 60.5 | BH103: 39 | BI103: 35.5 | BJ103: 24 | BK103: 540.13 | BL103: 8.77 | BM103: 1408.75 | BN103: 218 | BO103: 3126.2 | BP103: 2074.5 | BQ103: 262.8 | BR103: 35.5 | BS103: 114 | BT103: 1.99
A104: 1968M02 | B104: 1.32 | C104: 1.32 | D104: 1.32 | E104: … | F104: … | G104: … | H104: 0.16 | I104: 0.45 | J104: … | K104: … | L104: 0.63 | M104: 0.87 | N104: 0.76 | O104: 0.75 | P104: 0.68 | Q104: 0.73 | R104: 0.84 | S104: 412.2 | T104: … | U104: … | V104: 255.34 | W104: 191.33 | X104: … | Y104: 114.56 | Z104: 193 | AA104: 97 | AB104: … | AC104: … | AD104: 25.56 | AE104: 51.18 | AF104: 58.1 | AG104: 207.03 | AH104: … | AI104: … | AJ104: … | AK104: … | AL104: 62.83 | AM104: … | AN104: 0.17 | AO104: 0.17 | AP104: 1.02 | AQ104: 0.38 | AR104: … | AS104: 2.58 | AT104: 0.11 | AU104: 0.15 | AV104: 0.05 | AW104: 1248.52 | AX104: … | AY104: 41.67 | AZ104: … | BA104: 172.21 | BB104: … | BC104: 0.71 | BD104: … | BE104: 0.33 | BF104: 11.5 | BG104: 60.5 | BH104: 39 | BI104: 35.5 | BJ104: 24 | BK104: 540.13 | BL104: 8.77 | BM104: 1719.82 | BN104: 227.5 | BO104: 3110.7 | BP104: 2074.5 | BQ104: 259.7 | BR104: 36 | BS104: 111.5 | BT104: 1.85
A105: 1968M03 | B105: 1.32 | C105: 1.32 | D105: 1.32 | E105: … | F105: … | G105: … | H105: 0.16 | I105: 0.45 | J105: … | K105: … | L105: 0.62 | M105: 0.88 | N105: 0.75 | O105: 0.75 | P105: 0.68 | Q105: 0.73 | R105: 0.84 | S105: 423 | T105: … | U105: … | V105: 256.52 | W105: 191.33 | X105: … | Y105: 115.51 | Z105: 191 | AA105: 96 | AB105: … | AC105: … | AD105: 25.54 | AE105: 50 | AF105: 57 | AG105: 209.78 | AH105: … | AI105: … | AJ105: … | AK105: … | AL105: 63.57 | AM105: … | AN105: 0.16 | AO105: 0.18 | AP105: 1.03 | AQ105: 0.38 | AR105: … | AS105: 2.58 | AT105: 0.11 | AU105: 0.15 | AV105: 0.04 | AW105: 1234.74 | AX105: … | AY105: 41.67 | AZ105: … | BA105: 172.21 | BB105: … | BC105: 0.71 | BD105: … | BE105: 0.36 | BF105: 11.5 | BG105: 60.5 | BH105: 39 | BI105: 35.5 | BJ105: 24 | BK105: 540.13 | BL105: 8.77 | BM105: 1701.08 | BN105: 233.9 | BO105: 3112.9 | BP105: 2074.5 | BQ105: 257.5 | BR105: 37 | BS105: 111.5 | BT105: 2.18
A106: 1968M04 | B106: 1.32 | C106: 1.32 | D106: 1.32 | E106: … | F106: … | G106: … | H106: 0.16 | I106: 0.45 | J106: … | K106: … | L106: 0.63 | M106: 0.89 | N106: 0.75 | O106: 0.75 | P106: 0.68 | Q106: 0.73 | R106: 0.84 | S106: 435.8 | T106: … | U106: … | V106: 259.59 | W106: 188.97 | X106: … | Y106: 113.14 | Z106: 190 | AA106: 95 | AB106: … | AC106: … | AD106: 24.89 | AE106: 48.03 | AF106: 57 | AG106: 197.01 | AH106: … | AI106: … | AJ106: … | AK106: … | AL106: 61.73 | AM106: … | AN106: 0.17 | AO106: 0.18 | AP106: 1.05 | AQ106: 0.38 | AR106: … | AS106: 2.58 | AT106: 0.11 | AU106: 0.15 | AV106: 0.04 | AW106: 1210.46 | AX106: … | AY106: 41.67 | AZ106: … | BA106: 172.21 | BB106: … | BC106: 0.71 | BD106: … | BE106: 0.36 | BF106: 11.5 | BG106: 60.5 | BH106: 39 | BI106: 35.5 | BJ106: 24 | BK106: 540.13 | BL106: 8.77 | BM106: 1255.09 | BN106: 235 | BO106: 3106.3 | BP106: 2074.5 | BQ106: 258.2 | BR106: 37.86 | BS106: 111.5 | BT106: 2.2
A107: 1968M05 | B107: 1.32 | C107: 1.32 | D107: 1.32 | E107: … | F107: … | G107: … | H107: 0.16 | I107: 0.45 | J107: … | K107: … | L107: 0.62 | M107: 0.88 | N107: 0.76 | O107: 0.75 | P107: 0.68 | Q107: 0.73 | R107: 0.84 | S107: 439.8 | T107: … | U107: … | V107: 271.64 | W107: 186.13 | X107: … | Y107: 114.32 | Z107: 189 | AA107: 96 | AB107: … | AC107: … | AD107: 24.73 | AE107: 48.42 | AF107: 53.1 | AG107: 187.09 | AH107: … | AI107: … | AJ107: … | AK107: … | AL107: 60.26 | AM107: … | AN107: 0.18 | AO107: 0.19 | AP107: 1.08 | AQ107: 0.38 | AR107: … | AS107: 2.58 | AT107: 0.11 | AU107: 0.15 | AV107: 0.04 | AW107: 1200.88 | AX107: … | AY107: 41.67 | AZ107: … | BA107: 172.21 | BB107: … | BC107: 0.71 | BD107: … | BE107: 0.37 | BF107: 11.5 | BG107: 60.5 | BH107: 39 | BI107: 35.5 | BJ107: 24 | BK107: 540.13 | BL107: 8.77 | BM107: 1096.58 | BN107: 237.7 | BO107: 3084.3 | BP107: 2074.5 | BQ107: 261.5 | BR107: 40.7 | BS107: 111.5 | BT107: 2.38
A108: 1968M06 | B108: 1.32 | C108: 1.32 | D108: 1.32 | E108: … | F108: … | G108: … | H108: 0.16 | I108: 0.45 | J108: … | K108: … | L108: 0.61 | M108: 0.89 | N108: 0.76 | O108: 0.75 | P108: 0.68 | Q108: 0.73 | R108: 0.84 | S108: 406.8 | T108: … | U108: … | V108: 279.2 | W108: 174.79 | X108: … | Y108: 111.96 | Z108: 178 | AA108: 96 | AB108: … | AC108: … | AD108: 24.9 | AE108: 47.64 | AF108: 51.3 | AG108: 179.34 | AH108: … | AI108: … | AJ108: … | AK108: … | AL108: 61.73 | AM108: … | AN108: 0.15 | AO108: 0.16 | AP108: 1.11 | AQ108: 0.38 | AR108: … | AS108: 2.58 | AT108: 0.11 | AU108: 0.15 | AV108: 0.04 | AW108: 1205.41 | AX108: … | AY108: 38.89 | AZ108: … | BA108: 165.91 | BB108: … | BC108: 0.7 | BD108: … | BE108: 0.4 | BF108: 11.5 | BG108: 60.5 | BH108: 39 | BI108: 35.5 | BJ108: 24 | BK108: 562.18 | BL108: 8.77 | BM108: 1136.7 | BN108: 238.5 | BO108: 3084.3 | BP108: 2074.5 | BQ108: 262.1 | BR108: 41.14 | BS108: 111.5 | BT108: 2.46
A109: 1968M07 | B109: 1.32 | C109: 1.32 | D109: 1.32 | E109: … | F109: … | G109: … | H109: 0.16 | I109: 0.45 | J109: … | K109: … | L109: 0.63 | M109: 0.88 | N109: 0.75 | O109: 0.75 | P109: 0.68 | Q109: 0.73 | R109: 0.84 | S109: 377.9 | T109: … | U109: … | V109: 261.25 | W109: 172.43 | X109: … | Y109: 110.78 | Z109: 162 | AA109: 96 | AB109: … | AC109: … | AD109: 25.21 | AE109: 47.24 | AF109: 49.8 | AG109: 181.69 | AH109: … | AI109: … | AJ109: … | AK109: … | AL109: 63.57 | AM109: … | AN109: 0.16 | AO109: 0.16 | AP109: 1.1 | AQ109: 0.38 | AR109: … | AS109: 2.58 | AT109: 0.11 | AU109: 0.15 | AV109: 0.04 | AW109: 1173.9 | AX109: … | AY109: 38.89 | AZ109: … | BA109: 165.91 | BB109: … | BC109: 0.69 | BD109: … | BE109: 0.39 | BF109: 11.5 | BG109: 60.5 | BH109: 36 | BI109: 35.5 | BJ109: 24 | BK109: 562.18 | BL109: 8.77 | BM109: 1054.25 | BN109: 247.1 | BO109: 3075.4 | BP109: 2074.5 | BQ109: 265.7 | BR109: 39.46 | BS109: 122.5 | BT109: 2.31
A110: 1968M08 | B110: 1.32 | C110: 1.32 | D110: 1.32 | E110: … | F110: … | G110: … | H110: 0.16 | I110: 0.45 | J110: … | K110: … | L110: 0.65 | M110: 0.87 | N110: 0.75 | O110: 0.75 | P110: 0.68 | Q110: 0.73 | R110: 0.84 | S110: 385.5 | T110: … | U110: … | V110: 266.68 | W110: 150.23 | X110: … | Y110: 105.82 | Z110: 157 | AA110: 96 | AB110: … | AC110: … | AD110: 24.87 | AE110: 44.88 | AF110: 46.9 | AG110: 177.69 | AH110: … | AI110: … | AJ110: … | AK110: … | AL110: 63.93 | AM110: … | AN110: 0.14 | AO110: 0.16 | AP110: 1.1 | AQ110: 0.39 | AR110: … | AS110: 2.58 | AT110: 0.11 | AU110: 0.15 | AV110: 0.03 | AW110: 1180.58 | AX110: … | AY110: 38.89 | AZ110: … | BA110: 165.91 | BB110: … | BC110: 0.68 | BD110: … | BE110: 0.4 | BF110: 11.5 | BG110: 60.5 | BH110: 36 | BI110: 35.5 | BJ110: 24 | BK110: 562.18 | BL110: 8.77 | BM110: 1056.45 | BN110: 250.2 | BO110: 3062.2 | BP110: 2074.5 | BQ110: 269 | BR110: 39.19 | BS110: 122.5 | BT110: 2.19
A111: 1968M09 | B111: 1.32 | C111: 1.32 | D111: 1.32 | E111: … | F111: … | G111: … | H111: 0.16 | I111: 0.45 | J111: … | K111: … | L111: 0.77 | M111: 0.85 | N111: 0.75 | O111: 0.75 | P111: 0.68 | Q111: 0.73 | R111: 0.84 | S111: 375.6 | T111: … | U111: … | V111: 272.82 | W111: 141.73 | X111: … | Y111: 105.35 | Z111: 161 | AA111: 99 | AB111: … | AC111: … | AD111: 24.7 | AE111: 44.09 | AF111: 47.3 | AG111: 175.8 | AH111: … | AI111: … | AJ111: … | AK111: … | AL111: 63.57 | AM111: … | AN111: 0.16 | AO111: 0.16 | AP111: 1.16 | AQ111: 0.39 | AR111: … | AS111: 2.58 | AT111: 0.11 | AU111: 0.15 | AV111: 0.03 | AW111: 1228.75 | AX111: … | AY111: 38.89 | AZ111: … | BA111: 165.91 | BB111: … | BC111: 0.66 | BD111: … | BE111: 0.39 | BF111: 11.5 | BG111: 60.5 | BH111: 36 | BI111: 35.5 | BJ111: 24 | BK111: 562.18 | BL111: 8.77 | BM111: 1110.03 | BN111: 251.5 | BO111: 3071 | BP111: 2074.5 | BQ111: 263 | BR111: 40.18 | BS111: 122.5 | BT111: 2.21
A112: 1968M10 | B112: 1.32 | C112: 1.32 | D112: 1.32 | E112: … | F112: … | G112: … | H112: 0.16 | I112: 0.45 | J112: … | K112: … | L112: 0.83 | M112: 0.85 | N112: 0.74 | O112: 0.75 | P112: 0.68 | Q112: 0.73 | R112: 0.84 | S112: 373.7 | T112: … | U112: … | V112: 269.75 | W112: 141.73 | X112: … | Y112: 104.17 | Z112: 166 | AA112: 98 | AB112: … | AC112: … | AD112: 24.89 | AE112: 44.88 | AF112: 48.8 | AG112: 163.72 | AH112: … | AI112: … | AJ112: … | AK112: … | AL112: 63.57 | AM112: … | AN112: 0.15 | AO112: 0.16 | AP112: 1.17 | AQ112: 0.39 | AR112: … | AS112: 2.58 | AT112: 0.11 | AU112: 0.16 | AV112: 0.04 | AW112: 1183.73 | AX112: … | AY112: 38.89 | AZ112: … | BA112: 165.91 | BB112: … | BC112: 0.66 | BD112: … | BE112: 0.41 | BF112: 11.5 | BG112: 60.5 | BH112: 36 | BI112: 35.5 | BJ112: 24 | BK112: 562.18 | BL112: 8.77 | BM112: 1079.82 | BN112: 247.8 | BO112: 3110.7 | BP112: 2074.5 | BQ112: 262.1 | BR112: 39.21 | BS112: 122.5 | BT112: 1.97
A113: 1968M11 | B113: 1.32 | C113: 1.32 | D113: 1.32 | E113: … | F113: … | G113: … | H113: 0.16 | I113: 0.45 | J113: … | K113: … | L113: 0.97 | M113: 0.85 | N113: 0.72 | O113: 0.75 | P113: 0.68 | Q113: 0.73 | R113: 0.84 | S113: 376 | T113: … | U113: … | V113: 284.63 | W113: 143.14 | X113: … | Y113: 108.89 | Z113: 173 | AA113: 97 | AB113: … | AC113: … | AD113: 25.67 | AE113: 49.21 | AF113: 52 | AG113: 157.14 | AH113: … | AI113: … | AJ113: … | AK113: … | AL113: 63.2 | AM113: … | AN113: 0.14 | AO113: 0.16 | AP113: 1.1 | AQ113: 0.39 | AR113: … | AS113: 2.58 | AT113: 0.11 | AU113: 0.15 | AV113: 0.05 | AW113: 1167.22 | AX113: … | AY113: 38.89 | AZ113: … | BA113: 165.91 | BB113: … | BC113: 0.63 | BD113: … | BE113: 0.42 | BF113: 11.5 | BG113: 60.5 | BH113: 36 | BI113: 35.5 | BJ113: 24 | BK113: 562.18 | BL113: 8.77 | BM113: 1099.88 | BN113: 248.5 | BO113: 3320.2 | BP113: 2074.5 | BQ113: 264.1 | BR113: 39.78 | BS113: 122.5 | BT113: 2.02
A114: 1968M12 | B114: 1.32 | C114: 1.32 | D114: 1.32 | E114: … | F114: … | G114: … | H114: 0.16 | I114: 0.45 | J114: … | K114: … | L114: 1.02 | M114: 0.83 | N114: 0.71 | O114: 0.75 | P114: 0.68 | Q114: 0.73 | R114: 0.84 | S114: 386.9 | T114: … | U114: … | V114: 320.06 | W114: 152.83 | X114: … | Y114: 111.02 | Z114: 181 | AA114: 94 | AB114: … | AC114: … | AD114: 25.57 | AE114: 48.42 | AF114: 53.9 | AG114: 159.89 | AH114: … | AI114: … | AJ114: … | AK114: … | AL114: 63.2 | AM114: … | AN114: 0.13 | AO114: 0.18 | AP114: 1.09 | AQ114: 0.39 | AR114: … | AS114: 2.58 | AT114: 0.11 | AU114: 0.15 | AV114: 0.06 | AW114: 1165.63 | AX114: … | AY114: 38.89 | AZ114: … | BA114: 165.91 | BB114: … | BC114: 0.62 | BD114: … | BE114: 0.42 | BF114: 11.5 | BG114: 60.5 | BH114: 36 | BI114: 35.5 | BJ114: 24 | BK114: 562.18 | BL114: 8.77 | BM114: 1184.98 | BN114: 250.2 | BO114: 3258.4 | BP114: 2074.5 | BQ114: 269 | BR114: 41.08 | BS114: 122.5 | BT114: 1.96
A115: 1969M01 | B115: 1.27 | C115: 1.27 | D115: 1.27 | E115: … | F115: … | G115: … | H115: 0.17 | I115: 0.45 | J115: … | K115: … | L115: 0.94 | M115: 0.83 | N115: 0.71 | O115: 0.73 | P115: 0.6 | Q115: 0.86 | R115: 0.72 | S115: 398.7 | T115: … | U115: … | V115: 319.59 | W115: 158.26 | X115: … | Y115: 111.49 | Z115: 181 | AA115: 95 | AB115: … | AC115: … | AD115: 25.96 | AE115: 50.39 | AF115: 53.2 | AG115: 162.35 | AH115: … | AI115: … | AJ115: … | AK115: … | AL115: 63.2 | AM115: … | AN115: 0.14 | AO115: 0.15 | AP115: 1.09 | AQ115: 0.39 | AR115: … | AS115: 2.87 | AT115: 0.11 | AU115: 0.16 | AV115: 0.06 | AW115: 1135.81 | AX115: … | AY115: 38.89 | AZ115: … | BA115: 165.91 | BB115: … | BC115: 0.63 | BD115: … | BE115: 0.43 | BF115: 11.25 | BG115: 58 | BH115: 38.5 | BI115: 26.6 | BJ115: 22 | BK115: 573.2 | BL115: 9.84 | BM115: 1255.53 | BN115: 254.2 | BO115: 3227.6 | BP115: 2363.4 | BQ115: 269.4 | BR115: 42.3 | BS115: 122.5 | BT115: 1.98
A116: 1969M02 | B116: 1.27 | C116: 1.27 | D116: 1.27 | E116: … | F116: … | G116: … | H116: 0.17 | I116: 0.45 | J116: … | K116: … | L116: 0.91 | M116: 0.84 | N116: 0.71 | O116: 0.73 | P116: 0.6 | Q116: 0.86 | R116: 0.72 | S116: 396.4 | T116: … | U116: … | V116: 346.05 | W116: 158.26 | X116: … | Y116: 109.36 | Z116: 185 | AA116: 95 | AB116: … | AC116: … | AD116: 25.94 | AE116: 50.39 | AF116: 54.1 | AG116: 160.48 | AH116: … | AI116: … | AJ116: … | AK116: … | AL116: 62.83 | AM116: … | AN116: 0.14 | AO116: 0.15 | AP116: 1.09 | AQ116: 0.39 | AR116: … | AS116: 2.87 | AT116: 0.11 | AU116: 0.16 | AV116: 0.07 | AW116: 1097.91 | AX116: … | AY116: 38.89 | AZ116: … | BA116: 165.91 | BB116: … | BC116: 0.63 | BD116: … | BE116: 0.47 | BF116: 11.25 | BG116: 58 | BH116: 38.5 | BI116: 26.6 | BJ116: 22 | BK116: 584.22 | BL116: 9.84 | BM116: 1285.29 | BN116: 258.4 | BO116: 3245.2 | BP116: 2363.4 | BQ116: 267.4 | BR116: 42.6 | BS116: 122.5 | BT116: 1.84
A117: 1969M03 | B117: 1.27 | C117: 1.27 | D117: 1.27 | E117: … | F117: … | G117: … | H117: 0.17 | I117: 0.45 | J117: … | K117: … | L117: 0.9 | M117: 0.83 | N117: 0.69 | O117: 0.73 | P117: 0.6 | Q117: 0.86 | R117: 0.72 | S117: 388.1 | T117: … | U117: … | V117: 347.82 | W117: 179.52 | X117: … | Y117: 110.55 | Z117: 178 | AA117: 94 | AB117: … | AC117: … | AD117: 25.84 | AE117: 50.39 | AF117: 53.1 | AG117: 166.96 | AH117: … | AI117: … | AJ117: … | AK117: … | AL117: 62.1 | AM117: … | AN117: 0.15 | AO117: 0.17 | AP117: 1.13 | AQ117: 0.4 | AR117: … | AS117: 2.87 | AT117: 0.11 | AU117: 0.16 | AV117: 0.08 | AW117: 1098.65 | AX117: … | AY117: 38.89 | AZ117: … | BA117: 165.91 | BB117: … | BC117: 0.63 | BD117: … | BE117: 0.51 | BF117: 11.25 | BG117: 58 | BH117: 38.5 | BI117: 26.6 | BJ117: 22 | BK117: 584.22 | BL117: 9.84 | BM117: 1278.46 | BN117: 261.2 | BO117: 3243 | BP117: 2363.4 | BQ117: 271.6 | BR117: 43.16 | BS117: 122.5 | BT117: 1.83
A118: 1969M04 | B118: 1.27 | C118: 1.27 | D118: 1.27 | E118: … | F118: … | G118: … | H118: 0.17 | I118: 0.45 | J118: … | K118: … | L118: 0.88 | M118: 0.81 | N118: 0.66 | O118: 0.73 | P118: 0.6 | Q118: 0.86 | R118: 0.72 | S118: 376.3 | T118: … | U118: … | V118: 340.14 | W118: 170.07 | X118: … | Y118: 110.07 | Z118: 167 | AA118: 95 | AB118: … | AC118: … | AD118: 26.09 | AE118: 51.57 | AF118: 51.9 | AG118: 165.2 | AH118: … | AI118: … | AJ118: … | AK118: … | AL118: 62.1 | AM118: … | AN118: 0.15 | AO118: 0.18 | AP118: 1.16 | AQ118: 0.4 | AR118: … | AS118: 2.87 | AT118: 0.11 | AU118: 0.16 | AV118: 0.08 | AW118: 1110.75 | AX118: … | AY118: 38.89 | AZ118: … | BA118: 165.91 | BB118: … | BC118: 0.63 | BD118: … | BE118: 0.52 | BF118: 11.25 | BG118: 58 | BH118: 38.5 | BI118: 26.6 | BJ118: 22 | BK118: 584.22 | BL118: 9.84 | BM118: 1388.03 | BN118: 268.3 | BO118: 3304.7 | BP118: 2363.4 | BQ118: 272.7 | BR118: 43.31 | BS118: 122.5 | BT118: 1.78
A119: 1969M05 | B119: 1.27 | C119: 1.27 | D119: 1.27 | E119: … | F119: … | G119: … | H119: 0.17 | I119: 0.45 | J119: … | K119: … | L119: 0.81 | M119: 0.81 | N119: 0.65 | O119: 0.73 | P119: 0.6 | Q119: 0.86 | R119: 0.72 | S119: 353.1 | T119: … | U119: … | V119: 345.17 | W119: 166.29 | X119: … | Y119: 112.44 | Z119: 170 | AA119: 96 | AB119: … | AC119: … | AD119: 26.61 | AE119: 54.33 | AF119: 49.9 | AG119: 171.09 | AH119: … | AI119: … | AJ119: … | AK119: … | AL119: 62.1 | AM119: … | AN119: 0.17 | AO119: 0.18 | AP119: 1.24 | AQ119: 0.4 | AR119: … | AS119: 2.87 | AT119: 0.11 | AU119: 0.16 | AV119: 0.08 | AW119: 1114.63 | AX119: … | AY119: 38.89 | AZ119: … | BA119: 165.91 | BB119: … | BC119: 0.63 | BD119: … | BE119: 0.5 | BF119: 11.25 | BG119: 58 | BH119: 38.5 | BI119: 26.6 | BJ119: 22 | BK119: 584.22 | BL119: 9.84 | BM119: 1392.44 | BN119: 278.2 | BO119: 3355.4 | BP119: 2363.4 | BQ119: 278.9 | BR119: 43.46 | BS119: 122.5 | BT119: 1.76
A120: 1969M06 | B120: 1.27 | C120: 1.27 | D120: 1.27 | E120: … | F120: … | G120: … | H120: 0.17 | I120: 0.45 | J120: … | K120: … | L120: 0.89 | M120: 0.8 | N120: 0.68 | O120: 0.73 | P120: 0.6 | Q120: 0.86 | R120: 0.72 | S120: 339 | T120: … | U120: … | V120: 315.1 | W120: 165.35 | X120: … | Y120: 109.6 | Z120: 173 | AA120: 99 | AB120: … | AC120: … | AD120: 26.58 | AE120: 54.33 | AF120: 49 | AG120: 178.75 | AH120: … | AI120: … | AJ120: … | AK120: … | AL120: 61.73 | AM120: … | AN120: 0.16 | AO120: 0.18 | AP120: 1.31 | AQ120: 0.4 | AR120: … | AS120: 2.87 | AT120: 0.11 | AU120: 0.16 | AV120: 0.08 | AW120: 1125.81 | AX120: … | AY120: 38.89 | AZ120: … | BA120: 165.91 | BB120: … | BC120: 0.62 | BD120: … | BE120: 0.51 | BF120: 11.25 | BG120: 58 | BH120: 38.5 | BI120: 26.6 | BJ120: 22 | BK120: 584.22 | BL120: 9.84 | BM120: 1483.04 | BN120: 285.5 | BO120: 3379.7 | BP120: 2363.4 | BQ120: 281.3 | BR120: 41.44 | BS120: 122.5 | BT120: 1.65
A121: 1969M07 | B121: 1.27 | C121: 1.27 | D121: 1.27 | E121: … | F121: … | G121: … | H121: 0.17 | I121: 0.45 | J121: … | K121: … | L121: 0.93 | M121: 0.78 | N121: 0.69 | O121: 0.73 | P121: 0.6 | Q121: 0.86 | R121: 0.72 | S121: 326.9 | T121: … | U121: … | V121: 323.37 | W121: 161.8 | X121: … | Y121: 101.57 | Z121: 180 | AA121: 95 | AB121: … | AC121: … | AD121: 26.27 | AE121: 53.93 | AF121: 51.5 | AG121: 180.51 | AH121: … | AI121: … | AJ121: … | AK121: … | AL121: 60.26 | AM121: … | AN121: 0.15 | AO121: 0.18 | AP121: 1.3 | AQ121: 0.4 | AR121: … | AS121: 2.87 | AT121: 0.11 | AU121: 0.15 | AV121: 0.08 | AW121: 1149.61 | AX121: … | AY121: 38.89 | AZ121: … | BA121: 165.91 | BB121: … | BC121: 0.61 | BD121: … | BE121: 0.54 | BF121: 11.25 | BG121: 58 | BH121: 40 | BI121: 26.6 | BJ121: 22 | BK121: 584.22 | BL121: 9.84 | BM121: 1453.95 | BN121: 311.1 | BO121: 3439.2 | BP121: 2363.4 | BQ121: 283.7 | BR121: 41.76 | BS121: 122.5 | BT121: 1.62
A122: 1969M08 | B122: 1.27 | C122: 1.27 | D122: 1.27 | E122: … | F122: … | G122: … | H122: 0.17 | I122: 0.45 | J122: … | K122: … | L122: 0.91 | M122: 0.81 | N122: 0.72 | O122: 0.73 | P122: 0.6 | Q122: 0.86 | R122: 0.72 | S122: 330.7 | T122: … | U122: … | V122: 309.91 | W122: 171.49 | X122: … | Y122: 99.21 | Z122: 181 | AA122: 96 | AB122: … | AC122: … | AD122: 25.42 | AE122: 53.54 | AF122: 54.2 | AG122: 171.58 | AH122: … | AI122: … | AJ122: … | AK122: … | AL122: 56.22 | AM122: … | AN122: 0.17 | AO122: 0.18 | AP122: 1.37 | AQ122: 0.4 | AR122: … | AS122: 2.87 | AT122: 0.11 | AU122: 0.16 | AV122: 0.07 | AW122: 1121.04 | AX122: … | AY122: 38.89 | AZ122: … | BA122: 165.91 | BB122: … | BC122: 0.6 | BD122: … | BE122: 0.58 | BF122: 11.25 | BG122: 58 | BH122: 40 | BI122: 26.6 | BJ122: 22 | BK122: 584.22 | BL122: 9.84 | BM122: 1606.73 | BN122: 315.9 | BO122: 3470.1 | BP122: 2363.4 | BQ122: 293.9 | BR122: 41.09 | BS122: 122.5 | BT122: 1.65
A123: 1969M09 | B123: 1.27 | C123: 1.27 | D123: 1.27 | E123: … | F123: … | G123: … | H123: 0.17 | I123: 0.45 | J123: … | K123: … | L123: 0.9 | M123: 0.9 | N123: 0.76 | O123: 0.73 | P123: 0.6 | Q123: 0.86 | R123: 0.72 | S123: 332.6 | T123: … | U123: … | V123: 318.88 | W123: 180.94 | X123: … | Y123: 100.86 | Z123: 200 | AA123: 92 | AB123: … | AC123: … | AD123: 24.54 | AE123: 51.18 | AF123: 56.8 | AG123: 167.55 | AH123: … | AI123: … | AJ123: … | AK123: … | AL123: 53.65 | AM123: … | AN123: 0.18 | AO123: 0.18 | AP123: 1.32 | AQ123: 0.4 | AR123: … | AS123: 2.87 | AT123: 0.11 | AU123: 0.16 | AV123: 0.06 | AW123: 1096.94 | AX123: … | AY123: 38.89 | AZ123: … | BA123: 165.91 | BB123: … | BC123: 0.61 | BD123: … | BE123: 0.54 | BF123: 11.25 | BG123: 58 | BH123: 40 | BI123: 26.6 | BJ123: 22 | BK123: 584.22 | BL123: 9.84 | BM123: 1578.95 | BN123: 302.5 | BO123: 3470.1 | BP123: 2363.4 | BQ123: 299.4 | BR123: 40.87 | BS123: 122.5 | BT123: 1.79
A124: 1969M10 | B124: 1.27 | C124: 1.27 | D124: 1.27 | E124: … | F124: … | G124: … | H124: 0.17 | I124: 0.45 | J124: … | K124: … | L124: 0.92 | M124: 1.04 | N124: 0.85 | O124: 0.73 | P124: 0.6 | Q124: 0.86 | R124: 0.72 | S124: 336.6 | T124: … | U124: … | V124: 331.09 | W124: 203.14 | X124: … | Y124: 102.99 | Z124: 240 | AA124: 92 | AB124: … | AC124: … | AD124: 24.38 | AE124: 51.87 | AF124: 57.4 | AG124: 167.36 | AH124: … | AI124: … | AJ124: … | AK124: … | AL124: 52.18 | AM124: … | AN124: 0.17 | AO124: 0.18 | AP124: 1.23 | AQ124: 0.41 | AR124: … | AS124: 2.87 | AT124: 0.11 | AU124: 0.16 | AV124: 0.07 | AW124: 1139.14 | AX124: … | AY124: 38.89 | AZ124: … | BA124: 165.91 | BB124: … | BC124: 0.63 | BD124: … | BE124: 0.5 | BF124: 11.25 | BG124: 58 | BH124: 40 | BI124: 26.6 | BJ124: 22 | BK124: 601.86 | BL124: 9.84 | BM124: 1554.48 | BN124: 293.7 | BO124: 3534 | BP124: 2363.4 | BQ124: 298.9 | BR124: 40.44 | BS124: 122.75 | BT124: 1.87
A125: 1969M11 | B125: 1.27 | C125: 1.27 | D125: 1.27 | E125: … | F125: … | G125: … | H125: 0.17 | I125: 0.45 | J125: … | K125: … | L125: 0.93 | M125: 1.02 | N125: 0.82 | O125: 0.73 | P125: 0.6 | Q125: 0.86 | R125: 0.72 | S125: 357.4 | T125: … | U125: … | V125: 346.64 | W125: 203.14 | X125: … | Y125: 106.53 | Z125: 260 | AA125: 91 | AB125: … | AC125: … | AD125: 24.63 | AE125: 53.16 | AF125: 57.5 | AG125: 167.55 | AH125: … | AI125: … | AJ125: … | AK125: … | AL125: 52.18 | AM125: … | AN125: 0.16 | AO125: 0.18 | AP125: 1.21 | AQ125: 0.41 | AR125: … | AS125: 2.87 | AT125: 0.11 | AU125: 0.16 | AV125: 0.07 | AW125: 1096.38 | AX125: … | AY125: 38.89 | AZ125: … | BA125: 165.91 | BB125: … | BC125: 0.65 | BD125: … | BE125: 0.45 | BF125: 11.25 | BG125: 58 | BH125: 40 | BI125: 26.6 | BJ125: 22 | BK125: 606.27 | BL125: 9.84 | BM125: 1631.42 | BN125: 315.7 | BO125: 3642 | BP125: 2363.4 | BQ125: 309.5 | BR125: 37.4 | BS125: 132.5 | BT125: 1.92
A126: 1969M12 | B126: 1.27 | C126: 1.27 | D126: 1.27 | E126: … | F126: … | G126: … | H126: 0.17 | I126: 0.45 | J126: … | K126: … | L126: 0.85 | M126: 1.05 | N126: 0.83 | O126: 0.73 | P126: 0.6 | Q126: 0.86 | R126: 0.72 | S126: 399.4 | T126: … | U126: … | V126: 334.54 | W126: 255.11 | X126: … | Y126: 106.29 | Z126: 251 | AA126: 96 | AB126: … | AC126: … | AD126: 24.54 | AE126: 52.36 | AF126: 56.5 | AG126: 161.07 | AH126: … | AI126: … | AJ126: … | AK126: … | AL126: 52.18 | AM126: … | AN126: 0.16 | AO126: 0.16 | AP126: 1.21 | AQ126: 0.41 | AR126: … | AS126: 2.87 | AT126: 0.11 | AU126: 0.15 | AV126: 0.06 | AW126: 1061.92 | AX126: … | AY126: 38.89 | AZ126: … | BA126: 165.91 | BB126: … | BC126: 0.66 | BD126: … | BE126: 0.47 | BF126: 11.25 | BG126: 58 | BH126: 40 | BI126: 26.6 | BJ126: 22 | BK126: 606.27 | BL126: 9.84 | BM126: 1699.76 | BN126: 334 | BO126: 3818.4 | BP126: 2363.4 | BQ126: 310.2 | BR126: 35.17 | BS126: 132.5 | BT126: 1.81
A127: 1970M01 | B127: 1.21 | C127: 1.21 | D127: 1.21 | E127: … | F127: 7.8 | G127: … | H127: 0.17 | I127: 0.45 | J127: … | K127: … | L127: 0.68 | M127: 1.14 | N127: 0.86 | O127: 0.84 | P127: 0.63 | Q127: 0.99 | R127: 0.89 | S127: 405.8 | T127: … | U127: … | V127: 349.83 | W127: 255.34 | X127: … | Y127: 107 | Z127: 252 | AA127: 101 | AB127: … | AC127: … | AD127: 25.53 | AE127: 58.4 | AF127: 51.8 | AG127: 140.45 | AH127: … | AI127: … | AJ127: … | AK127: … | AL127: 52.18 | AM127: … | AN127: 0.17 | AO127: 0.17 | AP127: 1.3 | AQ127: 0.41 | AR127: … | AS127: 2.73 | AT127: 0.11 | AU127: 0.17 | AV127: 0.08 | AW127: 1078.11 | AX127: 42.99 | AY127: 38.89 | AZ127: 175 | BA127: 165.91 | BB127: … | BC127: 0.64 | BD127: … | BE127: 0.5 | BF127: 11 | BG127: 54 | BH127: 44 | BI127: 18.25 | BJ127: 31.5 | BK127: 606.27 | BL127: 9.84 | BM127: 1626.3 | BN127: 324.7 | BO127: 3842.7 | BP127: 2846.2 | BQ127: 302.4 | BR127: 34.94 | BS127: 132.5 | BT127: 1.88
A128: 1970M02 | B128: 1.21 | C128: 1.21 | D128: 1.21 | E128: … | F128: 7.8 | G128: … | H128: 0.17 | I128: 0.45 | J128: … | K128: … | L128: 0.68 | M128: 1.15 | N128: 0.85 | O128: 0.84 | P128: 0.63 | Q128: 0.99 | R128: 0.89 | S128: 406.28 | T128: … | U128: … | V128: 346.99 | W128: 256.29 | X128: … | Y128: 110 | Z128: 257 | AA128: 102 | AB128: … | AC128: … | AD128: 25.57 | AE128: 58.4 | AF128: 51.8 | AG128: 133.38 | AH128: … | AI128: … | AJ128: … | AK128: … | AL128: 52.18 | AM128: … | AN128: 0.17 | AO128: 0.17 | AP128: 1.33 | AQ128: 0.41 | AR128: … | AS128: 2.73 | AT128: 0.11 | AU128: 0.16 | AV128: 0.07 | AW128: 1114.27 | AX128: 42.99 | AY128: 40.63 | AZ128: 175 | BA128: 169.88 | BB128: … | BC128: 0.65 | BD128: … | BE128: 0.48 | BF128: 11 | BG128: 54 | BH128: 44 | BI128: 18.25 | BJ128: 31.5 | BK128: 606.27 | BL128: 9.84 | BM128: 1657.2 | BN128: 341 | BO128: 3767.7 | BP128: 2846.2 | BQ128: 298 | BR128: 34.99 | BS128: 132.5 | BT128: 1.9
A129: 1970M03 | B129: 1.21 | C129: 1.21 | D129: 1.21 | E129: … | F129: 7.8 | G129: … | H129: 0.17 | I129: 0.45 | J129: … | K129: … | L129: 0.68 | M129: 1.17 | N129: 0.87 | O129: 0.84 | P129: 0.63 | Q129: 0.99 | R129: 0.89 | S129: 406.28 | T129: … | U129: … | V129: 343.45 | W129: 258.88 | X129: … | Y129: 111 | Z129: 268 | AA129: 97 | AB129: … | AC129: … | AD129: 25.61 | AE129: 58.4 | AF129: 51.8 | AG129: 126.31 | AH129: … | AI129: … | AJ129: … | AK129: … | AL129: 52.18 | AM129: … | AN129: 0.19 | AO129: 0.16 | AP129: 1.35 | AQ129: 0.41 | AR129: … | AS129: 2.73 | AT129: 0.11 | AU129: 0.16 | AV129: 0.07 | AW129: 1111.53 | AX129: 42.99 | AY129: 41.67 | AZ129: 175 | BA129: 172.21 | BB129: … | BC129: 0.66 | BD129: … | BE129: 0.44 | BF129: 11 | BG129: 54 | BH129: 44 | BI129: 18.25 | BJ129: 31.5 | BK129: 606.27 | BL129: 9.84 | BM129: 1754 | BN129: 335.5 | BO129: 3796.4 | BP129: 2846.2 | BQ129: 296 | BR129: 35.09 | BS129: 132.5 | BT129: 1.89
A130: 1970M04 | B130: 1.21 | C130: 1.21 | D130: 1.21 | E130: … | F130: 7.8 | G130: … | H130: 0.17 | I130: 0.45 | J130: … | K130: … | L130: 0.68 | M130: 1.2 | N130: 0.91 | O130: 0.84 | P130: 0.63 | Q130: 0.99 | R130: 0.89 | S130: 406.28 | T130: … | U130: … | V130: 358.57 | W130: 267.62 | X130: … | Y130: 112 | Z130: 298 | AA130: 97 | AB130: … | AC130: … | AD130: 25.65 | AE130: 58.4 | AF130: 51.8 | AG130: 121.59 | AH130: … | AI130: … | AJ130: … | AK130: … | AL130: 52.18 | AM130: … | AN130: 0.17 | AO130: 0.16 | AP130: 1.36 | AQ130: 0.42 | AR130: … | AS130: 2.73 | AT130: 0.11 | AU130: 0.16 | AV130: 0.08 | AW130: 1119.96 | AX130: 42.99 | AY130: 41.81 | AZ130: 175 | BA130: 172.52 | BB130: … | BC130: 0.66 | BD130: … | BE130: 0.42 | BF130: 11 | BG130: 54 | BH130: 44 | BI130: 18.25 | BJ130: 31.5 | BK130: 612.88 | BL130: 9.84 | BM130: 1741.6 | BN130: 321.2 | BO130: 3849.3 | BP130: 2846.2 | BQ130: 293.4 | BR130: 35.62 | BS130: 132.5 | BT130: 1.85
A131: 1970M05 | B131: 1.21 | C131: 1.21 | D131: 1.21 | E131: … | F131: 7.8 | G131: … | H131: 0.17 | I131: 0.45 | J131: … | K131: … | L131: 0.68 | M131: 1.22 | N131: 0.94 | O131: 0.84 | P131: 0.63 | Q131: 0.99 | R131: 0.89 | S131: 399.19 | T131: … | U131: … | V131: 383.84 | W131: 278.73 | X131: … | Y131: 115 | Z131: 292 | AA131: 98 | AB131: … | AC131: … | AD131: 25.7 | AE131: 58.4 | AF131: 51.8 | AG131: 121.59 | AH131: … | AI131: … | AJ131: … | AK131: … | AL131: 52.18 | AM131: … | AN131: 0.19 | AO131: 0.16 | AP131: 1.33 | AQ131: 0.42 | AR131: … | AS131: 2.73 | AT131: 0.11 | AU131: 0.17 | AV131: 0.08 | AW131: 1074.77 | AX131: 42.99 | AY131: 43.5 | AZ131: 175 | BA131: 176.25 | BB131: … | BC131: 0.66 | BD131: … | BE131: 0.41 | BF131: 11 | BG131: 54 | BH131: 44 | BI131: 18.25 | BJ131: 31.5 | BK131: 617.29 | BL131: 9.84 | BM131: 1597.9 | BN131: 291.6 | BO131: 3736.8 | BP131: 2846.2 | BQ131: 291.7 | BR131: 35.95 | BS131: 132.5 | BT131: 1.67
A132: 1970M06 | B132: 1.21 | C132: 1.21 | D132: 1.21 | E132: … | F132: 7.8 | G132: … | H132: 0.17 | I132: 0.45 | J132: … | K132: … | L132: 0.68 | M132: 1.21 | N132: 0.93 | O132: 0.84 | P132: 0.63 | Q132: 0.99 | R132: 0.89 | S132: 389.74 | T132: … | U132: … | V132: 383.37 | W132: 277.07 | X132: … | Y132: 118 | Z132: 288 | AA132: 102 | AB132: … | AC132: … | AD132: 25.74 | AE132: 58.4 | AF132: 51.8 | AG132: 123.95 | AH132: … | AI132: … | AJ132: … | AK132: … | AL132: 52.18 | AM132: … | AN132: 0.18 | AO132: 0.16 | AP132: 1.3 | AQ132: 0.42 | AR132: … | AS132: 2.73 | AT132: 0.11 | AU132: 0.17 | AV132: 0.08 | AW132: 1047.34 | AX132: 42.99 | AY132: 44.44 | AZ132: 175 | BA132: 178.3 | BB132: … | BC132: 0.67 | BD132: … | BE132: 0.41 | BF132: 11 | BG132: 54 | BH132: 44 | BI132: 18.25 | BJ132: 31.5 | BK132: 617.29 | BL132: 9.84 | BM132: 1458 | BN132: 308.2 | BO132: 3542.8 | BP132: 2846.2 | BQ132: 293.2 | BR132: 35.42 | BS132: 132.5 | BT132: 1.64
A133: 1970M07 | B133: 1.21 | C133: 1.21 | D133: 1.21 | E133: … | F133: 7.8 | G133: … | H133: 0.17 | I133: 0.45 | J133: … | K133: … | L133: 0.68 | M133: 1.21 | N133: 0.94 | O133: 0.84 | P133: 0.63 | Q133: 0.99 | R133: 0.89 | S133: 389.74 | T133: … | U133: … | V133: 385.73 | W133: 261.01 | X133: … | Y133: 122 | Z133: 290 | AA133: 106 | AB133: … | AC133: … | AD133: 25.86 | AE133: 58.4 | AF133: 51.8 | AG133: 124.93 | AH133: … | AI133: … | AJ133: … | AK133: … | AL133: 52.54 | AM133: … | AN133: 0.15 | AO133: 0.17 | AP133: 1.29 | AQ133: 0.42 | AR133: … | AS133: 2.73 | AT133: 0.11 | AU133: 0.17 | AV133: 0.08 | AW133: 1065.43 | AX133: 42.99 | AY133: 44.44 | AZ133: 175 | BA133: 178.3 | BB133: … | BC133: 0.67 | BD133: … | BE133: 0.38 | BF133: 11 | BG133: 54 | BH133: 41 | BI133: 18.25 | BJ133: 31.5 | BK133: 617.29 | BL133: 9.84 | BM133: 1366.6 | BN133: 300.7 | BO133: 3498.7 | BP133: 2846.2 | BQ133: 298.1 | BR133: 35.32 | BS133: 132.5 | BT133: 1.69
A134: 1970M08 | B134: 1.21 | C134: 1.21 | D134: 1.21 | E134: … | F134: 7.8 | G134: … | H134: 0.17 | I134: 0.45 | J134: … | K134: … | L134: 0.68 | M134: 1.18 | N134: 0.94 | O134: 0.84 | P134: 0.63 | Q134: 0.99 | R134: 0.89 | S134: 377.93 | T134: … | U134: … | V134: 392.11 | W134: 240.22 | X134: … | Y134: 120 | Z134: 270 | AA134: 107 | AB134: … | AC134: … | AD134: 26.24 | AE134: 58.4 | AF134: 51.8 | AG134: 128.08 | AH134: … | AI134: … | AJ134: … | AK134: … | AL134: 54.01 | AM134: … | AN134: 0.16 | AO134: 0.17 | AP134: 1.25 | AQ134: 0.42 | AR134: … | AS134: 2.73 | AT134: 0.11 | AU134: 0.17 | AV134: 0.08 | AW134: 1082.6 | AX134: 42.99 | AY134: 44.44 | AZ134: 175 | BA134: 178.3 | BB134: … | BC134: 0.68 | BD134: … | BE134: 0.37 | BF134: 11 | BG134: 54 | BH134: 41 | BI134: 18.25 | BJ134: 31.5 | BK134: 617.29 | BL134: 9.84 | BM134: 1266.5 | BN134: 285.4 | BO134: 3620 | BP134: 2846.2 | BQ134: 298.1 | BR134: 35.38 | BS134: 132.5 | BT134: 1.8
A135: 1970M09 | B135: 1.21 | C135: 1.21 | D135: 1.21 | E135: … | F135: 7.8 | G135: … | H135: 0.17 | I135: 0.45 | J135: … | K135: … | L135: 0.68 | M135: 1.16 | N135: 0.94 | O135: 0.84 | P135: 0.63 | Q135: 0.99 | R135: 0.89 | S135: 381 | T135: … | U135: … | V135: 364.47 | W135: 226.29 | X135: … | Y135: 119 | Z135: 276 | AA135: 106 | AB135: … | AC135: … | AD135: 26.77 | AE135: 58.4 | AF135: 51.8 | AG135: 125.72 | AH135: … | AI135: … | AJ135: … | AK135: … | AL135: 56.22 | AM135: … | AN135: 0.16 | AO135: 0.17 | AP135: 1.28 | AQ135: 0.42 | AR135: … | AS135: 2.73 | AT135: 0.11 | AU135: 0.17 | AV135: 0.09 | AW135: 1071.75 | AX135: 42.99 | AY135: 44.44 | AZ135: 175 | BA135: 178.3 | BB135: … | BC135: 0.69 | BD135: … | BE135: 0.36 | BF135: 11 | BG135: 54 | BH135: 41 | BI135: 18.25 | BJ135: 31.5 | BK135: 617.29 | BL135: 9.84 | BM135: 1246.9 | BN135: 284.8 | BO135: 3646.4 | BP135: 2846.2 | BQ135: 300 | BR135: 36.19 | BS135: 132.5 | BT135: 1.8
A136: 1970M10 | B136: 1.21 | C136: 1.21 | D136: 1.21 | E136: … | F136: 7.8 | G136: … | H136: 0.17 | I136: 0.45 | J136: … | K136: … | L136: 0.68 | M136: 1.12 | N136: 0.94 | O136: 0.84 | P136: 0.63 | Q136: 0.99 | R136: 0.89 | S136: 398.48 | T136: … | U136: … | V136: 390.22 | W136: 257.47 | X136: … | Y136: 123 | Z136: 304 | AA136: 104 | AB136: … | AC136: … | AD136: 27.37 | AE136: 58.4 | AF136: 51.8 | AG136: 124.44 | AH136: … | AI136: … | AJ136: … | AK136: … | AL136: 58.79 | AM136: … | AN136: 0.17 | AO136: 0.17 | AP136: 1.28 | AQ136: 0.43 | AR136: … | AS136: 2.73 | AT136: 0.11 | AU136: 0.17 | AV136: 0.09 | AW136: 1025.76 | AX136: 42.99 | AY136: 44.44 | AZ136: 175 | BA136: 178.3 | BB136: … | BC136: 0.7 | BD136: … | BE136: 0.35 | BF136: 11 | BG136: 54 | BH136: 41 | BI136: 18.25 | BJ136: 31.5 | BK136: 617.29 | BL136: 9.84 | BM136: 1142.4 | BN136: 285.2 | BO136: 3668.5 | BP136: 2846.2 | BQ136: 296.5 | BR136: 37.52 | BS136: 132.5 | BT136: 1.75
A137: 1970M11 | B137: 1.21 | C137: 1.21 | D137: 1.21 | E137: … | F137: 7.8 | G137: … | H137: 0.17 | I137: 0.45 | J137: … | K137: … | L137: 0.68 | M137: 1.03 | N137: 0.92 | O137: 0.84 | P137: 0.63 | Q137: 0.99 | R137: 0.89 | S137: 401.56 | T137: … | U137: … | V137: 406.28 | W137: 269.99 | X137: … | Y137: 125 | Z137: 330 | AA137: 105 | AB137: … | AC137: … | AD137: 27.88 | AE137: 58.4 | AF137: 51.8 | AG137: 124.84 | AH137: … | AI137: … | AJ137: … | AK137: … | AL137: 60.99 | AM137: … | AN137: 0.15 | AO137: 0.17 | AP137: 1.27 | AQ137: 0.43 | AR137: … | AS137: 2.73 | AT137: 0.11 | AU137: 0.16 | AV137: 0.09 | AW137: 1057.02 | AX137: 42.99 | AY137: 44.44 | AZ137: 175 | BA137: 178.3 | BB137: … | BC137: 0.71 | BD137: … | BE137: 0.37 | BF137: 11 | BG137: 54 | BH137: 41 | BI137: 18.25 | BJ137: 31.5 | BK137: 617.29 | BL137: 9.84 | BM137: 1085.3 | BN137: 279.9 | BO137: 3615.6 | BP137: 2846.2 | BQ137: 293.2 | BR137: 37.44 | BS137: 132.5 | BT137: 1.76
A138: 1970M12 | B138: 1.21 | C138: 1.21 | D138: 1.21 | E138: … | F138: 7.8 | G138: … | H138: 0.17 | I138: 0.45 | J138: … | K138: … | L138: 0.68 | M138: 0.98 | N138: 0.92 | O138: 0.84 | P138: 0.63 | Q138: 0.99 | R138: 0.89 | S138: 403.92 | T138: … | U138: … | V138: 437.69 | W138: 271.64 | X138: … | Y138: 121 | Z138: 311 | AA138: 106 | AB138: … | AC138: … | AD138: 28.39 | AE138: 58.4 | AF138: 51.8 | AG138: 120.42 | AH138: … | AI138: … | AJ138: … | AK138: … | AL138: 63.2 | AM138: … | AN138: 0.13 | AO138: 0.19 | AP138: 1.31 | AQ138: 0.43 | AR138: … | AS138: 2.73 | AT138: 0.11 | AU138: 0.17 | AV138: 0.09 | AW138: 1063.19 | AX138: 42.99 | AY138: 44.44 | AZ138: 175 | BA138: 178.3 | BB138: … | BC138: 0.72 | BD138: … | BE138: 0.37 | BF138: 11 | BG138: 54 | BH138: 41 | BI138: 18.25 | BJ138: 31.5 | BK138: 617.29 | BL138: 9.84 | BM138: 1045.7 | BN138: 276.7 | BO138: 3496.5 | BP138: 2846.2 | BQ138: 289.2 | BR138: 37.44 | BS138: 132.5 | BT138: 1.63
A139: 1971M01 | B139: 1.64 | C139: 1.64 | D139: 1.64 | E139: … | F139: 8.68 | G139: … | H139: 0.18 | I139: 0.5 | J139: … | K139: … | L139: 0.54 | M139: 1 | N139: 0.93 | O139: 0.78 | P139: 0.64 | Q139: 0.8 | R139: 0.9 | S139: 409.82 | T139: … | U139: … | V139: 448.32 | W139: 273.29 | X139: … | Y139: 125 | Z139: 309 | AA139: 105 | AB139: … | AC139: … | AD139: 28.51 | AE139: 58.4 | AF139: 55.77 | AG139: 121.4 | AH139: … | AI139: … | AJ139: … | AK139: … | AL139: 63.57 | AM139: … | AN139: 0.14 | AO139: 0.13 | AP139: 1.34 | AQ139: 0.43 | AR139: 0.8 | AS139: 3.31 | AT139: 0.11 | AU139: 0.17 | AV139: 0.1 | AW139: 1045.91 | AX139: 44.43 | AY139: 44.44 | AZ139: … | BA139: 178.3 | BB139: … | BC139: 0.73 | BD139: … | BE139: 0.35 | BF139: 11.25 | BG139: 57.5 | BH139: 40 | BI139: 16 | BJ139: 32.5 | BK139: 617.29 | BL139: 10.33 | BM139: 1010 | BN139: 262.5 | BO139: 3465.7 | BP139: 2932.1 | BQ139: 284.6 | BR139: 37.88 | BS139: 129 | BT139: 1.64
A140: 1971M02 | B140: 1.64 | C140: 1.64 | D140: 1.64 | E140: … | F140: 8.68 | G140: … | H140: 0.18 | I140: 0.5 | J140: … | K140: … | L140: 0.54 | M140: 0.98 | N140: 0.93 | O140: 0.78 | P140: 0.67 | Q140: 0.76 | R140: 0.9 | S140: 393.4 | T140: … | U140: … | V140: 479.5 | W140: 273.29 | X140: … | Y140: 125 | Z140: 297 | AA140: 101 | AB140: … | AC140: … | AD140: 28.56 | AE140: 58.4 | AF140: 55.77 | AG140: 105.1 | AH140: … | AI140: … | AJ140: … | AK140: … | AL140: 63.57 | AM140: … | AN140: 0.14 | AO140: 0.15 | AP140: 1.37 | AQ140: 0.43 | AR140: 0.79 | AS140: 3.31 | AT140: 0.11 | AU140: 0.17 | AV140: 0.11 | AW140: 1018.55 | AX140: 44.43 | AY140: 44.44 | AZ140: … | BA140: 178.3 | BB140: … | BC140: 0.74 | BD140: … | BE140: 0.33 | BF140: 11.25 | BG140: 57.5 | BH140: 40 | BI140: 16 | BJ140: 32.5 | BK140: 617.29 | BL140: 10.33 | BM140: 1020.2 | BN140: 266.1 | BO140: 3463.5 | BP140: 2932.1 | BQ140: 272.1 | BR140: 38.74 | BS140: 122.5 | BT140: 1.6
A141: 1971M03 | B141: 1.64 | C141: 1.64 | D141: 1.64 | E141: … | F141: 8.68 | G141: … | H141: 0.18 | I141: 0.5 | J141: … | K141: … | L141: 0.54 | M141: 1.01 | N141: 0.94 | O141: 0.76 | P141: 0.7 | Q141: 0.66 | R141: 0.9 | S141: 401.56 | T141: … | U141: … | V141: 481.87 | W141: 278.02 | X141: … | Y141: 124 | Z141: 300 | AA141: 100 | AB141: … | AC141: … | AD141: 28.45 | AE141: 58.4 | AF141: 55.77 | AG141: 98.91 | AH141: … | AI141: … | AJ141: … | AK141: … | AL141: 62.83 | AM141: … | AN141: 0.14 | AO141: 0.15 | AP141: 1.38 | AQ141: 0.43 | AR141: 0.78 | AS141: 3.31 | AT141: 0.11 | AU141: 0.17 | AV141: 0.1 | AW141: 1020.68 | AX141: 44.43 | AY141: 44.44 | AZ141: … | BA141: 178.3 | BB141: … | BC141: 0.73 | BD141: … | BE141: 0.34 | BF141: 11.25 | BG141: 57.5 | BH141: 40 | BI141: 16 | BJ141: 32.5 | BK141: 617.29 | BL141: 10.33 | BM141: 1144.1 | BN141: 267.4 | BO141: 3527.4 | BP141: 2932.1 | BQ141: 283.7 | BR141: 38.87 | BS141: 122.5 | BT141: 1.67
A142: 1971M04 | B142: 1.64 | C142: 1.64 | D142: 1.64 | E142: … | F142: 8.68 | G142: … | H142: 0.18 | I142: 0.5 | J142: … | K142: … | L142: 0.54 | M142: 0.99 | N142: 0.94 | O142: 1.03 | P142: 0.65 | Q142: 1.54 | R142: 0.9 | S142: 388.8 | T142: … | U142: … | V142: 462.97 | W142: 269.28 | X142: … | Y142: 119 | Z142: 292 | AA142: 98 | AB142: … | AC142: … | AD142: 28.42 | AE142: 58.4 | AF142: 55.77 | AG142: 95.67 | AH142: … | AI142: … | AJ142: … | AK142: … | AL142: 62.46 | AM142: … | AN142: 0.14 | AO142: 0.17 | AP142: 1.4 | AQ142: 0.43 | AR142: 0.82 | AS142: 3.31 | AT142: 0.11 | AU142: 0.17 | AV142: 0.1 | AW142: 1012.52 | AX142: 44.43 | AY142: 44.44 | AZ142: … | BA142: 178.3 | BB142: … | BC142: 0.73 | BD142: … | BE142: 0.36 | BF142: 11.25 | BG142: 57.5 | BH142: 40 | BI142: 16 | BJ142: 32.5 | BK142: 617.29 | BL142: 10.33 | BM142: 1251.5 | BN142: 268 | BO142: 3562.7 | BP142: 2932.1 | BQ142: 283.5 | BR142: 39.01 | BS142: 122.5 | BT142: 1.73
A143: 1971M05 | B143: 1.64 | C143: 1.64 | D143: 1.64 | E143: … | F143: 8.68 | G143: … | H143: 0.18 | I143: 0.5 | J143: … | K143: … | L143: 0.54 | M143: 1.02 | N143: 0.94 | O143: 0.91 | P143: 0.66 | Q143: 1.19 | R143: 0.9 | S143: 359.04 | T143: … | U143: … | V143: 453.52 | W143: 242.82 | X143: … | Y143: 122 | Z143: 293 | AA143: 101 | AB143: … | AC143: … | AD143: 28.62 | AE143: 58.4 | AF143: 55.77 | AG143: 105.98 | AH143: … | AI143: … | AJ143: … | AK143: … | AL143: 63.2 | AM143: … | AN143: 0.14 | AO143: 0.15 | AP143: 1.4 | AQ143: 0.44 | AR143: 0.79 | AS143: 3.31 | AT143: 0.11 | AU143: 0.17 | AV143: 0.1 | AW143: 1038.8 | AX143: 44.43 | AY143: 44.31 | AZ143: … | BA143: 178.02 | BB143: … | BC143: 0.75 | BD143: … | BE143: 0.38 | BF143: 11.25 | BG143: 57.5 | BH143: 40 | BI143: 16 | BJ143: 32.5 | BK143: 617.29 | BL143: 10.33 | BM143: 1114.4 | BN143: 264.5 | BO143: 3520.8 | BP143: 2932.1 | BQ143: 287.7 | BR143: 40.52 | BS143: 122.5 | BT143: 1.67
A144: 1971M06 | B144: 1.64 | C144: 1.64 | D144: 1.64 | E144: … | F144: 8.68 | G144: … | H144: 0.18 | I144: 0.5 | J144: … | K144: … | L144: 0.54 | M144: 1 | N144: 0.93 | O144: 0.85 | P144: 0.64 | Q144: 1.02 | R144: 0.9 | S144: 354.31 | T144: … | U144: … | V144: 441.24 | W144: 240.93 | X144: … | Y144: 127 | Z144: 310 | AA144: 104 | AB144: … | AC144: … | AD144: 28.28 | AE144: 58.4 | AF144: 55.77 | AG144: 109.22 | AH144: … | AI144: … | AJ144: … | AK144: … | AL144: 61.36 | AM144: … | AN144: 0.14 | AO144: 0.15 | AP144: 1.37 | AQ144: 0.44 | AR144: 0.76 | AS144: 3.31 | AT144: 0.11 | AU144: 0.18 | AV144: 0.09 | AW144: 1035.09 | AX144: 44.43 | AY144: 43.26 | AZ144: … | BA144: 175.73 | BB144: … | BC144: 0.79 | BD144: … | BE144: 0.34 | BF144: 11.25 | BG144: 57.5 | BH144: 40 | BI144: 16 | BJ144: 32.5 | BK144: 617.29 | BL144: 10.33 | BM144: 1074.2 | BN144: 273.3 | BO144: 3448 | BP144: 2932.1 | BQ144: 308.6 | BR144: 40.1 | BS144: 122.5 | BT144: 1.61
A145: 1971M07 | B145: 1.74 | C145: 1.74 | D145: 1.74 | E145: … | F145: 8.68 | G145: … | H145: 0.18 | I145: 0.5 | J145: … | K145: … | L145: 0.54 | M145: 0.99 | N145: 0.93 | O145: 0.91 | P145: 0.63 | Q145: 1.19 | R145: 0.9 | S145: 351.01 | T145: … | U145: … | V145: 439.58 | W145: 263.37 | X145: … | Y145: 134 | Z145: 336 | AA145: 107 | AB145: … | AC145: … | AD145: 28.33 | AE145: 58.4 | AF145: 55.77 | AG145: 111.48 | AH145: … | AI145: … | AJ145: … | AK145: … | AL145: 61.36 | AM145: … | AN145: 0.14 | AO145: 0.15 | AP145: 1.35 | AQ145: 0.44 | AR145: 0.75 | AS145: 3.31 | AT145: 0.11 | AU145: 0.18 | AV145: 0.09 | AW145: 1011.61 | AX145: 44.43 | AY145: 41.94 | AZ145: … | BA145: 172.81 | BB145: … | BC145: 0.8 | BD145: … | BE145: 0.33 | BF145: 11.25 | BG145: 66 | BH145: 46.5 | BI145: 16 | BJ145: 32.5 | BK145: 617.29 | BL145: 10.33 | BM145: 1115.3 | BN145: 261.9 | BO145: 3456.8 | BP145: 2932.1 | BQ145: 317.6 | BR145: 40.95 | BS145: 122.5 | BT145: 1.58
A146: 1971M08 | B146: 1.74 | C146: 1.74 | D146: 1.74 | E146: … | F146: 8.68 | G146: … | H146: 0.18 | I146: 0.5 | J146: … | K146: … | L146: 0.54 | M146: 1.01 | N146: 0.93 | O146: 0.86 | P146: 0.71 | Q146: 0.97 | R146: 0.9 | S146: 355.49 | T146: … | U146: … | V146: 439.64 | W146: 282.56 | X146: … | Y146: 131 | Z146: 335 | AA146: 108 | AB146: … | AC146: … | AD146: 28.3 | AE146: 58.4 | AF146: 55.77 | AG146: 113.35 | AH146: … | AI146: … | AJ146: … | AK146: … | AL146: 60.99 | AM146: … | AN146: 0.15 | AO146: 0.15 | AP146: 1.32 | AQ146: 0.44 | AR146: 0.75 | AS146: 3.31 | AT146: 0.11 | AU146: 0.18 | AV146: 0.09 | AW146: 1001.25 | AX146: 44.43 | AY146: 42.19 | AZ146: … | BA146: 173.37 | BB146: … | BC146: 0.83 | BD146: … | BE146: 0.32 | BF146: 11.25 | BG146: 66 | BH146: 46.5 | BI146: 16 | BJ146: 32.5 | BK146: 628.32 | BL146: 10.33 | BM146: 1097.9 | BN146: 258.3 | BO146: 3478.9 | BP146: 2932.1 | BQ146: 322.5 | BR146: 42.71 | BS146: 122.5 | BT146: 1.59
A147: 1971M09 | B147: 1.74 | C147: 1.74 | D147: 1.74 | E147: … | F147: 8.68 | G147: … | H147: 0.18 | I147: 0.5 | J147: … | K147: … | L147: 0.54 | M147: 0.96 | N147: 0.92 | O147: 0.85 | P147: 0.73 | Q147: 0.94 | R147: 0.9 | S147: 356.72 | T147: … | U147: … | V147: 429.75 | W147: 272.24 | X147: … | Y147: 124 | Z147: 296 | AA147: 99 | AB147: … | AC147: … | AD147: 28.35 | AE147: 58.4 | AF147: 55.77 | AG147: 120.61 | AH147: … | AI147: … | AJ147: … | AK147: … | AL147: 60.99 | AM147: … | AN147: 0.15 | AO147: 0.15 | AP147: 1.3 | AQ147: 0.44 | AR147: 0.79 | AS147: 3.31 | AT147: 0.12 | AU147: 0.17 | AV147: 0.09 | AW147: 1042.75 | AX147: 44.43 | AY147: 43.12 | AZ147: … | BA147: 175.42 | BB147: … | BC147: 0.83 | BD147: … | BE147: 0.32 | BF147: 11.25 | BG147: 66 | BH147: 46.5 | BI147: 16 | BJ147: 32.5 | BK147: 639.34 | BL147: 10.33 | BM147: 1056.4 | BN147: 239.2 | BO147: 3525.2 | BP147: 2932.1 | BQ147: 311.2 | BR147: 42.03 | BS147: 122.5 | BT147: 1.42
A148: 1971M10 | B148: 1.74 | C148: 1.74 | D148: 1.74 | E148: … | F148: 8.68 | G148: … | H148: 0.18 | I148: 0.5 | J148: … | K148: … | L148: 0.54 | M148: 0.94 | N148: 0.92 | O148: 0.85 | P148: 0.7 | Q148: 0.94 | R148: 0.9 | S148: 357.94 | T148: … | U148: … | V148: 404.03 | W148: 253.99 | X148: … | Y148: 125 | Z148: 305 | AA148: 101 | AB148: … | AC148: … | AD148: 28.24 | AE148: 58.4 | AF148: 55.77 | AG148: 121.69 | AH148: … | AI148: … | AJ148: … | AK148: … | AL148: 60.26 | AM148: … | AN148: 0.14 | AO148: 0.15 | AP148: 1.31 | AQ148: 0.45 | AR148: 0.8 | AS148: 3.31 | AT148: 0.12 | AU148: 0.17 | AV148: 0.09 | AW148: 1081.58 | AX148: 44.43 | AY148: 43.58 | AZ148: … | BA148: 176.43 | BB148: … | BC148: 0.82 | BD148: … | BE148: 0.32 | BF148: 11.25 | BG148: 66 | BH148: 46.5 | BI148: 16 | BJ148: 32.5 | BK148: 639.34 | BL148: 10.33 | BM148: 1041.2 | BN148: 229.5 | BO148: 3489.9 | BP148: 2932.1 | BQ148: 336.6 | BR148: 42.5 | BS148: 122.5 | BT148: 1.34
A149: 1971M11 | B149: 1.74 | C149: 1.74 | D149: 1.74 | E149: … | F149: 8.68 | G149: … | H149: 0.18 | I149: 0.5 | J149: … | K149: … | L149: 0.54 | M149: 0.97 | N149: 0.93 | O149: 0.82 | P149: 0.69 | Q149: 0.87 | R149: 0.9 | S149: 358.23 | T149: … | U149: … | V149: 396.01 | W149: 247.82 | X149: … | Y149: 125 | Z149: 301 | AA149: 102 | AB149: … | AC149: … | AD149: 28.28 | AE149: 58.4 | AF149: 55.77 | AG149: 118.06 | AH149: … | AI149: … | AJ149: … | AK149: … | AL149: 60.26 | AM149: … | AN149: 0.14 | AO149: 0.15 | AP149: 1.29 | AQ149: 0.45 | AR149: 0.85 | AS149: 3.31 | AT149: 0.12 | AU149: 0.18 | AV149: 0.09 | AW149: 1102.4 | AX149: 44.43 | AY149: 41.57 | AZ149: … | BA149: 171.99 | BB149: … | BC149: 0.82 | BD149: … | BE149: 0.32 | BF149: 11.25 | BG149: 66 | BH149: 46.5 | BI149: 16 | BJ149: 32.5 | BK149: 641.54 | BL149: 10.33 | BM149: 1013.9 | BN149: 221.8 | BO149: 3534 | BP149: 2932.1 | BQ149: 344.4 | BR149: 42.86 | BS149: 122.5 | BT149: 1.32
A150: 1971M12 | B150: 1.74 | C150: 1.74 | D150: 1.74 | E150: … | F150: 8.68 | G150: … | H150: 0.18 | I150: 0.5 | J150: … | K150: … | L150: 0.54 | M150: 1.02 | N150: 0.94 | O150: 0.8 | P150: 0.7 | Q150: 0.81 | R150: 0.9 | S150: 300 | T150: … | U150: … | V150: 410.95 | W150: 233.69 | X150: … | Y150: 126 | Z150: 271 | AA150: 101 | AB150: … | AC150: … | AD150: 28.25 | AE150: 58.4 | AF150: 55.77 | AG150: 116.98 | AH150: … | AI150: … | AJ150: … | AK150: … | AL150: 59.89 | AM150: … | AN150: 0.14 | AO150: 0.16 | AP150: 1.32 | AQ150: 0.45 | AR150: 0.88 | AS150: 3.31 | AT150: 0.12 | AU150: 0.18 | AV150: 0.13 | AW150: 1100.62 | AX150: 44.43 | AY150: 41.45 | AZ150: … | BA150: 171.72 | BB150: … | BC150: 0.85 | BD150: … | BE150: 0.29 | BF150: 11.25 | BG150: 66 | BH150: 46.5 | BI150: 16 | BJ150: 32.5 | BK150: 665.8 | BL150: 10.33 | BM150: 1037.9 | BN150: 231 | BO150: 3670.7 | BP150: 2932.1 | BQ150: 358.9 | BR150: 43.48 | BS150: 122.5 | BT150: 1.39
A151: 1972M01 | B151: 1.77 | C151: 1.77 | D151: 1.77 | E151: … | F151: 9.6 | G151: … | H151: 0.19 | I151: 0.54 | J151: … | K151: … | L151: 0.64 | M151: 0.99 | N151: 0.93 | O151: 0.79 | P151: 0.75 | Q151: 0.8 | R151: 0.81 | S151: 300 | T151: … | U151: … | V151: 426.69 | W151: 218.34 | X151: … | Y151: 125 | Z151: 249 | AA151: 105 | AB151: … | AC151: … | AD151: 27.06 | AE151: 51.33 | AF151: 53.08 | AG151: 113.84 | AH151: … | AI151: … | AJ151: … | AK151: … | AL151: 59.89 | AM151: … | AN151: 0.13 | AO151: 0.19 | AP151: 1.39 | AQ151: 0.45 | AR151: 0.92 | AS151: 4.12 | AT151: 0.15 | AU151: 0.19 | AV151: 0.17 | AW151: 1106.83 | AX151: 52.48 | AY151: 40.35 | AZ151: … | BA151: 169.24 | BB151: … | BC151: 0.89 | BD151: … | BE151: 0.32 | BF151: 11.5 | BG151: 83 | BH151: 60 | BI151: 29.25 | BJ151: 33.5 | BK151: 670.2 | BL151: 10.33 | BM151: 1078 | BN151: 251.9 | BO151: 3626.6 | BP151: 3079.9 | BQ151: 379.8 | BR151: 45.75 | BS151: 122.5 | BT151: 1.47
A152: 1972M02 | B152: 1.77 | C152: 1.77 | D152: 1.77 | E152: … | F152: 9.6 | G152: … | H152: 0.19 | I152: 0.54 | J152: … | K152: … | L152: 0.64 | M152: 1 | N152: 0.93 | O152: 0.79 | P152: 0.78 | Q152: 0.78 | R152: 0.81 | S152: 250 | T152: … | U152: … | V152: 437.61 | W152: 185.17 | X152: … | Y152: 127 | Z152: 246 | AA152: 107 | AB152: … | AC152: … | AD152: 27.18 | AE152: 51.72 | AF152: 53.46 | AG152: 112.56 | AH152: … | AI152: … | AJ152: … | AK152: … | AL152: 59.89 | AM152: … | AN152: 0.14 | AO152: 0.19 | AP152: 1.4 | AQ152: 0.46 | AR152: 0.89 | AS152: 4.12 | AT152: 0.16 | AU152: 0.19 | AV152: 0.18 | AW152: 1115.16 | AX152: 52.48 | AY152: 42.13 | AZ152: … | BA152: 173.23 | BB152: … | BC152: 0.9 | BD152: … | BE152: 0.31 | BF152: 11.5 | BG152: 83 | BH152: 60 | BI152: 29.25 | BJ152: 33.5 | BK152: 670.2 | BL152: 10.33 | BM152: 1112.4 | BN152: 294.3 | BO152: 3631 | BP152: 3079.9 | BQ152: 389.7 | BR152: 48.26 | BS152: 122.5 | BT152: 1.5
A153: 1972M03 | B153: 1.77 | C153: 1.77 | D153: 1.77 | E153: … | F153: 9.6 | G153: … | H153: 0.19 | I153: 0.54 | J153: … | K153: … | L153: 0.64 | M153: 1.02 | N153: 0.95 | O153: 0.8 | P153: 0.82 | Q153: 0.75 | R153: 0.81 | S153: 210 | T153: … | U153: … | V153: 434.41 | W153: 216.68 | X153: … | Y153: 135 | Z153: 258 | AA153: 114 | AB153: … | AC153: … | AD153: 27.37 | AE153: 52.51 | AF153: 53.57 | AG153: 113.05 | AH153: … | AI153: … | AJ153: … | AK153: … | AL153: 59.89 | AM153: … | AN153: 0.13 | AO153: 0.16 | AP153: 1.45 | AQ153: 0.46 | AR153: 0.92 | AS153: 4.12 | AT153: 0.16 | AU153: 0.19 | AV153: 0.19 | AW153: 1088.67 | AX153: 52.48 | AY153: 43.98 | AZ153: … | BA153: 177.3 | BB153: … | BC153: 0.87 | BD153: … | BE153: 0.31 | BF153: 11.5 | BG153: 83 | BH153: 60 | BI153: 29.25 | BJ153: 33.5 | BK153: 670.2 | BL153: 10.33 | BM153: 1108.2 | BN153: 320.5 | BO153: 3789.7 | BP153: 3079.9 | BQ153: 397.4 | BR153: 48.33 | BS153: 122.5 | BT153: 1.54
A154: 1972M04 | B154: 1.77 | C154: 1.77 | D154: 1.77 | E154: … | F154: 9.6 | G154: … | H154: 0.19 | I154: 0.54 | J154: … | K154: … | L154: 0.64 | M154: 1.01 | N154: 0.96 | O154: 0.81 | P154: 0.81 | Q154: 0.82 | R154: 0.81 | S154: 200 | T154: … | U154: … | V154: 439.9 | W154: 227.34 | X154: … | Y154: 140 | Z154: 272 | AA154: 117 | AB154: … | AC154: … | AD154: 27.7 | AE154: 53.68 | AF154: 53.68 | AG154: 111.58 | AH154: … | AI154: … | AJ154: … | AK154: … | AL154: 60.26 | AM154: … | AN154: 0.14 | AO154: 0.15 | AP154: 1.5 | AQ154: 0.46 | AR154: 0.93 | AS154: 4.12 | AT154: 0.16 | AU154: 0.19 | AV154: 0.16 | AW154: 1066.04 | AX154: 52.48 | AY154: 43.57 | AZ154: … | BA154: 176.41 | BB154: … | BC154: 0.87 | BD154: … | BE154: 0.31 | BF154: 11.5 | BG154: 83 | BH154: 60 | BI154: 29.25 | BJ154: 33.5 | BK154: 670.2 | BL154: 10.33 | BM154: 1133 | BN154: 315.9 | BO154: 3844.9 | BP154: 3079.9 | BQ154: 395 | BR154: 49.03 | BS154: 122.5 | BT154: 1.57
A155: 1972M05 | B155: 1.77 | C155: 1.77 | D155: 1.77 | E155: … | F155: 9.6 | G155: … | H155: 0.19 | I155: 0.54 | J155: … | K155: … | L155: 0.64 | M155: 1.04 | N155: 0.96 | O155: 0.86 | P155: 0.8 | Q155: 0.96 | R155: 0.81 | S155: 220 | T155: … | U155: … | V155: 441.52 | W155: 227.51 | X155: … | Y155: 140 | Z155: 252 | AA155: 117 | AB155: … | AC155: … | AD155: 27.89 | AE155: 54.48 | AF155: 51.53 | AG155: 114.13 | AH155: … | AI155: … | AJ155: … | AK155: … | AL155: 60.26 | AM155: … | AN155: 0.14 | AO155: 0.13 | AP155: 1.51 | AQ155: 0.47 | AR155: 0.98 | AS155: 4.12 | AT155: 0.16 | AU155: 0.18 | AV155: 0.15 | AW155: 1060.87 | AX155: 52.48 | AY155: 42.54 | AZ155: … | BA155: 174.14 | BB155: … | BC155: 0.86 | BD155: … | BE155: 0.33 | BF155: 11.5 | BG155: 83 | BH155: 60 | BI155: 29.25 | BJ155: 33.5 | BK155: 599.66 | BL155: 10.33 | BM155: 1106.4 | BN155: 317.9 | BO155: 3765.5 | BP155: 3079.9 | BQ155: 386.2 | BR155: 54.62 | BS155: 122.5 | BT155: 1.58
A156: 1972M06 | B156: 1.77 | C156: 1.77 | D156: 1.77 | E156: … | F156: 9.6 | G156: … | H156: 0.19 | I156: 0.54 | J156: … | K156: … | L156: 0.64 | M156: 1.07 | N156: 0.96 | O156: 0.87 | P156: 0.74 | Q156: 1.05 | R156: 0.81 | S156: 248.46 | T156: … | U156: … | V156: 422.12 | W156: 216.13 | X156: … | Y156: 138 | Z156: 234 | AA156: 119 | AB156: … | AC156: … | AD156: 27.57 | AE156: 52.9 | AF156: 49.82 | AG156: 118.35 | AH156: … | AI156: … | AJ156: … | AK156: … | AL156: 59.89 | AM156: … | AN156: 0.14 | AO156: 0.13 | AP156: 1.54 | AQ156: 0.47 | AR156: 1.23 | AS156: 4.12 | AT156: 0.15 | AU156: 0.18 | AV156: 0.14 | AW156: 1072.21 | AX156: 52.48 | AY156: 40.75 | AZ156: … | BA156: 170.15 | BB156: … | BC156: 0.83 | BD156: … | BE156: 0.33 | BF156: 11.5 | BG156: 83 | BH156: 60 | BI156: 29.25 | BJ156: 33.5 | BK156: 566.59 | BL156: 10.33 | BM156: 1063.2 | BN156: 311.9 | BO156: 3741.2 | BP156: 3079.9 | BQ156: 371 | BR156: 62.09 | BS156: 122.5 | BT156: 1.57
A157: 1972M07 | B157: 1.87 | C157: 1.87 | D157: 1.87 | E157: … | F157: 9.6 | G157: … | H157: 0.19 | I157: 0.54 | J157: … | K157: … | L157: 0.64 | M157: 1.24 | N157: 1.04 | O157: 0.79 | P157: 0.55 | Q157: 1.01 | R157: 0.81 | S157: 222.41 | T157: … | U157: … | V157: 403.2 | W157: 214.6 | X157: … | Y157: 141 | Z157: 226 | AA157: 127 | AB157: … | AC157: … | AD157: 27.91 | AE157: 54.07 | AF157: 51.92 | AG157: 119.33 | AH157: … | AI157: … | AJ157: … | AK157: … | AL157: 60.26 | AM157: … | AN157: 0.13 | AO157: 0.13 | AP157: 1.51 | AQ157: 0.47 | AR157: 1.15 | AS157: 4.12 | AT157: 0.15 | AU157: 0.19 | AV157: 0.12 | AW157: 1062.48 | AX157: 52.48 | AY157: 39.02 | AZ157: … | BA157: 166.21 | BB157: … | BC157: 0.78 | BD157: … | BE157: 0.32 | BF157: 11.5 | BG157: 99 | BH157: 75 | BI157: 29.25 | BJ157: 33.5 | BK157: 537.93 | BL157: 10.33 | BM157: 1034.6 | BN157: 303.7 | BO157: 3732.4 | BP157: 3079.9 | BQ157: 363.7 | BR157: 65.66 | BS157: 128 | BT157: 1.74
A158: 1972M08 | B158: 1.87 | C158: 1.87 | D158: 1.87 | E158: … | F158: 9.6 | G158: … | H158: 0.19 | I158: 0.54 | J158: … | K158: … | L158: 0.64 | M158: 1.2 | N158: 1.04 | O158: 0.77 | P158: 0.64 | Q158: 0.87 | R158: 0.81 | S158: 217.02 | T158: … | U158: … | V158: 413.54 | W158: 220.64 | X158: … | Y158: 141 | Z158: 223 | AA158: 126 | AB158: … | AC158: … | AD158: 28.63 | AE158: 55.66 | AF158: 54.94 | AG158: 135.55 | AH158: … | AI158: … | AJ158: … | AK158: … | AL158: 62.1 | AM158: … | AN158: 0.14 | AO158: 0.13 | AP158: 1.49 | AQ158: 0.48 | AR158: 1.22 | AS158: 4.12 | AT158: 0.15 | AU158: 0.19 | AV158: 0.14 | AW158: 1081.81 | AX158: 52.48 | AY158: 39.27 | AZ158: … | BA158: 166.78 | BB158: … | BC158: 0.74 | BD158: … | BE158: 0.32 | BF158: 11.5 | BG158: 99 | BH158: 75 | BI158: 29.25 | BJ158: 33.5 | BK158: 540.13 | BL158: 10.33 | BM158: 1046.7 | BN158: 297.8 | BO158: 3754.5 | BP158: 3079.9 | BQ158: 363.5 | BR158: 67.03 | BS158: 132.5 | BT158: 1.85
A159: 1972M09 | B159: 1.87 | C159: 1.87 | D159: 1.87 | E159: … | F159: 9.6 | G159: … | H159: 0.19 | I159: 0.54 | J159: … | K159: … | L159: 0.64 | M159: 1.17 | N159: 1.03 | O159: 0.76 | P159: 0.69 | Q159: 0.76 | R159: 0.81 | S159: 226 | T159: … | U159: … | V159: 412.33 | W159: 224.87 | X159: … | Y159: 135 | Z159: 225 | AA159: 138 | AB159: … | AC159: … | AD159: 32.15 | AE159: 59.2 | AF159: 58.2 | AG159: 144.8 | AH159: … | AI159: … | AJ159: … | AK159: … | AL159: 76.06 | AM159: … | AN159: 0.13 | AO159: 0.13 | AP159: 1.46 | AQ159: 0.48 | AR159: 1.2 | AS159: 4.12 | AT159: 0.15 | AU159: 0.19 | AV159: 0.16 | AW159: 1062.84 | AX159: 52.48 | AY159: 39.38 | AZ159: … | BA159: 167.03 | BB159: … | BC159: 0.73 | BD159: … | BE159: 0.31 | BF159: 11.5 | BG159: 99 | BH159: 75 | BI159: 29.25 | BJ159: 33.5 | BK159: 537.93 | BL159: 10.33 | BM159: 1060.6 | BN159: 302.4 | BO159: 3803 | BP159: 3079.9 | BQ159: 368.4 | BR159: 65.46 | BS159: 132.5 | BT159: 1.78
A160: 1972M10 | B160: 1.87 | C160: 1.87 | D160: 1.87 | E160: … | F160: 9.6 | G160: … | H160: 0.19 | I160: 0.54 | J160: … | K160: … | L160: 0.64 | M160: 1.18 | N160: 1.04 | O160: 0.74 | P160: 0.63 | Q160: 0.78 | R160: 0.81 | S160: 232 | T160: … | U160: … | V160: 401.48 | W160: 224.02 | X160: … | Y160: 136 | Z160: 228 | AA160: 135 | AB160: … | AC160: … | AD160: 33.93 | AE160: 57.22 | AF160: 56.88 | AG160: 148.7 | AH160: … | AI160: … | AJ160: … | AK160: … | AL160: 87.45 | AM160: … | AN160: 0.14 | AO160: 0.13 | AP160: 1.47 | AQ160: 0.48 | AR160: 1.11 | AS160: 4.12 | AT160: 0.14 | AU160: 0.19 | AV160: 0.16 | AW160: 1061.76 | AX160: 52.48 | AY160: 39.46 | AZ160: … | BA160: 167.22 | BB160: … | BC160: 0.78 | BD160: … | BE160: 0.36 | BF160: 11.5 | BG160: 99 | BH160: 75 | BI160: 29.25 | BJ160: 33.5 | BK160: 537.93 | BL160: 10.33 | BM160: 917.5 | BN160: 297.2 | BO160: 3758.9 | BP160: 3079.9 | BQ160: 363.7 | BR160: 64.86 | BS160: 132.5 | BT160: 1.81
A161: 1972M11 | B161: 1.87 | C161: 1.87 | D161: 1.87 | E161: … | F161: 9.6 | G161: … | H161: 0.19 | I161: 0.54 | J161: … | K161: … | L161: 0.64 | M161: 1.19 | N161: 1.04 | O161: 0.71 | P161: 0.58 | Q161: 0.74 | R161: 0.81 | S161: 234.96 | T161: … | U161: … | V161: 422.59 | W161: 218.54 | X161: … | Y161: 148 | Z161: 240 | AA161: 155 | AB161: … | AC161: … | AD161: 34.65 | AE161: 59.2 | AF161: 61.95 | AG161: 156 | AH161: … | AI161: … | AJ161: … | AK161: … | AL161: 88.92 | AM161: … | AN161: 0.14 | AO161: 0.13 | AP161: 1.48 | AQ161: 0.49 | AR161: 1.12 | AS161: 4.12 | AT161: 0.14 | AU161: 0.19 | AV161: 0.16 | AW161: 1048.86 | AX161: 52.48 | AY161: 39.46 | AZ161: … | BA161: 167.22 | BB161: … | BC161: 0.81 | BD161: … | BE161: 0.37 | BF161: 11.5 | BG161: 99 | BH161: 75 | BI161: 29.25 | BJ161: 33.5 | BK161: 540.13 | BL161: 10.33 | BM161: 1007.1 | BN161: 298 | BO161: 3701.6 | BP161: 3079.9 | BQ161: 378.9 | BR161: 62.91 | BS161: 132.5 | BT161: 1.83
A162: 1972M12 | B162: 1.87 | C162: 1.87 | D162: 1.87 | E162: … | F162: 9.6 | G162: … | H162: 0.19 | I162: 0.54 | J162: … | K162: … | L162: 0.64 | M162: 1.22 | N162: 1.05 | O162: 0.71 | P162: 0.6 | Q162: 0.71 | R162: 0.81 | S162: 247.87 | T162: … | U162: … | V162: 455.82 | W162: 213.26 | X162: … | Y162: 174 | Z162: 234 | AA162: 198 | AB162: … | AC162: … | AD162: 38.75 | AE162: 67.06 | AF162: 75.83 | AG162: 165.5 | AH162: … | AI162: … | AJ162: … | AK162: … | AL162: 102.88 | AM162: … | AN162: 0.13 | AO162: 0.23 | AP162: 1.57 | AQ162: 0.5 | AR162: 1.14 | AS162: 4.12 | AT162: 0.14 | AU162: 0.19 | AV162: 0.2 | AW162: 1056.18 | AX162: 52.48 | AY162: 43.48 | AZ162: … | BA162: 176.21 | BB162: … | BC162: 0.86 | BD162: … | BE162: 0.4 | BF162: 11.5 | BG162: 99 | BH162: 75 | BI162: 29.25 | BJ162: 33.5 | BK162: 540.13 | BL162: 10.33 | BM162: 1024.4 | BN162: 308.4 | BO162: 3730.2 | BP162: 3079.9 | BQ162: 375 | BR162: 63.91 | BS162: 132.5 | BT162: 1.98
A163: 1973M01 | B163: 2.08 | C163: 2.08 | D163: 2.08 | E163: … | F163: 11.48 | G163: … | H163: 0.21 | I163: 0.69 | J163: … | K163: … | L163: 1.13 | M163: 1.28 | N163: 1.05 | O163: 0.72 | P163: 0.6 | Q163: 0.73 | R163: 0.82 | S163: 231 | T163: … | U163: … | V163: 445.79 | W163: 211.77 | X163: … | Y163: 214 | Z163: 239 | AA163: 215 | AB163: … | AC163: … | AD163: 42.1 | AE163: 79.13 | AF163: 81.35 | AG163: 160.88 | AH163: … | AI163: … | AJ163: … | AK163: … | AL163: 108.39 | AM163: … | AN163: 0.14 | AO163: 0.15 | AP163: 1.7 | AQ163: 0.5 | AR163: 1.17 | AS163: 5 | AT163: 0.14 | AU163: 0.21 | AV163: 0.21 | AW163: 1041.72 | AX163: 133.47 | AY163: 48.85 | AZ163: … | BA163: 187.65 | BB163: … | BC163: 0.89 | BD163: … | BE163: 0.44 | BF163: 13.75 | BG163: 105 | BH163: 84 | BI163: 64.75 | BJ163: 42.5 | BK163: 542.34 | BL163: 10.33 | BM163: 1119 | BN163: 318.3 | BO163: 3789.7 | BP163: 3373.1 | BQ163: 387 | BR163: 65.14 | BS163: 132.5 | BT163: 2.02
A164: 1973M02 | B164: 2.08 | C164: 2.08 | D164: 2.08 | E164: … | F164: 11.48 | G164: … | H164: 0.21 | I164: 0.69 | J164: … | K164: … | L164: 1.13 | M164: 1.45 | N164: 1.09 | O164: 0.73 | P164: 0.66 | Q164: 0.71 | R164: 0.82 | S164: 299 | T164: … | U164: … | V164: 460.54 | W164: 258.66 | X164: … | Y164: 259 | Z164: 291 | AA164: 247 | AB164: … | AC164: … | AD164: 40.76 | AE164: 81.1 | AF164: 78.48 | AG164: 173.53 | AH164: … | AI164: … | AJ164: … | AK164: … | AL164: 98.84 | AM164: … | AN164: 0.14 | AO164: 0.18 | AP164: 1.87 | AQ164: 0.51 | AR164: 1.18 | AS164: 5 | AT164: 0.15 | AU164: 0.2 | AV164: 0.2 | AW164: 1039.48 | AX164: 133.47 | AY164: 63.34 | AZ164: … | BA164: 215.9 | BB164: … | BC164: 0.91 | BD164: … | BE164: 0.46 | BF164: 13.75 | BG164: 105 | BH164: 84 | BI164: 64.75 | BJ164: 42.5 | BK164: 557.77 | BL164: 10.33 | BM164: 1243.6 | BN164: 339.9 | BO164: 4027.8 | BP164: 3373.1 | BQ164: 422 | BR164: 74.2 | BS164: 141.97 | BT164: 2.24
A165: 1973M03 | B165: 2.08 | C165: 2.08 | D165: 2.08 | E165: … | F165: 11.48 | G165: … | H165: 0.21 | I165: 0.69 | J165: … | K165: … | L165: 1.13 | M165: 1.42 | N165: 1.11 | O165: 0.73 | P165: 0.7 | Q165: 0.69 | R165: 0.82 | S165: 315 | T165: … | U165: … | V165: 462.7 | W165: 280.36 | X165: … | Y165: 258 | Z165: 311 | AA165: 238 | AB165: … | AC165: … | AD165: 40.56 | AE165: 79.92 | AF165: 76.28 | AG165: 185.87 | AH165: … | AI165: … | AJ165: … | AK165: … | AL165: 98.47 | AM165: … | AN165: 0.14 | AO165: 0.18 | AP165: 1.98 | AQ165: 0.51 | AR165: 1.23 | AS165: 5 | AT165: 0.15 | AU165: 0.21 | AV165: 0.19 | AW165: 1046.86 | AX165: 133.47 | AY165: 74.1 | AZ165: … | BA165: 234.99 | BB165: … | BC165: 0.96 | BD165: … | BE165: 0.55 | BF165: 13.75 | BG165: 105 | BH165: 84 | BI165: 64.75 | BJ165: 42.5 | BK165: 571 | BL165: 10.33 | BM165: 1509.5 | BN165: 372.1 | BO165: 4288 | BP165: 3373.1 | BQ165: 474 | BR165: 84.37 | BS165: 152.5 | BT165: 2.31
A166: 1973M04 | B166: 2.35 | C166: 2.35 | D166: 2.35 | E166: … | F166: 11.48 | G166: … | H166: 0.21 | I166: 0.69 | J166: … | K166: … | L166: 1.13 | M166: 1.29 | N166: 1.08 | O166: 0.8 | P166: 0.69 | Q166: 0.9 | R166: 0.82 | S166: 360 | T166: … | U166: … | V166: 473.56 | W166: 290.2 | X166: … | Y166: 260 | Z166: 333 | AA166: 256 | AB166: … | AC166: … | AD166: 40.72 | AE166: 77.77 | AF166: 74.51 | AG166: 185.87 | AH166: … | AI166: … | AJ166: … | AK166: … | AL166: 101.05 | AM166: … | AN166: 0.15 | AO166: 0.15 | AP166: 1.85 | AQ166: 0.52 | AR166: 1.27 | AS166: 5 | AT166: 0.15 | AU166: 0.21 | AV166: 0.2 | AW166: 1066.55 | AX166: 133.47 | AY166: 70.97 | AZ166: … | BA166: 229.58 | BB166: … | BC166: 1.03 | BD166: … | BE166: 0.54 | BF166: 13.75 | BG166: 105 | BH166: 84 | BI166: 64.75 | BJ166: 42.5 | BK166: 571 | BL166: 10.33 | BM166: 1588.4 | BN166: 387.1 | BO166: 4270.3 | BP166: 3373.1 | BQ166: 513 | BR166: 90.5 | BS166: 152.5 | BT166: 2.21
A167: 1973M05 | B167: 2.35 | C167: 2.35 | D167: 2.35 | E167: … | F167: 11.48 | G167: … | H167: 0.21 | I167: 0.69 | J167: … | K167: … | L167: 1.13 | M167: 1.42 | N167: 1.07 | O167: 0.81 | P167: 0.64 | Q167: 0.96 | R167: 0.82 | S167: 416 | T167: … | U167: … | V167: 493.84 | W167: 323.83 | X167: … | Y167: 358 | Z167: 373 | AA167: 364 | AB167: … | AC167: … | AD167: 42.94 | AE167: 88.97 | AF167: 78.48 | AG167: 185.87 | AH167: … | AI167: … | AJ167: … | AK167: … | AL167: 102.15 | AM167: … | AN167: 0.16 | AO167: 0.15 | AP167: 1.85 | AQ167: 0.53 | AR167: 1.24 | AS167: 5 | AT167: 0.15 | AU167: 0.22 | AV167: 0.2 | AW167: 1087.36 | AX167: 133.47 | AY167: 61.74 | AZ167: … | BA167: 212.94 | BB167: … | BC167: 1.15 | BD167: … | BE167: 0.55 | BF167: 13.75 | BG167: 105 | BH167: 84 | BI167: 64.75 | BJ167: 42.5 | BK167: 582.02 | BL167: 10.33 | BM167: 1552.2 | BN167: 396.4 | BO167: 4347.5 | BP167: 3373.1 | BQ167: 549 | BR167: 101.96 | BS167: 152.5 | BT167: 2.4
A168: 1973M06 | B168: 2.35 | C168: 2.35 | D168: 2.35 | E168: … | F168: 11.48 | G168: … | H168: 0.21 | I168: 0.69 | J168: … | K168: … | L168: 1.13 | M168: 1.41 | N168: 1.08 | O168: 0.84 | P168: 0.6 | Q168: 1.08 | R168: 0.85 | S168: 457 | T168: … | U168: … | V168: 524.81 | W168: 371.41 | X168: … | Y168: 470 | Z168: 455 | AA168: 497 | AB168: … | AC168: … | AD168: 46.21 | AE168: 101.17 | AF168: 87.3 | AG168: 185.87 | AH168: … | AI168: … | AJ168: … | AK168: … | AL168: 108.39 | AM168: … | AN168: 0.16 | AO168: 0.15 | AP168: 1.8 | AQ168: 0.54 | AR168: 1.29 | AS168: 5 | AT168: 0.15 | AU168: 0.23 | AV168: 0.21 | AW168: 1116.3 | AX168: 133.47 | AY168: 55.72 | AZ168: … | BA168: 201.47 | BB168: … | BC168: 1.22 | BD168: … | BE168: 0.67 | BF168: 13.75 | BG168: 105 | BH168: 84 | BI168: 64.75 | BJ168: 42.5 | BK168: 601.86 | BL168: 10.33 | BM168: 1748.7 | BN168: 425.3 | BO168: 4530.5 | BP168: 3373.1 | BQ168: 656 | BR168: 120.12 | BS168: 152.5 | BT168: 2.62
A169: 1973M07 | B169: 2.7 | C169: 2.7 | D169: 2.7 | E169: … | F169: 11.48 | G169: … | H169: 0.21 | I169: 0.69 | J169: … | K169: … | L169: 1.13 | M169: 1.36 | N169: 1.06 | O169: 0.87 | P169: 0.63 | Q169: 1.14 | R169: 0.85 | S169: 552 | T169: … | U169: … | V169: 593.56 | W169: 472.85 | X169: … | Y169: 330 | Z169: 550 | AA169: 582 | AB169: … | AC169: … | AD169: 48.8 | AE169: 109.44 | AF169: 99.65 | AG169: 332.53 | AH169: … | AI169: … | AJ169: … | AK169: … | AL169: 114.64 | AM169: … | AN169: 0.15 | AO169: 0.15 | AP169: 1.96 | AQ169: 0.55 | AR169: 1.44 | AS169: 5 | AT169: 0.15 | AU169: 0.23 | AV169: 0.21 | AW169: 1135.95 | AX169: 133.47 | AY169: 56.35 | AZ169: … | BA169: 202.69 | BB169: … | BC169: 1.46 | BD169: … | BE169: 0.85 | BF169: 13.75 | BG169: 132.5 | BH169: 115 | BI169: 64.75 | BJ169: 42.5 | BK169: 634.93 | BL169: 10.33 | BM169: 2021.2 | BN169: 469.8 | BO169: 4962.6 | BP169: 3373.1 | BQ169: 842 | BR169: 120.17 | BS169: 152.5 | BT169: 2.71
A170: 1973M08 | B170: 2.7 | C170: 2.7 | D170: 2.7 | E170: … | F170: 11.48 | G170: … | H170: 0.21 | I170: 0.69 | J170: … | K170: … | L170: 1.13 | M170: 1.33 | N170: 1.04 | O170: 0.85 | P170: 0.74 | Q170: 0.97 | R170: 0.85 | S170: 573 | T170: … | U170: … | V170: 597.88 | W170: 536.33 | X170: … | Y170: 331 | Z170: 548 | AA170: 330 | AB170: … | AC170: … | AD170: 64.47 | AE170: 122.43 | AF170: 113.32 | AG170: 377.7 | AH170: … | AI170: … | AJ170: … | AK170: … | AL170: 192.54 | AM170: … | AN170: 0.15 | AO170: 0.15 | AP170: 2.46 | AQ170: 0.54 | AR170: 1.47 | AS170: 5 | AT170: 0.15 | AU170: 0.24 | AV170: 0.2 | AW170: 1150.06 | AX170: 133.47 | AY170: 63.55 | AZ170: … | BA170: 216.29 | BB170: … | BC170: 1.67 | BD170: … | BE170: 0.82 | BF170: 13.75 | BG170: 132.5 | BH170: 115 | BI170: 64.75 | BJ170: 42.5 | BK170: 619.5 | BL170: 10.33 | BM170: 2123 | BN170: 447.5 | BO170: 5004.5 | BP170: 3373.1 | BQ170: 914 | BR170: 106.76 | BS170: 152.5 | BT170: 2.64
A171: 1973M09 | B171: 2.7 | C171: 2.7 | D171: 2.7 | E171: … | F171: 11.48 | G171: … | H171: 0.21 | I171: 0.69 | J171: … | K171: … | L171: 1.13 | M171: 1.33 | N171: 1.1 | O171: 0.81 | P171: 0.74 | Q171: 0.84 | R171: 0.85 | S171: 550 | T171: … | U171: … | V171: 533.73 | W171: 424.13 | X171: … | Y171: 266 | Z171: 508 | AA171: 218 | AB171: … | AC171: … | AD171: 61.22 | AE171: 107.08 | AF171: 105.82 | AG171: 377.7 | AH171: … | AI171: … | AJ171: … | AK171: … | AL171: 189.6 | AM171: … | AN171: 0.14 | AO171: 0.15 | AP171: 2.26 | AQ171: 0.53 | AR171: 1.56 | AS171: 5 | AT171: 0.15 | AU171: 0.24 | AV171: 0.2 | AW171: 1179.2 | AX171: 133.47 | AY171: 70.27 | AZ171: … | BA171: 228.36 | BB171: … | BC171: 1.91 | BD171: … | BE171: 0.73 | BF171: 13.75 | BG171: 132.5 | BH171: 115 | BI171: 64.75 | BJ171: 42.5 | BK171: 604.07 | BL171: 10.33 | BM171: 1936.1 | BN171: 444.7 | BO171: 5011.1 | BP171: 3373.1 | BQ171: 976 | BR171: 102.97 | BS171: 155.24 | BT171: 2.68
A172: 1973M10 | B172: 4.1 | C172: 4.1 | D172: 4.1 | E172: … | F172: 11.48 | G172: … | H172: 0.21 | I172: 0.69 | J172: … | K172: … | L172: 1.13 | M172: 1.38 | N172: 1.15 | O172: 0.79 | P172: 0.67 | Q172: 0.85 | R172: 0.85 | S172: 617 | T172: … | U172: … | V172: 560.68 | W172: 434.92 | X172: … | Y172: 245 | Z172: 531 | AA172: 207 | AB172: … | AC172: … | AD172: 60.08 | AE172: 106.39 | AF172: 109.24 | AG172: 337.7 | AH172: … | AI172: … | AJ172: … | AK172: … | AL172: 182.25 | AM172: … | AN172: 0.15 | AO172: 0.15 | AP172: 2.18 | AQ172: 0.54 | AR172: 1.6 | AS172: 5 | AT172: 0.15 | AU172: 0.25 | AV172: 0.21 | AW172: 1202.69 | AX172: 133.47 | AY172: 78 | AZ172: … | BA172: 241.59 | BB172: … | BC172: 1.93 | BD172: … | BE172: 0.71 | BF172: 13.75 | BG172: 132.5 | BH172: 115 | BI172: 64.75 | BJ172: 42.5 | BK172: 621.7 | BL172: 10.33 | BM172: 2065.3 | BN172: 471.6 | BO172: 5359.4 | BP172: 3373.1 | BQ172: 1163 | BR172: 100.08 | BS172: 160.5 | BT172: 2.89
